Workbook

Sheet Start
G2: Risk Dashboard Interactive Tool
G3: =+'Reference Dates'!$C$4 -> Q42020 Data
E4: Please enable macros to ensure the correct functioning of the tool
O5: List showing in Dropdown menu | P5: RI number | Q5: RI Code | R5: Name for tables - change if needs to be different from dropdown names | T5: Tables name for dropdown
O6: Tier 1 capital ratio | P6: 1 | Q6: SVC_1 | R6: Tier 1 capital ratio | T6: Assets
B7: Choose a Risk Indicator: | E7: RI Number (*) | G7: RI Code | O7: Total capital ratio | P7: 2 | Q7: SVC_2 | R7: Total capital ratio | T7: Loans Composition
B8: Tier 1 capital ratio | E8: =IFERROR(VLOOKUP(B8,$O$6:$Q$26,2,0),"") -> 1 | G8: =IFERROR(VLOOKUP(B8,$O$6:$Q$26,3,0),"") -> SVC_1 | O8: CET1 ratio | P8: 3 | Q8: SVC_3 | R8: CET1 ratio | T8: Loans NPL and coverage ratio
O9: CET1 ratio (fully loaded) | P9: 4 | Q9: SVC_29 | R9: CET1 ratio (fully loaded) | T9: NACE composition
B10: Choose a set of Tables from the statistical Annex: | O10: Leverage ratio | P10: 5 | Q10: SVC_13 | R10: Leverage ratio (transitional definition of Tier 1) | T10: NPL ratio by NACE
B11: Assets | I11: =IFERROR((LEFT($B$11,FIND(" ",$B$11)-1)),$B$11) -> Assets | O11: Leverage ratio (fully phased-in definition of Tier 1) | P11: 6 | Q11: SVC_12 | R11: Leverage ratio (fully phased-in definition of Tier 1) | T11: RE and Construction Exposures
O12: Ratio of non-performing loans and advances (NPL ratio) | P12: 7 | Q12: AQT_3.2 | R12: Ratio of non-performing loans and advances (NPL ratio) | T12: IFRS9
O13: Coverage ratio of non-performing loans and advances | P13: 8 | Q13: AQT_41.2 | R13: Coverage ratio of non-performing loans and advances | T13: Sovereigns
O14: Forbearance ratio for loans and advances | P14: 9 | Q14: AQT_42.2 | R14: Forbearance ratio for loans and advances | T14: Liabilities
B15: (*) In order of appearance in the Risk Dashboard | O15: Ratio of non-performing exposures (NPE ratio) | P15: 10 | Q15: AQT_3.1 | R15: Ratio of non-performing exposures (NPE ratio) | T15: Own funds and RWA
O16: Return on equity | P16: 11 | Q16: PFT_21 | R16: Return on equity | T16: Profitability
O17: Return on assets | P17: 12 | Q17: PFT_24 | R17: Return on assets | T17: Moratoria
O18: Cost to income ratio | P18: 13 | Q18: PFT_23 | R18: Cost to income ratio | T18: Public guarantee schemes
O19: Net interest income to total net operating income | P19: 14 | Q19: PFT_25 | R19: Net interest income to total net operating income
O20: Net fee and commission income to total net operating income | P20: 15 | Q20: PFT_26 | R20: Net fee and commission income to total net operating income
O21: Net trading income to total net operating income | P21: 16 | Q21: PFT_29 | R21: Net trading income to total net operating income
O22: Net interest margin | P22: 17 | Q22: PFT_41 | R22: Net interest margin
O23: Cost of Risk | P23: 18 | Q23: PFT_43 | R23: Cost of Risk
O24: Loan-to-deposit ratio for households and non-financial corporations | P24: 19 | Q24: FND_32 | R24: Loan-to-deposit ratio for households and non-financial corporations
O25: Asset encumbrance ratio | P25: 20 | Q25: FND_33 | R25: Asset encumbrance ratio
O26: Liquidity coverage ratio (%) | P26: 21 | Q26: LIQ_17 | R26: Liquidity coverage ratio (%)

Sheet Sheet2 (hidden)

Sheet Charts
B2: =$AR$21 -> Solvency
B3: =AM21&" - "&$AO$20 -> 1 - Tier 1 capital ratio
B4: Due to the automation of this file, charts axis are not scaled as in the booklet version. User may need to manually adjust it.
B5: Dispersion | J5: Numerator and denominator: trends
B7: 5th and 95th pct, interquartile range and median. From Q1 2020 onwards, EU aggregates no longer include figures for UK banks and they include data for subsidiaries of UK banks in EU countries. | J7: =IF(AK21="PFT_43","Total numerator and denominator. 2018Q1=100.","Total numerator and denominator. "& IF(NOT(ISNA($AS$25)), YEAR($AM$25), IF(NOT(ISNA($AS$26)), YEAR($AM$26), IF(NOT(ISNA($AS$27)), YEAR($AM$27), IF(NOT(ISNA($AS$28)), YEAR($AM$28), IF(NOT(ISNA(#REF!)), YEAR($AM$29),IF(NOT(ISNA($AS$30)), YEAR($AM$30),IF(NOT(ISNA($AS$31)), YEAR($AM$31),IF(NOT(ISNA($AS$32)), YEAR($AM$32),IF(NOT(ISNA($AS$33)), YEAR($AM$33),IF(NOT(ISNA($AS$34)), YEAR($AM$34),IF(NOT(ISNA($AS$35)), YEAR($AM$35),YEAR($AM$36)))))))))))) &"Q"& IF(NOT(ISNA($AS$25)),ROUNDUP(MONTH($AM$25)/3,0), IF(NOT(ISNA($AS$26)),ROUNDUP(MONTH($AM$26)/3,0), IF(NOT(ISNA($AS$27)), ROUNDUP(MONTH($AM$27)/3,0), IF(NOT(ISNA($AS$28)), ROUNDUP(MONTH($AM$28)/3,0),NOT(ISNA($AS$29)))))) &" = 100.") -> Total numerator and denominator. 2018Q1 = 100.
B9: ="Country dispersion (as of "& YEAR(MAX(AM25:AM45))&" Q"&(ROUNDUP((MONTH(MAX(AM25:AM45))/3),0))&")" -> Country dispersion (as of 2020 Q4) | J9: KRI by size class
B11: ( * ) Not reported. Weighted Averages by country. From Q1 2020 onwards, EU aggregates no longer include figures for UK banks and they include data for subsidiaries of UK banks in EU countries. | J11: ="Weighted average. Banks are classified in the size class according to the their average total assets between 2014Q4 and "&YEAR(MAX(AM25:AM45))&"Q"&(ROUNDUP(MONTH(MAX(AM25:AM45))/3,0))&IF(AN48="Y",". Non-FINREP banks are assigned to the bucket of small banks.",". ") -> Weighted average. Banks are classified in the size class according to the their average total assets between 2014Q4 and 2020Q4.
B14: Period | E14: Weighted average | H14: 25th percentile | K14: 50th percentile | N14: 75th percentile
C16: =AM25 -> 2018-03-01 | F16: =IF(AND(YEAR(C16)<2018,$AK$21="PFT_43"),"",IFERROR(VLOOKUP($C16,$AM$25:$BB$42,8,FALSE), "")) -> 0.1601266281 | I16: =IF(AND(YEAR(C16)<2018,$AK$21="PFT_43"),"",IFERROR(VLOOKUP($C16,$AM$25:$BB$42,5,FALSE), "")) -> 0.1406790825 | L16: =IF(AND(YEAR(C16)<2018,$AK$21="PFT_43"),"",IFERROR(VLOOKUP($C16,$AM$25:$BB$42,6,FALSE), "")) -> 0.1639047294 | O16: =IF(AND(YEAR(C16)<2018,$AK$21="PFT_43"),"",IFERROR(VLOOKUP($C16,$AM$25:$BB$42,9,FALSE), "")) -> 0.2134825616
C17: =AM26 -> 2018-06-01 | F17: =IF(AND(YEAR(C17)<2018,$AK$21="PFT_43"),"",IFERROR(VLOOKUP($C17,$AM$25:$BB$42,8,FALSE), "")) -> 0.1602768672 | I17: =IF(AND(YEAR(C17)<2018,$AK$21="PFT_43"),"",IFERROR(VLOOKUP($C17,$AM$25:$BB$42,5,FALSE), "")) -> 0.1406711908 | L17: =IF(AND(YEAR(C17)<2018,$AK$21="PFT_43"),"",IFERROR(VLOOKUP($C17,$AM$25:$BB$42,6,FALSE), "")) -> 0.1671943404 | O17: =IF(AND(YEAR(C17)<2018,$AK$21="PFT_43"),"",IFERROR(VLOOKUP($C17,$AM$25:$BB$42,9,FALSE), "")) -> 0.2168852002
C18: =AM27 -> 2018-09-01 | F18: 0.1628481677 | I18: 0.1388371555 | L18: 0.1691677188 | O18: 0.2175033887
C19: =AM28 -> 2018-12-01 | F19: 0.1631737569 | I19: 0.1440516175 | L19: 0.1666461429 | O19: 0.2031647335
C20: 2019-03-01 | F20: 0.1613771813 | I20: 0.1450424878 | L20: 0.1659485756 | O20: 0.2001838872 | AN20: dashboard name | AO20: =VLOOKUP($AM$21*1,List!$A$3:$M$23,8,FALSE) -> Tier 1 capital ratio
C21: 2019-06-01 | F21: 0.1617222784 | I21: 0.1464257216 | L21: 0.165238908 | O21: 0.1975077077 | AK21: =VLOOKUP($AM$21*1,List!$A$3:$F$23,6,0) -> SVC_1 | AM21: =Start!E8 -> 1 | AN21: =VLOOKUP($AM$21*1,List!$A$3:$F$23,4,0) -> 1 | AO21: =VLOOKUP($AM$21*1,List!$A$3:$E$23,5,0) -> Tier 1 capital ratio | AP21: =VLOOKUP($AM$21*1,List!$A$3:$K$23,11,FALSE) -> 0 | AR21: =VLOOKUP($AM$21*1,List!$A$3:$M$23,13,FALSE) -> Solvency
C22: 2019-09-01 | F22: 0.1613677389 | I22: 0.147537046 | L22: 0.1638160644 | O22: 0.1945912543 | AT22: WA
C23: 2019-12-01 | F23: =IF(AND(YEAR(C23)<2018,$AK$21="PFT_43"),"",IFERROR(VLOOKUP($C23,$AM$25:$BB$42,8,FALSE), "")) -> 0.1678534559 | I23: 0.152002714 | L23: 0.1717275433 | O23: 0.2041354545 | AP23: 5 | AQ23: 6 | AR23: 7 | AS23: 8 | AT23: 9 | AU23: 10 | AV23: 11 | AW23: 14 | AX23: 15 | AY23: Dispersion chart | BD23: 12 | BE23: 13 | BJ23: 16
C24: 2020-03-01 | F24: 0.1581946453 | I24: 0.1427134004 | L24: 0.162881694 | O24: 0.1989703886 | AL24: =+'Reference Dates'!$C$6 -> 2020-12-31 | AP24: 5^ pct | AQ24: First quartile | AR24: Median | AS24: Average | AT24: All banks | AU24: Third quartile | AV24: 95^ pct | AW24: Small | AX24: Medium | AY24: Q1 | AZ24: Q1 Neg | BA24: Q2 | BB24: Q3 | BC24: 5pct | BD24: 95 pct | BE24: Numeratir | BF24: Denominator | BG24: =VLOOKUP($AN$21,List!$D:$L,6,0) -> Tier 1 capital | BH24: =VLOOKUP($AN$21,List!$D:$L,7,0) -> Total risk exposure amount | BI24: Quarter | BJ24: Large
C25: 2020-06-01 | F25: 0.1630594616 | I25: 0.1479937941 | L25: 0.1696146986 | O25: 0.2011049692 | AK25: 1 | AL25: =(+AN25)*1 -> 201803 | AM25: =+'Reference Dates'!$C$7 -> 2018-03-01 | AN25: =+IF(MONTH(AM25)=12,YEAR(AM25)&MONTH(AM25),YEAR(AM25)&0&MONTH(AM25)) -> 201803 | AO25: =CONCATENATE($AO$21,AN25) -> Tier 1 capital ratio201803 | AP25: =VLOOKUP($AO25,Data!$A$1:$P$688,Charts!AP$23,FALSE) -> 0.1200358072 | AQ25: =VLOOKUP($AO25,Data!$A$1:$P$688,Charts!AQ$23,FALSE) -> 0.1406790825 | AR25: =VLOOKUP($AO25,Data!$A$1:$P$688,Charts!AR$23,FALSE) -> 0.1639047294 | AS25: =VLOOKUP($AO25,Data!$A$1:$P$688,Charts!AS$23,FALSE) -> 0.2140137112 | AT25: =VLOOKUP($AO25,Data!$A$1:$P$688,Charts!AT$23,FALSE) -> 0.1601266281 | AU25: =VLOOKUP($AO25,Data!$A$1:$P$688,Charts!AU$23,FALSE) -> 0.2134825616 | AV25: =VLOOKUP($AO25,Data!$A$1:$P$688,Charts!AV$23,FALSE) -> 0.44392567 | AW25: =VLOOKUP($AO25,Data!$A$1:$P$688,Charts!AW$23,FALSE) -> 0.1608587099 | AX25: =VLOOKUP($AO25,Data!$A$1:$P$688,Charts!AX$23,FALSE) -> 0.1713081998 | AY25: =IF(AQ25<0,0,AQ25) -> 0.1406790825 | AZ25: =IF(AQ25<0,AQ25,0) -> 0 | BA25: =AR25-AY25 -> 0.02322564691 | BB25: =AU25-AR25 -> 0.04957783219 | BC25: =AQ25-AP25 -> 0.02064327534 | BD25: =AV25-AU25 -> 0.2304431084 | BE25: =VLOOKUP($AO25,Data!$A$1:$P$688,BD$23,FALSE) -> 1.240566227e+12 | BF25: =VLOOKUP($AO25,Data!$A$1:$P$688,BE$23,FALSE) -> 7.991743374e+12 | BG25: =IFERROR(IF($AP$21=0,BE25/BE$25*100,(100*(BE25*12/$BI25)/BE$25)),IFERROR(IF($AP$21=0, BE25/BE$26*100, 100*(BE25*12/$BI25)/BE$26), IFERROR(IF($AP$21=0, BE25/BE$27*100, 100*(BE25*12/$BI25)/BE$27),IFERROR(IF($AP$21=0, BE25/BE$28*100, 100*(BE25*12/$BI25)/BE$28), IFERROR(IF($AP$21=0, BE25/BE$29*100, 100*(BE25*12/$BI25)/BE$29),IFERROR(IF($AP$21=0, BE25/BE$30*100, 100*(BE25*12/$BI25)/#REF!),IFERROR(IF($AP$21=0, BE25/BE$31*100, 100*(BE25*12/$BI25)/BE$31),IFERROR(IF($AP$21=0, BE25/BE$31*100, 100*(BE25*12/$BI25)/BE$31),IFERROR(IF($AP$21=0, BE25/BE$32*100, 100*(BE25*12/$BI25)/BE$32),IFERROR(IF($AP$21=0, BE25/BE$33*100, 100*(BE25*12/$BI25)/BE$33),IF($AP$21=0, BE25/BE$34*100, 100*(BE25*12/$BI25)/BE$34))))))))))) -> 100 | BH25: =IFERROR(IF($AP$21=0,BF25/BF$25*100,(100*(BF25*12/$BI25)/BF$25)),IFERROR(IF($AP$21=0, BF25/BF$26*100, 100*(BF25*12/$BI25)/BF$26), IFERROR(IF($AP$21=0, BF25/BF$27*100, 100*(BF25*12/$BI25)/BF$27),IFERROR(IF($AP$21=0, BF25/BF$28*100, 100*(BF25*12/$BI25)/BF$28), IFERROR(IF($AP$21=0, BF25/BF$29*100, 100*(BF25*12/$BI25)/BF$29),IFERROR(IF($AP$21=0, BF25/BF$30*100, 100*(BF25*12/$BI25)/#REF!),IFERROR(IF($AP$21=0, BF25/BF$31*100, 100*(BF25*12/$BI25)/BF$31),IFERROR(IF($AP$21=0, BF25/BF$31*100, 100*(BF25*12/$BI25)/BF$31),IFERROR(IF($AP$21=0, BF25/BF$32*100, 100*(BF25*12/$BI25)/BF$32),IFERROR(IF($AP$21=0, BF25/BF$33*100, 100*(BF25*12/$BI25)/BF$33),IF($AP$21=0, BF25/BF$34*100, 100*(BF25*12/$BI25)/BF$34))))))))))) -> 100 | BI25: =MONTH(AM25) -> 3 | BJ25: =VLOOKUP($AO25,Data!$A$1:$P$688,Charts!BJ$23,FALSE) -> 0.1577732933
C26: =AM35 -> 2020-09-01 | F26: 0.1672993543 | I26: 0.1529035899 | L26: 0.173303983 | O26: 0.2052266468 | AL26: 201806 | AM26: =IF(AM25<$AL$24,+DATE(YEAR(AM25),MONTH(AM25)+3,DAY(AM25)),"") -> 2018-06-01 | AN26: =+IF(MONTH(AM26)=12,YEAR(AM26)&MONTH(AM26),YEAR(AM26)&0&MONTH(AM26)) -> 201806 | AO26: Tier 1 capital ratio201806 | AP26: =VLOOKUP($AO26,Data!$A$1:$P$688,Charts!AP$23,FALSE) -> 0.1192798065 | AQ26: =VLOOKUP($AO26,Data!$A$1:$P$688,Charts!AQ$23,FALSE) -> 0.1406711908 | AR26: =VLOOKUP($AO26,Data!$A$1:$P$688,Charts!AR$23,FALSE) -> 0.1671943404 | AS26: =VLOOKUP($AO26,Data!$A$1:$P$688,Charts!AS$23,FALSE) -> 0.213544679 | AT26: =VLOOKUP($AO26,Data!$A$1:$P$688,Charts!AT$23,FALSE) -> 0.1602768672 | AU26: =VLOOKUP($AO26,Data!$A$1:$P$688,Charts!AU$23,FALSE) -> 0.2168852002 | AV26: =VLOOKUP($AO26,Data!$A$1:$P$688,Charts!AV$23,FALSE) -> 0.4475551975 | AW26: =VLOOKUP($AO26,Data!$A$1:$P$688,Charts!AW$23,FALSE) -> 0.1674345133 | AX26: =VLOOKUP($AO26,Data!$A$1:$P$688,Charts!AX$23,FALSE) -> 0.1720496205 | AY26: =IF(AQ26<0,0,AQ26) -> 0.1406711908 | AZ26: =IF(AQ26<0,AQ26,0) -> 0 | BA26: =AR26-AY26 -> 0.02652314957 | BB26: =AU26-AR26 -> 0.0496908598 | BC26: =AQ26-AP26 -> 0.02139138435 | BD26: =AV26-AU26 -> 0.2306699974 | BE26: =VLOOKUP($AO26,Data!$A$1:$P$688,BD$23,FALSE) -> 1.247457348e+12 | BF26: =VLOOKUP($AO26,Data!$A$1:$P$688,BE$23,FALSE) -> 8.057460127e+12 | BG26: =IFERROR(IF($AP$21=0,BE26/BE$25*100,(100*(BE26*12/$BI26)/BE$25)),IFERROR(IF($AP$21=0, BE26/BE$26*100, 100*(BE26*12/$BI26)/BE$26), IFERROR(IF($AP$21=0, BE26/BE$27*100, 100*(BE26*12/$BI26)/BE$27),IFERROR(IF($AP$21=0, BE26/BE$28*100, 100*(BE26*12/$BI26)/BE$28), IFERROR(IF($AP$21=0, BE26/BE$29*100, 100*(BE26*12/$BI26)/BE$29),IFERROR(IF($AP$21=0, BE26/BE$30*100, 100*(BE26*12/$BI26)/#REF!),IFERROR(IF($AP$21=0, BE26/BE$31*100, 100*(BE26*12/$BI26)/BE$31),IFERROR(IF($AP$21=0, BE26/BE$31*100, 100*(BE26*12/$BI26)/BE$31),IFERROR(IF($AP$21=0, BE26/BE$32*100, 100*(BE26*12/$BI26)/BE$32),IFERROR(IF($AP$21=0, BE26/BE$33*100, 100*(BE26*12/$BI26)/BE$33),IF($AP$21=0, BE26/BE$34*100, 100*(BE26*12/$BI26)/BE$34))))))))))) -> 100.5554818 | BH26: =IFERROR(IF($AP$21=0,BF26/BF$25*100,(100*(BF26*12/$BI26)/BF$25)),IFERROR(IF($AP$21=0, BF26/BF$26*100, 100*(BF26*12/$BI26)/BF$26), IFERROR(IF($AP$21=0, BF26/BF$27*100, 100*(BF26*12/$BI26)/BF$27),IFERROR(IF($AP$21=0, BF26/BF$28*100, 100*(BF26*12/$BI26)/BF$28), IFERROR(IF($AP$21=0, BF26/BF$29*100, 100*(BF26*12/$BI26)/BF$29),IFERROR(IF($AP$21=0, BF26/BF$30*100, 100*(BF26*12/$BI26)/#REF!),IFERROR(IF($AP$21=0, BF26/BF$31*100, 100*(BF26*12/$BI26)/BF$31),IFERROR(IF($AP$21=0, BF26/BF$31*100, 100*(BF26*12/$BI26)/BF$31),IFERROR(IF($AP$21=0, BF26/BF$32*100, 100*(BF26*12/$BI26)/BF$32),IFERROR(IF($AP$21=0, BF26/BF$33*100, 100*(BF26*12/$BI26)/BF$33),IF($AP$21=0, BF26/BF$34*100, 100*(BF26*12/$BI26)/BF$34))))))))))) -> 100.8223081 | BI26: 6 | BJ26: =VLOOKUP($AO26,Data!$A$1:$P$688,Charts!BJ$23,FALSE) -> 0.1570392753
C27: =AM36 -> 2020-12-01 | F27: 0.1718022734 | I27: 0.1572428197 | L27: 0.1797515978 | O27: 0.212919732 | AL27: 201809 | AM27: =IF(AM26<$AL$24,+DATE(YEAR(AM26),MONTH(AM26)+3,DAY(AM26)),"") -> 2018-09-01 | AN27: 201809 | AO27: Tier 1 capital ratio201809 | AP27: =VLOOKUP($AO27,Data!$A$1:$P$688,Charts!AP$23,FALSE) -> 0.1189777367 | AQ27: =VLOOKUP($AO27,Data!$A$1:$P$688,Charts!AQ$23,FALSE) -> 0.1388371555 | AR27: =VLOOKUP($AO27,Data!$A$1:$P$688,Charts!AR$23,FALSE) -> 0.1691677188 | AS27: =VLOOKUP($AO27,Data!$A$1:$P$688,Charts!AS$23,FALSE) -> 0.2175951185 | AT27: =VLOOKUP($AO27,Data!$A$1:$P$688,Charts!AT$23,FALSE) -> 0.1628481677 | AU27: =VLOOKUP($AO27,Data!$A$1:$P$688,Charts!AU$23,FALSE) -> 0.2175033887 | AV27: =VLOOKUP($AO27,Data!$A$1:$P$688,Charts!AV$23,FALSE) -> 0.4475878207 | AW27: =VLOOKUP($AO27,Data!$A$1:$P$688,Charts!AW$23,FALSE) -> 0.1763233083 | AX27: =VLOOKUP($AO27,Data!$A$1:$P$688,Charts!AX$23,FALSE) -> 0.1727981224 | AY27: 0.1388371555 | AZ27: 0 | BA27: 0.03033056326 | BB27: 0.04833566989 | BC27: 0.01985941877 | BD27: 0.230084432 | BE27: =VLOOKUP($AO27,Data!$A$1:$P$688,BD$23,FALSE) -> 1.248377166e+12 | BF27: =VLOOKUP($AO27,Data!$A$1:$P$688,BE$23,FALSE) -> 8.010195758e+12 | BG27: =IFERROR(IF($AP$21=0,BE27/BE$25*100,(100*(BE27*12/$BI27)/BE$25)),IFERROR(IF($AP$21=0, BE27/BE$26*100, 100*(BE27*12/$BI27)/BE$26), IFERROR(IF($AP$21=0, BE27/BE$27*100, 100*(BE27*12/$BI27)/BE$27),IFERROR(IF($AP$21=0, BE27/BE$28*100, 100*(BE27*12/$BI27)/BE$28), IFERROR(IF($AP$21=0, BE27/BE$29*100, 100*(BE27*12/$BI27)/BE$29),IFERROR(IF($AP$21=0, BE27/BE$30*100, 100*(BE27*12/$BI27)/#REF!),IFERROR(IF($AP$21=0, BE27/BE$31*100, 100*(BE27*12/$BI27)/BE$31),IFERROR(IF($AP$21=0, BE27/BE$31*100, 100*(BE27*12/$BI27)/BE$31),IFERROR(IF($AP$21=0, BE27/BE$32*100, 100*(BE27*12/$BI27)/BE$32),IFERROR(IF($AP$21=0, BE27/BE$33*100, 100*(BE27*12/$BI27)/BE$33),IF($AP$21=0, BE27/BE$34*100, 100*(BE27*12/$BI27)/BE$34))))))))))) -> 100.6296269 | BH27: =IFERROR(IF($AP$21=0,BF27/BF$25*100,(100*(BF27*12/$BI27)/BF$25)),IFERROR(IF($AP$21=0, BF27/BF$26*100, 100*(BF27*12/$BI27)/BF$26), IFERROR(IF($AP$21=0, BF27/BF$27*100, 100*(BF27*12/$BI27)/BF$27),IFERROR(IF($AP$21=0, BF27/BF$28*100, 100*(BF27*12/$BI27)/BF$28), IFERROR(IF($AP$21=0, BF27/BF$29*100, 100*(BF27*12/$BI27)/BF$29),IFERROR(IF($AP$21=0, BF27/BF$30*100, 100*(BF27*12/$BI27)/#REF!),IFERROR(IF($AP$21=0, BF27/BF$31*100, 100*(BF27*12/$BI27)/BF$31),IFERROR(IF($AP$21=0, BF27/BF$31*100, 100*(BF27*12/$BI27)/BF$31),IFERROR(IF($AP$21=0, BF27/BF$32*100, 100*(BF27*12/$BI27)/BF$32),IFERROR(IF($AP$21=0, BF27/BF$33*100, 100*(BF27*12/$BI27)/BF$33),IF($AP$21=0, BF27/BF$34*100, 100*(BF27*12/$BI27)/BF$34))))))))))) -> 100.2308931 | BI27: 9 | BJ27: =VLOOKUP($AO27,Data!$A$1:$P$688,Charts!BJ$23,FALSE) -> 0.1592536549
B28: =IF($AK$21="PFT_43","Data for Cost of Risk are shown here as a positive value, even though they are commonly expenses.","") ->  | AL28: 201812 | AM28: 2018-12-01 | AN28: 201812 | AO28: Tier 1 capital ratio201812 | AP28: =VLOOKUP($AO28,Data!$A$1:$P$688,Charts!AP$23,FALSE) -> 0.1217731642 | AQ28: =VLOOKUP($AO28,Data!$A$1:$P$688,Charts!AQ$23,FALSE) -> 0.1440516175 | AR28: =VLOOKUP($AO28,Data!$A$1:$P$688,Charts!AR$23,FALSE) -> 0.1666461429 | AS28: =VLOOKUP($AO28,Data!$A$1:$P$688,Charts!AS$23,FALSE) -> 0.2199849837 | AT28: =VLOOKUP($AO28,Data!$A$1:$P$688,Charts!AT$23,FALSE) -> 0.1631737569 | AU28: =VLOOKUP($AO28,Data!$A$1:$P$688,Charts!AU$23,FALSE) -> 0.2031647335 | AV28: =VLOOKUP($AO28,Data!$A$1:$P$688,Charts!AV$23,FALSE) -> 0.4912670896 | AW28: =VLOOKUP($AO28,Data!$A$1:$P$688,Charts!AW$23,FALSE) -> 0.1863530916 | AX28: =VLOOKUP($AO28,Data!$A$1:$P$688,Charts!AX$23,FALSE) -> 0.1753798909 | AY28: 0.1440516175 | AZ28: 0 | BA28: 0.02259452544 | BB28: 0.03651859059 | BC28: 0.02227845322 | BD28: 0.2881023561 | BE28: =VLOOKUP($AO28,Data!$A$1:$P$688,BD$23,FALSE) -> 1.267885036e+12 | BF28: =VLOOKUP($AO28,Data!$A$1:$P$688,BE$23,FALSE) -> 8.136831844e+12 | BG28: =IFERROR(IF($AP$21=0,BE28/BE$25*100,(100*(BE28*12/$BI28)/BE$25)),IFERROR(IF($AP$21=0, BE28/BE$26*100, 100*(BE28*12/$BI28)/BE$26), IFERROR(IF($AP$21=0, BE28/BE$27*100, 100*(BE28*12/$BI28)/BE$27),IFERROR(IF($AP$21=0, BE28/BE$28*100, 100*(BE28*12/$BI28)/BE$28), IFERROR(IF($AP$21=0, BE28/BE$29*100, 100*(BE28*12/$BI28)/BE$29),IFERROR(IF($AP$21=0, BE28/BE$30*100, 100*(BE28*12/$BI28)/#REF!),IFERROR(IF($AP$21=0, BE28/BE$31*100, 100*(BE28*12/$BI28)/BE$31),IFERROR(IF($AP$21=0, BE28/BE$31*100, 100*(BE28*12/$BI28)/BE$31),IFERROR(IF($AP$21=0, BE28/BE$32*100, 100*(BE28*12/$BI28)/BE$32),IFERROR(IF($AP$21=0, BE28/BE$33*100, 100*(BE28*12/$BI28)/BE$33),IF($AP$21=0, BE28/BE$34*100, 100*(BE28*12/$BI28)/BE$34))))))))))) -> 102.2021242 | BH28: =IFERROR(IF($AP$21=0,BF28/BF$25*100,(100*(BF28*12/$BI28)/BF$25)),IFERROR(IF($AP$21=0, BF28/BF$26*100, 100*(BF28*12/$BI28)/BF$26), IFERROR(IF($AP$21=0, BF28/BF$27*100, 100*(BF28*12/$BI28)/BF$27),IFERROR(IF($AP$21=0, BF28/BF$28*100, 100*(BF28*12/$BI28)/BF$28), IFERROR(IF($AP$21=0, BF28/BF$29*100, 100*(BF28*12/$BI28)/BF$29),IFERROR(IF($AP$21=0, BF28/BF$30*100, 100*(BF28*12/$BI28)/#REF!),IFERROR(IF($AP$21=0, BF28/BF$31*100, 100*(BF28*12/$BI28)/BF$31),IFERROR(IF($AP$21=0, BF28/BF$31*100, 100*(BF28*12/$BI28)/BF$31),IFERROR(IF($AP$21=0, BF28/BF$32*100, 100*(BF28*12/$BI28)/BF$32),IFERROR(IF($AP$21=0, BF28/BF$33*100, 100*(BF28*12/$BI28)/BF$33),IF($AP$21=0, BF28/BF$34*100, 100*(BF28*12/$BI28)/BF$34))))))))))) -> 101.8154796 | BI28: 12 | BJ28: =VLOOKUP($AO28,Data!$A$1:$P$688,Charts!BJ$23,FALSE) -> 0.1581973814
AL29: 201903 | AM29: 2019-03-01 | AN29: 201903 | AO29: Tier 1 capital ratio201903 | AP29: =VLOOKUP($AO29,Data!$A$1:$P$688,Charts!AP$23,FALSE) -> 0.1258831946 | AQ29: =VLOOKUP($AO29,Data!$A$1:$P$688,Charts!AQ$23,FALSE) -> 0.1450424878 | AR29: =VLOOKUP($AO29,Data!$A$1:$P$688,Charts!AR$23,FALSE) -> 0.1659485756 | AS29: =VLOOKUP($AO29,Data!$A$1:$P$688,Charts!AS$23,FALSE) -> 0.2025804793 | AT29: =VLOOKUP($AO29,Data!$A$1:$P$688,Charts!AT$23,FALSE) -> 0.1613771813 | AU29: =VLOOKUP($AO29,Data!$A$1:$P$688,Charts!AU$23,FALSE) -> 0.2001838872 | AV29: =VLOOKUP($AO29,Data!$A$1:$P$688,Charts!AV$23,FALSE) -> 0.3818776056 | AW29: =VLOOKUP($AO29,Data!$A$1:$P$688,Charts!AW$23,FALSE) -> 0.1794163838 | AX29: =VLOOKUP($AO29,Data!$A$1:$P$688,Charts!AX$23,FALSE) -> 0.169010577 | AY29: =IF(AQ29<0,0,AQ29) -> 0.1450424878 | AZ29: =IF(AQ29<0,AQ29,0) -> 0 | BA29: =AR29-AY29 -> 0.02090608783 | BB29: =AU29-AR29 -> 0.03423531163 | BC29: =AQ29-AP29 -> 0.01915929313 | BD29: =AV29-AU29 -> 0.1816937184 | BE29: =VLOOKUP($AO29,Data!$A$1:$P$688,BD$23,FALSE) -> 1.293191784e+12 | BF29: =VLOOKUP($AO29,Data!$A$1:$P$688,BE$23,FALSE) -> 8.329087153e+12 | BG29: =IFERROR(IF($AP$21=0,BE29/BE$25*100,(100*(BE29*12/$BI29)/BE$25)),IFERROR(IF($AP$21=0, BE29/BE$26*100, 100*(BE29*12/$BI29)/BE$26), IFERROR(IF($AP$21=0, BE29/BE$27*100, 100*(BE29*12/$BI29)/BE$27),IFERROR(IF($AP$21=0, BE29/BE$28*100, 100*(BE29*12/$BI29)/BE$28), IFERROR(IF($AP$21=0, BE29/BE$29*100, 100*(BE29*12/$BI29)/BE$29),IFERROR(IF($AP$21=0, BE29/BE$30*100, 100*(BE29*12/$BI29)/#REF!),IFERROR(IF($AP$21=0, BE29/BE$31*100, 100*(BE29*12/$BI29)/BE$31),IFERROR(IF($AP$21=0, BE29/BE$31*100, 100*(BE29*12/$BI29)/BE$31),IFERROR(IF($AP$21=0, BE29/BE$32*100, 100*(BE29*12/$BI29)/BE$32),IFERROR(IF($AP$21=0, BE29/BE$33*100, 100*(BE29*12/$BI29)/BE$33),IF($AP$21=0, BE29/BE$34*100, 100*(BE29*12/$BI29)/BE$34))))))))))) -> 104.2420594 | BH29: =IFERROR(IF($AP$21=0,BF29/BF$25*100,(100*(BF29*12/$BI29)/BF$25)),IFERROR(IF($AP$21=0, BF29/BF$26*100, 100*(BF29*12/$BI29)/BF$26), IFERROR(IF($AP$21=0, BF29/BF$27*100, 100*(BF29*12/$BI29)/BF$27),IFERROR(IF($AP$21=0, BF29/BF$28*100, 100*(BF29*12/$BI29)/BF$28), IFERROR(IF($AP$21=0, BF29/BF$29*100, 100*(BF29*12/$BI29)/BF$29),IFERROR(IF($AP$21=0, BF29/BF$30*100, 100*(BF29*12/$BI29)/#REF!),IFERROR(IF($AP$21=0, BF29/BF$31*100, 100*(BF29*12/$BI29)/BF$31),IFERROR(IF($AP$21=0, BF29/BF$31*100, 100*(BF29*12/$BI29)/BF$31),IFERROR(IF($AP$21=0, BF29/BF$32*100, 100*(BF29*12/$BI29)/BF$32),IFERROR(IF($AP$21=0, BF29/BF$33*100, 100*(BF29*12/$BI29)/BF$33),IF($AP$21=0, BF29/BF$34*100, 100*(BF29*12/$BI29)/BF$34))))))))))) -> 104.2211538 | BI29: 3 | BJ29: =VLOOKUP($AO29,Data!$A$1:$P$688,Charts!BJ$23,FALSE) -> 0.157713646
AL30: 201906 | AM30: 2019-06-01 | AN30: 201906 | AO30: Tier 1 capital ratio201906 | AP30: =VLOOKUP($AO30,Data!$A$1:$P$688,Charts!AP$23,FALSE) -> 0.1286853066 | AQ30: =VLOOKUP($AO30,Data!$A$1:$P$688,Charts!AQ$23,FALSE) -> 0.1464257216 | AR30: =VLOOKUP($AO30,Data!$A$1:$P$688,Charts!AR$23,FALSE) -> 0.165238908 | AS30: =VLOOKUP($AO30,Data!$A$1:$P$688,Charts!AS$23,FALSE) -> 0.2029240713 | AT30: =VLOOKUP($AO30,Data!$A$1:$P$688,Charts!AT$23,FALSE) -> 0.1617222784 | AU30: =VLOOKUP($AO30,Data!$A$1:$P$688,Charts!AU$23,FALSE) -> 0.1975077077 | AV30: =VLOOKUP($AO30,Data!$A$1:$P$688,Charts!AV$23,FALSE) -> 0.4361673222 | AW30: =VLOOKUP($AO30,Data!$A$1:$P$688,Charts!AW$23,FALSE) -> 0.1812419343 | AX30: =VLOOKUP($AO30,Data!$A$1:$P$688,Charts!AX$23,FALSE) -> 0.1701888471 | AY30: 0.1464257216 | AZ30: 0 | BA30: 0.01881318643 | BB30: 0.03226879974 | BC30: 0.01774041494 | BD30: 0.2386596144 | BE30: =VLOOKUP($AO30,Data!$A$1:$P$688,BD$23,FALSE) -> 1.305856392e+12 | BF30: =VLOOKUP($AO30,Data!$A$1:$P$688,BE$23,FALSE) -> 8.367777416e+12 | BG30: =IFERROR(IF($AP$21=0,BE30/BE$25*100,(100*(BE30*12/$BI30)/BE$25)),IFERROR(IF($AP$21=0, BE30/BE$26*100, 100*(BE30*12/$BI30)/BE$26), IFERROR(IF($AP$21=0, BE30/BE$27*100, 100*(BE30*12/$BI30)/BE$27),IFERROR(IF($AP$21=0, BE30/BE$28*100, 100*(BE30*12/$BI30)/BE$28), IFERROR(IF($AP$21=0, BE30/BE$29*100, 100*(BE30*12/$BI30)/BE$29),IFERROR(IF($AP$21=0, BE30/BE$30*100, 100*(BE30*12/$BI30)/#REF!),IFERROR(IF($AP$21=0, BE30/BE$31*100, 100*(BE30*12/$BI30)/BE$31),IFERROR(IF($AP$21=0, BE30/BE$31*100, 100*(BE30*12/$BI30)/BE$31),IFERROR(IF($AP$21=0, BE30/BE$32*100, 100*(BE30*12/$BI30)/BE$32),IFERROR(IF($AP$21=0, BE30/BE$33*100, 100*(BE30*12/$BI30)/BE$33),IF($AP$21=0, BE30/BE$34*100, 100*(BE30*12/$BI30)/BE$34))))))))))) -> 105.2629326 | BH30: =IFERROR(IF($AP$21=0,BF30/BF$25*100,(100*(BF30*12/$BI30)/BF$25)),IFERROR(IF($AP$21=0, BF30/BF$26*100, 100*(BF30*12/$BI30)/BF$26), IFERROR(IF($AP$21=0, BF30/BF$27*100, 100*(BF30*12/$BI30)/BF$27),IFERROR(IF($AP$21=0, BF30/BF$28*100, 100*(BF30*12/$BI30)/BF$28), IFERROR(IF($AP$21=0, BF30/BF$29*100, 100*(BF30*12/$BI30)/BF$29),IFERROR(IF($AP$21=0, BF30/BF$30*100, 100*(BF30*12/$BI30)/#REF!),IFERROR(IF($AP$21=0, BF30/BF$31*100, 100*(BF30*12/$BI30)/BF$31),IFERROR(IF($AP$21=0, BF30/BF$31*100, 100*(BF30*12/$BI30)/BF$31),IFERROR(IF($AP$21=0, BF30/BF$32*100, 100*(BF30*12/$BI30)/BF$32),IFERROR(IF($AP$21=0, BF30/BF$33*100, 100*(BF30*12/$BI30)/BF$33),IF($AP$21=0, BF30/BF$34*100, 100*(BF30*12/$BI30)/BF$34))))))))))) -> 104.7052817 | BI30: 6 | BJ30: =VLOOKUP($AO30,Data!$A$1:$P$688,Charts!BJ$23,FALSE) -> 0.1577809735
AL31: 201909 | AM31: 2019-09-01 | AN31: 201909 | AO31: =CONCATENATE($AO$21,AN31) -> Tier 1 capital ratio201909 | AP31: =VLOOKUP($AO31,Data!$A$1:$P$688,Charts!AP$23,FALSE) -> 0.1301158391 | AQ31: =VLOOKUP($AO31,Data!$A$1:$P$688,Charts!AQ$23,FALSE) -> 0.147537046 | AR31: =VLOOKUP($AO31,Data!$A$1:$P$688,Charts!AR$23,FALSE) -> 0.1638160644 | AS31: =VLOOKUP($AO31,Data!$A$1:$P$688,Charts!AS$23,FALSE) -> 0.2011495804 | AT31: =VLOOKUP($AO31,Data!$A$1:$P$688,Charts!AT$23,FALSE) -> 0.1613677389 | AU31: =VLOOKUP($AO31,Data!$A$1:$P$688,Charts!AU$23,FALSE) -> 0.1945912543 | AV31: =VLOOKUP($AO31,Data!$A$1:$P$688,Charts!AV$23,FALSE) -> 0.4122195248 | AW31: =VLOOKUP($AO31,Data!$A$1:$P$688,Charts!AW$23,FALSE) -> 0.1777310651 | AX31: =VLOOKUP($AO31,Data!$A$1:$P$688,Charts!AX$23,FALSE) -> 0.1695807397 | AY31: =IF(AQ31<0,0,AQ31) -> 0.147537046 | AZ31: =IF(AQ31<0,AQ31,0) -> 0 | BA31: =AR31-AY31 -> 0.0162790184 | BB31: =AU31-AR31 -> 0.03077518984 | BC31: =AQ31-AP31 -> 0.01742120696 | BD31: =AV31-AU31 -> 0.2176282706 | BE31: =VLOOKUP($AO31,Data!$A$1:$P$688,BD$23,FALSE) -> 1.319546449e+12 | BF31: =VLOOKUP($AO31,Data!$A$1:$P$688,BE$23,FALSE) -> 8.447097624e+12 | BG31: =IFERROR(IF($AP$21=0,BE31/BE$25*100,(100*(BE31*12/$BI31)/BE$25)),IFERROR(IF($AP$21=0, BE31/BE$26*100, 100*(BE31*12/$BI31)/BE$26), IFERROR(IF($AP$21=0, BE31/BE$27*100, 100*(BE31*12/$BI31)/BE$27),IFERROR(IF($AP$21=0, BE31/BE$28*100, 100*(BE31*12/$BI31)/BE$28), IFERROR(IF($AP$21=0, BE31/BE$29*100, 100*(BE31*12/$BI31)/BE$29),IFERROR(IF($AP$21=0, BE31/BE$30*100, 100*(BE31*12/$BI31)/#REF!),IFERROR(IF($AP$21=0, BE31/BE$31*100, 100*(BE31*12/$BI31)/BE$31),IFERROR(IF($AP$21=0, BE31/BE$31*100, 100*(BE31*12/$BI31)/BE$31),IFERROR(IF($AP$21=0, BE31/BE$32*100, 100*(BE31*12/$BI31)/BE$32),IFERROR(IF($AP$21=0, BE31/BE$33*100, 100*(BE31*12/$BI31)/BE$33),IF($AP$21=0, BE31/BE$34*100, 100*(BE31*12/$BI31)/BE$34))))))))))) -> 106.3664655 | BH31: =IFERROR(IF($AP$21=0,BF31/BF$25*100,(100*(BF31*12/$BI31)/BF$25)),IFERROR(IF($AP$21=0, BF31/BF$26*100, 100*(BF31*12/$BI31)/BF$26), IFERROR(IF($AP$21=0, BF31/BF$27*100, 100*(BF31*12/$BI31)/BF$27),IFERROR(IF($AP$21=0, BF31/BF$28*100, 100*(BF31*12/$BI31)/BF$28), IFERROR(IF($AP$21=0, BF31/BF$29*100, 100*(BF31*12/$BI31)/BF$29),IFERROR(IF($AP$21=0, BF31/BF$30*100, 100*(BF31*12/$BI31)/#REF!),IFERROR(IF($AP$21=0, BF31/BF$31*100, 100*(BF31*12/$BI31)/BF$31),IFERROR(IF($AP$21=0, BF31/BF$31*100, 100*(BF31*12/$BI31)/BF$31),IFERROR(IF($AP$21=0, BF31/BF$32*100, 100*(BF31*12/$BI31)/BF$32),IFERROR(IF($AP$21=0, BF31/BF$33*100, 100*(BF31*12/$BI31)/BF$33),IF($AP$21=0, BF31/BF$34*100, 100*(BF31*12/$BI31)/BF$34))))))))))) -> 105.6978087 | BI31: =MONTH(AM31) -> 9 | BJ31: =VLOOKUP($AO31,Data!$A$1:$P$688,Charts!BJ$23,FALSE) -> 0.1577288103
AL32: 201912 | AM32: =IF(AM31<$AL$24,+DATE(YEAR(AM31),MONTH(AM31)+3,DAY(AM31)),"") -> 2019-12-01 | AN32: 201912 | AO32: Tier 1 capital ratio201912 | AP32: =VLOOKUP($AO32,Data!$A$1:$P$688,Charts!AP$23,FALSE) -> 0.132043229 | AQ32: =VLOOKUP($AO32,Data!$A$1:$P$688,Charts!AQ$23,FALSE) -> 0.152002714 | AR32: =VLOOKUP($AO32,Data!$A$1:$P$688,Charts!AR$23,FALSE) -> 0.1717275433 | AS32: =VLOOKUP($AO32,Data!$A$1:$P$688,Charts!AS$23,FALSE) -> 0.2063098402 | AT32: =VLOOKUP($AO32,Data!$A$1:$P$688,Charts!AT$23,FALSE) -> 0.1678534559 | AU32: =VLOOKUP($AO32,Data!$A$1:$P$688,Charts!AU$23,FALSE) -> 0.2041354545 | AV32: =VLOOKUP($AO32,Data!$A$1:$P$688,Charts!AV$23,FALSE) -> 0.388349476 | AW32: =VLOOKUP($AO32,Data!$A$1:$P$688,Charts!AW$23,FALSE) -> 0.1948087997 | AX32: =VLOOKUP($AO32,Data!$A$1:$P$688,Charts!AX$23,FALSE) -> 0.1739546824 | AY32: 0.152002714 | AZ32: 0 | BA32: 0.01972482922 | BB32: 0.0324079112 | BC32: 0.01995948503 | BD32: 0.1842140215 | BE32: =VLOOKUP($AO32,Data!$A$1:$P$688,BD$23,FALSE) -> 1.352282304e+12 | BF32: =VLOOKUP($AO32,Data!$A$1:$P$688,BE$23,FALSE) -> 8.355116761e+12 | BG32: =IFERROR(IF($AP$21=0,BE32/BE$25*100,(100*(BE32*12/$BI32)/BE$25)),IFERROR(IF($AP$21=0, BE32/BE$26*100, 100*(BE32*12/$BI32)/BE$26), IFERROR(IF($AP$21=0, BE32/BE$27*100, 100*(BE32*12/$BI32)/BE$27),IFERROR(IF($AP$21=0, BE32/BE$28*100, 100*(BE32*12/$BI32)/BE$28), IFERROR(IF($AP$21=0, BE32/BE$29*100, 100*(BE32*12/$BI32)/BE$29),IFERROR(IF($AP$21=0, BE32/BE$30*100, 100*(BE32*12/$BI32)/#REF!),IFERROR(IF($AP$21=0, BE32/BE$31*100, 100*(BE32*12/$BI32)/BE$31),IFERROR(IF($AP$21=0, BE32/BE$31*100, 100*(BE32*12/$BI32)/BE$31),IFERROR(IF($AP$21=0, BE32/BE$32*100, 100*(BE32*12/$BI32)/BE$32),IFERROR(IF($AP$21=0, BE32/BE$33*100, 100*(BE32*12/$BI32)/BE$33),IF($AP$21=0, BE32/BE$34*100, 100*(BE32*12/$BI32)/BE$34))))))))))) -> 109.0052489 | BH32: =IFERROR(IF($AP$21=0,BF32/BF$25*100,(100*(BF32*12/$BI32)/BF$25)),IFERROR(IF($AP$21=0, BF32/BF$26*100, 100*(BF32*12/$BI32)/BF$26), IFERROR(IF($AP$21=0, BF32/BF$27*100, 100*(BF32*12/$BI32)/BF$27),IFERROR(IF($AP$21=0, BF32/BF$28*100, 100*(BF32*12/$BI32)/BF$28), IFERROR(IF($AP$21=0, BF32/BF$29*100, 100*(BF32*12/$BI32)/BF$29),IFERROR(IF($AP$21=0, BF32/BF$30*100, 100*(BF32*12/$BI32)/#REF!),IFERROR(IF($AP$21=0, BF32/BF$31*100, 100*(BF32*12/$BI32)/BF$31),IFERROR(IF($AP$21=0, BF32/BF$31*100, 100*(BF32*12/$BI32)/BF$31),IFERROR(IF($AP$21=0, BF32/BF$32*100, 100*(BF32*12/$BI32)/BF$32),IFERROR(IF($AP$21=0, BF32/BF$33*100, 100*(BF32*12/$BI32)/BF$33),IF($AP$21=0, BF32/BF$34*100, 100*(BF32*12/$BI32)/BF$34))))))))))) -> 104.5468601 | BI32: 12 | BJ32: =VLOOKUP($AO32,Data!$A$1:$P$688,Charts!BJ$23,FALSE) -> 0.163554418
AL33: 202003 | AM33: =IF(AM32<$AL$24,+DATE(YEAR(AM32),MONTH(AM32)+3,DAY(AM32)),"") -> 2020-03-01 | AN33: 202003 | AO33: Tier 1 capital ratio202003 | AP33: =VLOOKUP($AO33,Data!$A$1:$P$688,Charts!AP$23,FALSE) -> 0.1310134759 | AQ33: =VLOOKUP($AO33,Data!$A$1:$P$688,Charts!AQ$23,FALSE) -> 0.1427134004 | AR33: =VLOOKUP($AO33,Data!$A$1:$P$688,Charts!AR$23,FALSE) -> 0.162881694 | AS33: =VLOOKUP($AO33,Data!$A$1:$P$688,Charts!AS$23,FALSE) -> 0.1984388134 | AT33: =VLOOKUP($AO33,Data!$A$1:$P$688,Charts!AT$23,FALSE) -> 0.1581946453 | AU33: =VLOOKUP($AO33,Data!$A$1:$P$688,Charts!AU$23,FALSE) -> 0.1989703886 | AV33: =VLOOKUP($AO33,Data!$A$1:$P$688,Charts!AV$23,FALSE) -> 0.3691135761 | AW33: =VLOOKUP($AO33,Data!$A$1:$P$688,Charts!AW$23,FALSE) -> 0.2012033553 | AX33: =VLOOKUP($AO33,Data!$A$1:$P$688,Charts!AX$23,FALSE) -> 0.1672705139 | AY33: 0.1427134004 | AZ33: 0 | BA33: 0.02016829364 | BB33: 0.03608869459 | BC33: 0.01169992444 | BD33: 0.1701431875 | BE33: =VLOOKUP($AO33,Data!$A$1:$P$688,BD$23,FALSE) -> 1.332993452e+12 | BF33: =VLOOKUP($AO33,Data!$A$1:$P$688,BE$23,FALSE) -> 8.503973038e+12 | BG33: =IFERROR(IF($AP$21=0,BE33/BE$25*100,(100*(BE33*12/$BI33)/BE$25)),IFERROR(IF($AP$21=0, BE33/BE$26*100, 100*(BE33*12/$BI33)/BE$26), IFERROR(IF($AP$21=0, BE33/BE$27*100, 100*(BE33*12/$BI33)/BE$27),IFERROR(IF($AP$21=0, BE33/BE$28*100, 100*(BE33*12/$BI33)/BE$28), IFERROR(IF($AP$21=0, BE33/BE$29*100, 100*(BE33*12/$BI33)/BE$29),IFERROR(IF($AP$21=0, BE33/BE$30*100, 100*(BE33*12/$BI33)/#REF!),IFERROR(IF($AP$21=0, BE33/BE$31*100, 100*(BE33*12/$BI33)/BE$31),IFERROR(IF($AP$21=0, BE33/BE$31*100, 100*(BE33*12/$BI33)/BE$31),IFERROR(IF($AP$21=0, BE33/BE$32*100, 100*(BE33*12/$BI33)/BE$32),IFERROR(IF($AP$21=0, BE33/BE$33*100, 100*(BE33*12/$BI33)/BE$33),IF($AP$21=0, BE33/BE$34*100, 100*(BE33*12/$BI33)/BE$34))))))))))) -> 107.4504063 | BH33: =IFERROR(IF($AP$21=0,BF33/BF$25*100,(100*(BF33*12/$BI33)/BF$25)),IFERROR(IF($AP$21=0, BF33/BF$26*100, 100*(BF33*12/$BI33)/BF$26), IFERROR(IF($AP$21=0, BF33/BF$27*100, 100*(BF33*12/$BI33)/BF$27),IFERROR(IF($AP$21=0, BF33/BF$28*100, 100*(BF33*12/$BI33)/BF$28), IFERROR(IF($AP$21=0, BF33/BF$29*100, 100*(BF33*12/$BI33)/BF$29),IFERROR(IF($AP$21=0, BF33/BF$30*100, 100*(BF33*12/$BI33)/#REF!),IFERROR(IF($AP$21=0, BF33/BF$31*100, 100*(BF33*12/$BI33)/BF$31),IFERROR(IF($AP$21=0, BF33/BF$31*100, 100*(BF33*12/$BI33)/BF$31),IFERROR(IF($AP$21=0, BF33/BF$32*100, 100*(BF33*12/$BI33)/BF$32),IFERROR(IF($AP$21=0, BF33/BF$33*100, 100*(BF33*12/$BI33)/BF$33),IF($AP$21=0, BF33/BF$34*100, 100*(BF33*12/$BI33)/BF$34))))))))))) -> 106.4094859 | BI33: 3 | BJ33: =VLOOKUP($AO33,Data!$A$1:$P$688,Charts!BJ$23,FALSE) -> 0.1543884695
AL34: 202006 | AM34: 2020-06-01 | AN34: 202006 | AO34: Tier 1 capital ratio202006 | AP34: =VLOOKUP($AO34,Data!$A$1:$P$688,Charts!AP$23,FALSE) -> 0.1330936645 | AQ34: =VLOOKUP($AO34,Data!$A$1:$P$688,Charts!AQ$23,FALSE) -> 0.1479937941 | AR34: =VLOOKUP($AO34,Data!$A$1:$P$688,Charts!AR$23,FALSE) -> 0.1696146986 | AS34: =VLOOKUP($AO34,Data!$A$1:$P$688,Charts!AS$23,FALSE) -> 0.2064622303 | AT34: =VLOOKUP($AO34,Data!$A$1:$P$688,Charts!AT$23,FALSE) -> 0.1630594616 | AU34: =VLOOKUP($AO34,Data!$A$1:$P$688,Charts!AU$23,FALSE) -> 0.2011049692 | AV34: =VLOOKUP($AO34,Data!$A$1:$P$688,Charts!AV$23,FALSE) -> 0.3597325392 | AW34: =VLOOKUP($AO34,Data!$A$1:$P$688,Charts!AW$23,FALSE) -> 0.2072747553 | AX34: =VLOOKUP($AO34,Data!$A$1:$P$688,Charts!AX$23,FALSE) -> 0.1717362434 | AY34: 0.1479937941 | AZ34: 0 | BA34: 0.02162090451 | BB34: 0.0314902706 | BC34: 0.01490012965 | BD34: 0.1586275699 | BE34: =VLOOKUP($AO34,Data!$A$1:$P$688,BD$23,FALSE) -> 1.364206248e+12 | BF34: =VLOOKUP($AO34,Data!$A$1:$P$688,BE$23,FALSE) -> 8.451237022e+12 | BG34: =IFERROR(IF($AP$21=0,BE34/BE$25*100,(100*(BE34*12/$BI34)/BE$25)),IFERROR(IF($AP$21=0, BE34/BE$26*100, 100*(BE34*12/$BI34)/BE$26), IFERROR(IF($AP$21=0, BE34/BE$27*100, 100*(BE34*12/$BI34)/BE$27),IFERROR(IF($AP$21=0, BE34/BE$28*100, 100*(BE34*12/$BI34)/BE$28), IFERROR(IF($AP$21=0, BE34/BE$29*100, 100*(BE34*12/$BI34)/BE$29),IFERROR(IF($AP$21=0, BE34/BE$30*100, 100*(BE34*12/$BI34)/#REF!),IFERROR(IF($AP$21=0, BE34/BE$31*100, 100*(BE34*12/$BI34)/BE$31),IFERROR(IF($AP$21=0, BE34/BE$31*100, 100*(BE34*12/$BI34)/BE$31),IFERROR(IF($AP$21=0, BE34/BE$32*100, 100*(BE34*12/$BI34)/BE$32),IFERROR(IF($AP$21=0, BE34/BE$33*100, 100*(BE34*12/$BI34)/BE$33),IF($AP$21=0, BE34/BE$34*100, 100*(BE34*12/$BI34)/BE$34))))))))))) -> 109.9664184 | BH34: =IFERROR(IF($AP$21=0,BF34/BF$25*100,(100*(BF34*12/$BI34)/BF$25)),IFERROR(IF($AP$21=0, BF34/BF$26*100, 100*(BF34*12/$BI34)/BF$26), IFERROR(IF($AP$21=0, BF34/BF$27*100, 100*(BF34*12/$BI34)/BF$27),IFERROR(IF($AP$21=0, BF34/BF$28*100, 100*(BF34*12/$BI34)/BF$28), IFERROR(IF($AP$21=0, BF34/BF$29*100, 100*(BF34*12/$BI34)/BF$29),IFERROR(IF($AP$21=0, BF34/BF$30*100, 100*(BF34*12/$BI34)/#REF!),IFERROR(IF($AP$21=0, BF34/BF$31*100, 100*(BF34*12/$BI34)/BF$31),IFERROR(IF($AP$21=0, BF34/BF$31*100, 100*(BF34*12/$BI34)/BF$31),IFERROR(IF($AP$21=0, BF34/BF$32*100, 100*(BF34*12/$BI34)/BF$32),IFERROR(IF($AP$21=0, BF34/BF$33*100, 100*(BF34*12/$BI34)/BF$33),IF($AP$21=0, BF34/BF$34*100, 100*(BF34*12/$BI34)/BF$34))))))))))) -> 105.7496046 | BI34: 6 | BJ34: =VLOOKUP($AO34,Data!$A$1:$P$688,Charts!BJ$23,FALSE) -> 0.1593390461
AL35: 202009 | AM35: 2020-09-01 | AN35: 202009 | AO35: Tier 1 capital ratio202009 | AP35: =VLOOKUP($AO35,Data!$A$1:$P$688,Charts!AP$23,FALSE) -> 0.1338801773 | AQ35: =VLOOKUP($AO35,Data!$A$1:$P$688,Charts!AQ$23,FALSE) -> 0.1529035899 | AR35: =VLOOKUP($AO35,Data!$A$1:$P$688,Charts!AR$23,FALSE) -> 0.173303983 | AS35: =VLOOKUP($AO35,Data!$A$1:$P$688,Charts!AS$23,FALSE) -> 0.2150580227 | AT35: =VLOOKUP($AO35,Data!$A$1:$P$688,Charts!AT$23,FALSE) -> 0.1672993543 | AU35: =VLOOKUP($AO35,Data!$A$1:$P$688,Charts!AU$23,FALSE) -> 0.2052266468 | AV35: =VLOOKUP($AO35,Data!$A$1:$P$688,Charts!AV$23,FALSE) -> 0.4015620238 | AW35: =VLOOKUP($AO35,Data!$A$1:$P$688,Charts!AW$23,FALSE) -> 0.2256806688 | AX35: =VLOOKUP($AO35,Data!$A$1:$P$688,Charts!AX$23,FALSE) -> 0.1752042246 | AY35: 0.1529035899 | AZ35: 0 | BA35: 0.02040039318 | BB35: 0.03192266376 | BC35: 0.01902341254 | BD35: 0.196335377 | BE35: =VLOOKUP($AO35,Data!$A$1:$P$688,BD$23,FALSE) -> 1.374453922e+12 | BF35: =VLOOKUP($AO35,Data!$A$1:$P$688,BE$23,FALSE) -> 8.324730655e+12 | BG35: =IFERROR(IF($AP$21=0,BE35/BE$25*100,(100*(BE35*12/$BI35)/BE$25)),IFERROR(IF($AP$21=0, BE35/BE$26*100, 100*(BE35*12/$BI35)/BE$26), IFERROR(IF($AP$21=0, BE35/BE$27*100, 100*(BE35*12/$BI35)/BE$27),IFERROR(IF($AP$21=0, BE35/BE$28*100, 100*(BE35*12/$BI35)/BE$28), IFERROR(IF($AP$21=0, BE35/BE$29*100, 100*(BE35*12/$BI35)/BE$29),IFERROR(IF($AP$21=0, BE35/BE$30*100, 100*(BE35*12/$BI35)/#REF!),IFERROR(IF($AP$21=0, BE35/BE$31*100, 100*(BE35*12/$BI35)/BE$31),IFERROR(IF($AP$21=0, BE35/BE$31*100, 100*(BE35*12/$BI35)/BE$31),IFERROR(IF($AP$21=0, BE35/BE$32*100, 100*(BE35*12/$BI35)/BE$32),IFERROR(IF($AP$21=0, BE35/BE$33*100, 100*(BE35*12/$BI35)/BE$33),IF($AP$21=0, BE35/BE$34*100, 100*(BE35*12/$BI35)/BE$34))))))))))) -> 110.7924665 | BH35: =IFERROR(IF($AP$21=0,BF35/BF$25*100,(100*(BF35*12/$BI35)/BF$25)),IFERROR(IF($AP$21=0, BF35/BF$26*100, 100*(BF35*12/$BI35)/BF$26), IFERROR(IF($AP$21=0, BF35/BF$27*100, 100*(BF35*12/$BI35)/BF$27),IFERROR(IF($AP$21=0, BF35/BF$28*100, 100*(BF35*12/$BI35)/BF$28), IFERROR(IF($AP$21=0, BF35/BF$29*100, 100*(BF35*12/$BI35)/BF$29),IFERROR(IF($AP$21=0, BF35/BF$30*100, 100*(BF35*12/$BI35)/#REF!),IFERROR(IF($AP$21=0, BF35/BF$31*100, 100*(BF35*12/$BI35)/BF$31),IFERROR(IF($AP$21=0, BF35/BF$31*100, 100*(BF35*12/$BI35)/BF$31),IFERROR(IF($AP$21=0, BF35/BF$32*100, 100*(BF35*12/$BI35)/BF$32),IFERROR(IF($AP$21=0, BF35/BF$33*100, 100*(BF35*12/$BI35)/BF$33),IF($AP$21=0, BF35/BF$34*100, 100*(BF35*12/$BI35)/BF$34))))))))))) -> 104.1666413 | BI35: 9 | BJ35: =VLOOKUP($AO35,Data!$A$1:$P$688,Charts!BJ$23,FALSE) -> 0.1632627436
AL36: 202012 | AM36: =IF(AM35<$AL$24,+DATE(YEAR(AM35),MONTH(AM35)+3,DAY(AM35)),"") -> 2020-12-01 | AN36: =+IF(MONTH(AM36)=12,YEAR(AM36)&MONTH(AM36),YEAR(AM36)&0&MONTH(AM36)) -> 202012 | AO36: Tier 1 capital ratio202012 | AP36: =VLOOKUP($AO36,Data!$A$1:$P$688,Charts!AP$23,FALSE) -> 0.1378822295 | AQ36: =VLOOKUP($AO36,Data!$A$1:$P$688,Charts!AQ$23,FALSE) -> 0.1572428197 | AR36: =VLOOKUP($AO36,Data!$A$1:$P$688,Charts!AR$23,FALSE) -> 0.1797515978 | AS36: =VLOOKUP($AO36,Data!$A$1:$P$688,Charts!AS$23,FALSE) -> 0.2334617781 | AT36: =VLOOKUP($AO36,Data!$A$1:$P$688,Charts!AT$23,FALSE) -> 0.1718022734 | AU36: =VLOOKUP($AO36,Data!$A$1:$P$688,Charts!AU$23,FALSE) -> 0.212919732 | AV36: =VLOOKUP($AO36,Data!$A$1:$P$688,Charts!AV$23,FALSE) -> 0.3869305403 | AW36: =VLOOKUP($AO36,Data!$A$1:$P$688,Charts!AW$23,FALSE) -> 0.218132998 | AX36: =VLOOKUP($AO36,Data!$A$1:$P$688,Charts!AX$23,FALSE) -> 0.180550122 | AY36: 0.1572428197 | AZ36: 0 | BA36: 0.02250877808 | BB36: 0.03316813413 | BC36: 0.01936059022 | BD36: 0.1740108083 | BE36: =VLOOKUP($AO36,Data!$A$1:$P$688,BD$23,FALSE) -> 1.424348829e+12 | BF36: =VLOOKUP($AO36,Data!$A$1:$P$688,BE$23,FALSE) -> 8.387282252e+12 | BG36: =IFERROR(IF($AP$21=0,BE36/BE$25*100,(100*(BE36*12/$BI36)/BE$25)),IFERROR(IF($AP$21=0, BE36/BE$26*100, 100*(BE36*12/$BI36)/BE$26), IFERROR(IF($AP$21=0, BE36/BE$27*100, 100*(BE36*12/$BI36)/BE$27),IFERROR(IF($AP$21=0, BE36/BE$28*100, 100*(BE36*12/$BI36)/BE$28), IFERROR(IF($AP$21=0, BE36/BE$29*100, 100*(BE36*12/$BI36)/BE$29),IFERROR(IF($AP$21=0, BE36/BE$30*100, 100*(BE36*12/$BI36)/#REF!),IFERROR(IF($AP$21=0, BE36/BE$31*100, 100*(BE36*12/$BI36)/BE$31),IFERROR(IF($AP$21=0, BE36/BE$31*100, 100*(BE36*12/$BI36)/BE$31),IFERROR(IF($AP$21=0, BE36/BE$32*100, 100*(BE36*12/$BI36)/BE$32),IFERROR(IF($AP$21=0, BE36/BE$33*100, 100*(BE36*12/$BI36)/BE$33),IF($AP$21=0, BE36/BE$34*100, 100*(BE36*12/$BI36)/BE$34))))))))))) -> 114.8144127 | BH36: =IFERROR(IF($AP$21=0,BF36/BF$25*100,(100*(BF36*12/$BI36)/BF$25)),IFERROR(IF($AP$21=0, BF36/BF$26*100, 100*(BF36*12/$BI36)/BF$26), IFERROR(IF($AP$21=0, BF36/BF$27*100, 100*(BF36*12/$BI36)/BF$27),IFERROR(IF($AP$21=0, BF36/BF$28*100, 100*(BF36*12/$BI36)/BF$28), IFERROR(IF($AP$21=0, BF36/BF$29*100, 100*(BF36*12/$BI36)/BF$29),IFERROR(IF($AP$21=0, BF36/BF$30*100, 100*(BF36*12/$BI36)/#REF!),IFERROR(IF($AP$21=0, BF36/BF$31*100, 100*(BF36*12/$BI36)/BF$31),IFERROR(IF($AP$21=0, BF36/BF$31*100, 100*(BF36*12/$BI36)/BF$31),IFERROR(IF($AP$21=0, BF36/BF$32*100, 100*(BF36*12/$BI36)/BF$32),IFERROR(IF($AP$21=0, BF36/BF$33*100, 100*(BF36*12/$BI36)/BF$33),IF($AP$21=0, BF36/BF$34*100, 100*(BF36*12/$BI36)/BF$34))))))))))) -> 104.9493441 | BI36: 12 | BJ36: =VLOOKUP($AO36,Data!$A$1:$P$688,Charts!BJ$23,FALSE) -> 0.1677769855
AN48: =VLOOKUP(AM21*1,List!$A$1:$I$100,9,FALSE) -> 9 | AO48: Indicator | AP48: Country | AQ48: Country name | AR48: Value | AS48: EU value
AO49: 2 | AQ49: 5 | AR49: 8
AN50: =MAX($AL$25:$AL$45) -> 202012 | AO50: =CONCATENATE(VLOOKUP($AN$21*1,Data!$W$1:$AB$688,AO$49,FALSE),AP50) -> Tier 1 Capital Ratio1 | AP50: 1 | AQ50: =VLOOKUP($AO50,Data!$U$1:$AC$688,AQ$49,FALSE)&IF(AR50="","*","") -> EE | AR50: =VLOOKUP($AO50,Data!$U$1:$AC$688,AR$49,FALSE) -> 0.277330858 | AS50: =VLOOKUP($AO$80,Data!$U$1:$AC$688,$AR$49,FALSE) -> 0.1718022734
AN51: =MAX($AL$25:$AL$45) -> 202012 | AO51: =CONCATENATE(VLOOKUP($AN$21*1,Data!$W$1:$AB$688,AO$49,FALSE),AP51) -> Tier 1 Capital Ratio2 | AP51: 2 | AQ51: =VLOOKUP($AO51,Data!$U$1:$AC$688,AQ$49,FALSE)&IF(AR51="","*","") -> LV | AR51: =VLOOKUP($AO51,Data!$U$1:$AC$688,AR$49,FALSE) -> 0.2625504175 | AS51: =VLOOKUP($AO$80,Data!$U$1:$AC$688,$AR$49,FALSE) -> 0.1718022734
AN52: 202012 | AO52: =CONCATENATE(VLOOKUP($AN$21*1,Data!$W$1:$AB$688,AO$49,FALSE),AP52) -> Tier 1 Capital Ratio3 | AP52: 3 | AQ52: =VLOOKUP($AO52,Data!$U$1:$AC$688,AQ$49,FALSE)&IF(AR52="","*","") -> HR | AR52: =VLOOKUP($AO52,Data!$U$1:$AC$688,AR$49,FALSE) -> 0.2406034761 | AS52: =VLOOKUP($AO$80,Data!$U$1:$AC$688,$AR$49,FALSE) -> 0.1718022734
AN53: 202012 | AO53: =CONCATENATE(VLOOKUP($AN$21*1,Data!$W$1:$AB$688,AO$49,FALSE),AP53) -> Tier 1 Capital Ratio4 | AP53: 4 | AQ53: =VLOOKUP($AO53,Data!$U$1:$AC$688,AQ$49,FALSE)&IF(AR53="","*","") -> CZ | AR53: =VLOOKUP($AO53,Data!$U$1:$AC$688,AR$49,FALSE) -> 0.2361831054 | AS53: =VLOOKUP($AO$80,Data!$U$1:$AC$688,$AR$49,FALSE) -> 0.1718022734
AN54: 202012 | AO54: =CONCATENATE(VLOOKUP($AN$21*1,Data!$W$1:$AB$688,AO$49,FALSE),AP54) -> Tier 1 Capital Ratio5 | AP54: 5 | AQ54: =VLOOKUP($AO54,Data!$U$1:$AC$688,AQ$49,FALSE)&IF(AR54="","*","") -> BG | AR54: =VLOOKUP($AO54,Data!$U$1:$AC$688,AR$49,FALSE) -> 0.2359565813 | AS54: =VLOOKUP($AO$80,Data!$U$1:$AC$688,$AR$49,FALSE) -> 0.1718022734
AN55: 202012 | AO55: =CONCATENATE(VLOOKUP($AN$21*1,Data!$W$1:$AB$688,AO$49,FALSE),AP55) -> Tier 1 Capital Ratio6 | AP55: 6 | AQ55: =VLOOKUP($AO55,Data!$U$1:$AC$688,AQ$49,FALSE)&IF(AR55="","*","") -> IS | AR55: =VLOOKUP($AO55,Data!$U$1:$AC$688,AR$49,FALSE) -> 0.2242398101 | AS55: =VLOOKUP($AO$80,Data!$U$1:$AC$688,$AR$49,FALSE) -> 0.1718022734
AN56: 202012 | AO56: =CONCATENATE(VLOOKUP($AN$21*1,Data!$W$1:$AB$688,AO$49,FALSE),AP56) -> Tier 1 Capital Ratio7 | AP56: 7 | AQ56: =VLOOKUP($AO56,Data!$U$1:$AC$688,AQ$49,FALSE)&IF(AR56="","*","") -> NO | AR56: =VLOOKUP($AO56,Data!$U$1:$AC$688,AR$49,FALSE) -> 0.2124069442 | AS56: =VLOOKUP($AO$80,Data!$U$1:$AC$688,$AR$49,FALSE) -> 0.1718022734
AN57: 202012 | AO57: =CONCATENATE(VLOOKUP($AN$21*1,Data!$W$1:$AB$688,AO$49,FALSE),AP57) -> Tier 1 Capital Ratio8 | AP57: 8 | AQ57: =VLOOKUP($AO57,Data!$U$1:$AC$688,AQ$49,FALSE)&IF(AR57="","*","") -> LT | AR57: =VLOOKUP($AO57,Data!$U$1:$AC$688,AR$49,FALSE) -> 0.2121062418 | AS57: =VLOOKUP($AO$80,Data!$U$1:$AC$688,$AR$49,FALSE) -> 0.1718022734
AN58: 202012 | AO58: =CONCATENATE(VLOOKUP($AN$21*1,Data!$W$1:$AB$688,AO$49,FALSE),AP58) -> Tier 1 Capital Ratio9 | AP58: 9 | AQ58: =VLOOKUP($AO58,Data!$U$1:$AC$688,AQ$49,FALSE)&IF(AR58="","*","") -> SE | AR58: =VLOOKUP($AO58,Data!$U$1:$AC$688,AR$49,FALSE) -> 0.2104382674 | AS58: =VLOOKUP($AO$80,Data!$U$1:$AC$688,$AR$49,FALSE) -> 0.1718022734
AN59: 202012 | AO59: =CONCATENATE(VLOOKUP($AN$21*1,Data!$W$1:$AB$688,AO$49,FALSE),AP59) -> Tier 1 Capital Ratio10 | AP59: 10 | AQ59: =VLOOKUP($AO59,Data!$U$1:$AC$688,AQ$49,FALSE)&IF(AR59="","*","") -> DK | AR59: =VLOOKUP($AO59,Data!$U$1:$AC$688,AR$49,FALSE) -> 0.2062235915 | AS59: =VLOOKUP($AO$80,Data!$U$1:$AC$688,$AR$49,FALSE) -> 0.1718022734
AN60: 202012 | AO60: =CONCATENATE(VLOOKUP($AN$21*1,Data!$W$1:$AB$688,AO$49,FALSE),AP60) -> Tier 1 Capital Ratio11 | AP60: 11 | AQ60: =VLOOKUP($AO60,Data!$U$1:$AC$688,AQ$49,FALSE)&IF(AR60="","*","") -> LU | AR60: =VLOOKUP($AO60,Data!$U$1:$AC$688,AR$49,FALSE) -> 0.2045748125 | AS60: =VLOOKUP($AO$80,Data!$U$1:$AC$688,$AR$49,FALSE) -> 0.1718022734
AN61: 202012 | AO61: =CONCATENATE(VLOOKUP($AN$21*1,Data!$W$1:$AB$688,AO$49,FALSE),AP61) -> Tier 1 Capital Ratio12 | AP61: 12 | AQ61: =VLOOKUP($AO61,Data!$U$1:$AC$688,AQ$49,FALSE)&IF(AR61="","*","") -> MT | AR61: =VLOOKUP($AO61,Data!$U$1:$AC$688,AR$49,FALSE) -> 0.2045114655 | AS61: =VLOOKUP($AO$80,Data!$U$1:$AC$688,$AR$49,FALSE) -> 0.1718022734
AN62: 202012 | AO62: =CONCATENATE(VLOOKUP($AN$21*1,Data!$W$1:$AB$688,AO$49,FALSE),AP62) -> Tier 1 Capital Ratio13 | AP62: 13 | AQ62: =VLOOKUP($AO62,Data!$U$1:$AC$688,AQ$49,FALSE)&IF(AR62="","*","") -> IE | AR62: =VLOOKUP($AO62,Data!$U$1:$AC$688,AR$49,FALSE) -> 0.2005616111 | AS62: =VLOOKUP($AO$80,Data!$U$1:$AC$688,$AR$49,FALSE) -> 0.1718022734
AN63: 202012 | AO63: =CONCATENATE(VLOOKUP($AN$21*1,Data!$W$1:$AB$688,AO$49,FALSE),AP63) -> Tier 1 Capital Ratio14 | AP63: 14 | AQ63: =VLOOKUP($AO63,Data!$U$1:$AC$688,AQ$49,FALSE)&IF(AR63="","*","") -> RO | AR63: =VLOOKUP($AO63,Data!$U$1:$AC$688,AR$49,FALSE) -> 0.1983912082 | AS63: =VLOOKUP($AO$80,Data!$U$1:$AC$688,$AR$49,FALSE) -> 0.1718022734
AN64: 202012 | AO64: =CONCATENATE(VLOOKUP($AN$21*1,Data!$W$1:$AB$688,AO$49,FALSE),AP64) -> Tier 1 Capital Ratio15 | AP64: 15 | AQ64: =VLOOKUP($AO64,Data!$U$1:$AC$688,AQ$49,FALSE)&IF(AR64="","*","") -> FI | AR64: =VLOOKUP($AO64,Data!$U$1:$AC$688,AR$49,FALSE) -> 0.1942971961 | AS64: =VLOOKUP($AO$80,Data!$U$1:$AC$688,$AR$49,FALSE) -> 0.1718022734
AN65: 202012 | AO65: =CONCATENATE(VLOOKUP($AN$21*1,Data!$W$1:$AB$688,AO$49,FALSE),AP65) -> Tier 1 Capital Ratio16 | AP65: 16 | AQ65: =VLOOKUP($AO65,Data!$U$1:$AC$688,AQ$49,FALSE)&IF(AR65="","*","") -> BE | AR65: =VLOOKUP($AO65,Data!$U$1:$AC$688,AR$49,FALSE) -> 0.1914773386 | AS65: =VLOOKUP($AO$80,Data!$U$1:$AC$688,$AR$49,FALSE) -> 0.1718022734
AN66: 202012 | AO66: =CONCATENATE(VLOOKUP($AN$21*1,Data!$W$1:$AB$688,AO$49,FALSE),AP66) -> Tier 1 Capital Ratio17 | AP66: 17 | AQ66: =VLOOKUP($AO66,Data!$U$1:$AC$688,AQ$49,FALSE)&IF(AR66="","*","") -> NL | AR66: =VLOOKUP($AO66,Data!$U$1:$AC$688,AR$49,FALSE) -> 0.1905954948 | AS66: =VLOOKUP($AO$80,Data!$U$1:$AC$688,$AR$49,FALSE) -> 0.1718022734
AN67: 202012 | AO67: =CONCATENATE(VLOOKUP($AN$21*1,Data!$W$1:$AB$688,AO$49,FALSE),AP67) -> Tier 1 Capital Ratio18 | AP67: 18 | AQ67: =VLOOKUP($AO67,Data!$U$1:$AC$688,AQ$49,FALSE)&IF(AR67="","*","") -> CY | AR67: =VLOOKUP($AO67,Data!$U$1:$AC$688,AR$49,FALSE) -> 0.1860209577 | AS67: =VLOOKUP($AO$80,Data!$U$1:$AC$688,$AR$49,FALSE) -> 0.1718022734
AN68: 202012 | AO68: =CONCATENATE(VLOOKUP($AN$21*1,Data!$W$1:$AB$688,AO$49,FALSE),AP68) -> Tier 1 Capital Ratio19 | AP68: 19 | AQ68: =VLOOKUP($AO68,Data!$U$1:$AC$688,AQ$49,FALSE)&IF(AR68="","*","") -> PL | AR68: =VLOOKUP($AO68,Data!$U$1:$AC$688,AR$49,FALSE) -> 0.1808139675 | AS68: =VLOOKUP($AO$80,Data!$U$1:$AC$688,$AR$49,FALSE) -> 0.1718022734
AN69: 202012 | AO69: =CONCATENATE(VLOOKUP($AN$21*1,Data!$W$1:$AB$688,AO$49,FALSE),AP69) -> Tier 1 Capital Ratio20 | AP69: 20 | AQ69: =VLOOKUP($AO69,Data!$U$1:$AC$688,AQ$49,FALSE)&IF(AR69="","*","") -> SK | AR69: =VLOOKUP($AO69,Data!$U$1:$AC$688,AR$49,FALSE) -> 0.1760049388 | AS69: =VLOOKUP($AO$80,Data!$U$1:$AC$688,$AR$49,FALSE) -> 0.1718022734
AN70: 202012 | AO70: =CONCATENATE(VLOOKUP($AN$21*1,Data!$W$1:$AB$688,AO$49,FALSE),AP70) -> Tier 1 Capital Ratio21 | AP70: 21 | AQ70: =VLOOKUP($AO70,Data!$U$1:$AC$688,AQ$49,FALSE)&IF(AR70="","*","") -> IT | AR70: =VLOOKUP($AO70,Data!$U$1:$AC$688,AR$49,FALSE) -> 0.1710555258 | AS70: =VLOOKUP($AO$80,Data!$U$1:$AC$688,$AR$49,FALSE) -> 0.1718022734
AN71: 202012 | AO71: =CONCATENATE(VLOOKUP($AN$21*1,Data!$W$1:$AB$688,AO$49,FALSE),AP71) -> Tier 1 Capital Ratio22 | AP71: 22 | AQ71: =VLOOKUP($AO71,Data!$U$1:$AC$688,AQ$49,FALSE)&IF(AR71="","*","") -> DE | AR71: =VLOOKUP($AO71,Data!$U$1:$AC$688,AR$49,FALSE) -> 0.1697517805 | AS71: =VLOOKUP($AO$80,Data!$U$1:$AC$688,$AR$49,FALSE) -> 0.1718022734
AN72: 202012 | AO72: =CONCATENATE(VLOOKUP($AN$21*1,Data!$W$1:$AB$688,AO$49,FALSE),AP72) -> Tier 1 Capital Ratio23 | AP72: 23 | AQ72: =VLOOKUP($AO72,Data!$U$1:$AC$688,AQ$49,FALSE)&IF(AR72="","*","") -> FR | AR72: =VLOOKUP($AO72,Data!$U$1:$AC$688,AR$49,FALSE) -> 0.1695412538 | AS72: =VLOOKUP($AO$80,Data!$U$1:$AC$688,$AR$49,FALSE) -> 0.1718022734
AN73: 202012 | AO73: =CONCATENATE(VLOOKUP($AN$21*1,Data!$W$1:$AB$688,AO$49,FALSE),AP73) -> Tier 1 Capital Ratio24 | AP73: 24 | AQ73: =VLOOKUP($AO73,Data!$U$1:$AC$688,AQ$49,FALSE)&IF(AR73="","*","") -> AT | AR73: =VLOOKUP($AO73,Data!$U$1:$AC$688,AR$49,FALSE) -> 0.1654660637 | AS73: =VLOOKUP($AO$80,Data!$U$1:$AC$688,$AR$49,FALSE) -> 0.1718022734
AN74: 202012 | AO74: =CONCATENATE(VLOOKUP($AN$21*1,Data!$W$1:$AB$688,AO$49,FALSE),AP74) -> Tier 1 Capital Ratio25 | AP74: 25 | AQ74: =VLOOKUP($AO74,Data!$U$1:$AC$688,AQ$49,FALSE)&IF(AR74="","*","") -> PT | AR74: =VLOOKUP($AO74,Data!$U$1:$AC$688,AR$49,FALSE) -> 0.1603332373 | AS74: =VLOOKUP($AO$80,Data!$U$1:$AC$688,$AR$49,FALSE) -> 0.1718022734
AN75: 202012 | AO75: =CONCATENATE(VLOOKUP($AN$21*1,Data!$W$1:$AB$688,AO$49,FALSE),AP75) -> Tier 1 Capital Ratio26 | AP75: 26 | AQ75: =VLOOKUP($AO75,Data!$U$1:$AC$688,AQ$49,FALSE)&IF(AR75="","*","") -> HU | AR75: =VLOOKUP($AO75,Data!$U$1:$AC$688,AR$49,FALSE) -> 0.1560652375 | AS75: =VLOOKUP($AO$80,Data!$U$1:$AC$688,$AR$49,FALSE) -> 0.1718022734
AN76: 202012 | AO76: =CONCATENATE(VLOOKUP($AN$21*1,Data!$W$1:$AB$688,AO$49,FALSE),AP76) -> Tier 1 Capital Ratio27 | AP76: 27 | AQ76: =VLOOKUP($AO76,Data!$U$1:$AC$688,AQ$49,FALSE)&IF(AR76="","*","") -> SI | AR76: =VLOOKUP($AO76,Data!$U$1:$AC$688,AR$49,FALSE) -> 0.1544853242 | AS76: =VLOOKUP($AO$80,Data!$U$1:$AC$688,$AR$49,FALSE) -> 0.1718022734
AN77: 202012 | AO77: =CONCATENATE(VLOOKUP($AN$21*1,Data!$W$1:$AB$688,AO$49,FALSE),AP77) -> Tier 1 Capital Ratio28 | AP77: 28 | AQ77: =VLOOKUP($AO77,Data!$U$1:$AC$688,AQ$49,FALSE)&IF(AR77="","*","") -> GR | AR77: =VLOOKUP($AO77,Data!$U$1:$AC$688,AR$49,FALSE) -> 0.151250181 | AS77: =VLOOKUP($AO$80,Data!$U$1:$AC$688,$AR$49,FALSE) -> 0.1718022734
AN78: 202012 | AO78: =CONCATENATE(VLOOKUP($AN$21*1,Data!$W$1:$AB$688,AO$49,FALSE),AP78) -> Tier 1 Capital Ratio29 | AP78: 29 | AQ78: =VLOOKUP($AO78,Data!$U$1:$AC$688,AQ$49,FALSE)&IF(AR78="","*","") -> ES | AR78: =VLOOKUP($AO78,Data!$U$1:$AC$688,AR$49,FALSE) -> 0.1445776828 | AS78: =VLOOKUP($AO$80,Data!$U$1:$AC$688,$AR$49,FALSE) -> 0.1718022734
AN79: 202012 | AO79: =CONCATENATE(VLOOKUP($AN$21*1,Data!$W$1:$AB$688,AO$49,FALSE),AP79) -> Tier 1 Capital Ratio100 | AP79: 100 | AQ79: =VLOOKUP($AO79,Data!$U$1:$AC$688,AQ$49,FALSE)&IF(AR79="","*","") -> GB | AR79: =VLOOKUP($AO79,Data!$U$1:$AC$688,AR$49,FALSE) -> 0.1830182103 | AS79: =VLOOKUP($AO$80,Data!$U$1:$AC$688,$AR$49,FALSE) -> 0.1718022734
AN80: =MAX($AL$25:$AL$45) -> 202012 | AO80: =CONCATENATE(VLOOKUP($AN$21*1,Data!$W$1:$AB$688,AO$49,FALSE),AP80) -> Tier 1 Capital Ratio99 | AP80: 99 | AQ80: =VLOOKUP($AO80,Data!$U$1:$AC$688,AQ$49,FALSE)&IF(AR80="","*","") -> EU | AR80: =VLOOKUP($AO80,Data!$U$1:$AC$688,AR$49,FALSE) -> 0.1718022734 | AS80: =VLOOKUP($AO$80,Data!$U$1:$AC$688,$AR$49,FALSE) -> 0.1718022734

Sheet Assets
D1: =("'"&MID(CELL("filename",$A$1),FIND("]",CELL("filename",$A$1))+1,32)&"'") -> 'Assets' | E1: T01_1 | F1: T01_1 | G1: T01_1 | H1: T01_1 | I1: T01_2 | J1: T01_2 | K1: T01_2 | L1: T01_2 | M1: T01_3 | N1: T01_3 | O1: T01_3 | P1: T01_3 | Q1: T01_4 | R1: T01_4 | S1: T01_4 | T1: T01_4 | U1: T01_5 | V1: T01_5 | W1: T01_5 | X1: T01_5 | Y1: T01_6 | Z1: T01_6 | AA1: T01_6 | AB1: T01_6
A2: ='Reference Dates'!$C$8 -> 202012 | E2: =TEXT(E12,"YYYYMM")+0 -> 202003 | F2: =TEXT(F12,"YYYYMM")+0 -> 202006 | G2: 202009 | H2: 202012 | I2: 202003 | J2: 202006 | K2: 202009 | L2: 202012 | M2: 202003 | N2: 202006 | O2: 202009 | P2: 202012 | Q2: 202003 | R2: 202006 | S2: 202009 | T2: 202012 | U2: 202003 | V2: 202006 | W2: 202009 | X2: 202012 | Y2: 202003 | Z2: 202006 | AA2: 202009 | AB2: 202012
A3: =DATE(LEFT(A2,4),RIGHT(A2,2),1) -> 2020-12-01
D4: Statistical Annex
D5: Asset composition and volumes
B8: CH_1 | D8: Asset composition
D10: % of total assets
E11: Cash balances | I11: Equity instruments | M11: Debt securities | Q11: Loans and advances | U11: Derivatives | Y11: Other Assets
E12: =EOMONTH($A$3,-9) -> 2020-03-31 | F12: =EOMONTH($A$3,-6) -> 2020-06-30 | G12: =EOMONTH($A$3,-3) -> 2020-09-30 | H12: =$A$3 -> 2020-12-01 | I12: =EOMONTH($A$3,-9) -> 2020-03-31 | J12: =EOMONTH($A$3,-6) -> 2020-06-30 | K12: =EOMONTH($A$3,-3) -> 2020-09-30 | L12: =$A$3 -> 2020-12-01 | M12: =EOMONTH($A$3,-9) -> 2020-03-31 | N12: =EOMONTH($A$3,-6) -> 2020-06-30 | O12: =EOMONTH($A$3,-3) -> 2020-09-30 | P12: =$A$3 -> 2020-12-01 | Q12: =EOMONTH($A$3,-9) -> 2020-03-31 | R12: =EOMONTH($A$3,-6) -> 2020-06-30 | S12: =EOMONTH($A$3,-3) -> 2020-09-30 | T12: =$A$3 -> 2020-12-01 | U12: =EOMONTH($A$3,-9) -> 2020-03-31 | V12: =EOMONTH($A$3,-6) -> 2020-06-30 | W12: =EOMONTH($A$3,-3) -> 2020-09-30 | X12: =$A$3 -> 2020-12-01 | Y12: =EOMONTH($A$3,-9) -> 2020-03-31 | Z12: =EOMONTH($A$3,-6) -> 2020-06-30 | AA12: =EOMONTH($A$3,-3) -> 2020-09-30 | AB12: =$A$3 -> 2020-12-01
B13: AT | D13: =IF(OR(E13="n.a.",F13="n.a.",G13="n.a.",H13="n.a.",I13="n.a.",J13="n.a.",K13="n.a.",L13="n.a.",M13="n.a.",N13="n.a.",O13="n.a.",P13="n.a.",Q13="n.a.",R13="n.a.",S13="n.a.",T13="n.a.",U13="n.a.",V13="n.a.",W13="n.a.",X13="n.a.",Y13="n.a.",Z13="n.a.",AA13="n.a.",AB13="n.a."),$B13&"*",$B13) -> AT | E13: =IFERROR(INDEX('Data Annex'!$K$1:$AN$869,MATCH(Assets!E$1&"|"&Assets!$B13,'Data Annex'!$K$1:$K$869,0),MATCH(Assets!E$2,'Data Annex'!$K$1:$AN$1,0)),"") -> 0.1111763637 | F13: =IFERROR(INDEX('Data Annex'!$K$1:$AN$869,MATCH(Assets!F$1&"|"&Assets!$B13,'Data Annex'!$K$1:$K$869,0),MATCH(Assets!F$2,'Data Annex'!$K$1:$AN$1,0)),"") -> 0.1335462682 | G13: =IFERROR(INDEX('Data Annex'!$K$1:$AN$869,MATCH(Assets!G$1&"|"&Assets!$B13,'Data Annex'!$K$1:$K$869,0),MATCH(Assets!G$2,'Data Annex'!$K$1:$AN$1,0)),"") -> 0.1557056149 | H13: =IFERROR(INDEX('Data Annex'!$K$1:$AN$869,MATCH(Assets!H$1&"|"&Assets!$B13,'Data Annex'!$K$1:$K$869,0),MATCH(Assets!H$2,'Data Annex'!$K$1:$AN$1,0)),"") -> 0.1766162732 | I13: =IFERROR(INDEX('Data Annex'!$K$1:$AN$869,MATCH(Assets!I$1&"|"&Assets!$B13,'Data Annex'!$K$1:$K$869,0),MATCH(Assets!I$2,'Data Annex'!$K$1:$AN$1,0)),"") -> 0.0027082215 | J13: =IFERROR(INDEX('Data Annex'!$K$1:$AN$869,MATCH(Assets!J$1&"|"&Assets!$B13,'Data Annex'!$K$1:$K$869,0),MATCH(Assets!J$2,'Data Annex'!$K$1:$AN$1,0)),"") -> 0.0027824716 | K13: =IFERROR(INDEX('Data Annex'!$K$1:$AN$869,MATCH(Assets!K$1&"|"&Assets!$B13,'Data Annex'!$K$1:$K$869,0),MATCH(Assets!K$2,'Data Annex'!$K$1:$AN$1,0)),"") -> 0.0027046617 | L13: =IFERROR(INDEX('Data Annex'!$K$1:$AN$869,MATCH(Assets!L$1&"|"&Assets!$B13,'Data Annex'!$K$1:$K$869,0),MATCH(Assets!L$2,'Data Annex'!$K$1:$AN$1,0)),"") -> 0.0052577348 | M13: =IFERROR(INDEX('Data Annex'!$K$1:$AN$869,MATCH(Assets!M$1&"|"&Assets!$B13,'Data Annex'!$K$1:$K$869,0),MATCH(Assets!M$2,'Data Annex'!$K$1:$AN$1,0)),"") -> 0.1428466772 | N13: =IFERROR(INDEX('Data Annex'!$K$1:$AN$869,MATCH(Assets!N$1&"|"&Assets!$B13,'Data Annex'!$K$1:$K$869,0),MATCH(Assets!N$2,'Data Annex'!$K$1:$AN$1,0)),"") -> 0.1457006144 | O13: =IFERROR(INDEX('Data Annex'!$K$1:$AN$869,MATCH(Assets!O$1&"|"&Assets!$B13,'Data Annex'!$K$1:$K$869,0),MATCH(Assets!O$2,'Data Annex'!$K$1:$AN$1,0)),"") -> 0.1388162189 | P13: =IFERROR(INDEX('Data Annex'!$K$1:$AN$869,MATCH(Assets!P$1&"|"&Assets!$B13,'Data Annex'!$K$1:$K$869,0),MATCH(Assets!P$2,'Data Annex'!$K$1:$AN$1,0)),"") -> 0.1343159358 | Q13: =IFERROR(INDEX('Data Annex'!$K$1:$AN$869,MATCH(Assets!Q$1&"|"&Assets!$B13,'Data Annex'!$K$1:$K$869,0),MATCH(Assets!Q$2,'Data Annex'!$K$1:$AN$1,0)),"") -> 0.686171333 | R13: =IFERROR(INDEX('Data Annex'!$K$1:$AN$869,MATCH(Assets!R$1&"|"&Assets!$B13,'Data Annex'!$K$1:$K$869,0),MATCH(Assets!R$2,'Data Annex'!$K$1:$AN$1,0)),"") -> 0.6656915871 | S13: =IFERROR(INDEX('Data Annex'!$K$1:$AN$869,MATCH(Assets!S$1&"|"&Assets!$B13,'Data Annex'!$K$1:$K$869,0),MATCH(Assets!S$2,'Data Annex'!$K$1:$AN$1,0)),"") -> 0.6509059075 | T13: =IFERROR(INDEX('Data Annex'!$K$1:$AN$869,MATCH(Assets!T$1&"|"&Assets!$B13,'Data Annex'!$K$1:$K$869,0),MATCH(Assets!T$2,'Data Annex'!$K$1:$AN$1,0)),"") -> 0.6342090224 | U13: =IFERROR(INDEX('Data Annex'!$K$1:$AN$869,MATCH(Assets!U$1&"|"&Assets!$B13,'Data Annex'!$K$1:$K$869,0),MATCH(Assets!U$2,'Data Annex'!$K$1:$AN$1,0)),"") -> 0.0220735492 | V13: =IFERROR(INDEX('Data Annex'!$K$1:$AN$869,MATCH(Assets!V$1&"|"&Assets!$B13,'Data Annex'!$K$1:$K$869,0),MATCH(Assets!V$2,'Data Annex'!$K$1:$AN$1,0)),"") -> 0.0189792107 | W13: =IFERROR(INDEX('Data Annex'!$K$1:$AN$869,MATCH(Assets!W$1&"|"&Assets!$B13,'Data Annex'!$K$1:$K$869,0),MATCH(Assets!W$2,'Data Annex'!$K$1:$AN$1,0)),"") -> 0.0190590614 | X13: =IFERROR(INDEX('Data Annex'!$K$1:$AN$869,MATCH(Assets!X$1&"|"&Assets!$B13,'Data Annex'!$K$1:$K$869,0),MATCH(Assets!X$2,'Data Annex'!$K$1:$AN$1,0)),"") -> 0.0174412659 | Y13: =IFERROR(INDEX('Data Annex'!$K$1:$AN$869,MATCH(Assets!Y$1&"|"&Assets!$B13,'Data Annex'!$K$1:$K$869,0),MATCH(Assets!Y$2,'Data Annex'!$K$1:$AN$1,0)),"") -> 0.0350238554 | Z13: =IFERROR(INDEX('Data Annex'!$K$1:$AN$869,MATCH(Assets!Z$1&"|"&Assets!$B13,'Data Annex'!$K$1:$K$869,0),MATCH(Assets!Z$2,'Data Annex'!$K$1:$AN$1,0)),"") -> 0.0332998479 | AA13: =IFERROR(INDEX('Data Annex'!$K$1:$AN$869,MATCH(Assets!AA$1&"|"&Assets!$B13,'Data Annex'!$K$1:$K$869,0),MATCH(Assets!AA$2,'Data Annex'!$K$1:$AN$1,0)),"") -> 0.0328085356 | AB13: =IFERROR(INDEX('Data Annex'!$K$1:$AN$869,MATCH(Assets!AB$1&"|"&Assets!$B13,'Data Annex'!$K$1:$K$869,0),MATCH(Assets!AB$2,'Data Annex'!$K$1:$AN$1,0)),"") -> 0.0321597679 | AC13: =IFERROR(INDEX('Data Annex'!$K$1:$AH$869,MATCH(Assets!AC$1&"|"&Assets!$B13,'Data Annex'!$K$1:$K$869,0),MATCH(Assets!AC$2,'Data Annex'!$K$1:$AH$1,0)),"") -> 
B14: BE | D14: =IF(OR(E14="n.a.",F14="n.a.",G14="n.a.",H14="n.a.",I14="n.a.",J14="n.a.",K14="n.a.",L14="n.a.",M14="n.a.",N14="n.a.",O14="n.a.",P14="n.a.",Q14="n.a.",R14="n.a.",S14="n.a.",T14="n.a.",U14="n.a.",V14="n.a.",W14="n.a.",X14="n.a.",Y14="n.a.",Z14="n.a.",AA14="n.a.",AB14="n.a."),$B14&"*",$B14) -> BE | E14: =IFERROR(INDEX('Data Annex'!$K$1:$AN$869,MATCH(Assets!E$1&"|"&Assets!$B14,'Data Annex'!$K$1:$K$869,0),MATCH(Assets!E$2,'Data Annex'!$K$1:$AN$1,0)),"") -> 0.0928532273 | F14: =IFERROR(INDEX('Data Annex'!$K$1:$AN$869,MATCH(Assets!F$1&"|"&Assets!$B14,'Data Annex'!$K$1:$K$869,0),MATCH(Assets!F$2,'Data Annex'!$K$1:$AN$1,0)),"") -> 0.1274306146 | G14: =IFERROR(INDEX('Data Annex'!$K$1:$AN$869,MATCH(Assets!G$1&"|"&Assets!$B14,'Data Annex'!$K$1:$K$869,0),MATCH(Assets!G$2,'Data Annex'!$K$1:$AN$1,0)),"") -> 0.1433631114 | H14: =IFERROR(INDEX('Data Annex'!$K$1:$AN$869,MATCH(Assets!H$1&"|"&Assets!$B14,'Data Annex'!$K$1:$K$869,0),MATCH(Assets!H$2,'Data Annex'!$K$1:$AN$1,0)),"") -> 0.1548956813 | I14: =IFERROR(INDEX('Data Annex'!$K$1:$AN$869,MATCH(Assets!I$1&"|"&Assets!$B14,'Data Annex'!$K$1:$K$869,0),MATCH(Assets!I$2,'Data Annex'!$K$1:$AN$1,0)),"") -> 0.0019791346 | J14: =IFERROR(INDEX('Data Annex'!$K$1:$AN$869,MATCH(Assets!J$1&"|"&Assets!$B14,'Data Annex'!$K$1:$K$869,0),MATCH(Assets!J$2,'Data Annex'!$K$1:$AN$1,0)),"") -> 0.0020317278 | K14: =IFERROR(INDEX('Data Annex'!$K$1:$AN$869,MATCH(Assets!K$1&"|"&Assets!$B14,'Data Annex'!$K$1:$K$869,0),MATCH(Assets!K$2,'Data Annex'!$K$1:$AN$1,0)),"") -> 0.0019819839 | L14: =IFERROR(INDEX('Data Annex'!$K$1:$AN$869,MATCH(Assets!L$1&"|"&Assets!$B14,'Data Annex'!$K$1:$K$869,0),MATCH(Assets!L$2,'Data Annex'!$K$1:$AN$1,0)),"") -> 0.0021127743 | M14: =IFERROR(INDEX('Data Annex'!$K$1:$AN$869,MATCH(Assets!M$1&"|"&Assets!$B14,'Data Annex'!$K$1:$K$869,0),MATCH(Assets!M$2,'Data Annex'!$K$1:$AN$1,0)),"") -> 0.1410110151 | N14: =IFERROR(INDEX('Data Annex'!$K$1:$AN$869,MATCH(Assets!N$1&"|"&Assets!$B14,'Data Annex'!$K$1:$K$869,0),MATCH(Assets!N$2,'Data Annex'!$K$1:$AN$1,0)),"") -> 0.1482343175 | O14: =IFERROR(INDEX('Data Annex'!$K$1:$AN$869,MATCH(Assets!O$1&"|"&Assets!$B14,'Data Annex'!$K$1:$K$869,0),MATCH(Assets!O$2,'Data Annex'!$K$1:$AN$1,0)),"") -> 0.1448980044 | P14: =IFERROR(INDEX('Data Annex'!$K$1:$AN$869,MATCH(Assets!P$1&"|"&Assets!$B14,'Data Annex'!$K$1:$K$869,0),MATCH(Assets!P$2,'Data Annex'!$K$1:$AN$1,0)),"") -> 0.1414386836 | Q14: =IFERROR(INDEX('Data Annex'!$K$1:$AN$869,MATCH(Assets!Q$1&"|"&Assets!$B14,'Data Annex'!$K$1:$K$869,0),MATCH(Assets!Q$2,'Data Annex'!$K$1:$AN$1,0)),"") -> 0.6512391587 | R14: =IFERROR(INDEX('Data Annex'!$K$1:$AN$869,MATCH(Assets!R$1&"|"&Assets!$B14,'Data Annex'!$K$1:$K$869,0),MATCH(Assets!R$2,'Data Annex'!$K$1:$AN$1,0)),"") -> 0.6133156234 | S14: =IFERROR(INDEX('Data Annex'!$K$1:$AN$869,MATCH(Assets!S$1&"|"&Assets!$B14,'Data Annex'!$K$1:$K$869,0),MATCH(Assets!S$2,'Data Annex'!$K$1:$AN$1,0)),"") -> 0.6034755719 | T14: =IFERROR(INDEX('Data Annex'!$K$1:$AN$869,MATCH(Assets!T$1&"|"&Assets!$B14,'Data Annex'!$K$1:$K$869,0),MATCH(Assets!T$2,'Data Annex'!$K$1:$AN$1,0)),"") -> 0.5983262243 | U14: =IFERROR(INDEX('Data Annex'!$K$1:$AN$869,MATCH(Assets!U$1&"|"&Assets!$B14,'Data Annex'!$K$1:$K$869,0),MATCH(Assets!U$2,'Data Annex'!$K$1:$AN$1,0)),"") -> 0.0536302445 | V14: =IFERROR(INDEX('Data Annex'!$K$1:$AN$869,MATCH(Assets!V$1&"|"&Assets!$B14,'Data Annex'!$K$1:$K$869,0),MATCH(Assets!V$2,'Data Annex'!$K$1:$AN$1,0)),"") -> 0.0502779483 | W14: =IFERROR(INDEX('Data Annex'!$K$1:$AN$869,MATCH(Assets!W$1&"|"&Assets!$B14,'Data Annex'!$K$1:$K$869,0),MATCH(Assets!W$2,'Data Annex'!$K$1:$AN$1,0)),"") -> 0.0483934896 | X14: =IFERROR(INDEX('Data Annex'!$K$1:$AN$869,MATCH(Assets!X$1&"|"&Assets!$B14,'Data Annex'!$K$1:$K$869,0),MATCH(Assets!X$2,'Data Annex'!$K$1:$AN$1,0)),"") -> 0.0447821291 | Y14: =IFERROR(INDEX('Data Annex'!$K$1:$AN$869,MATCH(Assets!Y$1&"|"&Assets!$B14,'Data Annex'!$K$1:$K$869,0),MATCH(Assets!Y$2,'Data Annex'!$K$1:$AN$1,0)),"") -> 0.0592872198 | Z14: =IFERROR(INDEX('Data Annex'!$K$1:$AN$869,MATCH(Assets!Z$1&"|"&Assets!$B14,'Data Annex'!$K$1:$K$869,0),MATCH(Assets!Z$2,'Data Annex'!$K$1:$AN$1,0)),"") -> 0.0587097685 | AA14: =IFERROR(INDEX('Data Annex'!$K$1:$AN$869,MATCH(Assets!AA$1&"|"&Assets!$B14,'Data Annex'!$K$1:$K$869,0),MATCH(Assets!AA$2,'Data Annex'!$K$1:$AN$1,0)),"") -> 0.0578878387 | AB14: =IFERROR(INDEX('Data Annex'!$K$1:$AN$869,MATCH(Assets!AB$1&"|"&Assets!$B14,'Data Annex'!$K$1:$K$869,0),MATCH(Assets!AB$2,'Data Annex'!$K$1:$AN$1,0)),"") -> 0.0584445075 | AC14: =IFERROR(INDEX('Data Annex'!$K$1:$AH$869,MATCH(Assets!AC$1&"|"&Assets!$B14,'Data Annex'!$K$1:$K$869,0),MATCH(Assets!AC$2,'Data Annex'!$K$1:$AH$1,0)),"") -> 
B15: BG | D15: BG | E15: =IFERROR(INDEX('Data Annex'!$K$1:$AN$869,MATCH(Assets!E$1&"|"&Assets!$B15,'Data Annex'!$K$1:$K$869,0),MATCH(Assets!E$2,'Data Annex'!$K$1:$AN$1,0)),"") -> 0.1603741362 | F15: =IFERROR(INDEX('Data Annex'!$K$1:$AN$869,MATCH(Assets!F$1&"|"&Assets!$B15,'Data Annex'!$K$1:$K$869,0),MATCH(Assets!F$2,'Data Annex'!$K$1:$AN$1,0)),"") -> 0.1747297514 | G15: =IFERROR(INDEX('Data Annex'!$K$1:$AN$869,MATCH(Assets!G$1&"|"&Assets!$B15,'Data Annex'!$K$1:$K$869,0),MATCH(Assets!G$2,'Data Annex'!$K$1:$AN$1,0)),"") -> 0.1833716042 | H15: =IFERROR(INDEX('Data Annex'!$K$1:$AN$869,MATCH(Assets!H$1&"|"&Assets!$B15,'Data Annex'!$K$1:$K$869,0),MATCH(Assets!H$2,'Data Annex'!$K$1:$AN$1,0)),"") -> 0.2041682149 | I15: =IFERROR(INDEX('Data Annex'!$K$1:$AN$869,MATCH(Assets!I$1&"|"&Assets!$B15,'Data Annex'!$K$1:$K$869,0),MATCH(Assets!I$2,'Data Annex'!$K$1:$AN$1,0)),"") -> 0.0014667244 | J15: =IFERROR(INDEX('Data Annex'!$K$1:$AN$869,MATCH(Assets!J$1&"|"&Assets!$B15,'Data Annex'!$K$1:$K$869,0),MATCH(Assets!J$2,'Data Annex'!$K$1:$AN$1,0)),"") -> 0.0015255814 | K15: =IFERROR(INDEX('Data Annex'!$K$1:$AN$869,MATCH(Assets!K$1&"|"&Assets!$B15,'Data Annex'!$K$1:$K$869,0),MATCH(Assets!K$2,'Data Annex'!$K$1:$AN$1,0)),"") -> 0.0014783324 | L15: =IFERROR(INDEX('Data Annex'!$K$1:$AN$869,MATCH(Assets!L$1&"|"&Assets!$B15,'Data Annex'!$K$1:$K$869,0),MATCH(Assets!L$2,'Data Annex'!$K$1:$AN$1,0)),"") -> 0.0013909791 | M15: =IFERROR(INDEX('Data Annex'!$K$1:$AN$869,MATCH(Assets!M$1&"|"&Assets!$B15,'Data Annex'!$K$1:$K$869,0),MATCH(Assets!M$2,'Data Annex'!$K$1:$AN$1,0)),"") -> 0.1505872571 | N15: =IFERROR(INDEX('Data Annex'!$K$1:$AN$869,MATCH(Assets!N$1&"|"&Assets!$B15,'Data Annex'!$K$1:$K$869,0),MATCH(Assets!N$2,'Data Annex'!$K$1:$AN$1,0)),"") -> 0.1543555839 | O15: =IFERROR(INDEX('Data Annex'!$K$1:$AN$869,MATCH(Assets!O$1&"|"&Assets!$B15,'Data Annex'!$K$1:$K$869,0),MATCH(Assets!O$2,'Data Annex'!$K$1:$AN$1,0)),"") -> 0.156644683 | P15: =IFERROR(INDEX('Data Annex'!$K$1:$AN$869,MATCH(Assets!P$1&"|"&Assets!$B15,'Data Annex'!$K$1:$K$869,0),MATCH(Assets!P$2,'Data Annex'!$K$1:$AN$1,0)),"") -> 0.1518627086 | Q15: =IFERROR(INDEX('Data Annex'!$K$1:$AN$869,MATCH(Assets!Q$1&"|"&Assets!$B15,'Data Annex'!$K$1:$K$869,0),MATCH(Assets!Q$2,'Data Annex'!$K$1:$AN$1,0)),"") -> 0.6332414859 | R15: =IFERROR(INDEX('Data Annex'!$K$1:$AN$869,MATCH(Assets!R$1&"|"&Assets!$B15,'Data Annex'!$K$1:$K$869,0),MATCH(Assets!R$2,'Data Annex'!$K$1:$AN$1,0)),"") -> 0.6209496037 | S15: =IFERROR(INDEX('Data Annex'!$K$1:$AN$869,MATCH(Assets!S$1&"|"&Assets!$B15,'Data Annex'!$K$1:$K$869,0),MATCH(Assets!S$2,'Data Annex'!$K$1:$AN$1,0)),"") -> 0.6113139787 | T15: =IFERROR(INDEX('Data Annex'!$K$1:$AN$869,MATCH(Assets!T$1&"|"&Assets!$B15,'Data Annex'!$K$1:$K$869,0),MATCH(Assets!T$2,'Data Annex'!$K$1:$AN$1,0)),"") -> 0.5979466512 | U15: =IFERROR(INDEX('Data Annex'!$K$1:$AN$869,MATCH(Assets!U$1&"|"&Assets!$B15,'Data Annex'!$K$1:$K$869,0),MATCH(Assets!U$2,'Data Annex'!$K$1:$AN$1,0)),"") -> 0.0028739963 | V15: =IFERROR(INDEX('Data Annex'!$K$1:$AN$869,MATCH(Assets!V$1&"|"&Assets!$B15,'Data Annex'!$K$1:$K$869,0),MATCH(Assets!V$2,'Data Annex'!$K$1:$AN$1,0)),"") -> 0.0015296792 | W15: =IFERROR(INDEX('Data Annex'!$K$1:$AN$869,MATCH(Assets!W$1&"|"&Assets!$B15,'Data Annex'!$K$1:$K$869,0),MATCH(Assets!W$2,'Data Annex'!$K$1:$AN$1,0)),"") -> 0.0017522571 | X15: =IFERROR(INDEX('Data Annex'!$K$1:$AN$869,MATCH(Assets!X$1&"|"&Assets!$B15,'Data Annex'!$K$1:$K$869,0),MATCH(Assets!X$2,'Data Annex'!$K$1:$AN$1,0)),"") -> 0.002062123 | Y15: =IFERROR(INDEX('Data Annex'!$K$1:$AN$869,MATCH(Assets!Y$1&"|"&Assets!$B15,'Data Annex'!$K$1:$K$869,0),MATCH(Assets!Y$2,'Data Annex'!$K$1:$AN$1,0)),"") -> 0.0514564002 | Z15: =IFERROR(INDEX('Data Annex'!$K$1:$AN$869,MATCH(Assets!Z$1&"|"&Assets!$B15,'Data Annex'!$K$1:$K$869,0),MATCH(Assets!Z$2,'Data Annex'!$K$1:$AN$1,0)),"") -> 0.0469098004 | AA15: =IFERROR(INDEX('Data Annex'!$K$1:$AN$869,MATCH(Assets!AA$1&"|"&Assets!$B15,'Data Annex'!$K$1:$K$869,0),MATCH(Assets!AA$2,'Data Annex'!$K$1:$AN$1,0)),"") -> 0.0454391446 | AB15: =IFERROR(INDEX('Data Annex'!$K$1:$AN$869,MATCH(Assets!AB$1&"|"&Assets!$B15,'Data Annex'!$K$1:$K$869,0),MATCH(Assets!AB$2,'Data Annex'!$K$1:$AN$1,0)),"") -> 0.0425693231 | AC15: =IFERROR(INDEX('Data Annex'!$K$1:$AH$869,MATCH(Assets!AC$1&"|"&Assets!$B15,'Data Annex'!$K$1:$K$869,0),MATCH(Assets!AC$2,'Data Annex'!$K$1:$AH$1,0)),"") -> 
B16: CY | D16: CY | E16: =IFERROR(INDEX('Data Annex'!$K$1:$AN$869,MATCH(Assets!E$1&"|"&Assets!$B16,'Data Annex'!$K$1:$K$869,0),MATCH(Assets!E$2,'Data Annex'!$K$1:$AN$1,0)),"") -> 0.2460876273 | F16: =IFERROR(INDEX('Data Annex'!$K$1:$AN$869,MATCH(Assets!F$1&"|"&Assets!$B16,'Data Annex'!$K$1:$K$869,0),MATCH(Assets!F$2,'Data Annex'!$K$1:$AN$1,0)),"") -> 0.2403110952 | G16: =IFERROR(INDEX('Data Annex'!$K$1:$AN$869,MATCH(Assets!G$1&"|"&Assets!$B16,'Data Annex'!$K$1:$K$869,0),MATCH(Assets!G$2,'Data Annex'!$K$1:$AN$1,0)),"") -> 0.2433024396 | H16: =IFERROR(INDEX('Data Annex'!$K$1:$AN$869,MATCH(Assets!H$1&"|"&Assets!$B16,'Data Annex'!$K$1:$K$869,0),MATCH(Assets!H$2,'Data Annex'!$K$1:$AN$1,0)),"") -> 0.2659383749 | I16: =IFERROR(INDEX('Data Annex'!$K$1:$AN$869,MATCH(Assets!I$1&"|"&Assets!$B16,'Data Annex'!$K$1:$K$869,0),MATCH(Assets!I$2,'Data Annex'!$K$1:$AN$1,0)),"") -> 0.0008541767 | J16: =IFERROR(INDEX('Data Annex'!$K$1:$AN$869,MATCH(Assets!J$1&"|"&Assets!$B16,'Data Annex'!$K$1:$K$869,0),MATCH(Assets!J$2,'Data Annex'!$K$1:$AN$1,0)),"") -> 0.000945985 | K16: =IFERROR(INDEX('Data Annex'!$K$1:$AN$869,MATCH(Assets!K$1&"|"&Assets!$B16,'Data Annex'!$K$1:$K$869,0),MATCH(Assets!K$2,'Data Annex'!$K$1:$AN$1,0)),"") -> 0.0009474367 | L16: =IFERROR(INDEX('Data Annex'!$K$1:$AN$869,MATCH(Assets!L$1&"|"&Assets!$B16,'Data Annex'!$K$1:$K$869,0),MATCH(Assets!L$2,'Data Annex'!$K$1:$AN$1,0)),"") -> 0.0010826726 | M16: =IFERROR(INDEX('Data Annex'!$K$1:$AN$869,MATCH(Assets!M$1&"|"&Assets!$B16,'Data Annex'!$K$1:$K$869,0),MATCH(Assets!M$2,'Data Annex'!$K$1:$AN$1,0)),"") -> 0.1869197301 | N16: =IFERROR(INDEX('Data Annex'!$K$1:$AN$869,MATCH(Assets!N$1&"|"&Assets!$B16,'Data Annex'!$K$1:$K$869,0),MATCH(Assets!N$2,'Data Annex'!$K$1:$AN$1,0)),"") -> 0.2081078083 | O16: =IFERROR(INDEX('Data Annex'!$K$1:$AN$869,MATCH(Assets!O$1&"|"&Assets!$B16,'Data Annex'!$K$1:$K$869,0),MATCH(Assets!O$2,'Data Annex'!$K$1:$AN$1,0)),"") -> 0.2071586822 | P16: =IFERROR(INDEX('Data Annex'!$K$1:$AN$869,MATCH(Assets!P$1&"|"&Assets!$B16,'Data Annex'!$K$1:$K$869,0),MATCH(Assets!P$2,'Data Annex'!$K$1:$AN$1,0)),"") -> 0.184829639 | Q16: =IFERROR(INDEX('Data Annex'!$K$1:$AN$869,MATCH(Assets!Q$1&"|"&Assets!$B16,'Data Annex'!$K$1:$K$869,0),MATCH(Assets!Q$2,'Data Annex'!$K$1:$AN$1,0)),"") -> 0.4812846716 | R16: =IFERROR(INDEX('Data Annex'!$K$1:$AN$869,MATCH(Assets!R$1&"|"&Assets!$B16,'Data Annex'!$K$1:$K$869,0),MATCH(Assets!R$2,'Data Annex'!$K$1:$AN$1,0)),"") -> 0.4601455899 | S16: =IFERROR(INDEX('Data Annex'!$K$1:$AN$869,MATCH(Assets!S$1&"|"&Assets!$B16,'Data Annex'!$K$1:$K$869,0),MATCH(Assets!S$2,'Data Annex'!$K$1:$AN$1,0)),"") -> 0.4564167673 | T16: =IFERROR(INDEX('Data Annex'!$K$1:$AN$869,MATCH(Assets!T$1&"|"&Assets!$B16,'Data Annex'!$K$1:$K$869,0),MATCH(Assets!T$2,'Data Annex'!$K$1:$AN$1,0)),"") -> 0.452993958 | U16: =IFERROR(INDEX('Data Annex'!$K$1:$AN$869,MATCH(Assets!U$1&"|"&Assets!$B16,'Data Annex'!$K$1:$K$869,0),MATCH(Assets!U$2,'Data Annex'!$K$1:$AN$1,0)),"") -> 0.0006302171 | V16: =IFERROR(INDEX('Data Annex'!$K$1:$AN$869,MATCH(Assets!V$1&"|"&Assets!$B16,'Data Annex'!$K$1:$K$869,0),MATCH(Assets!V$2,'Data Annex'!$K$1:$AN$1,0)),"") -> 0.0004732555 | W16: =IFERROR(INDEX('Data Annex'!$K$1:$AN$869,MATCH(Assets!W$1&"|"&Assets!$B16,'Data Annex'!$K$1:$K$869,0),MATCH(Assets!W$2,'Data Annex'!$K$1:$AN$1,0)),"") -> 0.0006008879 | X16: =IFERROR(INDEX('Data Annex'!$K$1:$AN$869,MATCH(Assets!X$1&"|"&Assets!$B16,'Data Annex'!$K$1:$K$869,0),MATCH(Assets!X$2,'Data Annex'!$K$1:$AN$1,0)),"") -> 0.000688583 | Y16: =IFERROR(INDEX('Data Annex'!$K$1:$AN$869,MATCH(Assets!Y$1&"|"&Assets!$B16,'Data Annex'!$K$1:$K$869,0),MATCH(Assets!Y$2,'Data Annex'!$K$1:$AN$1,0)),"") -> 0.0842235772 | Z16: =IFERROR(INDEX('Data Annex'!$K$1:$AN$869,MATCH(Assets!Z$1&"|"&Assets!$B16,'Data Annex'!$K$1:$K$869,0),MATCH(Assets!Z$2,'Data Annex'!$K$1:$AN$1,0)),"") -> 0.0900162661 | AA16: =IFERROR(INDEX('Data Annex'!$K$1:$AN$869,MATCH(Assets!AA$1&"|"&Assets!$B16,'Data Annex'!$K$1:$K$869,0),MATCH(Assets!AA$2,'Data Annex'!$K$1:$AN$1,0)),"") -> 0.0915737863 | AB16: =IFERROR(INDEX('Data Annex'!$K$1:$AN$869,MATCH(Assets!AB$1&"|"&Assets!$B16,'Data Annex'!$K$1:$K$869,0),MATCH(Assets!AB$2,'Data Annex'!$K$1:$AN$1,0)),"") -> 0.0944667726 | AC16: =IFERROR(INDEX('Data Annex'!$K$1:$AH$869,MATCH(Assets!AC$1&"|"&Assets!$B16,'Data Annex'!$K$1:$K$869,0),MATCH(Assets!AC$2,'Data Annex'!$K$1:$AH$1,0)),"") -> 
B17: CZ | D17: CZ | E17: =IFERROR(INDEX('Data Annex'!$K$1:$AN$869,MATCH(Assets!E$1&"|"&Assets!$B17,'Data Annex'!$K$1:$K$869,0),MATCH(Assets!E$2,'Data Annex'!$K$1:$AN$1,0)),"") -> 0.0430118305 | F17: =IFERROR(INDEX('Data Annex'!$K$1:$AN$869,MATCH(Assets!F$1&"|"&Assets!$B17,'Data Annex'!$K$1:$K$869,0),MATCH(Assets!F$2,'Data Annex'!$K$1:$AN$1,0)),"") -> 0.0256209369 | G17: =IFERROR(INDEX('Data Annex'!$K$1:$AN$869,MATCH(Assets!G$1&"|"&Assets!$B17,'Data Annex'!$K$1:$K$869,0),MATCH(Assets!G$2,'Data Annex'!$K$1:$AN$1,0)),"") -> 0.0294519873 | H17: =IFERROR(INDEX('Data Annex'!$K$1:$AN$869,MATCH(Assets!H$1&"|"&Assets!$B17,'Data Annex'!$K$1:$K$869,0),MATCH(Assets!H$2,'Data Annex'!$K$1:$AN$1,0)),"") -> 0.0220689694 | I17: =IFERROR(INDEX('Data Annex'!$K$1:$AN$869,MATCH(Assets!I$1&"|"&Assets!$B17,'Data Annex'!$K$1:$K$869,0),MATCH(Assets!I$2,'Data Annex'!$K$1:$AN$1,0)),"") -> 0.0005084816 | J17: =IFERROR(INDEX('Data Annex'!$K$1:$AN$869,MATCH(Assets!J$1&"|"&Assets!$B17,'Data Annex'!$K$1:$K$869,0),MATCH(Assets!J$2,'Data Annex'!$K$1:$AN$1,0)),"") -> 0.000627947 | K17: =IFERROR(INDEX('Data Annex'!$K$1:$AN$869,MATCH(Assets!K$1&"|"&Assets!$B17,'Data Annex'!$K$1:$K$869,0),MATCH(Assets!K$2,'Data Annex'!$K$1:$AN$1,0)),"") -> 0.0008191529 | L17: =IFERROR(INDEX('Data Annex'!$K$1:$AN$869,MATCH(Assets!L$1&"|"&Assets!$B17,'Data Annex'!$K$1:$K$869,0),MATCH(Assets!L$2,'Data Annex'!$K$1:$AN$1,0)),"") -> 0.0006523252 | M17: =IFERROR(INDEX('Data Annex'!$K$1:$AN$869,MATCH(Assets!M$1&"|"&Assets!$B17,'Data Annex'!$K$1:$K$869,0),MATCH(Assets!M$2,'Data Annex'!$K$1:$AN$1,0)),"") -> 0.1141065751 | N17: =IFERROR(INDEX('Data Annex'!$K$1:$AN$869,MATCH(Assets!N$1&"|"&Assets!$B17,'Data Annex'!$K$1:$K$869,0),MATCH(Assets!N$2,'Data Annex'!$K$1:$AN$1,0)),"") -> 0.1407540098 | O17: =IFERROR(INDEX('Data Annex'!$K$1:$AN$869,MATCH(Assets!O$1&"|"&Assets!$B17,'Data Annex'!$K$1:$K$869,0),MATCH(Assets!O$2,'Data Annex'!$K$1:$AN$1,0)),"") -> 0.1362219149 | P17: =IFERROR(INDEX('Data Annex'!$K$1:$AN$869,MATCH(Assets!P$1&"|"&Assets!$B17,'Data Annex'!$K$1:$K$869,0),MATCH(Assets!P$2,'Data Annex'!$K$1:$AN$1,0)),"") -> 0.1446508339 | Q17: =IFERROR(INDEX('Data Annex'!$K$1:$AN$869,MATCH(Assets!Q$1&"|"&Assets!$B17,'Data Annex'!$K$1:$K$869,0),MATCH(Assets!Q$2,'Data Annex'!$K$1:$AN$1,0)),"") -> 0.7926149374 | R17: =IFERROR(INDEX('Data Annex'!$K$1:$AN$869,MATCH(Assets!R$1&"|"&Assets!$B17,'Data Annex'!$K$1:$K$869,0),MATCH(Assets!R$2,'Data Annex'!$K$1:$AN$1,0)),"") -> 0.7855485901 | S17: =IFERROR(INDEX('Data Annex'!$K$1:$AN$869,MATCH(Assets!S$1&"|"&Assets!$B17,'Data Annex'!$K$1:$K$869,0),MATCH(Assets!S$2,'Data Annex'!$K$1:$AN$1,0)),"") -> 0.7863091932 | T17: =IFERROR(INDEX('Data Annex'!$K$1:$AN$869,MATCH(Assets!T$1&"|"&Assets!$B17,'Data Annex'!$K$1:$K$869,0),MATCH(Assets!T$2,'Data Annex'!$K$1:$AN$1,0)),"") -> 0.7914045158 | U17: =IFERROR(INDEX('Data Annex'!$K$1:$AN$869,MATCH(Assets!U$1&"|"&Assets!$B17,'Data Annex'!$K$1:$K$869,0),MATCH(Assets!U$2,'Data Annex'!$K$1:$AN$1,0)),"") -> 0.0309457287 | V17: =IFERROR(INDEX('Data Annex'!$K$1:$AN$869,MATCH(Assets!V$1&"|"&Assets!$B17,'Data Annex'!$K$1:$K$869,0),MATCH(Assets!V$2,'Data Annex'!$K$1:$AN$1,0)),"") -> 0.0279487 | W17: =IFERROR(INDEX('Data Annex'!$K$1:$AN$869,MATCH(Assets!W$1&"|"&Assets!$B17,'Data Annex'!$K$1:$K$869,0),MATCH(Assets!W$2,'Data Annex'!$K$1:$AN$1,0)),"") -> 0.0278914474 | X17: =IFERROR(INDEX('Data Annex'!$K$1:$AN$869,MATCH(Assets!X$1&"|"&Assets!$B17,'Data Annex'!$K$1:$K$869,0),MATCH(Assets!X$2,'Data Annex'!$K$1:$AN$1,0)),"") -> 0.0214082196 | Y17: =IFERROR(INDEX('Data Annex'!$K$1:$AN$869,MATCH(Assets!Y$1&"|"&Assets!$B17,'Data Annex'!$K$1:$K$869,0),MATCH(Assets!Y$2,'Data Annex'!$K$1:$AN$1,0)),"") -> 0.0188124468 | Z17: =IFERROR(INDEX('Data Annex'!$K$1:$AN$869,MATCH(Assets!Z$1&"|"&Assets!$B17,'Data Annex'!$K$1:$K$869,0),MATCH(Assets!Z$2,'Data Annex'!$K$1:$AN$1,0)),"") -> 0.0194998162 | AA17: =IFERROR(INDEX('Data Annex'!$K$1:$AN$869,MATCH(Assets!AA$1&"|"&Assets!$B17,'Data Annex'!$K$1:$K$869,0),MATCH(Assets!AA$2,'Data Annex'!$K$1:$AN$1,0)),"") -> 0.0193063042 | AB17: =IFERROR(INDEX('Data Annex'!$K$1:$AN$869,MATCH(Assets!AB$1&"|"&Assets!$B17,'Data Annex'!$K$1:$K$869,0),MATCH(Assets!AB$2,'Data Annex'!$K$1:$AN$1,0)),"") -> 0.0198151361 | AC17: =IFERROR(INDEX('Data Annex'!$K$1:$AH$869,MATCH(Assets!AC$1&"|"&Assets!$B17,'Data Annex'!$K$1:$K$869,0),MATCH(Assets!AC$2,'Data Annex'!$K$1:$AH$1,0)),"") -> 
B18: DE | D18: DE | E18: =IFERROR(INDEX('Data Annex'!$K$1:$AN$869,MATCH(Assets!E$1&"|"&Assets!$B18,'Data Annex'!$K$1:$K$869,0),MATCH(Assets!E$2,'Data Annex'!$K$1:$AN$1,0)),"") -> 0.1039789879 | F18: =IFERROR(INDEX('Data Annex'!$K$1:$AN$869,MATCH(Assets!F$1&"|"&Assets!$B18,'Data Annex'!$K$1:$K$869,0),MATCH(Assets!F$2,'Data Annex'!$K$1:$AN$1,0)),"") -> 0.1388390524 | G18: =IFERROR(INDEX('Data Annex'!$K$1:$AN$869,MATCH(Assets!G$1&"|"&Assets!$B18,'Data Annex'!$K$1:$K$869,0),MATCH(Assets!G$2,'Data Annex'!$K$1:$AN$1,0)),"") -> 0.1515821735 | H18: =IFERROR(INDEX('Data Annex'!$K$1:$AN$869,MATCH(Assets!H$1&"|"&Assets!$B18,'Data Annex'!$K$1:$K$869,0),MATCH(Assets!H$2,'Data Annex'!$K$1:$AN$1,0)),"") -> 0.1379373533 | I18: =IFERROR(INDEX('Data Annex'!$K$1:$AN$869,MATCH(Assets!I$1&"|"&Assets!$B18,'Data Annex'!$K$1:$K$869,0),MATCH(Assets!I$2,'Data Annex'!$K$1:$AN$1,0)),"") -> 0.0067283457 | J18: =IFERROR(INDEX('Data Annex'!$K$1:$AN$869,MATCH(Assets!J$1&"|"&Assets!$B18,'Data Annex'!$K$1:$K$869,0),MATCH(Assets!J$2,'Data Annex'!$K$1:$AN$1,0)),"") -> 0.0073411475 | K18: =IFERROR(INDEX('Data Annex'!$K$1:$AN$869,MATCH(Assets!K$1&"|"&Assets!$B18,'Data Annex'!$K$1:$K$869,0),MATCH(Assets!K$2,'Data Annex'!$K$1:$AN$1,0)),"") -> 0.0073065905 | L18: =IFERROR(INDEX('Data Annex'!$K$1:$AN$869,MATCH(Assets!L$1&"|"&Assets!$B18,'Data Annex'!$K$1:$K$869,0),MATCH(Assets!L$2,'Data Annex'!$K$1:$AN$1,0)),"") -> 0.0075918542 | M18: =IFERROR(INDEX('Data Annex'!$K$1:$AN$869,MATCH(Assets!M$1&"|"&Assets!$B18,'Data Annex'!$K$1:$K$869,0),MATCH(Assets!M$2,'Data Annex'!$K$1:$AN$1,0)),"") -> 0.134426301 | N18: =IFERROR(INDEX('Data Annex'!$K$1:$AN$869,MATCH(Assets!N$1&"|"&Assets!$B18,'Data Annex'!$K$1:$K$869,0),MATCH(Assets!N$2,'Data Annex'!$K$1:$AN$1,0)),"") -> 0.1369815077 | O18: =IFERROR(INDEX('Data Annex'!$K$1:$AN$869,MATCH(Assets!O$1&"|"&Assets!$B18,'Data Annex'!$K$1:$K$869,0),MATCH(Assets!O$2,'Data Annex'!$K$1:$AN$1,0)),"") -> 0.1366716447 | P18: =IFERROR(INDEX('Data Annex'!$K$1:$AN$869,MATCH(Assets!P$1&"|"&Assets!$B18,'Data Annex'!$K$1:$K$869,0),MATCH(Assets!P$2,'Data Annex'!$K$1:$AN$1,0)),"") -> 0.1380708505 | Q18: =IFERROR(INDEX('Data Annex'!$K$1:$AN$869,MATCH(Assets!Q$1&"|"&Assets!$B18,'Data Annex'!$K$1:$K$869,0),MATCH(Assets!Q$2,'Data Annex'!$K$1:$AN$1,0)),"") -> 0.5717427335 | R18: =IFERROR(INDEX('Data Annex'!$K$1:$AN$869,MATCH(Assets!R$1&"|"&Assets!$B18,'Data Annex'!$K$1:$K$869,0),MATCH(Assets!R$2,'Data Annex'!$K$1:$AN$1,0)),"") -> 0.5521459073 | S18: =IFERROR(INDEX('Data Annex'!$K$1:$AN$869,MATCH(Assets!S$1&"|"&Assets!$B18,'Data Annex'!$K$1:$K$869,0),MATCH(Assets!S$2,'Data Annex'!$K$1:$AN$1,0)),"") -> 0.5487611059 | T18: =IFERROR(INDEX('Data Annex'!$K$1:$AN$869,MATCH(Assets!T$1&"|"&Assets!$B18,'Data Annex'!$K$1:$K$869,0),MATCH(Assets!T$2,'Data Annex'!$K$1:$AN$1,0)),"") -> 0.553972556 | U18: =IFERROR(INDEX('Data Annex'!$K$1:$AN$869,MATCH(Assets!U$1&"|"&Assets!$B18,'Data Annex'!$K$1:$K$869,0),MATCH(Assets!U$2,'Data Annex'!$K$1:$AN$1,0)),"") -> 0.1563529088 | V18: =IFERROR(INDEX('Data Annex'!$K$1:$AN$869,MATCH(Assets!V$1&"|"&Assets!$B18,'Data Annex'!$K$1:$K$869,0),MATCH(Assets!V$2,'Data Annex'!$K$1:$AN$1,0)),"") -> 0.1389408425 | W18: =IFERROR(INDEX('Data Annex'!$K$1:$AN$869,MATCH(Assets!W$1&"|"&Assets!$B18,'Data Annex'!$K$1:$K$869,0),MATCH(Assets!W$2,'Data Annex'!$K$1:$AN$1,0)),"") -> 0.1300711168 | X18: =IFERROR(INDEX('Data Annex'!$K$1:$AN$869,MATCH(Assets!X$1&"|"&Assets!$B18,'Data Annex'!$K$1:$K$869,0),MATCH(Assets!X$2,'Data Annex'!$K$1:$AN$1,0)),"") -> 0.1357760434 | Y18: =IFERROR(INDEX('Data Annex'!$K$1:$AN$869,MATCH(Assets!Y$1&"|"&Assets!$B18,'Data Annex'!$K$1:$K$869,0),MATCH(Assets!Y$2,'Data Annex'!$K$1:$AN$1,0)),"") -> 0.0270054614 | Z18: =IFERROR(INDEX('Data Annex'!$K$1:$AN$869,MATCH(Assets!Z$1&"|"&Assets!$B18,'Data Annex'!$K$1:$K$869,0),MATCH(Assets!Z$2,'Data Annex'!$K$1:$AN$1,0)),"") -> 0.0260072691 | AA18: =IFERROR(INDEX('Data Annex'!$K$1:$AN$869,MATCH(Assets!AA$1&"|"&Assets!$B18,'Data Annex'!$K$1:$K$869,0),MATCH(Assets!AA$2,'Data Annex'!$K$1:$AN$1,0)),"") -> 0.0258423803 | AB18: =IFERROR(INDEX('Data Annex'!$K$1:$AN$869,MATCH(Assets!AB$1&"|"&Assets!$B18,'Data Annex'!$K$1:$K$869,0),MATCH(Assets!AB$2,'Data Annex'!$K$1:$AN$1,0)),"") -> 0.026654276 | AC18: =IFERROR(INDEX('Data Annex'!$K$1:$AH$869,MATCH(Assets!AC$1&"|"&Assets!$B18,'Data Annex'!$K$1:$K$869,0),MATCH(Assets!AC$2,'Data Annex'!$K$1:$AH$1,0)),"") -> 
B19: DK | D19: DK | E19: =IFERROR(INDEX('Data Annex'!$K$1:$AN$869,MATCH(Assets!E$1&"|"&Assets!$B19,'Data Annex'!$K$1:$K$869,0),MATCH(Assets!E$2,'Data Annex'!$K$1:$AN$1,0)),"") -> 0.0383456662 | F19: =IFERROR(INDEX('Data Annex'!$K$1:$AN$869,MATCH(Assets!F$1&"|"&Assets!$B19,'Data Annex'!$K$1:$K$869,0),MATCH(Assets!F$2,'Data Annex'!$K$1:$AN$1,0)),"") -> 0.0474422283 | G19: =IFERROR(INDEX('Data Annex'!$K$1:$AN$869,MATCH(Assets!G$1&"|"&Assets!$B19,'Data Annex'!$K$1:$K$869,0),MATCH(Assets!G$2,'Data Annex'!$K$1:$AN$1,0)),"") -> 0.0512306762 | H19: =IFERROR(INDEX('Data Annex'!$K$1:$AN$869,MATCH(Assets!H$1&"|"&Assets!$B19,'Data Annex'!$K$1:$K$869,0),MATCH(Assets!H$2,'Data Annex'!$K$1:$AN$1,0)),"") -> 0.0707725141 | I19: =IFERROR(INDEX('Data Annex'!$K$1:$AN$869,MATCH(Assets!I$1&"|"&Assets!$B19,'Data Annex'!$K$1:$K$869,0),MATCH(Assets!I$2,'Data Annex'!$K$1:$AN$1,0)),"") -> 0.0048469206 | J19: =IFERROR(INDEX('Data Annex'!$K$1:$AN$869,MATCH(Assets!J$1&"|"&Assets!$B19,'Data Annex'!$K$1:$K$869,0),MATCH(Assets!J$2,'Data Annex'!$K$1:$AN$1,0)),"") -> 0.0044925977 | K19: =IFERROR(INDEX('Data Annex'!$K$1:$AN$869,MATCH(Assets!K$1&"|"&Assets!$B19,'Data Annex'!$K$1:$K$869,0),MATCH(Assets!K$2,'Data Annex'!$K$1:$AN$1,0)),"") -> 0.0056848335 | L19: =IFERROR(INDEX('Data Annex'!$K$1:$AN$869,MATCH(Assets!L$1&"|"&Assets!$B19,'Data Annex'!$K$1:$K$869,0),MATCH(Assets!L$2,'Data Annex'!$K$1:$AN$1,0)),"") -> 0.0061405976 | M19: =IFERROR(INDEX('Data Annex'!$K$1:$AN$869,MATCH(Assets!M$1&"|"&Assets!$B19,'Data Annex'!$K$1:$K$869,0),MATCH(Assets!M$2,'Data Annex'!$K$1:$AN$1,0)),"") -> 0.1288007289 | N19: =IFERROR(INDEX('Data Annex'!$K$1:$AN$869,MATCH(Assets!N$1&"|"&Assets!$B19,'Data Annex'!$K$1:$K$869,0),MATCH(Assets!N$2,'Data Annex'!$K$1:$AN$1,0)),"") -> 0.1315939271 | O19: =IFERROR(INDEX('Data Annex'!$K$1:$AN$869,MATCH(Assets!O$1&"|"&Assets!$B19,'Data Annex'!$K$1:$K$869,0),MATCH(Assets!O$2,'Data Annex'!$K$1:$AN$1,0)),"") -> 0.1397808727 | P19: =IFERROR(INDEX('Data Annex'!$K$1:$AN$869,MATCH(Assets!P$1&"|"&Assets!$B19,'Data Annex'!$K$1:$K$869,0),MATCH(Assets!P$2,'Data Annex'!$K$1:$AN$1,0)),"") -> 0.1345524132 | Q19: =IFERROR(INDEX('Data Annex'!$K$1:$AN$869,MATCH(Assets!Q$1&"|"&Assets!$B19,'Data Annex'!$K$1:$K$869,0),MATCH(Assets!Q$2,'Data Annex'!$K$1:$AN$1,0)),"") -> 0.7133548122 | R19: =IFERROR(INDEX('Data Annex'!$K$1:$AN$869,MATCH(Assets!R$1&"|"&Assets!$B19,'Data Annex'!$K$1:$K$869,0),MATCH(Assets!R$2,'Data Annex'!$K$1:$AN$1,0)),"") -> 0.7140153624 | S19: =IFERROR(INDEX('Data Annex'!$K$1:$AN$869,MATCH(Assets!S$1&"|"&Assets!$B19,'Data Annex'!$K$1:$K$869,0),MATCH(Assets!S$2,'Data Annex'!$K$1:$AN$1,0)),"") -> 0.7051810093 | T19: =IFERROR(INDEX('Data Annex'!$K$1:$AN$869,MATCH(Assets!T$1&"|"&Assets!$B19,'Data Annex'!$K$1:$K$869,0),MATCH(Assets!T$2,'Data Annex'!$K$1:$AN$1,0)),"") -> 0.6902111699 | U19: =IFERROR(INDEX('Data Annex'!$K$1:$AN$869,MATCH(Assets!U$1&"|"&Assets!$B19,'Data Annex'!$K$1:$K$869,0),MATCH(Assets!U$2,'Data Annex'!$K$1:$AN$1,0)),"") -> 0.0890478975 | V19: =IFERROR(INDEX('Data Annex'!$K$1:$AN$869,MATCH(Assets!V$1&"|"&Assets!$B19,'Data Annex'!$K$1:$K$869,0),MATCH(Assets!V$2,'Data Annex'!$K$1:$AN$1,0)),"") -> 0.078688225 | W19: =IFERROR(INDEX('Data Annex'!$K$1:$AN$869,MATCH(Assets!W$1&"|"&Assets!$B19,'Data Annex'!$K$1:$K$869,0),MATCH(Assets!W$2,'Data Annex'!$K$1:$AN$1,0)),"") -> 0.0742625739 | X19: =IFERROR(INDEX('Data Annex'!$K$1:$AN$869,MATCH(Assets!X$1&"|"&Assets!$B19,'Data Annex'!$K$1:$K$869,0),MATCH(Assets!X$2,'Data Annex'!$K$1:$AN$1,0)),"") -> 0.0748322192 | Y19: =IFERROR(INDEX('Data Annex'!$K$1:$AN$869,MATCH(Assets!Y$1&"|"&Assets!$B19,'Data Annex'!$K$1:$K$869,0),MATCH(Assets!Y$2,'Data Annex'!$K$1:$AN$1,0)),"") -> 0.0256039745 | Z19: =IFERROR(INDEX('Data Annex'!$K$1:$AN$869,MATCH(Assets!Z$1&"|"&Assets!$B19,'Data Annex'!$K$1:$K$869,0),MATCH(Assets!Z$2,'Data Annex'!$K$1:$AN$1,0)),"") -> 0.0237676595 | AA19: =IFERROR(INDEX('Data Annex'!$K$1:$AN$869,MATCH(Assets!AA$1&"|"&Assets!$B19,'Data Annex'!$K$1:$K$869,0),MATCH(Assets!AA$2,'Data Annex'!$K$1:$AN$1,0)),"") -> 0.0238600344 | AB19: =IFERROR(INDEX('Data Annex'!$K$1:$AN$869,MATCH(Assets!AB$1&"|"&Assets!$B19,'Data Annex'!$K$1:$K$869,0),MATCH(Assets!AB$2,'Data Annex'!$K$1:$AN$1,0)),"") -> 0.0235962542 | AC19: =IFERROR(INDEX('Data Annex'!$K$1:$AH$869,MATCH(Assets!AC$1&"|"&Assets!$B19,'Data Annex'!$K$1:$K$869,0),MATCH(Assets!AC$2,'Data Annex'!$K$1:$AH$1,0)),"") -> 
B20: EE | D20: EE | E20: =IFERROR(INDEX('Data Annex'!$K$1:$AN$869,MATCH(Assets!E$1&"|"&Assets!$B20,'Data Annex'!$K$1:$K$869,0),MATCH(Assets!E$2,'Data Annex'!$K$1:$AN$1,0)),"") -> 0.2245350105 | F20: =IFERROR(INDEX('Data Annex'!$K$1:$AN$869,MATCH(Assets!F$1&"|"&Assets!$B20,'Data Annex'!$K$1:$K$869,0),MATCH(Assets!F$2,'Data Annex'!$K$1:$AN$1,0)),"") -> 0.2346068731 | G20: =IFERROR(INDEX('Data Annex'!$K$1:$AN$869,MATCH(Assets!G$1&"|"&Assets!$B20,'Data Annex'!$K$1:$K$869,0),MATCH(Assets!G$2,'Data Annex'!$K$1:$AN$1,0)),"") -> 0.2530743588 | H20: =IFERROR(INDEX('Data Annex'!$K$1:$AN$869,MATCH(Assets!H$1&"|"&Assets!$B20,'Data Annex'!$K$1:$K$869,0),MATCH(Assets!H$2,'Data Annex'!$K$1:$AN$1,0)),"") -> 0.2812879921 | I20: =IFERROR(INDEX('Data Annex'!$K$1:$AN$869,MATCH(Assets!I$1&"|"&Assets!$B20,'Data Annex'!$K$1:$K$869,0),MATCH(Assets!I$2,'Data Annex'!$K$1:$AN$1,0)),"") -> 0.0004816826 | J20: =IFERROR(INDEX('Data Annex'!$K$1:$AN$869,MATCH(Assets!J$1&"|"&Assets!$B20,'Data Annex'!$K$1:$K$869,0),MATCH(Assets!J$2,'Data Annex'!$K$1:$AN$1,0)),"") -> 0.0004839829 | K20: =IFERROR(INDEX('Data Annex'!$K$1:$AN$869,MATCH(Assets!K$1&"|"&Assets!$B20,'Data Annex'!$K$1:$K$869,0),MATCH(Assets!K$2,'Data Annex'!$K$1:$AN$1,0)),"") -> 0.0004771147 | L20: =IFERROR(INDEX('Data Annex'!$K$1:$AN$869,MATCH(Assets!L$1&"|"&Assets!$B20,'Data Annex'!$K$1:$K$869,0),MATCH(Assets!L$2,'Data Annex'!$K$1:$AN$1,0)),"") -> 0.0003537127 | M20: =IFERROR(INDEX('Data Annex'!$K$1:$AN$869,MATCH(Assets!M$1&"|"&Assets!$B20,'Data Annex'!$K$1:$K$869,0),MATCH(Assets!M$2,'Data Annex'!$K$1:$AN$1,0)),"") -> 0.0218517469 | N20: =IFERROR(INDEX('Data Annex'!$K$1:$AN$869,MATCH(Assets!N$1&"|"&Assets!$B20,'Data Annex'!$K$1:$K$869,0),MATCH(Assets!N$2,'Data Annex'!$K$1:$AN$1,0)),"") -> 0.0799827384 | O20: =IFERROR(INDEX('Data Annex'!$K$1:$AN$869,MATCH(Assets!O$1&"|"&Assets!$B20,'Data Annex'!$K$1:$K$869,0),MATCH(Assets!O$2,'Data Annex'!$K$1:$AN$1,0)),"") -> 0.0782807987 | P20: =IFERROR(INDEX('Data Annex'!$K$1:$AN$869,MATCH(Assets!P$1&"|"&Assets!$B20,'Data Annex'!$K$1:$K$869,0),MATCH(Assets!P$2,'Data Annex'!$K$1:$AN$1,0)),"") -> 0.0699538309 | Q20: =IFERROR(INDEX('Data Annex'!$K$1:$AN$869,MATCH(Assets!Q$1&"|"&Assets!$B20,'Data Annex'!$K$1:$K$869,0),MATCH(Assets!Q$2,'Data Annex'!$K$1:$AN$1,0)),"") -> 0.7393455783 | R20: =IFERROR(INDEX('Data Annex'!$K$1:$AN$869,MATCH(Assets!R$1&"|"&Assets!$B20,'Data Annex'!$K$1:$K$869,0),MATCH(Assets!R$2,'Data Annex'!$K$1:$AN$1,0)),"") -> 0.6724347335 | S20: =IFERROR(INDEX('Data Annex'!$K$1:$AN$869,MATCH(Assets!S$1&"|"&Assets!$B20,'Data Annex'!$K$1:$K$869,0),MATCH(Assets!S$2,'Data Annex'!$K$1:$AN$1,0)),"") -> 0.6557902814 | T20: =IFERROR(INDEX('Data Annex'!$K$1:$AN$869,MATCH(Assets!T$1&"|"&Assets!$B20,'Data Annex'!$K$1:$K$869,0),MATCH(Assets!T$2,'Data Annex'!$K$1:$AN$1,0)),"") -> 0.6351108931 | U20: =IFERROR(INDEX('Data Annex'!$K$1:$AN$869,MATCH(Assets!U$1&"|"&Assets!$B20,'Data Annex'!$K$1:$K$869,0),MATCH(Assets!U$2,'Data Annex'!$K$1:$AN$1,0)),"") -> 0.002502303 | V20: =IFERROR(INDEX('Data Annex'!$K$1:$AN$869,MATCH(Assets!V$1&"|"&Assets!$B20,'Data Annex'!$K$1:$K$869,0),MATCH(Assets!V$2,'Data Annex'!$K$1:$AN$1,0)),"") -> 0.0018372178 | W20: =IFERROR(INDEX('Data Annex'!$K$1:$AN$869,MATCH(Assets!W$1&"|"&Assets!$B20,'Data Annex'!$K$1:$K$869,0),MATCH(Assets!W$2,'Data Annex'!$K$1:$AN$1,0)),"") -> 0.0017666567 | X20: =IFERROR(INDEX('Data Annex'!$K$1:$AN$869,MATCH(Assets!X$1&"|"&Assets!$B20,'Data Annex'!$K$1:$K$869,0),MATCH(Assets!X$2,'Data Annex'!$K$1:$AN$1,0)),"") -> 0.0014840571 | Y20: =IFERROR(INDEX('Data Annex'!$K$1:$AN$869,MATCH(Assets!Y$1&"|"&Assets!$B20,'Data Annex'!$K$1:$K$869,0),MATCH(Assets!Y$2,'Data Annex'!$K$1:$AN$1,0)),"") -> 0.0112836787 | Z20: =IFERROR(INDEX('Data Annex'!$K$1:$AN$869,MATCH(Assets!Z$1&"|"&Assets!$B20,'Data Annex'!$K$1:$K$869,0),MATCH(Assets!Z$2,'Data Annex'!$K$1:$AN$1,0)),"") -> 0.0106544542 | AA20: =IFERROR(INDEX('Data Annex'!$K$1:$AN$869,MATCH(Assets!AA$1&"|"&Assets!$B20,'Data Annex'!$K$1:$K$869,0),MATCH(Assets!AA$2,'Data Annex'!$K$1:$AN$1,0)),"") -> 0.0106107896 | AB20: =IFERROR(INDEX('Data Annex'!$K$1:$AN$869,MATCH(Assets!AB$1&"|"&Assets!$B20,'Data Annex'!$K$1:$K$869,0),MATCH(Assets!AB$2,'Data Annex'!$K$1:$AN$1,0)),"") -> 0.0118095141 | AC20: =IFERROR(INDEX('Data Annex'!$K$1:$AH$869,MATCH(Assets!AC$1&"|"&Assets!$B20,'Data Annex'!$K$1:$K$869,0),MATCH(Assets!AC$2,'Data Annex'!$K$1:$AH$1,0)),"") -> 
B21: ES | D21: ES | E21: =IFERROR(INDEX('Data Annex'!$K$1:$AN$869,MATCH(Assets!E$1&"|"&Assets!$B21,'Data Annex'!$K$1:$K$869,0),MATCH(Assets!E$2,'Data Annex'!$K$1:$AN$1,0)),"") -> 0.0730799914 | F21: =IFERROR(INDEX('Data Annex'!$K$1:$AN$869,MATCH(Assets!F$1&"|"&Assets!$B21,'Data Annex'!$K$1:$K$869,0),MATCH(Assets!F$2,'Data Annex'!$K$1:$AN$1,0)),"") -> 0.0939519757 | G21: =IFERROR(INDEX('Data Annex'!$K$1:$AN$869,MATCH(Assets!G$1&"|"&Assets!$B21,'Data Annex'!$K$1:$K$869,0),MATCH(Assets!G$2,'Data Annex'!$K$1:$AN$1,0)),"") -> 0.1014205798 | H21: =IFERROR(INDEX('Data Annex'!$K$1:$AN$869,MATCH(Assets!H$1&"|"&Assets!$B21,'Data Annex'!$K$1:$K$869,0),MATCH(Assets!H$2,'Data Annex'!$K$1:$AN$1,0)),"") -> 0.1020603686 | I21: =IFERROR(INDEX('Data Annex'!$K$1:$AN$869,MATCH(Assets!I$1&"|"&Assets!$B21,'Data Annex'!$K$1:$K$869,0),MATCH(Assets!I$2,'Data Annex'!$K$1:$AN$1,0)),"") -> 0.0078738769 | J21: =IFERROR(INDEX('Data Annex'!$K$1:$AN$869,MATCH(Assets!J$1&"|"&Assets!$B21,'Data Annex'!$K$1:$K$869,0),MATCH(Assets!J$2,'Data Annex'!$K$1:$AN$1,0)),"") -> 0.0072989544 | K21: =IFERROR(INDEX('Data Annex'!$K$1:$AN$869,MATCH(Assets!K$1&"|"&Assets!$B21,'Data Annex'!$K$1:$K$869,0),MATCH(Assets!K$2,'Data Annex'!$K$1:$AN$1,0)),"") -> 0.0075441254 | L21: =IFERROR(INDEX('Data Annex'!$K$1:$AN$869,MATCH(Assets!L$1&"|"&Assets!$B21,'Data Annex'!$K$1:$K$869,0),MATCH(Assets!L$2,'Data Annex'!$K$1:$AN$1,0)),"") -> 0.0092669083 | M21: =IFERROR(INDEX('Data Annex'!$K$1:$AN$869,MATCH(Assets!M$1&"|"&Assets!$B21,'Data Annex'!$K$1:$K$869,0),MATCH(Assets!M$2,'Data Annex'!$K$1:$AN$1,0)),"") -> 0.1292309584 | N21: =IFERROR(INDEX('Data Annex'!$K$1:$AN$869,MATCH(Assets!N$1&"|"&Assets!$B21,'Data Annex'!$K$1:$K$869,0),MATCH(Assets!N$2,'Data Annex'!$K$1:$AN$1,0)),"") -> 0.135005813 | O21: =IFERROR(INDEX('Data Annex'!$K$1:$AN$869,MATCH(Assets!O$1&"|"&Assets!$B21,'Data Annex'!$K$1:$K$869,0),MATCH(Assets!O$2,'Data Annex'!$K$1:$AN$1,0)),"") -> 0.1377909643 | P21: =IFERROR(INDEX('Data Annex'!$K$1:$AN$869,MATCH(Assets!P$1&"|"&Assets!$B21,'Data Annex'!$K$1:$K$869,0),MATCH(Assets!P$2,'Data Annex'!$K$1:$AN$1,0)),"") -> 0.1213331267 | Q21: =IFERROR(INDEX('Data Annex'!$K$1:$AN$869,MATCH(Assets!Q$1&"|"&Assets!$B21,'Data Annex'!$K$1:$K$869,0),MATCH(Assets!Q$2,'Data Annex'!$K$1:$AN$1,0)),"") -> 0.6578765965 | R21: =IFERROR(INDEX('Data Annex'!$K$1:$AN$869,MATCH(Assets!R$1&"|"&Assets!$B21,'Data Annex'!$K$1:$K$869,0),MATCH(Assets!R$2,'Data Annex'!$K$1:$AN$1,0)),"") -> 0.6454992137 | S21: =IFERROR(INDEX('Data Annex'!$K$1:$AN$869,MATCH(Assets!S$1&"|"&Assets!$B21,'Data Annex'!$K$1:$K$869,0),MATCH(Assets!S$2,'Data Annex'!$K$1:$AN$1,0)),"") -> 0.6374329468 | T21: =IFERROR(INDEX('Data Annex'!$K$1:$AN$869,MATCH(Assets!T$1&"|"&Assets!$B21,'Data Annex'!$K$1:$K$869,0),MATCH(Assets!T$2,'Data Annex'!$K$1:$AN$1,0)),"") -> 0.5839975982 | U21: =IFERROR(INDEX('Data Annex'!$K$1:$AN$869,MATCH(Assets!U$1&"|"&Assets!$B21,'Data Annex'!$K$1:$K$869,0),MATCH(Assets!U$2,'Data Annex'!$K$1:$AN$1,0)),"") -> 0.0553272613 | V21: =IFERROR(INDEX('Data Annex'!$K$1:$AN$869,MATCH(Assets!V$1&"|"&Assets!$B21,'Data Annex'!$K$1:$K$869,0),MATCH(Assets!V$2,'Data Annex'!$K$1:$AN$1,0)),"") -> 0.0503817189 | W21: =IFERROR(INDEX('Data Annex'!$K$1:$AN$869,MATCH(Assets!W$1&"|"&Assets!$B21,'Data Annex'!$K$1:$K$869,0),MATCH(Assets!W$2,'Data Annex'!$K$1:$AN$1,0)),"") -> 0.0471156541 | X21: =IFERROR(INDEX('Data Annex'!$K$1:$AN$869,MATCH(Assets!X$1&"|"&Assets!$B21,'Data Annex'!$K$1:$K$869,0),MATCH(Assets!X$2,'Data Annex'!$K$1:$AN$1,0)),"") -> 0.0395199966 | Y21: =IFERROR(INDEX('Data Annex'!$K$1:$AN$869,MATCH(Assets!Y$1&"|"&Assets!$B21,'Data Annex'!$K$1:$K$869,0),MATCH(Assets!Y$2,'Data Annex'!$K$1:$AN$1,0)),"") -> 0.0766113157 | Z21: =IFERROR(INDEX('Data Annex'!$K$1:$AN$869,MATCH(Assets!Z$1&"|"&Assets!$B21,'Data Annex'!$K$1:$K$869,0),MATCH(Assets!Z$2,'Data Annex'!$K$1:$AN$1,0)),"") -> 0.0678623245 | AA21: =IFERROR(INDEX('Data Annex'!$K$1:$AN$869,MATCH(Assets!AA$1&"|"&Assets!$B21,'Data Annex'!$K$1:$K$869,0),MATCH(Assets!AA$2,'Data Annex'!$K$1:$AN$1,0)),"") -> 0.0686957301 | AB21: =IFERROR(INDEX('Data Annex'!$K$1:$AN$869,MATCH(Assets!AB$1&"|"&Assets!$B21,'Data Annex'!$K$1:$K$869,0),MATCH(Assets!AB$2,'Data Annex'!$K$1:$AN$1,0)),"") -> 0.1438220012 | AC21: =IFERROR(INDEX('Data Annex'!$K$1:$AH$869,MATCH(Assets!AC$1&"|"&Assets!$B21,'Data Annex'!$K$1:$K$869,0),MATCH(Assets!AC$2,'Data Annex'!$K$1:$AH$1,0)),"") -> 
B22: FI | D22: FI | E22: =IFERROR(INDEX('Data Annex'!$K$1:$AN$869,MATCH(Assets!E$1&"|"&Assets!$B22,'Data Annex'!$K$1:$K$869,0),MATCH(Assets!E$2,'Data Annex'!$K$1:$AN$1,0)),"") -> 0.0858919432 | F22: =IFERROR(INDEX('Data Annex'!$K$1:$AN$869,MATCH(Assets!F$1&"|"&Assets!$B22,'Data Annex'!$K$1:$K$869,0),MATCH(Assets!F$2,'Data Annex'!$K$1:$AN$1,0)),"") -> 0.1079413938 | G22: =IFERROR(INDEX('Data Annex'!$K$1:$AN$869,MATCH(Assets!G$1&"|"&Assets!$B22,'Data Annex'!$K$1:$K$869,0),MATCH(Assets!G$2,'Data Annex'!$K$1:$AN$1,0)),"") -> 0.1127537765 | H22: =IFERROR(INDEX('Data Annex'!$K$1:$AN$869,MATCH(Assets!H$1&"|"&Assets!$B22,'Data Annex'!$K$1:$K$869,0),MATCH(Assets!H$2,'Data Annex'!$K$1:$AN$1,0)),"") -> 0.0931234167 | I22: =IFERROR(INDEX('Data Annex'!$K$1:$AN$869,MATCH(Assets!I$1&"|"&Assets!$B22,'Data Annex'!$K$1:$K$869,0),MATCH(Assets!I$2,'Data Annex'!$K$1:$AN$1,0)),"") -> 0.0074372599 | J22: =IFERROR(INDEX('Data Annex'!$K$1:$AN$869,MATCH(Assets!J$1&"|"&Assets!$B22,'Data Annex'!$K$1:$K$869,0),MATCH(Assets!J$2,'Data Annex'!$K$1:$AN$1,0)),"") -> 0.0074864538 | K22: =IFERROR(INDEX('Data Annex'!$K$1:$AN$869,MATCH(Assets!K$1&"|"&Assets!$B22,'Data Annex'!$K$1:$K$869,0),MATCH(Assets!K$2,'Data Annex'!$K$1:$AN$1,0)),"") -> 0.0077294564 | L22: =IFERROR(INDEX('Data Annex'!$K$1:$AN$869,MATCH(Assets!L$1&"|"&Assets!$B22,'Data Annex'!$K$1:$K$869,0),MATCH(Assets!L$2,'Data Annex'!$K$1:$AN$1,0)),"") -> 0.0072925821 | M22: =IFERROR(INDEX('Data Annex'!$K$1:$AN$869,MATCH(Assets!M$1&"|"&Assets!$B22,'Data Annex'!$K$1:$K$869,0),MATCH(Assets!M$2,'Data Annex'!$K$1:$AN$1,0)),"") -> 0.1294032941 | N22: =IFERROR(INDEX('Data Annex'!$K$1:$AN$869,MATCH(Assets!N$1&"|"&Assets!$B22,'Data Annex'!$K$1:$K$869,0),MATCH(Assets!N$2,'Data Annex'!$K$1:$AN$1,0)),"") -> 0.1295644483 | O22: =IFERROR(INDEX('Data Annex'!$K$1:$AN$869,MATCH(Assets!O$1&"|"&Assets!$B22,'Data Annex'!$K$1:$K$869,0),MATCH(Assets!O$2,'Data Annex'!$K$1:$AN$1,0)),"") -> 0.1250475259 | P22: =IFERROR(INDEX('Data Annex'!$K$1:$AN$869,MATCH(Assets!P$1&"|"&Assets!$B22,'Data Annex'!$K$1:$K$869,0),MATCH(Assets!P$2,'Data Annex'!$K$1:$AN$1,0)),"") -> 0.1161399781 | Q22: =IFERROR(INDEX('Data Annex'!$K$1:$AN$869,MATCH(Assets!Q$1&"|"&Assets!$B22,'Data Annex'!$K$1:$K$869,0),MATCH(Assets!Q$2,'Data Annex'!$K$1:$AN$1,0)),"") -> 0.664337971 | R22: =IFERROR(INDEX('Data Annex'!$K$1:$AN$869,MATCH(Assets!R$1&"|"&Assets!$B22,'Data Annex'!$K$1:$K$869,0),MATCH(Assets!R$2,'Data Annex'!$K$1:$AN$1,0)),"") -> 0.6573599788 | S22: =IFERROR(INDEX('Data Annex'!$K$1:$AN$869,MATCH(Assets!S$1&"|"&Assets!$B22,'Data Annex'!$K$1:$K$869,0),MATCH(Assets!S$2,'Data Annex'!$K$1:$AN$1,0)),"") -> 0.6582754913 | T22: =IFERROR(INDEX('Data Annex'!$K$1:$AN$869,MATCH(Assets!T$1&"|"&Assets!$B22,'Data Annex'!$K$1:$K$869,0),MATCH(Assets!T$2,'Data Annex'!$K$1:$AN$1,0)),"") -> 0.6842938469 | U22: =IFERROR(INDEX('Data Annex'!$K$1:$AN$869,MATCH(Assets!U$1&"|"&Assets!$B22,'Data Annex'!$K$1:$K$869,0),MATCH(Assets!U$2,'Data Annex'!$K$1:$AN$1,0)),"") -> 0.0877680056 | V22: =IFERROR(INDEX('Data Annex'!$K$1:$AN$869,MATCH(Assets!V$1&"|"&Assets!$B22,'Data Annex'!$K$1:$K$869,0),MATCH(Assets!V$2,'Data Annex'!$K$1:$AN$1,0)),"") -> 0.0745197952 | W22: =IFERROR(INDEX('Data Annex'!$K$1:$AN$869,MATCH(Assets!W$1&"|"&Assets!$B22,'Data Annex'!$K$1:$K$869,0),MATCH(Assets!W$2,'Data Annex'!$K$1:$AN$1,0)),"") -> 0.0732901906 | X22: =IFERROR(INDEX('Data Annex'!$K$1:$AN$869,MATCH(Assets!X$1&"|"&Assets!$B22,'Data Annex'!$K$1:$K$869,0),MATCH(Assets!X$2,'Data Annex'!$K$1:$AN$1,0)),"") -> 0.0748920365 | Y22: =IFERROR(INDEX('Data Annex'!$K$1:$AN$869,MATCH(Assets!Y$1&"|"&Assets!$B22,'Data Annex'!$K$1:$K$869,0),MATCH(Assets!Y$2,'Data Annex'!$K$1:$AN$1,0)),"") -> 0.0251615261 | Z22: =IFERROR(INDEX('Data Annex'!$K$1:$AN$869,MATCH(Assets!Z$1&"|"&Assets!$B22,'Data Annex'!$K$1:$K$869,0),MATCH(Assets!Z$2,'Data Annex'!$K$1:$AN$1,0)),"") -> 0.0231279301 | AA22: =IFERROR(INDEX('Data Annex'!$K$1:$AN$869,MATCH(Assets!AA$1&"|"&Assets!$B22,'Data Annex'!$K$1:$K$869,0),MATCH(Assets!AA$2,'Data Annex'!$K$1:$AN$1,0)),"") -> 0.0229035584 | AB22: =IFERROR(INDEX('Data Annex'!$K$1:$AN$869,MATCH(Assets!AB$1&"|"&Assets!$B22,'Data Annex'!$K$1:$K$869,0),MATCH(Assets!AB$2,'Data Annex'!$K$1:$AN$1,0)),"") -> 0.0242581397 | AC22: =IFERROR(INDEX('Data Annex'!$K$1:$AH$869,MATCH(Assets!AC$1&"|"&Assets!$B22,'Data Annex'!$K$1:$K$869,0),MATCH(Assets!AC$2,'Data Annex'!$K$1:$AH$1,0)),"") -> 
B23: FR | D23: FR | E23: =IFERROR(INDEX('Data Annex'!$K$1:$AN$869,MATCH(Assets!E$1&"|"&Assets!$B23,'Data Annex'!$K$1:$K$869,0),MATCH(Assets!E$2,'Data Annex'!$K$1:$AN$1,0)),"") -> 0.0909148618 | F23: =IFERROR(INDEX('Data Annex'!$K$1:$AN$869,MATCH(Assets!F$1&"|"&Assets!$B23,'Data Annex'!$K$1:$K$869,0),MATCH(Assets!F$2,'Data Annex'!$K$1:$AN$1,0)),"") -> 0.1178318255 | G23: =IFERROR(INDEX('Data Annex'!$K$1:$AN$869,MATCH(Assets!G$1&"|"&Assets!$B23,'Data Annex'!$K$1:$K$869,0),MATCH(Assets!G$2,'Data Annex'!$K$1:$AN$1,0)),"") -> 0.1263413335 | H23: =IFERROR(INDEX('Data Annex'!$K$1:$AN$869,MATCH(Assets!H$1&"|"&Assets!$B23,'Data Annex'!$K$1:$K$869,0),MATCH(Assets!H$2,'Data Annex'!$K$1:$AN$1,0)),"") -> 0.1278050147 | I23: =IFERROR(INDEX('Data Annex'!$K$1:$AN$869,MATCH(Assets!I$1&"|"&Assets!$B23,'Data Annex'!$K$1:$K$869,0),MATCH(Assets!I$2,'Data Annex'!$K$1:$AN$1,0)),"") -> 0.0191322393 | J23: =IFERROR(INDEX('Data Annex'!$K$1:$AN$869,MATCH(Assets!J$1&"|"&Assets!$B23,'Data Annex'!$K$1:$K$869,0),MATCH(Assets!J$2,'Data Annex'!$K$1:$AN$1,0)),"") -> 0.0223877776 | K23: =IFERROR(INDEX('Data Annex'!$K$1:$AN$869,MATCH(Assets!K$1&"|"&Assets!$B23,'Data Annex'!$K$1:$K$869,0),MATCH(Assets!K$2,'Data Annex'!$K$1:$AN$1,0)),"") -> 0.0233884033 | L23: =IFERROR(INDEX('Data Annex'!$K$1:$AN$869,MATCH(Assets!L$1&"|"&Assets!$B23,'Data Annex'!$K$1:$K$869,0),MATCH(Assets!L$2,'Data Annex'!$K$1:$AN$1,0)),"") -> 0.0267019768 | M23: =IFERROR(INDEX('Data Annex'!$K$1:$AN$869,MATCH(Assets!M$1&"|"&Assets!$B23,'Data Annex'!$K$1:$K$869,0),MATCH(Assets!M$2,'Data Annex'!$K$1:$AN$1,0)),"") -> 0.1075436495 | N23: =IFERROR(INDEX('Data Annex'!$K$1:$AN$869,MATCH(Assets!N$1&"|"&Assets!$B23,'Data Annex'!$K$1:$K$869,0),MATCH(Assets!N$2,'Data Annex'!$K$1:$AN$1,0)),"") -> 0.1114818275 | O23: =IFERROR(INDEX('Data Annex'!$K$1:$AN$869,MATCH(Assets!O$1&"|"&Assets!$B23,'Data Annex'!$K$1:$K$869,0),MATCH(Assets!O$2,'Data Annex'!$K$1:$AN$1,0)),"") -> 0.1076301466 | P23: =IFERROR(INDEX('Data Annex'!$K$1:$AN$869,MATCH(Assets!P$1&"|"&Assets!$B23,'Data Annex'!$K$1:$K$869,0),MATCH(Assets!P$2,'Data Annex'!$K$1:$AN$1,0)),"") -> 0.1003063415 | Q23: =IFERROR(INDEX('Data Annex'!$K$1:$AN$869,MATCH(Assets!Q$1&"|"&Assets!$B23,'Data Annex'!$K$1:$K$869,0),MATCH(Assets!Q$2,'Data Annex'!$K$1:$AN$1,0)),"") -> 0.599613484 | R23: =IFERROR(INDEX('Data Annex'!$K$1:$AN$869,MATCH(Assets!R$1&"|"&Assets!$B23,'Data Annex'!$K$1:$K$869,0),MATCH(Assets!R$2,'Data Annex'!$K$1:$AN$1,0)),"") -> 0.59060693 | S23: =IFERROR(INDEX('Data Annex'!$K$1:$AN$869,MATCH(Assets!S$1&"|"&Assets!$B23,'Data Annex'!$K$1:$K$869,0),MATCH(Assets!S$2,'Data Annex'!$K$1:$AN$1,0)),"") -> 0.5892184451 | T23: =IFERROR(INDEX('Data Annex'!$K$1:$AN$869,MATCH(Assets!T$1&"|"&Assets!$B23,'Data Annex'!$K$1:$K$869,0),MATCH(Assets!T$2,'Data Annex'!$K$1:$AN$1,0)),"") -> 0.5917221235 | U23: =IFERROR(INDEX('Data Annex'!$K$1:$AN$869,MATCH(Assets!U$1&"|"&Assets!$B23,'Data Annex'!$K$1:$K$869,0),MATCH(Assets!U$2,'Data Annex'!$K$1:$AN$1,0)),"") -> 0.1097397696 | V23: =IFERROR(INDEX('Data Annex'!$K$1:$AN$869,MATCH(Assets!V$1&"|"&Assets!$B23,'Data Annex'!$K$1:$K$869,0),MATCH(Assets!V$2,'Data Annex'!$K$1:$AN$1,0)),"") -> 0.0926243332 | W23: =IFERROR(INDEX('Data Annex'!$K$1:$AN$869,MATCH(Assets!W$1&"|"&Assets!$B23,'Data Annex'!$K$1:$K$869,0),MATCH(Assets!W$2,'Data Annex'!$K$1:$AN$1,0)),"") -> 0.087967764 | X23: =IFERROR(INDEX('Data Annex'!$K$1:$AN$869,MATCH(Assets!X$1&"|"&Assets!$B23,'Data Annex'!$K$1:$K$869,0),MATCH(Assets!X$2,'Data Annex'!$K$1:$AN$1,0)),"") -> 0.0869408978 | Y23: =IFERROR(INDEX('Data Annex'!$K$1:$AN$869,MATCH(Assets!Y$1&"|"&Assets!$B23,'Data Annex'!$K$1:$K$869,0),MATCH(Assets!Y$2,'Data Annex'!$K$1:$AN$1,0)),"") -> 0.0730559958 | Z23: =IFERROR(INDEX('Data Annex'!$K$1:$AN$869,MATCH(Assets!Z$1&"|"&Assets!$B23,'Data Annex'!$K$1:$K$869,0),MATCH(Assets!Z$2,'Data Annex'!$K$1:$AN$1,0)),"") -> 0.0650673062 | AA23: =IFERROR(INDEX('Data Annex'!$K$1:$AN$869,MATCH(Assets!AA$1&"|"&Assets!$B23,'Data Annex'!$K$1:$K$869,0),MATCH(Assets!AA$2,'Data Annex'!$K$1:$AN$1,0)),"") -> 0.0654539076 | AB23: =IFERROR(INDEX('Data Annex'!$K$1:$AN$869,MATCH(Assets!AB$1&"|"&Assets!$B23,'Data Annex'!$K$1:$K$869,0),MATCH(Assets!AB$2,'Data Annex'!$K$1:$AN$1,0)),"") -> 0.0665236457 | AC23: =IFERROR(INDEX('Data Annex'!$K$1:$AH$869,MATCH(Assets!AC$1&"|"&Assets!$B23,'Data Annex'!$K$1:$K$869,0),MATCH(Assets!AC$2,'Data Annex'!$K$1:$AH$1,0)),"") -> 
B24: GR | D24: GR | E24: =IFERROR(INDEX('Data Annex'!$K$1:$AN$869,MATCH(Assets!E$1&"|"&Assets!$B24,'Data Annex'!$K$1:$K$869,0),MATCH(Assets!E$2,'Data Annex'!$K$1:$AN$1,0)),"") -> 0.079497549 | F24: =IFERROR(INDEX('Data Annex'!$K$1:$AN$869,MATCH(Assets!F$1&"|"&Assets!$B24,'Data Annex'!$K$1:$K$869,0),MATCH(Assets!F$2,'Data Annex'!$K$1:$AN$1,0)),"") -> 0.0959096473 | G24: =IFERROR(INDEX('Data Annex'!$K$1:$AN$869,MATCH(Assets!G$1&"|"&Assets!$B24,'Data Annex'!$K$1:$K$869,0),MATCH(Assets!G$2,'Data Annex'!$K$1:$AN$1,0)),"") -> 0.1052206413 | H24: =IFERROR(INDEX('Data Annex'!$K$1:$AN$869,MATCH(Assets!H$1&"|"&Assets!$B24,'Data Annex'!$K$1:$K$869,0),MATCH(Assets!H$2,'Data Annex'!$K$1:$AN$1,0)),"") -> 0.1262274058 | I24: =IFERROR(INDEX('Data Annex'!$K$1:$AN$869,MATCH(Assets!I$1&"|"&Assets!$B24,'Data Annex'!$K$1:$K$869,0),MATCH(Assets!I$2,'Data Annex'!$K$1:$AN$1,0)),"") -> 0.0024219805 | J24: =IFERROR(INDEX('Data Annex'!$K$1:$AN$869,MATCH(Assets!J$1&"|"&Assets!$B24,'Data Annex'!$K$1:$K$869,0),MATCH(Assets!J$2,'Data Annex'!$K$1:$AN$1,0)),"") -> 0.0024796424 | K24: =IFERROR(INDEX('Data Annex'!$K$1:$AN$869,MATCH(Assets!K$1&"|"&Assets!$B24,'Data Annex'!$K$1:$K$869,0),MATCH(Assets!K$2,'Data Annex'!$K$1:$AN$1,0)),"") -> 0.0023654054 | L24: =IFERROR(INDEX('Data Annex'!$K$1:$AN$869,MATCH(Assets!L$1&"|"&Assets!$B24,'Data Annex'!$K$1:$K$869,0),MATCH(Assets!L$2,'Data Annex'!$K$1:$AN$1,0)),"") -> 0.0027451093 | M24: =IFERROR(INDEX('Data Annex'!$K$1:$AN$869,MATCH(Assets!M$1&"|"&Assets!$B24,'Data Annex'!$K$1:$K$869,0),MATCH(Assets!M$2,'Data Annex'!$K$1:$AN$1,0)),"") -> 0.1261279231 | N24: =IFERROR(INDEX('Data Annex'!$K$1:$AN$869,MATCH(Assets!N$1&"|"&Assets!$B24,'Data Annex'!$K$1:$K$869,0),MATCH(Assets!N$2,'Data Annex'!$K$1:$AN$1,0)),"") -> 0.1459718174 | O24: =IFERROR(INDEX('Data Annex'!$K$1:$AN$869,MATCH(Assets!O$1&"|"&Assets!$B24,'Data Annex'!$K$1:$K$869,0),MATCH(Assets!O$2,'Data Annex'!$K$1:$AN$1,0)),"") -> 0.1441428496 | P24: =IFERROR(INDEX('Data Annex'!$K$1:$AN$869,MATCH(Assets!P$1&"|"&Assets!$B24,'Data Annex'!$K$1:$K$869,0),MATCH(Assets!P$2,'Data Annex'!$K$1:$AN$1,0)),"") -> 0.1452121743 | Q24: =IFERROR(INDEX('Data Annex'!$K$1:$AN$869,MATCH(Assets!Q$1&"|"&Assets!$B24,'Data Annex'!$K$1:$K$869,0),MATCH(Assets!Q$2,'Data Annex'!$K$1:$AN$1,0)),"") -> 0.588692231 | R24: =IFERROR(INDEX('Data Annex'!$K$1:$AN$869,MATCH(Assets!R$1&"|"&Assets!$B24,'Data Annex'!$K$1:$K$869,0),MATCH(Assets!R$2,'Data Annex'!$K$1:$AN$1,0)),"") -> 0.549570817 | S24: =IFERROR(INDEX('Data Annex'!$K$1:$AN$869,MATCH(Assets!S$1&"|"&Assets!$B24,'Data Annex'!$K$1:$K$869,0),MATCH(Assets!S$2,'Data Annex'!$K$1:$AN$1,0)),"") -> 0.5558152504 | T24: =IFERROR(INDEX('Data Annex'!$K$1:$AN$869,MATCH(Assets!T$1&"|"&Assets!$B24,'Data Annex'!$K$1:$K$869,0),MATCH(Assets!T$2,'Data Annex'!$K$1:$AN$1,0)),"") -> 0.5322413909 | U24: =IFERROR(INDEX('Data Annex'!$K$1:$AN$869,MATCH(Assets!U$1&"|"&Assets!$B24,'Data Annex'!$K$1:$K$869,0),MATCH(Assets!U$2,'Data Annex'!$K$1:$AN$1,0)),"") -> 0.0365240867 | V24: =IFERROR(INDEX('Data Annex'!$K$1:$AN$869,MATCH(Assets!V$1&"|"&Assets!$B24,'Data Annex'!$K$1:$K$869,0),MATCH(Assets!V$2,'Data Annex'!$K$1:$AN$1,0)),"") -> 0.0373780135 | W24: =IFERROR(INDEX('Data Annex'!$K$1:$AN$869,MATCH(Assets!W$1&"|"&Assets!$B24,'Data Annex'!$K$1:$K$869,0),MATCH(Assets!W$2,'Data Annex'!$K$1:$AN$1,0)),"") -> 0.0361659862 | X24: =IFERROR(INDEX('Data Annex'!$K$1:$AN$869,MATCH(Assets!X$1&"|"&Assets!$B24,'Data Annex'!$K$1:$K$869,0),MATCH(Assets!X$2,'Data Annex'!$K$1:$AN$1,0)),"") -> 0.0350319011 | Y24: =IFERROR(INDEX('Data Annex'!$K$1:$AN$869,MATCH(Assets!Y$1&"|"&Assets!$B24,'Data Annex'!$K$1:$K$869,0),MATCH(Assets!Y$2,'Data Annex'!$K$1:$AN$1,0)),"") -> 0.1667362297 | Z24: =IFERROR(INDEX('Data Annex'!$K$1:$AN$869,MATCH(Assets!Z$1&"|"&Assets!$B24,'Data Annex'!$K$1:$K$869,0),MATCH(Assets!Z$2,'Data Annex'!$K$1:$AN$1,0)),"") -> 0.1686900624 | AA24: =IFERROR(INDEX('Data Annex'!$K$1:$AN$869,MATCH(Assets!AA$1&"|"&Assets!$B24,'Data Annex'!$K$1:$K$869,0),MATCH(Assets!AA$2,'Data Annex'!$K$1:$AN$1,0)),"") -> 0.1562898671 | AB24: =IFERROR(INDEX('Data Annex'!$K$1:$AN$869,MATCH(Assets!AB$1&"|"&Assets!$B24,'Data Annex'!$K$1:$K$869,0),MATCH(Assets!AB$2,'Data Annex'!$K$1:$AN$1,0)),"") -> 0.1585420186 | AC24: =IFERROR(INDEX('Data Annex'!$K$1:$AH$869,MATCH(Assets!AC$1&"|"&Assets!$B24,'Data Annex'!$K$1:$K$869,0),MATCH(Assets!AC$2,'Data Annex'!$K$1:$AH$1,0)),"") -> 
B25: HR | D25: HR | E25: =IFERROR(INDEX('Data Annex'!$K$1:$AN$869,MATCH(Assets!E$1&"|"&Assets!$B25,'Data Annex'!$K$1:$K$869,0),MATCH(Assets!E$2,'Data Annex'!$K$1:$AN$1,0)),"") -> 0.15896955 | F25: =IFERROR(INDEX('Data Annex'!$K$1:$AN$869,MATCH(Assets!F$1&"|"&Assets!$B25,'Data Annex'!$K$1:$K$869,0),MATCH(Assets!F$2,'Data Annex'!$K$1:$AN$1,0)),"") -> 0.1620112667 | G25: =IFERROR(INDEX('Data Annex'!$K$1:$AN$869,MATCH(Assets!G$1&"|"&Assets!$B25,'Data Annex'!$K$1:$K$869,0),MATCH(Assets!G$2,'Data Annex'!$K$1:$AN$1,0)),"") -> 0.1563260154 | H25: =IFERROR(INDEX('Data Annex'!$K$1:$AN$869,MATCH(Assets!H$1&"|"&Assets!$B25,'Data Annex'!$K$1:$K$869,0),MATCH(Assets!H$2,'Data Annex'!$K$1:$AN$1,0)),"") -> 0.1821350417 | I25: =IFERROR(INDEX('Data Annex'!$K$1:$AN$869,MATCH(Assets!I$1&"|"&Assets!$B25,'Data Annex'!$K$1:$K$869,0),MATCH(Assets!I$2,'Data Annex'!$K$1:$AN$1,0)),"") -> 0.0025783307 | J25: =IFERROR(INDEX('Data Annex'!$K$1:$AN$869,MATCH(Assets!J$1&"|"&Assets!$B25,'Data Annex'!$K$1:$K$869,0),MATCH(Assets!J$2,'Data Annex'!$K$1:$AN$1,0)),"") -> 0.0025443064 | K25: =IFERROR(INDEX('Data Annex'!$K$1:$AN$869,MATCH(Assets!K$1&"|"&Assets!$B25,'Data Annex'!$K$1:$K$869,0),MATCH(Assets!K$2,'Data Annex'!$K$1:$AN$1,0)),"") -> 0.0026748941 | L25: =IFERROR(INDEX('Data Annex'!$K$1:$AN$869,MATCH(Assets!L$1&"|"&Assets!$B25,'Data Annex'!$K$1:$K$869,0),MATCH(Assets!L$2,'Data Annex'!$K$1:$AN$1,0)),"") -> 0.0021375982 | M25: =IFERROR(INDEX('Data Annex'!$K$1:$AN$869,MATCH(Assets!M$1&"|"&Assets!$B25,'Data Annex'!$K$1:$K$869,0),MATCH(Assets!M$2,'Data Annex'!$K$1:$AN$1,0)),"") -> 0.1121804029 | N25: =IFERROR(INDEX('Data Annex'!$K$1:$AN$869,MATCH(Assets!N$1&"|"&Assets!$B25,'Data Annex'!$K$1:$K$869,0),MATCH(Assets!N$2,'Data Annex'!$K$1:$AN$1,0)),"") -> 0.108733985 | O25: =IFERROR(INDEX('Data Annex'!$K$1:$AN$869,MATCH(Assets!O$1&"|"&Assets!$B25,'Data Annex'!$K$1:$K$869,0),MATCH(Assets!O$2,'Data Annex'!$K$1:$AN$1,0)),"") -> 0.1137800142 | P25: =IFERROR(INDEX('Data Annex'!$K$1:$AN$869,MATCH(Assets!P$1&"|"&Assets!$B25,'Data Annex'!$K$1:$K$869,0),MATCH(Assets!P$2,'Data Annex'!$K$1:$AN$1,0)),"") -> 0.111510949 | Q25: =IFERROR(INDEX('Data Annex'!$K$1:$AN$869,MATCH(Assets!Q$1&"|"&Assets!$B25,'Data Annex'!$K$1:$K$869,0),MATCH(Assets!Q$2,'Data Annex'!$K$1:$AN$1,0)),"") -> 0.6952027911 | R25: =IFERROR(INDEX('Data Annex'!$K$1:$AN$869,MATCH(Assets!R$1&"|"&Assets!$B25,'Data Annex'!$K$1:$K$869,0),MATCH(Assets!R$2,'Data Annex'!$K$1:$AN$1,0)),"") -> 0.6965766963 | S25: =IFERROR(INDEX('Data Annex'!$K$1:$AN$869,MATCH(Assets!S$1&"|"&Assets!$B25,'Data Annex'!$K$1:$K$869,0),MATCH(Assets!S$2,'Data Annex'!$K$1:$AN$1,0)),"") -> 0.6999710264 | T25: =IFERROR(INDEX('Data Annex'!$K$1:$AN$869,MATCH(Assets!T$1&"|"&Assets!$B25,'Data Annex'!$K$1:$K$869,0),MATCH(Assets!T$2,'Data Annex'!$K$1:$AN$1,0)),"") -> 0.677264788 | U25: =IFERROR(INDEX('Data Annex'!$K$1:$AN$869,MATCH(Assets!U$1&"|"&Assets!$B25,'Data Annex'!$K$1:$K$869,0),MATCH(Assets!U$2,'Data Annex'!$K$1:$AN$1,0)),"") -> 0.0065799679 | V25: =IFERROR(INDEX('Data Annex'!$K$1:$AN$869,MATCH(Assets!V$1&"|"&Assets!$B25,'Data Annex'!$K$1:$K$869,0),MATCH(Assets!V$2,'Data Annex'!$K$1:$AN$1,0)),"") -> 0.0055206715 | W25: =IFERROR(INDEX('Data Annex'!$K$1:$AN$869,MATCH(Assets!W$1&"|"&Assets!$B25,'Data Annex'!$K$1:$K$869,0),MATCH(Assets!W$2,'Data Annex'!$K$1:$AN$1,0)),"") -> 0.0028032682 | X25: =IFERROR(INDEX('Data Annex'!$K$1:$AN$869,MATCH(Assets!X$1&"|"&Assets!$B25,'Data Annex'!$K$1:$K$869,0),MATCH(Assets!X$2,'Data Annex'!$K$1:$AN$1,0)),"") -> 0.0022659289 | Y25: =IFERROR(INDEX('Data Annex'!$K$1:$AN$869,MATCH(Assets!Y$1&"|"&Assets!$B25,'Data Annex'!$K$1:$K$869,0),MATCH(Assets!Y$2,'Data Annex'!$K$1:$AN$1,0)),"") -> 0.0244889574 | Z25: =IFERROR(INDEX('Data Annex'!$K$1:$AN$869,MATCH(Assets!Z$1&"|"&Assets!$B25,'Data Annex'!$K$1:$K$869,0),MATCH(Assets!Z$2,'Data Annex'!$K$1:$AN$1,0)),"") -> 0.0246130741 | AA25: =IFERROR(INDEX('Data Annex'!$K$1:$AN$869,MATCH(Assets!AA$1&"|"&Assets!$B25,'Data Annex'!$K$1:$K$869,0),MATCH(Assets!AA$2,'Data Annex'!$K$1:$AN$1,0)),"") -> 0.0244447818 | AB25: =IFERROR(INDEX('Data Annex'!$K$1:$AN$869,MATCH(Assets!AB$1&"|"&Assets!$B25,'Data Annex'!$K$1:$K$869,0),MATCH(Assets!AB$2,'Data Annex'!$K$1:$AN$1,0)),"") -> 0.0246856941 | AC25: =IFERROR(INDEX('Data Annex'!$K$1:$AH$869,MATCH(Assets!AC$1&"|"&Assets!$B25,'Data Annex'!$K$1:$K$869,0),MATCH(Assets!AC$2,'Data Annex'!$K$1:$AH$1,0)),"") -> 
B26: HU | D26: HU | E26: =IFERROR(INDEX('Data Annex'!$K$1:$AN$869,MATCH(Assets!E$1&"|"&Assets!$B26,'Data Annex'!$K$1:$K$869,0),MATCH(Assets!E$2,'Data Annex'!$K$1:$AN$1,0)),"") -> 0.0948675142 | F26: =IFERROR(INDEX('Data Annex'!$K$1:$AN$869,MATCH(Assets!F$1&"|"&Assets!$B26,'Data Annex'!$K$1:$K$869,0),MATCH(Assets!F$2,'Data Annex'!$K$1:$AN$1,0)),"") -> 0.0948139321 | G26: =IFERROR(INDEX('Data Annex'!$K$1:$AN$869,MATCH(Assets!G$1&"|"&Assets!$B26,'Data Annex'!$K$1:$K$869,0),MATCH(Assets!G$2,'Data Annex'!$K$1:$AN$1,0)),"") -> 0.091964725 | H26: =IFERROR(INDEX('Data Annex'!$K$1:$AN$869,MATCH(Assets!H$1&"|"&Assets!$B26,'Data Annex'!$K$1:$K$869,0),MATCH(Assets!H$2,'Data Annex'!$K$1:$AN$1,0)),"") -> 0.0984024879 | I26: =IFERROR(INDEX('Data Annex'!$K$1:$AN$869,MATCH(Assets!I$1&"|"&Assets!$B26,'Data Annex'!$K$1:$K$869,0),MATCH(Assets!I$2,'Data Annex'!$K$1:$AN$1,0)),"") -> 0.0038578433 | J26: =IFERROR(INDEX('Data Annex'!$K$1:$AN$869,MATCH(Assets!J$1&"|"&Assets!$B26,'Data Annex'!$K$1:$K$869,0),MATCH(Assets!J$2,'Data Annex'!$K$1:$AN$1,0)),"") -> 0.0031207756 | K26: =IFERROR(INDEX('Data Annex'!$K$1:$AN$869,MATCH(Assets!K$1&"|"&Assets!$B26,'Data Annex'!$K$1:$K$869,0),MATCH(Assets!K$2,'Data Annex'!$K$1:$AN$1,0)),"") -> 0.0032510037 | L26: =IFERROR(INDEX('Data Annex'!$K$1:$AN$869,MATCH(Assets!L$1&"|"&Assets!$B26,'Data Annex'!$K$1:$K$869,0),MATCH(Assets!L$2,'Data Annex'!$K$1:$AN$1,0)),"") -> 0.003277549 | M26: =IFERROR(INDEX('Data Annex'!$K$1:$AN$869,MATCH(Assets!M$1&"|"&Assets!$B26,'Data Annex'!$K$1:$K$869,0),MATCH(Assets!M$2,'Data Annex'!$K$1:$AN$1,0)),"") -> 0.2232649648 | N26: =IFERROR(INDEX('Data Annex'!$K$1:$AN$869,MATCH(Assets!N$1&"|"&Assets!$B26,'Data Annex'!$K$1:$K$869,0),MATCH(Assets!N$2,'Data Annex'!$K$1:$AN$1,0)),"") -> 0.215359666 | O26: =IFERROR(INDEX('Data Annex'!$K$1:$AN$869,MATCH(Assets!O$1&"|"&Assets!$B26,'Data Annex'!$K$1:$K$869,0),MATCH(Assets!O$2,'Data Annex'!$K$1:$AN$1,0)),"") -> 0.2203542238 | P26: =IFERROR(INDEX('Data Annex'!$K$1:$AN$869,MATCH(Assets!P$1&"|"&Assets!$B26,'Data Annex'!$K$1:$K$869,0),MATCH(Assets!P$2,'Data Annex'!$K$1:$AN$1,0)),"") -> 0.2150677276 | Q26: =IFERROR(INDEX('Data Annex'!$K$1:$AN$869,MATCH(Assets!Q$1&"|"&Assets!$B26,'Data Annex'!$K$1:$K$869,0),MATCH(Assets!Q$2,'Data Annex'!$K$1:$AN$1,0)),"") -> 0.6149510058 | R26: =IFERROR(INDEX('Data Annex'!$K$1:$AN$869,MATCH(Assets!R$1&"|"&Assets!$B26,'Data Annex'!$K$1:$K$869,0),MATCH(Assets!R$2,'Data Annex'!$K$1:$AN$1,0)),"") -> 0.6274576897 | S26: =IFERROR(INDEX('Data Annex'!$K$1:$AN$869,MATCH(Assets!S$1&"|"&Assets!$B26,'Data Annex'!$K$1:$K$869,0),MATCH(Assets!S$2,'Data Annex'!$K$1:$AN$1,0)),"") -> 0.6299878552 | T26: =IFERROR(INDEX('Data Annex'!$K$1:$AN$869,MATCH(Assets!T$1&"|"&Assets!$B26,'Data Annex'!$K$1:$K$869,0),MATCH(Assets!T$2,'Data Annex'!$K$1:$AN$1,0)),"") -> 0.6317182272 | U26: =IFERROR(INDEX('Data Annex'!$K$1:$AN$869,MATCH(Assets!U$1&"|"&Assets!$B26,'Data Annex'!$K$1:$K$869,0),MATCH(Assets!U$2,'Data Annex'!$K$1:$AN$1,0)),"") -> 0.0200223224 | V26: =IFERROR(INDEX('Data Annex'!$K$1:$AN$869,MATCH(Assets!V$1&"|"&Assets!$B26,'Data Annex'!$K$1:$K$869,0),MATCH(Assets!V$2,'Data Annex'!$K$1:$AN$1,0)),"") -> 0.0154974838 | W26: =IFERROR(INDEX('Data Annex'!$K$1:$AN$869,MATCH(Assets!W$1&"|"&Assets!$B26,'Data Annex'!$K$1:$K$869,0),MATCH(Assets!W$2,'Data Annex'!$K$1:$AN$1,0)),"") -> 0.0133874189 | X26: =IFERROR(INDEX('Data Annex'!$K$1:$AN$869,MATCH(Assets!X$1&"|"&Assets!$B26,'Data Annex'!$K$1:$K$869,0),MATCH(Assets!X$2,'Data Annex'!$K$1:$AN$1,0)),"") -> 0.0105808966 | Y26: =IFERROR(INDEX('Data Annex'!$K$1:$AN$869,MATCH(Assets!Y$1&"|"&Assets!$B26,'Data Annex'!$K$1:$K$869,0),MATCH(Assets!Y$2,'Data Annex'!$K$1:$AN$1,0)),"") -> 0.0430363495 | Z26: =IFERROR(INDEX('Data Annex'!$K$1:$AN$869,MATCH(Assets!Z$1&"|"&Assets!$B26,'Data Annex'!$K$1:$K$869,0),MATCH(Assets!Z$2,'Data Annex'!$K$1:$AN$1,0)),"") -> 0.0437504527 | AA26: =IFERROR(INDEX('Data Annex'!$K$1:$AN$869,MATCH(Assets!AA$1&"|"&Assets!$B26,'Data Annex'!$K$1:$K$869,0),MATCH(Assets!AA$2,'Data Annex'!$K$1:$AN$1,0)),"") -> 0.0410547734 | AB26: =IFERROR(INDEX('Data Annex'!$K$1:$AN$869,MATCH(Assets!AB$1&"|"&Assets!$B26,'Data Annex'!$K$1:$K$869,0),MATCH(Assets!AB$2,'Data Annex'!$K$1:$AN$1,0)),"") -> 0.0409531118 | AC26: =IFERROR(INDEX('Data Annex'!$K$1:$AH$869,MATCH(Assets!AC$1&"|"&Assets!$B26,'Data Annex'!$K$1:$K$869,0),MATCH(Assets!AC$2,'Data Annex'!$K$1:$AH$1,0)),"") -> 
B27: IE | D27: IE | E27: =IFERROR(INDEX('Data Annex'!$K$1:$AN$869,MATCH(Assets!E$1&"|"&Assets!$B27,'Data Annex'!$K$1:$K$869,0),MATCH(Assets!E$2,'Data Annex'!$K$1:$AN$1,0)),"") -> 0.1410943955 | F27: =IFERROR(INDEX('Data Annex'!$K$1:$AN$869,MATCH(Assets!F$1&"|"&Assets!$B27,'Data Annex'!$K$1:$K$869,0),MATCH(Assets!F$2,'Data Annex'!$K$1:$AN$1,0)),"") -> 0.1557062174 | G27: =IFERROR(INDEX('Data Annex'!$K$1:$AN$869,MATCH(Assets!G$1&"|"&Assets!$B27,'Data Annex'!$K$1:$K$869,0),MATCH(Assets!G$2,'Data Annex'!$K$1:$AN$1,0)),"") -> 0.1826865498 | H27: =IFERROR(INDEX('Data Annex'!$K$1:$AN$869,MATCH(Assets!H$1&"|"&Assets!$B27,'Data Annex'!$K$1:$K$869,0),MATCH(Assets!H$2,'Data Annex'!$K$1:$AN$1,0)),"") -> 0.1877281946 | I27: =IFERROR(INDEX('Data Annex'!$K$1:$AN$869,MATCH(Assets!I$1&"|"&Assets!$B27,'Data Annex'!$K$1:$K$869,0),MATCH(Assets!I$2,'Data Annex'!$K$1:$AN$1,0)),"") -> 0.0019390191 | J27: =IFERROR(INDEX('Data Annex'!$K$1:$AN$869,MATCH(Assets!J$1&"|"&Assets!$B27,'Data Annex'!$K$1:$K$869,0),MATCH(Assets!J$2,'Data Annex'!$K$1:$AN$1,0)),"") -> 0.0021386656 | K27: =IFERROR(INDEX('Data Annex'!$K$1:$AN$869,MATCH(Assets!K$1&"|"&Assets!$B27,'Data Annex'!$K$1:$K$869,0),MATCH(Assets!K$2,'Data Annex'!$K$1:$AN$1,0)),"") -> 0.0021132149 | L27: =IFERROR(INDEX('Data Annex'!$K$1:$AN$869,MATCH(Assets!L$1&"|"&Assets!$B27,'Data Annex'!$K$1:$K$869,0),MATCH(Assets!L$2,'Data Annex'!$K$1:$AN$1,0)),"") -> 0.001567739 | M27: =IFERROR(INDEX('Data Annex'!$K$1:$AN$869,MATCH(Assets!M$1&"|"&Assets!$B27,'Data Annex'!$K$1:$K$869,0),MATCH(Assets!M$2,'Data Annex'!$K$1:$AN$1,0)),"") -> 0.1363104475 | N27: =IFERROR(INDEX('Data Annex'!$K$1:$AN$869,MATCH(Assets!N$1&"|"&Assets!$B27,'Data Annex'!$K$1:$K$869,0),MATCH(Assets!N$2,'Data Annex'!$K$1:$AN$1,0)),"") -> 0.1483591749 | O27: =IFERROR(INDEX('Data Annex'!$K$1:$AN$869,MATCH(Assets!O$1&"|"&Assets!$B27,'Data Annex'!$K$1:$K$869,0),MATCH(Assets!O$2,'Data Annex'!$K$1:$AN$1,0)),"") -> 0.1434877947 | P27: =IFERROR(INDEX('Data Annex'!$K$1:$AN$869,MATCH(Assets!P$1&"|"&Assets!$B27,'Data Annex'!$K$1:$K$869,0),MATCH(Assets!P$2,'Data Annex'!$K$1:$AN$1,0)),"") -> 0.1403038928 | Q27: =IFERROR(INDEX('Data Annex'!$K$1:$AN$869,MATCH(Assets!Q$1&"|"&Assets!$B27,'Data Annex'!$K$1:$K$869,0),MATCH(Assets!Q$2,'Data Annex'!$K$1:$AN$1,0)),"") -> 0.6296879291 | R27: =IFERROR(INDEX('Data Annex'!$K$1:$AN$869,MATCH(Assets!R$1&"|"&Assets!$B27,'Data Annex'!$K$1:$K$869,0),MATCH(Assets!R$2,'Data Annex'!$K$1:$AN$1,0)),"") -> 0.6041807918 | S27: =IFERROR(INDEX('Data Annex'!$K$1:$AN$869,MATCH(Assets!S$1&"|"&Assets!$B27,'Data Annex'!$K$1:$K$869,0),MATCH(Assets!S$2,'Data Annex'!$K$1:$AN$1,0)),"") -> 0.5862512748 | T27: =IFERROR(INDEX('Data Annex'!$K$1:$AN$869,MATCH(Assets!T$1&"|"&Assets!$B27,'Data Annex'!$K$1:$K$869,0),MATCH(Assets!T$2,'Data Annex'!$K$1:$AN$1,0)),"") -> 0.5798334231 | U27: =IFERROR(INDEX('Data Annex'!$K$1:$AN$869,MATCH(Assets!U$1&"|"&Assets!$B27,'Data Annex'!$K$1:$K$869,0),MATCH(Assets!U$2,'Data Annex'!$K$1:$AN$1,0)),"") -> 0.0340775845 | V27: =IFERROR(INDEX('Data Annex'!$K$1:$AN$869,MATCH(Assets!V$1&"|"&Assets!$B27,'Data Annex'!$K$1:$K$869,0),MATCH(Assets!V$2,'Data Annex'!$K$1:$AN$1,0)),"") -> 0.035332501 | W27: =IFERROR(INDEX('Data Annex'!$K$1:$AN$869,MATCH(Assets!W$1&"|"&Assets!$B27,'Data Annex'!$K$1:$K$869,0),MATCH(Assets!W$2,'Data Annex'!$K$1:$AN$1,0)),"") -> 0.0360496887 | X27: =IFERROR(INDEX('Data Annex'!$K$1:$AN$869,MATCH(Assets!X$1&"|"&Assets!$B27,'Data Annex'!$K$1:$K$869,0),MATCH(Assets!X$2,'Data Annex'!$K$1:$AN$1,0)),"") -> 0.0448366827 | Y27: =IFERROR(INDEX('Data Annex'!$K$1:$AN$869,MATCH(Assets!Y$1&"|"&Assets!$B27,'Data Annex'!$K$1:$K$869,0),MATCH(Assets!Y$2,'Data Annex'!$K$1:$AN$1,0)),"") -> 0.0568906243 | Z27: =IFERROR(INDEX('Data Annex'!$K$1:$AN$869,MATCH(Assets!Z$1&"|"&Assets!$B27,'Data Annex'!$K$1:$K$869,0),MATCH(Assets!Z$2,'Data Annex'!$K$1:$AN$1,0)),"") -> 0.0542826492 | AA27: =IFERROR(INDEX('Data Annex'!$K$1:$AN$869,MATCH(Assets!AA$1&"|"&Assets!$B27,'Data Annex'!$K$1:$K$869,0),MATCH(Assets!AA$2,'Data Annex'!$K$1:$AN$1,0)),"") -> 0.049411477 | AB27: =IFERROR(INDEX('Data Annex'!$K$1:$AN$869,MATCH(Assets!AB$1&"|"&Assets!$B27,'Data Annex'!$K$1:$K$869,0),MATCH(Assets!AB$2,'Data Annex'!$K$1:$AN$1,0)),"") -> 0.0457300678 | AC27: =IFERROR(INDEX('Data Annex'!$K$1:$AH$869,MATCH(Assets!AC$1&"|"&Assets!$B27,'Data Annex'!$K$1:$K$869,0),MATCH(Assets!AC$2,'Data Annex'!$K$1:$AH$1,0)),"") -> 
B28: IS | D28: IS | E28: =IFERROR(INDEX('Data Annex'!$K$1:$AN$869,MATCH(Assets!E$1&"|"&Assets!$B28,'Data Annex'!$K$1:$K$869,0),MATCH(Assets!E$2,'Data Annex'!$K$1:$AN$1,0)),"") -> 0.1086482261 | F28: =IFERROR(INDEX('Data Annex'!$K$1:$AN$869,MATCH(Assets!F$1&"|"&Assets!$B28,'Data Annex'!$K$1:$K$869,0),MATCH(Assets!F$2,'Data Annex'!$K$1:$AN$1,0)),"") -> 0.0955727781 | G28: =IFERROR(INDEX('Data Annex'!$K$1:$AN$869,MATCH(Assets!G$1&"|"&Assets!$B28,'Data Annex'!$K$1:$K$869,0),MATCH(Assets!G$2,'Data Annex'!$K$1:$AN$1,0)),"") -> 0.1035054023 | H28: =IFERROR(INDEX('Data Annex'!$K$1:$AN$869,MATCH(Assets!H$1&"|"&Assets!$B28,'Data Annex'!$K$1:$K$869,0),MATCH(Assets!H$2,'Data Annex'!$K$1:$AN$1,0)),"") -> 0.0746439017 | I28: =IFERROR(INDEX('Data Annex'!$K$1:$AN$869,MATCH(Assets!I$1&"|"&Assets!$B28,'Data Annex'!$K$1:$K$869,0),MATCH(Assets!I$2,'Data Annex'!$K$1:$AN$1,0)),"") -> 0.016978291 | J28: =IFERROR(INDEX('Data Annex'!$K$1:$AN$869,MATCH(Assets!J$1&"|"&Assets!$B28,'Data Annex'!$K$1:$K$869,0),MATCH(Assets!J$2,'Data Annex'!$K$1:$AN$1,0)),"") -> 0.0168973006 | K28: =IFERROR(INDEX('Data Annex'!$K$1:$AN$869,MATCH(Assets!K$1&"|"&Assets!$B28,'Data Annex'!$K$1:$K$869,0),MATCH(Assets!K$2,'Data Annex'!$K$1:$AN$1,0)),"") -> 0.0173059889 | L28: =IFERROR(INDEX('Data Annex'!$K$1:$AN$869,MATCH(Assets!L$1&"|"&Assets!$B28,'Data Annex'!$K$1:$K$869,0),MATCH(Assets!L$2,'Data Annex'!$K$1:$AN$1,0)),"") -> 0.01878399 | M28: =IFERROR(INDEX('Data Annex'!$K$1:$AN$869,MATCH(Assets!M$1&"|"&Assets!$B28,'Data Annex'!$K$1:$K$869,0),MATCH(Assets!M$2,'Data Annex'!$K$1:$AN$1,0)),"") -> 0.0854939033 | N28: =IFERROR(INDEX('Data Annex'!$K$1:$AN$869,MATCH(Assets!N$1&"|"&Assets!$B28,'Data Annex'!$K$1:$K$869,0),MATCH(Assets!N$2,'Data Annex'!$K$1:$AN$1,0)),"") -> 0.1012850336 | O28: =IFERROR(INDEX('Data Annex'!$K$1:$AN$869,MATCH(Assets!O$1&"|"&Assets!$B28,'Data Annex'!$K$1:$K$869,0),MATCH(Assets!O$2,'Data Annex'!$K$1:$AN$1,0)),"") -> 0.1067868723 | P28: =IFERROR(INDEX('Data Annex'!$K$1:$AN$869,MATCH(Assets!P$1&"|"&Assets!$B28,'Data Annex'!$K$1:$K$869,0),MATCH(Assets!P$2,'Data Annex'!$K$1:$AN$1,0)),"") -> 0.1059671064 | Q28: =IFERROR(INDEX('Data Annex'!$K$1:$AN$869,MATCH(Assets!Q$1&"|"&Assets!$B28,'Data Annex'!$K$1:$K$869,0),MATCH(Assets!Q$2,'Data Annex'!$K$1:$AN$1,0)),"") -> 0.7521897663 | R28: =IFERROR(INDEX('Data Annex'!$K$1:$AN$869,MATCH(Assets!R$1&"|"&Assets!$B28,'Data Annex'!$K$1:$K$869,0),MATCH(Assets!R$2,'Data Annex'!$K$1:$AN$1,0)),"") -> 0.7493355771 | S28: =IFERROR(INDEX('Data Annex'!$K$1:$AN$869,MATCH(Assets!S$1&"|"&Assets!$B28,'Data Annex'!$K$1:$K$869,0),MATCH(Assets!S$2,'Data Annex'!$K$1:$AN$1,0)),"") -> 0.7369517539 | T28: =IFERROR(INDEX('Data Annex'!$K$1:$AN$869,MATCH(Assets!T$1&"|"&Assets!$B28,'Data Annex'!$K$1:$K$869,0),MATCH(Assets!T$2,'Data Annex'!$K$1:$AN$1,0)),"") -> 0.7726116877 | U28: =IFERROR(INDEX('Data Annex'!$K$1:$AN$869,MATCH(Assets!U$1&"|"&Assets!$B28,'Data Annex'!$K$1:$K$869,0),MATCH(Assets!U$2,'Data Annex'!$K$1:$AN$1,0)),"") -> 0.0044426667 | V28: =IFERROR(INDEX('Data Annex'!$K$1:$AN$869,MATCH(Assets!V$1&"|"&Assets!$B28,'Data Annex'!$K$1:$K$869,0),MATCH(Assets!V$2,'Data Annex'!$K$1:$AN$1,0)),"") -> 0.0042507669 | W28: =IFERROR(INDEX('Data Annex'!$K$1:$AN$869,MATCH(Assets!W$1&"|"&Assets!$B28,'Data Annex'!$K$1:$K$869,0),MATCH(Assets!W$2,'Data Annex'!$K$1:$AN$1,0)),"") -> 0.0041631835 | X28: =IFERROR(INDEX('Data Annex'!$K$1:$AN$869,MATCH(Assets!X$1&"|"&Assets!$B28,'Data Annex'!$K$1:$K$869,0),MATCH(Assets!X$2,'Data Annex'!$K$1:$AN$1,0)),"") -> 0.0042225093 | Y28: =IFERROR(INDEX('Data Annex'!$K$1:$AN$869,MATCH(Assets!Y$1&"|"&Assets!$B28,'Data Annex'!$K$1:$K$869,0),MATCH(Assets!Y$2,'Data Annex'!$K$1:$AN$1,0)),"") -> 0.0322471466 | Z28: =IFERROR(INDEX('Data Annex'!$K$1:$AN$869,MATCH(Assets!Z$1&"|"&Assets!$B28,'Data Annex'!$K$1:$K$869,0),MATCH(Assets!Z$2,'Data Annex'!$K$1:$AN$1,0)),"") -> 0.032657565 | AA28: =IFERROR(INDEX('Data Annex'!$K$1:$AN$869,MATCH(Assets!AA$1&"|"&Assets!$B28,'Data Annex'!$K$1:$K$869,0),MATCH(Assets!AA$2,'Data Annex'!$K$1:$AN$1,0)),"") -> 0.031286799 | AB28: =IFERROR(INDEX('Data Annex'!$K$1:$AN$869,MATCH(Assets!AB$1&"|"&Assets!$B28,'Data Annex'!$K$1:$K$869,0),MATCH(Assets!AB$2,'Data Annex'!$K$1:$AN$1,0)),"") -> 0.023684333 | AC28: =IFERROR(INDEX('Data Annex'!$K$1:$AH$869,MATCH(Assets!AC$1&"|"&Assets!$B28,'Data Annex'!$K$1:$K$869,0),MATCH(Assets!AC$2,'Data Annex'!$K$1:$AH$1,0)),"") -> 
B29: IT | D29: IT | E29: =IFERROR(INDEX('Data Annex'!$K$1:$AN$869,MATCH(Assets!E$1&"|"&Assets!$B29,'Data Annex'!$K$1:$K$869,0),MATCH(Assets!E$2,'Data Annex'!$K$1:$AN$1,0)),"") -> 0.0516917148 | F29: =IFERROR(INDEX('Data Annex'!$K$1:$AN$869,MATCH(Assets!F$1&"|"&Assets!$B29,'Data Annex'!$K$1:$K$869,0),MATCH(Assets!F$2,'Data Annex'!$K$1:$AN$1,0)),"") -> 0.0593256386 | G29: =IFERROR(INDEX('Data Annex'!$K$1:$AN$869,MATCH(Assets!G$1&"|"&Assets!$B29,'Data Annex'!$K$1:$K$869,0),MATCH(Assets!G$2,'Data Annex'!$K$1:$AN$1,0)),"") -> 0.0757322321 | H29: =IFERROR(INDEX('Data Annex'!$K$1:$AN$869,MATCH(Assets!H$1&"|"&Assets!$B29,'Data Annex'!$K$1:$K$869,0),MATCH(Assets!H$2,'Data Annex'!$K$1:$AN$1,0)),"") -> 0.1369508009 | I29: =IFERROR(INDEX('Data Annex'!$K$1:$AN$869,MATCH(Assets!I$1&"|"&Assets!$B29,'Data Annex'!$K$1:$K$869,0),MATCH(Assets!I$2,'Data Annex'!$K$1:$AN$1,0)),"") -> 0.0096018948 | J29: =IFERROR(INDEX('Data Annex'!$K$1:$AN$869,MATCH(Assets!J$1&"|"&Assets!$B29,'Data Annex'!$K$1:$K$869,0),MATCH(Assets!J$2,'Data Annex'!$K$1:$AN$1,0)),"") -> 0.010510686 | K29: =IFERROR(INDEX('Data Annex'!$K$1:$AN$869,MATCH(Assets!K$1&"|"&Assets!$B29,'Data Annex'!$K$1:$K$869,0),MATCH(Assets!K$2,'Data Annex'!$K$1:$AN$1,0)),"") -> 0.010575665 | L29: =IFERROR(INDEX('Data Annex'!$K$1:$AN$869,MATCH(Assets!L$1&"|"&Assets!$B29,'Data Annex'!$K$1:$K$869,0),MATCH(Assets!L$2,'Data Annex'!$K$1:$AN$1,0)),"") -> 0.0116093336 | M29: =IFERROR(INDEX('Data Annex'!$K$1:$AN$869,MATCH(Assets!M$1&"|"&Assets!$B29,'Data Annex'!$K$1:$K$869,0),MATCH(Assets!M$2,'Data Annex'!$K$1:$AN$1,0)),"") -> 0.2000611395 | N29: =IFERROR(INDEX('Data Annex'!$K$1:$AN$869,MATCH(Assets!N$1&"|"&Assets!$B29,'Data Annex'!$K$1:$K$869,0),MATCH(Assets!N$2,'Data Annex'!$K$1:$AN$1,0)),"") -> 0.2080416373 | O29: =IFERROR(INDEX('Data Annex'!$K$1:$AN$869,MATCH(Assets!O$1&"|"&Assets!$B29,'Data Annex'!$K$1:$K$869,0),MATCH(Assets!O$2,'Data Annex'!$K$1:$AN$1,0)),"") -> 0.2047640128 | P29: =IFERROR(INDEX('Data Annex'!$K$1:$AN$869,MATCH(Assets!P$1&"|"&Assets!$B29,'Data Annex'!$K$1:$K$869,0),MATCH(Assets!P$2,'Data Annex'!$K$1:$AN$1,0)),"") -> 0.1906328543 | Q29: =IFERROR(INDEX('Data Annex'!$K$1:$AN$869,MATCH(Assets!Q$1&"|"&Assets!$B29,'Data Annex'!$K$1:$K$869,0),MATCH(Assets!Q$2,'Data Annex'!$K$1:$AN$1,0)),"") -> 0.6387462626 | R29: =IFERROR(INDEX('Data Annex'!$K$1:$AN$869,MATCH(Assets!R$1&"|"&Assets!$B29,'Data Annex'!$K$1:$K$869,0),MATCH(Assets!R$2,'Data Annex'!$K$1:$AN$1,0)),"") -> 0.6260359909 | S29: =IFERROR(INDEX('Data Annex'!$K$1:$AN$869,MATCH(Assets!S$1&"|"&Assets!$B29,'Data Annex'!$K$1:$K$869,0),MATCH(Assets!S$2,'Data Annex'!$K$1:$AN$1,0)),"") -> 0.616187594 | T29: =IFERROR(INDEX('Data Annex'!$K$1:$AN$869,MATCH(Assets!T$1&"|"&Assets!$B29,'Data Annex'!$K$1:$K$869,0),MATCH(Assets!T$2,'Data Annex'!$K$1:$AN$1,0)),"") -> 0.5608372619 | U29: =IFERROR(INDEX('Data Annex'!$K$1:$AN$869,MATCH(Assets!U$1&"|"&Assets!$B29,'Data Annex'!$K$1:$K$869,0),MATCH(Assets!U$2,'Data Annex'!$K$1:$AN$1,0)),"") -> 0.0408468871 | V29: =IFERROR(INDEX('Data Annex'!$K$1:$AN$869,MATCH(Assets!V$1&"|"&Assets!$B29,'Data Annex'!$K$1:$K$869,0),MATCH(Assets!V$2,'Data Annex'!$K$1:$AN$1,0)),"") -> 0.0379108184 | W29: =IFERROR(INDEX('Data Annex'!$K$1:$AN$869,MATCH(Assets!W$1&"|"&Assets!$B29,'Data Annex'!$K$1:$K$869,0),MATCH(Assets!W$2,'Data Annex'!$K$1:$AN$1,0)),"") -> 0.0353323762 | X29: =IFERROR(INDEX('Data Annex'!$K$1:$AN$869,MATCH(Assets!X$1&"|"&Assets!$B29,'Data Annex'!$K$1:$K$869,0),MATCH(Assets!X$2,'Data Annex'!$K$1:$AN$1,0)),"") -> 0.0345822491 | Y29: =IFERROR(INDEX('Data Annex'!$K$1:$AN$869,MATCH(Assets!Y$1&"|"&Assets!$B29,'Data Annex'!$K$1:$K$869,0),MATCH(Assets!Y$2,'Data Annex'!$K$1:$AN$1,0)),"") -> 0.0590521012 | Z29: =IFERROR(INDEX('Data Annex'!$K$1:$AN$869,MATCH(Assets!Z$1&"|"&Assets!$B29,'Data Annex'!$K$1:$K$869,0),MATCH(Assets!Z$2,'Data Annex'!$K$1:$AN$1,0)),"") -> 0.0581752287 | AA29: =IFERROR(INDEX('Data Annex'!$K$1:$AN$869,MATCH(Assets!AA$1&"|"&Assets!$B29,'Data Annex'!$K$1:$K$869,0),MATCH(Assets!AA$2,'Data Annex'!$K$1:$AN$1,0)),"") -> 0.0574081198 | AB29: =IFERROR(INDEX('Data Annex'!$K$1:$AN$869,MATCH(Assets!AB$1&"|"&Assets!$B29,'Data Annex'!$K$1:$K$869,0),MATCH(Assets!AB$2,'Data Annex'!$K$1:$AN$1,0)),"") -> 0.0653874997 | AC29: =IFERROR(INDEX('Data Annex'!$K$1:$AH$869,MATCH(Assets!AC$1&"|"&Assets!$B29,'Data Annex'!$K$1:$K$869,0),MATCH(Assets!AC$2,'Data Annex'!$K$1:$AH$1,0)),"") -> 
B30: LT | D30: LT | E30: =IFERROR(INDEX('Data Annex'!$K$1:$AN$869,MATCH(Assets!E$1&"|"&Assets!$B30,'Data Annex'!$K$1:$K$869,0),MATCH(Assets!E$2,'Data Annex'!$K$1:$AN$1,0)),"") -> 0.3048811638 | F30: =IFERROR(INDEX('Data Annex'!$K$1:$AN$869,MATCH(Assets!F$1&"|"&Assets!$B30,'Data Annex'!$K$1:$K$869,0),MATCH(Assets!F$2,'Data Annex'!$K$1:$AN$1,0)),"") -> 0.3393282414 | G30: =IFERROR(INDEX('Data Annex'!$K$1:$AN$869,MATCH(Assets!G$1&"|"&Assets!$B30,'Data Annex'!$K$1:$K$869,0),MATCH(Assets!G$2,'Data Annex'!$K$1:$AN$1,0)),"") -> 0.3796991185 | H30: =IFERROR(INDEX('Data Annex'!$K$1:$AN$869,MATCH(Assets!H$1&"|"&Assets!$B30,'Data Annex'!$K$1:$K$869,0),MATCH(Assets!H$2,'Data Annex'!$K$1:$AN$1,0)),"") -> 0.3682813835 | I30: =IFERROR(INDEX('Data Annex'!$K$1:$AN$869,MATCH(Assets!I$1&"|"&Assets!$B30,'Data Annex'!$K$1:$K$869,0),MATCH(Assets!I$2,'Data Annex'!$K$1:$AN$1,0)),"") -> 0.000670633 | J30: =IFERROR(INDEX('Data Annex'!$K$1:$AN$869,MATCH(Assets!J$1&"|"&Assets!$B30,'Data Annex'!$K$1:$K$869,0),MATCH(Assets!J$2,'Data Annex'!$K$1:$AN$1,0)),"") -> 0.000667688 | K30: =IFERROR(INDEX('Data Annex'!$K$1:$AN$869,MATCH(Assets!K$1&"|"&Assets!$B30,'Data Annex'!$K$1:$K$869,0),MATCH(Assets!K$2,'Data Annex'!$K$1:$AN$1,0)),"") -> 0.0007194998 | L30: =IFERROR(INDEX('Data Annex'!$K$1:$AN$869,MATCH(Assets!L$1&"|"&Assets!$B30,'Data Annex'!$K$1:$K$869,0),MATCH(Assets!L$2,'Data Annex'!$K$1:$AN$1,0)),"") -> 0.0003748175 | M30: =IFERROR(INDEX('Data Annex'!$K$1:$AN$869,MATCH(Assets!M$1&"|"&Assets!$B30,'Data Annex'!$K$1:$K$869,0),MATCH(Assets!M$2,'Data Annex'!$K$1:$AN$1,0)),"") -> 0.0443293659 | N30: =IFERROR(INDEX('Data Annex'!$K$1:$AN$869,MATCH(Assets!N$1&"|"&Assets!$B30,'Data Annex'!$K$1:$K$869,0),MATCH(Assets!N$2,'Data Annex'!$K$1:$AN$1,0)),"") -> 0.0563768684 | O30: =IFERROR(INDEX('Data Annex'!$K$1:$AN$869,MATCH(Assets!O$1&"|"&Assets!$B30,'Data Annex'!$K$1:$K$869,0),MATCH(Assets!O$2,'Data Annex'!$K$1:$AN$1,0)),"") -> 0.0555683965 | P30: =IFERROR(INDEX('Data Annex'!$K$1:$AN$869,MATCH(Assets!P$1&"|"&Assets!$B30,'Data Annex'!$K$1:$K$869,0),MATCH(Assets!P$2,'Data Annex'!$K$1:$AN$1,0)),"") -> 0.0543089739 | Q30: =IFERROR(INDEX('Data Annex'!$K$1:$AN$869,MATCH(Assets!Q$1&"|"&Assets!$B30,'Data Annex'!$K$1:$K$869,0),MATCH(Assets!Q$2,'Data Annex'!$K$1:$AN$1,0)),"") -> 0.6402706392 | R30: =IFERROR(INDEX('Data Annex'!$K$1:$AN$869,MATCH(Assets!R$1&"|"&Assets!$B30,'Data Annex'!$K$1:$K$869,0),MATCH(Assets!R$2,'Data Annex'!$K$1:$AN$1,0)),"") -> 0.5932569777 | S30: =IFERROR(INDEX('Data Annex'!$K$1:$AN$869,MATCH(Assets!S$1&"|"&Assets!$B30,'Data Annex'!$K$1:$K$869,0),MATCH(Assets!S$2,'Data Annex'!$K$1:$AN$1,0)),"") -> 0.5541702467 | T30: =IFERROR(INDEX('Data Annex'!$K$1:$AN$869,MATCH(Assets!T$1&"|"&Assets!$B30,'Data Annex'!$K$1:$K$869,0),MATCH(Assets!T$2,'Data Annex'!$K$1:$AN$1,0)),"") -> 0.5680204832 | U30: =IFERROR(INDEX('Data Annex'!$K$1:$AN$869,MATCH(Assets!U$1&"|"&Assets!$B30,'Data Annex'!$K$1:$K$869,0),MATCH(Assets!U$2,'Data Annex'!$K$1:$AN$1,0)),"") -> 0.0014132102 | V30: =IFERROR(INDEX('Data Annex'!$K$1:$AN$869,MATCH(Assets!V$1&"|"&Assets!$B30,'Data Annex'!$K$1:$K$869,0),MATCH(Assets!V$2,'Data Annex'!$K$1:$AN$1,0)),"") -> 0.0010231076 | W30: =IFERROR(INDEX('Data Annex'!$K$1:$AN$869,MATCH(Assets!W$1&"|"&Assets!$B30,'Data Annex'!$K$1:$K$869,0),MATCH(Assets!W$2,'Data Annex'!$K$1:$AN$1,0)),"") -> 0.0011580772 | X30: =IFERROR(INDEX('Data Annex'!$K$1:$AN$869,MATCH(Assets!X$1&"|"&Assets!$B30,'Data Annex'!$K$1:$K$869,0),MATCH(Assets!X$2,'Data Annex'!$K$1:$AN$1,0)),"") -> 0.0011631788 | Y30: =IFERROR(INDEX('Data Annex'!$K$1:$AN$869,MATCH(Assets!Y$1&"|"&Assets!$B30,'Data Annex'!$K$1:$K$869,0),MATCH(Assets!Y$2,'Data Annex'!$K$1:$AN$1,0)),"") -> 0.0084349879 | Z30: =IFERROR(INDEX('Data Annex'!$K$1:$AN$869,MATCH(Assets!Z$1&"|"&Assets!$B30,'Data Annex'!$K$1:$K$869,0),MATCH(Assets!Z$2,'Data Annex'!$K$1:$AN$1,0)),"") -> 0.0093471169 | AA30: =IFERROR(INDEX('Data Annex'!$K$1:$AN$869,MATCH(Assets!AA$1&"|"&Assets!$B30,'Data Annex'!$K$1:$K$869,0),MATCH(Assets!AA$2,'Data Annex'!$K$1:$AN$1,0)),"") -> 0.0086846613 | AB30: =IFERROR(INDEX('Data Annex'!$K$1:$AN$869,MATCH(Assets!AB$1&"|"&Assets!$B30,'Data Annex'!$K$1:$K$869,0),MATCH(Assets!AB$2,'Data Annex'!$K$1:$AN$1,0)),"") -> 0.007851163 | AC30: =IFERROR(INDEX('Data Annex'!$K$1:$AH$869,MATCH(Assets!AC$1&"|"&Assets!$B30,'Data Annex'!$K$1:$K$869,0),MATCH(Assets!AC$2,'Data Annex'!$K$1:$AH$1,0)),"") -> 
B31: LU | D31: LU | E31: =IFERROR(INDEX('Data Annex'!$K$1:$AN$869,MATCH(Assets!E$1&"|"&Assets!$B31,'Data Annex'!$K$1:$K$869,0),MATCH(Assets!E$2,'Data Annex'!$K$1:$AN$1,0)),"") -> 0.1596667168 | F31: =IFERROR(INDEX('Data Annex'!$K$1:$AN$869,MATCH(Assets!F$1&"|"&Assets!$B31,'Data Annex'!$K$1:$K$869,0),MATCH(Assets!F$2,'Data Annex'!$K$1:$AN$1,0)),"") -> 0.1645737006 | G31: =IFERROR(INDEX('Data Annex'!$K$1:$AN$869,MATCH(Assets!G$1&"|"&Assets!$B31,'Data Annex'!$K$1:$K$869,0),MATCH(Assets!G$2,'Data Annex'!$K$1:$AN$1,0)),"") -> 0.1663693923 | H31: =IFERROR(INDEX('Data Annex'!$K$1:$AN$869,MATCH(Assets!H$1&"|"&Assets!$B31,'Data Annex'!$K$1:$K$869,0),MATCH(Assets!H$2,'Data Annex'!$K$1:$AN$1,0)),"") -> 0.2112104204 | I31: =IFERROR(INDEX('Data Annex'!$K$1:$AN$869,MATCH(Assets!I$1&"|"&Assets!$B31,'Data Annex'!$K$1:$K$869,0),MATCH(Assets!I$2,'Data Annex'!$K$1:$AN$1,0)),"") -> 0.0028205222 | J31: =IFERROR(INDEX('Data Annex'!$K$1:$AN$869,MATCH(Assets!J$1&"|"&Assets!$B31,'Data Annex'!$K$1:$K$869,0),MATCH(Assets!J$2,'Data Annex'!$K$1:$AN$1,0)),"") -> 0.0033836231 | K31: =IFERROR(INDEX('Data Annex'!$K$1:$AN$869,MATCH(Assets!K$1&"|"&Assets!$B31,'Data Annex'!$K$1:$K$869,0),MATCH(Assets!K$2,'Data Annex'!$K$1:$AN$1,0)),"") -> 0.0028607687 | L31: =IFERROR(INDEX('Data Annex'!$K$1:$AN$869,MATCH(Assets!L$1&"|"&Assets!$B31,'Data Annex'!$K$1:$K$869,0),MATCH(Assets!L$2,'Data Annex'!$K$1:$AN$1,0)),"") -> 0.0038277678 | M31: =IFERROR(INDEX('Data Annex'!$K$1:$AN$869,MATCH(Assets!M$1&"|"&Assets!$B31,'Data Annex'!$K$1:$K$869,0),MATCH(Assets!M$2,'Data Annex'!$K$1:$AN$1,0)),"") -> 0.1134329415 | N31: =IFERROR(INDEX('Data Annex'!$K$1:$AN$869,MATCH(Assets!N$1&"|"&Assets!$B31,'Data Annex'!$K$1:$K$869,0),MATCH(Assets!N$2,'Data Annex'!$K$1:$AN$1,0)),"") -> 0.127975496 | O31: =IFERROR(INDEX('Data Annex'!$K$1:$AN$869,MATCH(Assets!O$1&"|"&Assets!$B31,'Data Annex'!$K$1:$K$869,0),MATCH(Assets!O$2,'Data Annex'!$K$1:$AN$1,0)),"") -> 0.1276608352 | P31: =IFERROR(INDEX('Data Annex'!$K$1:$AN$869,MATCH(Assets!P$1&"|"&Assets!$B31,'Data Annex'!$K$1:$K$869,0),MATCH(Assets!P$2,'Data Annex'!$K$1:$AN$1,0)),"") -> 0.1588085326 | Q31: =IFERROR(INDEX('Data Annex'!$K$1:$AN$869,MATCH(Assets!Q$1&"|"&Assets!$B31,'Data Annex'!$K$1:$K$869,0),MATCH(Assets!Q$2,'Data Annex'!$K$1:$AN$1,0)),"") -> 0.6558817801 | R31: =IFERROR(INDEX('Data Annex'!$K$1:$AN$869,MATCH(Assets!R$1&"|"&Assets!$B31,'Data Annex'!$K$1:$K$869,0),MATCH(Assets!R$2,'Data Annex'!$K$1:$AN$1,0)),"") -> 0.6632791813 | S31: =IFERROR(INDEX('Data Annex'!$K$1:$AN$869,MATCH(Assets!S$1&"|"&Assets!$B31,'Data Annex'!$K$1:$K$869,0),MATCH(Assets!S$2,'Data Annex'!$K$1:$AN$1,0)),"") -> 0.6643997976 | T31: =IFERROR(INDEX('Data Annex'!$K$1:$AN$869,MATCH(Assets!T$1&"|"&Assets!$B31,'Data Annex'!$K$1:$K$869,0),MATCH(Assets!T$2,'Data Annex'!$K$1:$AN$1,0)),"") -> 0.5866696376 | U31: =IFERROR(INDEX('Data Annex'!$K$1:$AN$869,MATCH(Assets!U$1&"|"&Assets!$B31,'Data Annex'!$K$1:$K$869,0),MATCH(Assets!U$2,'Data Annex'!$K$1:$AN$1,0)),"") -> 0.0431905717 | V31: =IFERROR(INDEX('Data Annex'!$K$1:$AN$869,MATCH(Assets!V$1&"|"&Assets!$B31,'Data Annex'!$K$1:$K$869,0),MATCH(Assets!V$2,'Data Annex'!$K$1:$AN$1,0)),"") -> 0.0152414732 | W31: =IFERROR(INDEX('Data Annex'!$K$1:$AN$869,MATCH(Assets!W$1&"|"&Assets!$B31,'Data Annex'!$K$1:$K$869,0),MATCH(Assets!W$2,'Data Annex'!$K$1:$AN$1,0)),"") -> 0.0117134036 | X31: =IFERROR(INDEX('Data Annex'!$K$1:$AN$869,MATCH(Assets!X$1&"|"&Assets!$B31,'Data Annex'!$K$1:$K$869,0),MATCH(Assets!X$2,'Data Annex'!$K$1:$AN$1,0)),"") -> 0.0110154377 | Y31: =IFERROR(INDEX('Data Annex'!$K$1:$AN$869,MATCH(Assets!Y$1&"|"&Assets!$B31,'Data Annex'!$K$1:$K$869,0),MATCH(Assets!Y$2,'Data Annex'!$K$1:$AN$1,0)),"") -> 0.0250074677 | Z31: =IFERROR(INDEX('Data Annex'!$K$1:$AN$869,MATCH(Assets!Z$1&"|"&Assets!$B31,'Data Annex'!$K$1:$K$869,0),MATCH(Assets!Z$2,'Data Annex'!$K$1:$AN$1,0)),"") -> 0.0255465258 | AA31: =IFERROR(INDEX('Data Annex'!$K$1:$AN$869,MATCH(Assets!AA$1&"|"&Assets!$B31,'Data Annex'!$K$1:$K$869,0),MATCH(Assets!AA$2,'Data Annex'!$K$1:$AN$1,0)),"") -> 0.026995798 | AB31: =IFERROR(INDEX('Data Annex'!$K$1:$AN$869,MATCH(Assets!AB$1&"|"&Assets!$B31,'Data Annex'!$K$1:$K$869,0),MATCH(Assets!AB$2,'Data Annex'!$K$1:$AN$1,0)),"") -> 0.0284682039 | AC31: =IFERROR(INDEX('Data Annex'!$K$1:$AH$869,MATCH(Assets!AC$1&"|"&Assets!$B31,'Data Annex'!$K$1:$K$869,0),MATCH(Assets!AC$2,'Data Annex'!$K$1:$AH$1,0)),"") -> 
B32: LV | D32: LV | E32: =IFERROR(INDEX('Data Annex'!$K$1:$AN$869,MATCH(Assets!E$1&"|"&Assets!$B32,'Data Annex'!$K$1:$K$869,0),MATCH(Assets!E$2,'Data Annex'!$K$1:$AN$1,0)),"") -> 0.2999802396 | F32: =IFERROR(INDEX('Data Annex'!$K$1:$AN$869,MATCH(Assets!F$1&"|"&Assets!$B32,'Data Annex'!$K$1:$K$869,0),MATCH(Assets!F$2,'Data Annex'!$K$1:$AN$1,0)),"") -> 0.2799142931 | G32: =IFERROR(INDEX('Data Annex'!$K$1:$AN$869,MATCH(Assets!G$1&"|"&Assets!$B32,'Data Annex'!$K$1:$K$869,0),MATCH(Assets!G$2,'Data Annex'!$K$1:$AN$1,0)),"") -> 0.2603761072 | H32: =IFERROR(INDEX('Data Annex'!$K$1:$AN$869,MATCH(Assets!H$1&"|"&Assets!$B32,'Data Annex'!$K$1:$K$869,0),MATCH(Assets!H$2,'Data Annex'!$K$1:$AN$1,0)),"") -> 0.2257584635 | I32: =IFERROR(INDEX('Data Annex'!$K$1:$AN$869,MATCH(Assets!I$1&"|"&Assets!$B32,'Data Annex'!$K$1:$K$869,0),MATCH(Assets!I$2,'Data Annex'!$K$1:$AN$1,0)),"") -> 0.0012982352 | J32: =IFERROR(INDEX('Data Annex'!$K$1:$AN$869,MATCH(Assets!J$1&"|"&Assets!$B32,'Data Annex'!$K$1:$K$869,0),MATCH(Assets!J$2,'Data Annex'!$K$1:$AN$1,0)),"") -> 0.001755582 | K32: =IFERROR(INDEX('Data Annex'!$K$1:$AN$869,MATCH(Assets!K$1&"|"&Assets!$B32,'Data Annex'!$K$1:$K$869,0),MATCH(Assets!K$2,'Data Annex'!$K$1:$AN$1,0)),"") -> 0.0018817099 | L32: =IFERROR(INDEX('Data Annex'!$K$1:$AN$869,MATCH(Assets!L$1&"|"&Assets!$B32,'Data Annex'!$K$1:$K$869,0),MATCH(Assets!L$2,'Data Annex'!$K$1:$AN$1,0)),"") -> 0.0026103023 | M32: =IFERROR(INDEX('Data Annex'!$K$1:$AN$869,MATCH(Assets!M$1&"|"&Assets!$B32,'Data Annex'!$K$1:$K$869,0),MATCH(Assets!M$2,'Data Annex'!$K$1:$AN$1,0)),"") -> 0.0854535449 | N32: =IFERROR(INDEX('Data Annex'!$K$1:$AN$869,MATCH(Assets!N$1&"|"&Assets!$B32,'Data Annex'!$K$1:$K$869,0),MATCH(Assets!N$2,'Data Annex'!$K$1:$AN$1,0)),"") -> 0.1660895115 | O32: =IFERROR(INDEX('Data Annex'!$K$1:$AN$869,MATCH(Assets!O$1&"|"&Assets!$B32,'Data Annex'!$K$1:$K$869,0),MATCH(Assets!O$2,'Data Annex'!$K$1:$AN$1,0)),"") -> 0.1953812474 | P32: =IFERROR(INDEX('Data Annex'!$K$1:$AN$869,MATCH(Assets!P$1&"|"&Assets!$B32,'Data Annex'!$K$1:$K$869,0),MATCH(Assets!P$2,'Data Annex'!$K$1:$AN$1,0)),"") -> 0.2269829759 | Q32: =IFERROR(INDEX('Data Annex'!$K$1:$AN$869,MATCH(Assets!Q$1&"|"&Assets!$B32,'Data Annex'!$K$1:$K$869,0),MATCH(Assets!Q$2,'Data Annex'!$K$1:$AN$1,0)),"") -> 0.5959124605 | R32: =IFERROR(INDEX('Data Annex'!$K$1:$AN$869,MATCH(Assets!R$1&"|"&Assets!$B32,'Data Annex'!$K$1:$K$869,0),MATCH(Assets!R$2,'Data Annex'!$K$1:$AN$1,0)),"") -> 0.5371440451 | S32: =IFERROR(INDEX('Data Annex'!$K$1:$AN$869,MATCH(Assets!S$1&"|"&Assets!$B32,'Data Annex'!$K$1:$K$869,0),MATCH(Assets!S$2,'Data Annex'!$K$1:$AN$1,0)),"") -> 0.5283583595 | T32: =IFERROR(INDEX('Data Annex'!$K$1:$AN$869,MATCH(Assets!T$1&"|"&Assets!$B32,'Data Annex'!$K$1:$K$869,0),MATCH(Assets!T$2,'Data Annex'!$K$1:$AN$1,0)),"") -> 0.5316157572 | U32: =IFERROR(INDEX('Data Annex'!$K$1:$AN$869,MATCH(Assets!U$1&"|"&Assets!$B32,'Data Annex'!$K$1:$K$869,0),MATCH(Assets!U$2,'Data Annex'!$K$1:$AN$1,0)),"") -> 0.0046908657 | V32: =IFERROR(INDEX('Data Annex'!$K$1:$AN$869,MATCH(Assets!V$1&"|"&Assets!$B32,'Data Annex'!$K$1:$K$869,0),MATCH(Assets!V$2,'Data Annex'!$K$1:$AN$1,0)),"") -> 0.0037364435 | W32: =IFERROR(INDEX('Data Annex'!$K$1:$AN$869,MATCH(Assets!W$1&"|"&Assets!$B32,'Data Annex'!$K$1:$K$869,0),MATCH(Assets!W$2,'Data Annex'!$K$1:$AN$1,0)),"") -> 0.0033555941 | X32: =IFERROR(INDEX('Data Annex'!$K$1:$AN$869,MATCH(Assets!X$1&"|"&Assets!$B32,'Data Annex'!$K$1:$K$869,0),MATCH(Assets!X$2,'Data Annex'!$K$1:$AN$1,0)),"") -> 0.0037348793 | Y32: =IFERROR(INDEX('Data Annex'!$K$1:$AN$869,MATCH(Assets!Y$1&"|"&Assets!$B32,'Data Annex'!$K$1:$K$869,0),MATCH(Assets!Y$2,'Data Annex'!$K$1:$AN$1,0)),"") -> 0.0126646542 | Z32: =IFERROR(INDEX('Data Annex'!$K$1:$AN$869,MATCH(Assets!Z$1&"|"&Assets!$B32,'Data Annex'!$K$1:$K$869,0),MATCH(Assets!Z$2,'Data Annex'!$K$1:$AN$1,0)),"") -> 0.0113601247 | AA32: =IFERROR(INDEX('Data Annex'!$K$1:$AN$869,MATCH(Assets!AA$1&"|"&Assets!$B32,'Data Annex'!$K$1:$K$869,0),MATCH(Assets!AA$2,'Data Annex'!$K$1:$AN$1,0)),"") -> 0.0106469819 | AB32: =IFERROR(INDEX('Data Annex'!$K$1:$AN$869,MATCH(Assets!AB$1&"|"&Assets!$B32,'Data Annex'!$K$1:$K$869,0),MATCH(Assets!AB$2,'Data Annex'!$K$1:$AN$1,0)),"") -> 0.0092976218 | AC32: =IFERROR(INDEX('Data Annex'!$K$1:$AH$869,MATCH(Assets!AC$1&"|"&Assets!$B32,'Data Annex'!$K$1:$K$869,0),MATCH(Assets!AC$2,'Data Annex'!$K$1:$AH$1,0)),"") -> 
B33: MT | D33: MT | E33: =IFERROR(INDEX('Data Annex'!$K$1:$AN$869,MATCH(Assets!E$1&"|"&Assets!$B33,'Data Annex'!$K$1:$K$869,0),MATCH(Assets!E$2,'Data Annex'!$K$1:$AN$1,0)),"") -> 0.2190620115 | F33: =IFERROR(INDEX('Data Annex'!$K$1:$AN$869,MATCH(Assets!F$1&"|"&Assets!$B33,'Data Annex'!$K$1:$K$869,0),MATCH(Assets!F$2,'Data Annex'!$K$1:$AN$1,0)),"") -> 0.2125966362 | G33: =IFERROR(INDEX('Data Annex'!$K$1:$AN$869,MATCH(Assets!G$1&"|"&Assets!$B33,'Data Annex'!$K$1:$K$869,0),MATCH(Assets!G$2,'Data Annex'!$K$1:$AN$1,0)),"") -> 0.2185057017 | H33: =IFERROR(INDEX('Data Annex'!$K$1:$AN$869,MATCH(Assets!H$1&"|"&Assets!$B33,'Data Annex'!$K$1:$K$869,0),MATCH(Assets!H$2,'Data Annex'!$K$1:$AN$1,0)),"") -> 0.2385711502 | I33: =IFERROR(INDEX('Data Annex'!$K$1:$AN$869,MATCH(Assets!I$1&"|"&Assets!$B33,'Data Annex'!$K$1:$K$869,0),MATCH(Assets!I$2,'Data Annex'!$K$1:$AN$1,0)),"") -> 0.0023596046 | J33: =IFERROR(INDEX('Data Annex'!$K$1:$AN$869,MATCH(Assets!J$1&"|"&Assets!$B33,'Data Annex'!$K$1:$K$869,0),MATCH(Assets!J$2,'Data Annex'!$K$1:$AN$1,0)),"") -> 0.0022282171 | K33: =IFERROR(INDEX('Data Annex'!$K$1:$AN$869,MATCH(Assets!K$1&"|"&Assets!$B33,'Data Annex'!$K$1:$K$869,0),MATCH(Assets!K$2,'Data Annex'!$K$1:$AN$1,0)),"") -> 0.0024711449 | L33: =IFERROR(INDEX('Data Annex'!$K$1:$AN$869,MATCH(Assets!L$1&"|"&Assets!$B33,'Data Annex'!$K$1:$K$869,0),MATCH(Assets!L$2,'Data Annex'!$K$1:$AN$1,0)),"") -> 0.0026208314 | M33: =IFERROR(INDEX('Data Annex'!$K$1:$AN$869,MATCH(Assets!M$1&"|"&Assets!$B33,'Data Annex'!$K$1:$K$869,0),MATCH(Assets!M$2,'Data Annex'!$K$1:$AN$1,0)),"") -> 0.2438414119 | N33: =IFERROR(INDEX('Data Annex'!$K$1:$AN$869,MATCH(Assets!N$1&"|"&Assets!$B33,'Data Annex'!$K$1:$K$869,0),MATCH(Assets!N$2,'Data Annex'!$K$1:$AN$1,0)),"") -> 0.274514576 | O33: =IFERROR(INDEX('Data Annex'!$K$1:$AN$869,MATCH(Assets!O$1&"|"&Assets!$B33,'Data Annex'!$K$1:$K$869,0),MATCH(Assets!O$2,'Data Annex'!$K$1:$AN$1,0)),"") -> 0.2666675588 | P33: =IFERROR(INDEX('Data Annex'!$K$1:$AN$869,MATCH(Assets!P$1&"|"&Assets!$B33,'Data Annex'!$K$1:$K$869,0),MATCH(Assets!P$2,'Data Annex'!$K$1:$AN$1,0)),"") -> 0.2497222612 | Q33: =IFERROR(INDEX('Data Annex'!$K$1:$AN$869,MATCH(Assets!Q$1&"|"&Assets!$B33,'Data Annex'!$K$1:$K$869,0),MATCH(Assets!Q$2,'Data Annex'!$K$1:$AN$1,0)),"") -> 0.5011566957 | R33: =IFERROR(INDEX('Data Annex'!$K$1:$AN$869,MATCH(Assets!R$1&"|"&Assets!$B33,'Data Annex'!$K$1:$K$869,0),MATCH(Assets!R$2,'Data Annex'!$K$1:$AN$1,0)),"") -> 0.478767291 | S33: =IFERROR(INDEX('Data Annex'!$K$1:$AN$869,MATCH(Assets!S$1&"|"&Assets!$B33,'Data Annex'!$K$1:$K$869,0),MATCH(Assets!S$2,'Data Annex'!$K$1:$AN$1,0)),"") -> 0.4816128038 | T33: =IFERROR(INDEX('Data Annex'!$K$1:$AN$869,MATCH(Assets!T$1&"|"&Assets!$B33,'Data Annex'!$K$1:$K$869,0),MATCH(Assets!T$2,'Data Annex'!$K$1:$AN$1,0)),"") -> 0.4770496307 | U33: =IFERROR(INDEX('Data Annex'!$K$1:$AN$869,MATCH(Assets!U$1&"|"&Assets!$B33,'Data Annex'!$K$1:$K$869,0),MATCH(Assets!U$2,'Data Annex'!$K$1:$AN$1,0)),"") -> 0.0010600629 | V33: =IFERROR(INDEX('Data Annex'!$K$1:$AN$869,MATCH(Assets!V$1&"|"&Assets!$B33,'Data Annex'!$K$1:$K$869,0),MATCH(Assets!V$2,'Data Annex'!$K$1:$AN$1,0)),"") -> 0.0007891128 | W33: =IFERROR(INDEX('Data Annex'!$K$1:$AN$869,MATCH(Assets!W$1&"|"&Assets!$B33,'Data Annex'!$K$1:$K$869,0),MATCH(Assets!W$2,'Data Annex'!$K$1:$AN$1,0)),"") -> 0.0006481527 | X33: =IFERROR(INDEX('Data Annex'!$K$1:$AN$869,MATCH(Assets!X$1&"|"&Assets!$B33,'Data Annex'!$K$1:$K$869,0),MATCH(Assets!X$2,'Data Annex'!$K$1:$AN$1,0)),"") -> 0.0004564416 | Y33: =IFERROR(INDEX('Data Annex'!$K$1:$AN$869,MATCH(Assets!Y$1&"|"&Assets!$B33,'Data Annex'!$K$1:$K$869,0),MATCH(Assets!Y$2,'Data Annex'!$K$1:$AN$1,0)),"") -> 0.0325202133 | Z33: =IFERROR(INDEX('Data Annex'!$K$1:$AN$869,MATCH(Assets!Z$1&"|"&Assets!$B33,'Data Annex'!$K$1:$K$869,0),MATCH(Assets!Z$2,'Data Annex'!$K$1:$AN$1,0)),"") -> 0.0311041669 | AA33: =IFERROR(INDEX('Data Annex'!$K$1:$AN$869,MATCH(Assets!AA$1&"|"&Assets!$B33,'Data Annex'!$K$1:$K$869,0),MATCH(Assets!AA$2,'Data Annex'!$K$1:$AN$1,0)),"") -> 0.0300946381 | AB33: =IFERROR(INDEX('Data Annex'!$K$1:$AN$869,MATCH(Assets!AB$1&"|"&Assets!$B33,'Data Annex'!$K$1:$K$869,0),MATCH(Assets!AB$2,'Data Annex'!$K$1:$AN$1,0)),"") -> 0.0315796849 | AC33: =IFERROR(INDEX('Data Annex'!$K$1:$AH$869,MATCH(Assets!AC$1&"|"&Assets!$B33,'Data Annex'!$K$1:$K$869,0),MATCH(Assets!AC$2,'Data Annex'!$K$1:$AH$1,0)),"") -> 
B34: NL | D34: NL | E34: =IFERROR(INDEX('Data Annex'!$K$1:$AN$869,MATCH(Assets!E$1&"|"&Assets!$B34,'Data Annex'!$K$1:$K$869,0),MATCH(Assets!E$2,'Data Annex'!$K$1:$AN$1,0)),"") -> 0.0908856021 | F34: =IFERROR(INDEX('Data Annex'!$K$1:$AN$869,MATCH(Assets!F$1&"|"&Assets!$B34,'Data Annex'!$K$1:$K$869,0),MATCH(Assets!F$2,'Data Annex'!$K$1:$AN$1,0)),"") -> 0.1212178169 | G34: =IFERROR(INDEX('Data Annex'!$K$1:$AN$869,MATCH(Assets!G$1&"|"&Assets!$B34,'Data Annex'!$K$1:$K$869,0),MATCH(Assets!G$2,'Data Annex'!$K$1:$AN$1,0)),"") -> 0.1472027291 | H34: =IFERROR(INDEX('Data Annex'!$K$1:$AN$869,MATCH(Assets!H$1&"|"&Assets!$B34,'Data Annex'!$K$1:$K$869,0),MATCH(Assets!H$2,'Data Annex'!$K$1:$AN$1,0)),"") -> 0.1327904368 | I34: =IFERROR(INDEX('Data Annex'!$K$1:$AN$869,MATCH(Assets!I$1&"|"&Assets!$B34,'Data Annex'!$K$1:$K$869,0),MATCH(Assets!I$2,'Data Annex'!$K$1:$AN$1,0)),"") -> 0.0043787553 | J34: =IFERROR(INDEX('Data Annex'!$K$1:$AN$869,MATCH(Assets!J$1&"|"&Assets!$B34,'Data Annex'!$K$1:$K$869,0),MATCH(Assets!J$2,'Data Annex'!$K$1:$AN$1,0)),"") -> 0.0040121991 | K34: =IFERROR(INDEX('Data Annex'!$K$1:$AN$869,MATCH(Assets!K$1&"|"&Assets!$B34,'Data Annex'!$K$1:$K$869,0),MATCH(Assets!K$2,'Data Annex'!$K$1:$AN$1,0)),"") -> 0.0046775921 | L34: =IFERROR(INDEX('Data Annex'!$K$1:$AN$869,MATCH(Assets!L$1&"|"&Assets!$B34,'Data Annex'!$K$1:$K$869,0),MATCH(Assets!L$2,'Data Annex'!$K$1:$AN$1,0)),"") -> 0.0055382263 | M34: =IFERROR(INDEX('Data Annex'!$K$1:$AN$869,MATCH(Assets!M$1&"|"&Assets!$B34,'Data Annex'!$K$1:$K$869,0),MATCH(Assets!M$2,'Data Annex'!$K$1:$AN$1,0)),"") -> 0.0816076279 | N34: =IFERROR(INDEX('Data Annex'!$K$1:$AN$869,MATCH(Assets!N$1&"|"&Assets!$B34,'Data Annex'!$K$1:$K$869,0),MATCH(Assets!N$2,'Data Annex'!$K$1:$AN$1,0)),"") -> 0.0847036345 | O34: =IFERROR(INDEX('Data Annex'!$K$1:$AN$869,MATCH(Assets!O$1&"|"&Assets!$B34,'Data Annex'!$K$1:$K$869,0),MATCH(Assets!O$2,'Data Annex'!$K$1:$AN$1,0)),"") -> 0.0816309319 | P34: =IFERROR(INDEX('Data Annex'!$K$1:$AN$869,MATCH(Assets!P$1&"|"&Assets!$B34,'Data Annex'!$K$1:$K$869,0),MATCH(Assets!P$2,'Data Annex'!$K$1:$AN$1,0)),"") -> 0.0827775735 | Q34: =IFERROR(INDEX('Data Annex'!$K$1:$AN$869,MATCH(Assets!Q$1&"|"&Assets!$B34,'Data Annex'!$K$1:$K$869,0),MATCH(Assets!Q$2,'Data Annex'!$K$1:$AN$1,0)),"") -> 0.749224448 | R34: =IFERROR(INDEX('Data Annex'!$K$1:$AN$869,MATCH(Assets!R$1&"|"&Assets!$B34,'Data Annex'!$K$1:$K$869,0),MATCH(Assets!R$2,'Data Annex'!$K$1:$AN$1,0)),"") -> 0.7210042227 | S34: =IFERROR(INDEX('Data Annex'!$K$1:$AN$869,MATCH(Assets!S$1&"|"&Assets!$B34,'Data Annex'!$K$1:$K$869,0),MATCH(Assets!S$2,'Data Annex'!$K$1:$AN$1,0)),"") -> 0.7006013885 | T34: =IFERROR(INDEX('Data Annex'!$K$1:$AN$869,MATCH(Assets!T$1&"|"&Assets!$B34,'Data Annex'!$K$1:$K$869,0),MATCH(Assets!T$2,'Data Annex'!$K$1:$AN$1,0)),"") -> 0.7116159258 | U34: =IFERROR(INDEX('Data Annex'!$K$1:$AN$869,MATCH(Assets!U$1&"|"&Assets!$B34,'Data Annex'!$K$1:$K$869,0),MATCH(Assets!U$2,'Data Annex'!$K$1:$AN$1,0)),"") -> 0.0394598109 | V34: =IFERROR(INDEX('Data Annex'!$K$1:$AN$869,MATCH(Assets!V$1&"|"&Assets!$B34,'Data Annex'!$K$1:$K$869,0),MATCH(Assets!V$2,'Data Annex'!$K$1:$AN$1,0)),"") -> 0.0345213598 | W34: =IFERROR(INDEX('Data Annex'!$K$1:$AN$869,MATCH(Assets!W$1&"|"&Assets!$B34,'Data Annex'!$K$1:$K$869,0),MATCH(Assets!W$2,'Data Annex'!$K$1:$AN$1,0)),"") -> 0.0328496525 | X34: =IFERROR(INDEX('Data Annex'!$K$1:$AN$869,MATCH(Assets!X$1&"|"&Assets!$B34,'Data Annex'!$K$1:$K$869,0),MATCH(Assets!X$2,'Data Annex'!$K$1:$AN$1,0)),"") -> 0.0347626837 | Y34: =IFERROR(INDEX('Data Annex'!$K$1:$AN$869,MATCH(Assets!Y$1&"|"&Assets!$B34,'Data Annex'!$K$1:$K$869,0),MATCH(Assets!Y$2,'Data Annex'!$K$1:$AN$1,0)),"") -> 0.0344437559 | Z34: =IFERROR(INDEX('Data Annex'!$K$1:$AN$869,MATCH(Assets!Z$1&"|"&Assets!$B34,'Data Annex'!$K$1:$K$869,0),MATCH(Assets!Z$2,'Data Annex'!$K$1:$AN$1,0)),"") -> 0.0345407671 | AA34: =IFERROR(INDEX('Data Annex'!$K$1:$AN$869,MATCH(Assets!AA$1&"|"&Assets!$B34,'Data Annex'!$K$1:$K$869,0),MATCH(Assets!AA$2,'Data Annex'!$K$1:$AN$1,0)),"") -> 0.0330377059 | AB34: =IFERROR(INDEX('Data Annex'!$K$1:$AN$869,MATCH(Assets!AB$1&"|"&Assets!$B34,'Data Annex'!$K$1:$K$869,0),MATCH(Assets!AB$2,'Data Annex'!$K$1:$AN$1,0)),"") -> 0.0325151539 | AC34: =IFERROR(INDEX('Data Annex'!$K$1:$AH$869,MATCH(Assets!AC$1&"|"&Assets!$B34,'Data Annex'!$K$1:$K$869,0),MATCH(Assets!AC$2,'Data Annex'!$K$1:$AH$1,0)),"") -> 
B35: NO | D35: NO | E35: =IFERROR(INDEX('Data Annex'!$K$1:$AN$869,MATCH(Assets!E$1&"|"&Assets!$B35,'Data Annex'!$K$1:$K$869,0),MATCH(Assets!E$2,'Data Annex'!$K$1:$AN$1,0)),"") -> 0.1136092744 | F35: =IFERROR(INDEX('Data Annex'!$K$1:$AN$869,MATCH(Assets!F$1&"|"&Assets!$B35,'Data Annex'!$K$1:$K$869,0),MATCH(Assets!F$2,'Data Annex'!$K$1:$AN$1,0)),"") -> 0.0954325403 | G35: =IFERROR(INDEX('Data Annex'!$K$1:$AN$869,MATCH(Assets!G$1&"|"&Assets!$B35,'Data Annex'!$K$1:$K$869,0),MATCH(Assets!G$2,'Data Annex'!$K$1:$AN$1,0)),"") -> 0.1025233071 | H35: =IFERROR(INDEX('Data Annex'!$K$1:$AN$869,MATCH(Assets!H$1&"|"&Assets!$B35,'Data Annex'!$K$1:$K$869,0),MATCH(Assets!H$2,'Data Annex'!$K$1:$AN$1,0)),"") -> 0.0931955349 | I35: =IFERROR(INDEX('Data Annex'!$K$1:$AN$869,MATCH(Assets!I$1&"|"&Assets!$B35,'Data Annex'!$K$1:$K$869,0),MATCH(Assets!I$2,'Data Annex'!$K$1:$AN$1,0)),"") -> 0.0025117043 | J35: =IFERROR(INDEX('Data Annex'!$K$1:$AN$869,MATCH(Assets!J$1&"|"&Assets!$B35,'Data Annex'!$K$1:$K$869,0),MATCH(Assets!J$2,'Data Annex'!$K$1:$AN$1,0)),"") -> 0.0029805465 | K35: =IFERROR(INDEX('Data Annex'!$K$1:$AN$869,MATCH(Assets!K$1&"|"&Assets!$B35,'Data Annex'!$K$1:$K$869,0),MATCH(Assets!K$2,'Data Annex'!$K$1:$AN$1,0)),"") -> 0.0029890729 | L35: =IFERROR(INDEX('Data Annex'!$K$1:$AN$869,MATCH(Assets!L$1&"|"&Assets!$B35,'Data Annex'!$K$1:$K$869,0),MATCH(Assets!L$2,'Data Annex'!$K$1:$AN$1,0)),"") -> 0.003445012 | M35: =IFERROR(INDEX('Data Annex'!$K$1:$AN$869,MATCH(Assets!M$1&"|"&Assets!$B35,'Data Annex'!$K$1:$K$869,0),MATCH(Assets!M$2,'Data Annex'!$K$1:$AN$1,0)),"") -> 0.0997219112 | N35: =IFERROR(INDEX('Data Annex'!$K$1:$AN$869,MATCH(Assets!N$1&"|"&Assets!$B35,'Data Annex'!$K$1:$K$869,0),MATCH(Assets!N$2,'Data Annex'!$K$1:$AN$1,0)),"") -> 0.1184995935 | O35: =IFERROR(INDEX('Data Annex'!$K$1:$AN$869,MATCH(Assets!O$1&"|"&Assets!$B35,'Data Annex'!$K$1:$K$869,0),MATCH(Assets!O$2,'Data Annex'!$K$1:$AN$1,0)),"") -> 0.1080211858 | P35: =IFERROR(INDEX('Data Annex'!$K$1:$AN$869,MATCH(Assets!P$1&"|"&Assets!$B35,'Data Annex'!$K$1:$K$869,0),MATCH(Assets!P$2,'Data Annex'!$K$1:$AN$1,0)),"") -> 0.1141561477 | Q35: =IFERROR(INDEX('Data Annex'!$K$1:$AN$869,MATCH(Assets!Q$1&"|"&Assets!$B35,'Data Annex'!$K$1:$K$869,0),MATCH(Assets!Q$2,'Data Annex'!$K$1:$AN$1,0)),"") -> 0.689843028 | R35: =IFERROR(INDEX('Data Annex'!$K$1:$AN$869,MATCH(Assets!R$1&"|"&Assets!$B35,'Data Annex'!$K$1:$K$869,0),MATCH(Assets!R$2,'Data Annex'!$K$1:$AN$1,0)),"") -> 0.6976554425 | S35: =IFERROR(INDEX('Data Annex'!$K$1:$AN$869,MATCH(Assets!S$1&"|"&Assets!$B35,'Data Annex'!$K$1:$K$869,0),MATCH(Assets!S$2,'Data Annex'!$K$1:$AN$1,0)),"") -> 0.7048241542 | T35: =IFERROR(INDEX('Data Annex'!$K$1:$AN$869,MATCH(Assets!T$1&"|"&Assets!$B35,'Data Annex'!$K$1:$K$869,0),MATCH(Assets!T$2,'Data Annex'!$K$1:$AN$1,0)),"") -> 0.7082852795 | U35: =IFERROR(INDEX('Data Annex'!$K$1:$AN$869,MATCH(Assets!U$1&"|"&Assets!$B35,'Data Annex'!$K$1:$K$869,0),MATCH(Assets!U$2,'Data Annex'!$K$1:$AN$1,0)),"") -> 0.0797105079 | V35: =IFERROR(INDEX('Data Annex'!$K$1:$AN$869,MATCH(Assets!V$1&"|"&Assets!$B35,'Data Annex'!$K$1:$K$869,0),MATCH(Assets!V$2,'Data Annex'!$K$1:$AN$1,0)),"") -> 0.0690086051 | W35: =IFERROR(INDEX('Data Annex'!$K$1:$AN$869,MATCH(Assets!W$1&"|"&Assets!$B35,'Data Annex'!$K$1:$K$869,0),MATCH(Assets!W$2,'Data Annex'!$K$1:$AN$1,0)),"") -> 0.0662916558 | X35: =IFERROR(INDEX('Data Annex'!$K$1:$AN$869,MATCH(Assets!X$1&"|"&Assets!$B35,'Data Annex'!$K$1:$K$869,0),MATCH(Assets!X$2,'Data Annex'!$K$1:$AN$1,0)),"") -> 0.0659421571 | Y35: =IFERROR(INDEX('Data Annex'!$K$1:$AN$869,MATCH(Assets!Y$1&"|"&Assets!$B35,'Data Annex'!$K$1:$K$869,0),MATCH(Assets!Y$2,'Data Annex'!$K$1:$AN$1,0)),"") -> 0.0146035741 | Z35: =IFERROR(INDEX('Data Annex'!$K$1:$AN$869,MATCH(Assets!Z$1&"|"&Assets!$B35,'Data Annex'!$K$1:$K$869,0),MATCH(Assets!Z$2,'Data Annex'!$K$1:$AN$1,0)),"") -> 0.0164232721 | AA35: =IFERROR(INDEX('Data Annex'!$K$1:$AN$869,MATCH(Assets!AA$1&"|"&Assets!$B35,'Data Annex'!$K$1:$K$869,0),MATCH(Assets!AA$2,'Data Annex'!$K$1:$AN$1,0)),"") -> 0.0153506241 | AB35: =IFERROR(INDEX('Data Annex'!$K$1:$AN$869,MATCH(Assets!AB$1&"|"&Assets!$B35,'Data Annex'!$K$1:$K$869,0),MATCH(Assets!AB$2,'Data Annex'!$K$1:$AN$1,0)),"") -> 0.0149758689 | AC35: =IFERROR(INDEX('Data Annex'!$K$1:$AH$869,MATCH(Assets!AC$1&"|"&Assets!$B35,'Data Annex'!$K$1:$K$869,0),MATCH(Assets!AC$2,'Data Annex'!$K$1:$AH$1,0)),"") -> 
B36: PL | D36: PL | E36: =IFERROR(INDEX('Data Annex'!$K$1:$AN$869,MATCH(Assets!E$1&"|"&Assets!$B36,'Data Annex'!$K$1:$K$869,0),MATCH(Assets!E$2,'Data Annex'!$K$1:$AN$1,0)),"") -> 0.0454109461 | F36: =IFERROR(INDEX('Data Annex'!$K$1:$AN$869,MATCH(Assets!F$1&"|"&Assets!$B36,'Data Annex'!$K$1:$K$869,0),MATCH(Assets!F$2,'Data Annex'!$K$1:$AN$1,0)),"") -> 0.0297432168 | G36: =IFERROR(INDEX('Data Annex'!$K$1:$AN$869,MATCH(Assets!G$1&"|"&Assets!$B36,'Data Annex'!$K$1:$K$869,0),MATCH(Assets!G$2,'Data Annex'!$K$1:$AN$1,0)),"") -> 0.01851489 | H36: =IFERROR(INDEX('Data Annex'!$K$1:$AN$869,MATCH(Assets!H$1&"|"&Assets!$B36,'Data Annex'!$K$1:$K$869,0),MATCH(Assets!H$2,'Data Annex'!$K$1:$AN$1,0)),"") -> 0.0229375468 | I36: =IFERROR(INDEX('Data Annex'!$K$1:$AN$869,MATCH(Assets!I$1&"|"&Assets!$B36,'Data Annex'!$K$1:$K$869,0),MATCH(Assets!I$2,'Data Annex'!$K$1:$AN$1,0)),"") -> 0.0020869771 | J36: =IFERROR(INDEX('Data Annex'!$K$1:$AN$869,MATCH(Assets!J$1&"|"&Assets!$B36,'Data Annex'!$K$1:$K$869,0),MATCH(Assets!J$2,'Data Annex'!$K$1:$AN$1,0)),"") -> 0.0019685917 | K36: =IFERROR(INDEX('Data Annex'!$K$1:$AN$869,MATCH(Assets!K$1&"|"&Assets!$B36,'Data Annex'!$K$1:$K$869,0),MATCH(Assets!K$2,'Data Annex'!$K$1:$AN$1,0)),"") -> 0.0021461172 | L36: =IFERROR(INDEX('Data Annex'!$K$1:$AN$869,MATCH(Assets!L$1&"|"&Assets!$B36,'Data Annex'!$K$1:$K$869,0),MATCH(Assets!L$2,'Data Annex'!$K$1:$AN$1,0)),"") -> 0.002271658 | M36: =IFERROR(INDEX('Data Annex'!$K$1:$AN$869,MATCH(Assets!M$1&"|"&Assets!$B36,'Data Annex'!$K$1:$K$869,0),MATCH(Assets!M$2,'Data Annex'!$K$1:$AN$1,0)),"") -> 0.2208318188 | N36: =IFERROR(INDEX('Data Annex'!$K$1:$AN$869,MATCH(Assets!N$1&"|"&Assets!$B36,'Data Annex'!$K$1:$K$869,0),MATCH(Assets!N$2,'Data Annex'!$K$1:$AN$1,0)),"") -> 0.2866385452 | O36: =IFERROR(INDEX('Data Annex'!$K$1:$AN$869,MATCH(Assets!O$1&"|"&Assets!$B36,'Data Annex'!$K$1:$K$869,0),MATCH(Assets!O$2,'Data Annex'!$K$1:$AN$1,0)),"") -> 0.3035874971 | P36: =IFERROR(INDEX('Data Annex'!$K$1:$AN$869,MATCH(Assets!P$1&"|"&Assets!$B36,'Data Annex'!$K$1:$K$869,0),MATCH(Assets!P$2,'Data Annex'!$K$1:$AN$1,0)),"") -> 0.3077838879 | Q36: =IFERROR(INDEX('Data Annex'!$K$1:$AN$869,MATCH(Assets!Q$1&"|"&Assets!$B36,'Data Annex'!$K$1:$K$869,0),MATCH(Assets!Q$2,'Data Annex'!$K$1:$AN$1,0)),"") -> 0.6757696624 | R36: =IFERROR(INDEX('Data Annex'!$K$1:$AN$869,MATCH(Assets!R$1&"|"&Assets!$B36,'Data Annex'!$K$1:$K$869,0),MATCH(Assets!R$2,'Data Annex'!$K$1:$AN$1,0)),"") -> 0.6304494281 | S36: =IFERROR(INDEX('Data Annex'!$K$1:$AN$869,MATCH(Assets!S$1&"|"&Assets!$B36,'Data Annex'!$K$1:$K$869,0),MATCH(Assets!S$2,'Data Annex'!$K$1:$AN$1,0)),"") -> 0.62526461 | T36: =IFERROR(INDEX('Data Annex'!$K$1:$AN$869,MATCH(Assets!T$1&"|"&Assets!$B36,'Data Annex'!$K$1:$K$869,0),MATCH(Assets!T$2,'Data Annex'!$K$1:$AN$1,0)),"") -> 0.6163146262 | U36: =IFERROR(INDEX('Data Annex'!$K$1:$AN$869,MATCH(Assets!U$1&"|"&Assets!$B36,'Data Annex'!$K$1:$K$869,0),MATCH(Assets!U$2,'Data Annex'!$K$1:$AN$1,0)),"") -> 0.0212022534 | V36: =IFERROR(INDEX('Data Annex'!$K$1:$AN$869,MATCH(Assets!V$1&"|"&Assets!$B36,'Data Annex'!$K$1:$K$869,0),MATCH(Assets!V$2,'Data Annex'!$K$1:$AN$1,0)),"") -> 0.0190418666 | W36: =IFERROR(INDEX('Data Annex'!$K$1:$AN$869,MATCH(Assets!W$1&"|"&Assets!$B36,'Data Annex'!$K$1:$K$869,0),MATCH(Assets!W$2,'Data Annex'!$K$1:$AN$1,0)),"") -> 0.0187954885 | X36: =IFERROR(INDEX('Data Annex'!$K$1:$AN$869,MATCH(Assets!X$1&"|"&Assets!$B36,'Data Annex'!$K$1:$K$869,0),MATCH(Assets!X$2,'Data Annex'!$K$1:$AN$1,0)),"") -> 0.0176410313 | Y36: =IFERROR(INDEX('Data Annex'!$K$1:$AN$869,MATCH(Assets!Y$1&"|"&Assets!$B36,'Data Annex'!$K$1:$K$869,0),MATCH(Assets!Y$2,'Data Annex'!$K$1:$AN$1,0)),"") -> 0.0346983422 | Z36: =IFERROR(INDEX('Data Annex'!$K$1:$AN$869,MATCH(Assets!Z$1&"|"&Assets!$B36,'Data Annex'!$K$1:$K$869,0),MATCH(Assets!Z$2,'Data Annex'!$K$1:$AN$1,0)),"") -> 0.0321583517 | AA36: =IFERROR(INDEX('Data Annex'!$K$1:$AN$869,MATCH(Assets!AA$1&"|"&Assets!$B36,'Data Annex'!$K$1:$K$869,0),MATCH(Assets!AA$2,'Data Annex'!$K$1:$AN$1,0)),"") -> 0.0316913972 | AB36: =IFERROR(INDEX('Data Annex'!$K$1:$AN$869,MATCH(Assets!AB$1&"|"&Assets!$B36,'Data Annex'!$K$1:$K$869,0),MATCH(Assets!AB$2,'Data Annex'!$K$1:$AN$1,0)),"") -> 0.0330512497 | AC36: =IFERROR(INDEX('Data Annex'!$K$1:$AH$869,MATCH(Assets!AC$1&"|"&Assets!$B36,'Data Annex'!$K$1:$K$869,0),MATCH(Assets!AC$2,'Data Annex'!$K$1:$AH$1,0)),"") -> 
B37: PT | D37: PT | E37: =IFERROR(INDEX('Data Annex'!$K$1:$AN$869,MATCH(Assets!E$1&"|"&Assets!$B37,'Data Annex'!$K$1:$K$869,0),MATCH(Assets!E$2,'Data Annex'!$K$1:$AN$1,0)),"") -> 0.0640093599 | F37: =IFERROR(INDEX('Data Annex'!$K$1:$AN$869,MATCH(Assets!F$1&"|"&Assets!$B37,'Data Annex'!$K$1:$K$869,0),MATCH(Assets!F$2,'Data Annex'!$K$1:$AN$1,0)),"") -> 0.089722854 | G37: =IFERROR(INDEX('Data Annex'!$K$1:$AN$869,MATCH(Assets!G$1&"|"&Assets!$B37,'Data Annex'!$K$1:$K$869,0),MATCH(Assets!G$2,'Data Annex'!$K$1:$AN$1,0)),"") -> 0.0810230495 | H37: =IFERROR(INDEX('Data Annex'!$K$1:$AN$869,MATCH(Assets!H$1&"|"&Assets!$B37,'Data Annex'!$K$1:$K$869,0),MATCH(Assets!H$2,'Data Annex'!$K$1:$AN$1,0)),"") -> 0.094612592 | I37: =IFERROR(INDEX('Data Annex'!$K$1:$AN$869,MATCH(Assets!I$1&"|"&Assets!$B37,'Data Annex'!$K$1:$K$869,0),MATCH(Assets!I$2,'Data Annex'!$K$1:$AN$1,0)),"") -> 0.0152171872 | J37: =IFERROR(INDEX('Data Annex'!$K$1:$AN$869,MATCH(Assets!J$1&"|"&Assets!$B37,'Data Annex'!$K$1:$K$869,0),MATCH(Assets!J$2,'Data Annex'!$K$1:$AN$1,0)),"") -> 0.013654053 | K37: =IFERROR(INDEX('Data Annex'!$K$1:$AN$869,MATCH(Assets!K$1&"|"&Assets!$B37,'Data Annex'!$K$1:$K$869,0),MATCH(Assets!K$2,'Data Annex'!$K$1:$AN$1,0)),"") -> 0.0133731004 | L37: =IFERROR(INDEX('Data Annex'!$K$1:$AN$869,MATCH(Assets!L$1&"|"&Assets!$B37,'Data Annex'!$K$1:$K$869,0),MATCH(Assets!L$2,'Data Annex'!$K$1:$AN$1,0)),"") -> 0.0129188463 | M37: =IFERROR(INDEX('Data Annex'!$K$1:$AN$869,MATCH(Assets!M$1&"|"&Assets!$B37,'Data Annex'!$K$1:$K$869,0),MATCH(Assets!M$2,'Data Annex'!$K$1:$AN$1,0)),"") -> 0.2304185539 | N37: =IFERROR(INDEX('Data Annex'!$K$1:$AN$869,MATCH(Assets!N$1&"|"&Assets!$B37,'Data Annex'!$K$1:$K$869,0),MATCH(Assets!N$2,'Data Annex'!$K$1:$AN$1,0)),"") -> 0.2391291377 | O37: =IFERROR(INDEX('Data Annex'!$K$1:$AN$869,MATCH(Assets!O$1&"|"&Assets!$B37,'Data Annex'!$K$1:$K$869,0),MATCH(Assets!O$2,'Data Annex'!$K$1:$AN$1,0)),"") -> 0.2402659783 | P37: =IFERROR(INDEX('Data Annex'!$K$1:$AN$869,MATCH(Assets!P$1&"|"&Assets!$B37,'Data Annex'!$K$1:$K$869,0),MATCH(Assets!P$2,'Data Annex'!$K$1:$AN$1,0)),"") -> 0.2314959784 | Q37: =IFERROR(INDEX('Data Annex'!$K$1:$AN$869,MATCH(Assets!Q$1&"|"&Assets!$B37,'Data Annex'!$K$1:$K$869,0),MATCH(Assets!Q$2,'Data Annex'!$K$1:$AN$1,0)),"") -> 0.612871151 | R37: =IFERROR(INDEX('Data Annex'!$K$1:$AN$869,MATCH(Assets!R$1&"|"&Assets!$B37,'Data Annex'!$K$1:$K$869,0),MATCH(Assets!R$2,'Data Annex'!$K$1:$AN$1,0)),"") -> 0.5883103017 | S37: =IFERROR(INDEX('Data Annex'!$K$1:$AN$869,MATCH(Assets!S$1&"|"&Assets!$B37,'Data Annex'!$K$1:$K$869,0),MATCH(Assets!S$2,'Data Annex'!$K$1:$AN$1,0)),"") -> 0.5902875432 | T37: =IFERROR(INDEX('Data Annex'!$K$1:$AN$869,MATCH(Assets!T$1&"|"&Assets!$B37,'Data Annex'!$K$1:$K$869,0),MATCH(Assets!T$2,'Data Annex'!$K$1:$AN$1,0)),"") -> 0.589277446 | U37: =IFERROR(INDEX('Data Annex'!$K$1:$AN$869,MATCH(Assets!U$1&"|"&Assets!$B37,'Data Annex'!$K$1:$K$869,0),MATCH(Assets!U$2,'Data Annex'!$K$1:$AN$1,0)),"") -> 0.0118389576 | V37: =IFERROR(INDEX('Data Annex'!$K$1:$AN$869,MATCH(Assets!V$1&"|"&Assets!$B37,'Data Annex'!$K$1:$K$869,0),MATCH(Assets!V$2,'Data Annex'!$K$1:$AN$1,0)),"") -> 0.0103126884 | W37: =IFERROR(INDEX('Data Annex'!$K$1:$AN$869,MATCH(Assets!W$1&"|"&Assets!$B37,'Data Annex'!$K$1:$K$869,0),MATCH(Assets!W$2,'Data Annex'!$K$1:$AN$1,0)),"") -> 0.0098026626 | X37: =IFERROR(INDEX('Data Annex'!$K$1:$AN$869,MATCH(Assets!X$1&"|"&Assets!$B37,'Data Annex'!$K$1:$K$869,0),MATCH(Assets!X$2,'Data Annex'!$K$1:$AN$1,0)),"") -> 0.009160279 | Y37: =IFERROR(INDEX('Data Annex'!$K$1:$AN$869,MATCH(Assets!Y$1&"|"&Assets!$B37,'Data Annex'!$K$1:$K$869,0),MATCH(Assets!Y$2,'Data Annex'!$K$1:$AN$1,0)),"") -> 0.0656447904 | Z37: =IFERROR(INDEX('Data Annex'!$K$1:$AN$869,MATCH(Assets!Z$1&"|"&Assets!$B37,'Data Annex'!$K$1:$K$869,0),MATCH(Assets!Z$2,'Data Annex'!$K$1:$AN$1,0)),"") -> 0.0588709652 | AA37: =IFERROR(INDEX('Data Annex'!$K$1:$AN$869,MATCH(Assets!AA$1&"|"&Assets!$B37,'Data Annex'!$K$1:$K$869,0),MATCH(Assets!AA$2,'Data Annex'!$K$1:$AN$1,0)),"") -> 0.065247666 | AB37: =IFERROR(INDEX('Data Annex'!$K$1:$AN$869,MATCH(Assets!AB$1&"|"&Assets!$B37,'Data Annex'!$K$1:$K$869,0),MATCH(Assets!AB$2,'Data Annex'!$K$1:$AN$1,0)),"") -> 0.0625348583 | AC37: =IFERROR(INDEX('Data Annex'!$K$1:$AH$869,MATCH(Assets!AC$1&"|"&Assets!$B37,'Data Annex'!$K$1:$K$869,0),MATCH(Assets!AC$2,'Data Annex'!$K$1:$AH$1,0)),"") -> 
B38: RO | D38: RO | E38: =IFERROR(INDEX('Data Annex'!$K$1:$AN$869,MATCH(Assets!E$1&"|"&Assets!$B38,'Data Annex'!$K$1:$K$869,0),MATCH(Assets!E$2,'Data Annex'!$K$1:$AN$1,0)),"") -> 0.1595684364 | F38: =IFERROR(INDEX('Data Annex'!$K$1:$AN$869,MATCH(Assets!F$1&"|"&Assets!$B38,'Data Annex'!$K$1:$K$869,0),MATCH(Assets!F$2,'Data Annex'!$K$1:$AN$1,0)),"") -> 0.1583654416 | G38: =IFERROR(INDEX('Data Annex'!$K$1:$AN$869,MATCH(Assets!G$1&"|"&Assets!$B38,'Data Annex'!$K$1:$K$869,0),MATCH(Assets!G$2,'Data Annex'!$K$1:$AN$1,0)),"") -> 0.1481859405 | H38: =IFERROR(INDEX('Data Annex'!$K$1:$AN$869,MATCH(Assets!H$1&"|"&Assets!$B38,'Data Annex'!$K$1:$K$869,0),MATCH(Assets!H$2,'Data Annex'!$K$1:$AN$1,0)),"") -> 0.1659065917 | I38: =IFERROR(INDEX('Data Annex'!$K$1:$AN$869,MATCH(Assets!I$1&"|"&Assets!$B38,'Data Annex'!$K$1:$K$869,0),MATCH(Assets!I$2,'Data Annex'!$K$1:$AN$1,0)),"") -> 0.0012385923 | J38: =IFERROR(INDEX('Data Annex'!$K$1:$AN$869,MATCH(Assets!J$1&"|"&Assets!$B38,'Data Annex'!$K$1:$K$869,0),MATCH(Assets!J$2,'Data Annex'!$K$1:$AN$1,0)),"") -> 0.0016135904 | K38: =IFERROR(INDEX('Data Annex'!$K$1:$AN$869,MATCH(Assets!K$1&"|"&Assets!$B38,'Data Annex'!$K$1:$K$869,0),MATCH(Assets!K$2,'Data Annex'!$K$1:$AN$1,0)),"") -> 0.0017782167 | L38: =IFERROR(INDEX('Data Annex'!$K$1:$AN$869,MATCH(Assets!L$1&"|"&Assets!$B38,'Data Annex'!$K$1:$K$869,0),MATCH(Assets!L$2,'Data Annex'!$K$1:$AN$1,0)),"") -> 0.001578265 | M38: =IFERROR(INDEX('Data Annex'!$K$1:$AN$869,MATCH(Assets!M$1&"|"&Assets!$B38,'Data Annex'!$K$1:$K$869,0),MATCH(Assets!M$2,'Data Annex'!$K$1:$AN$1,0)),"") -> 0.2770843173 | N38: =IFERROR(INDEX('Data Annex'!$K$1:$AN$869,MATCH(Assets!N$1&"|"&Assets!$B38,'Data Annex'!$K$1:$K$869,0),MATCH(Assets!N$2,'Data Annex'!$K$1:$AN$1,0)),"") -> 0.2837749906 | O38: =IFERROR(INDEX('Data Annex'!$K$1:$AN$869,MATCH(Assets!O$1&"|"&Assets!$B38,'Data Annex'!$K$1:$K$869,0),MATCH(Assets!O$2,'Data Annex'!$K$1:$AN$1,0)),"") -> 0.2852663443 | P38: =IFERROR(INDEX('Data Annex'!$K$1:$AN$869,MATCH(Assets!P$1&"|"&Assets!$B38,'Data Annex'!$K$1:$K$869,0),MATCH(Assets!P$2,'Data Annex'!$K$1:$AN$1,0)),"") -> 0.2934004857 | Q38: =IFERROR(INDEX('Data Annex'!$K$1:$AN$869,MATCH(Assets!Q$1&"|"&Assets!$B38,'Data Annex'!$K$1:$K$869,0),MATCH(Assets!Q$2,'Data Annex'!$K$1:$AN$1,0)),"") -> 0.5356035072 | R38: =IFERROR(INDEX('Data Annex'!$K$1:$AN$869,MATCH(Assets!R$1&"|"&Assets!$B38,'Data Annex'!$K$1:$K$869,0),MATCH(Assets!R$2,'Data Annex'!$K$1:$AN$1,0)),"") -> 0.5297529308 | S38: =IFERROR(INDEX('Data Annex'!$K$1:$AN$869,MATCH(Assets!S$1&"|"&Assets!$B38,'Data Annex'!$K$1:$K$869,0),MATCH(Assets!S$2,'Data Annex'!$K$1:$AN$1,0)),"") -> 0.5397151175 | T38: =IFERROR(INDEX('Data Annex'!$K$1:$AN$869,MATCH(Assets!T$1&"|"&Assets!$B38,'Data Annex'!$K$1:$K$869,0),MATCH(Assets!T$2,'Data Annex'!$K$1:$AN$1,0)),"") -> 0.5151208674 | U38: =IFERROR(INDEX('Data Annex'!$K$1:$AN$869,MATCH(Assets!U$1&"|"&Assets!$B38,'Data Annex'!$K$1:$K$869,0),MATCH(Assets!U$2,'Data Annex'!$K$1:$AN$1,0)),"") -> 0.0010202785 | V38: =IFERROR(INDEX('Data Annex'!$K$1:$AN$869,MATCH(Assets!V$1&"|"&Assets!$B38,'Data Annex'!$K$1:$K$869,0),MATCH(Assets!V$2,'Data Annex'!$K$1:$AN$1,0)),"") -> 0.0010318584 | W38: =IFERROR(INDEX('Data Annex'!$K$1:$AN$869,MATCH(Assets!W$1&"|"&Assets!$B38,'Data Annex'!$K$1:$K$869,0),MATCH(Assets!W$2,'Data Annex'!$K$1:$AN$1,0)),"") -> 0.0008910764 | X38: =IFERROR(INDEX('Data Annex'!$K$1:$AN$869,MATCH(Assets!X$1&"|"&Assets!$B38,'Data Annex'!$K$1:$K$869,0),MATCH(Assets!X$2,'Data Annex'!$K$1:$AN$1,0)),"") -> 0.0007599752 | Y38: =IFERROR(INDEX('Data Annex'!$K$1:$AN$869,MATCH(Assets!Y$1&"|"&Assets!$B38,'Data Annex'!$K$1:$K$869,0),MATCH(Assets!Y$2,'Data Annex'!$K$1:$AN$1,0)),"") -> 0.0254848682 | Z38: =IFERROR(INDEX('Data Annex'!$K$1:$AN$869,MATCH(Assets!Z$1&"|"&Assets!$B38,'Data Annex'!$K$1:$K$869,0),MATCH(Assets!Z$2,'Data Annex'!$K$1:$AN$1,0)),"") -> 0.0254611882 | AA38: =IFERROR(INDEX('Data Annex'!$K$1:$AN$869,MATCH(Assets!AA$1&"|"&Assets!$B38,'Data Annex'!$K$1:$K$869,0),MATCH(Assets!AA$2,'Data Annex'!$K$1:$AN$1,0)),"") -> 0.0241633046 | AB38: =IFERROR(INDEX('Data Annex'!$K$1:$AN$869,MATCH(Assets!AB$1&"|"&Assets!$B38,'Data Annex'!$K$1:$K$869,0),MATCH(Assets!AB$2,'Data Annex'!$K$1:$AN$1,0)),"") -> 0.0232338149
B39: SE | D39: SE | E39: =IFERROR(INDEX('Data Annex'!$K$1:$AN$869,MATCH(Assets!E$1&"|"&Assets!$B39,'Data Annex'!$K$1:$K$869,0),MATCH(Assets!E$2,'Data Annex'!$K$1:$AN$1,0)),"") -> 0.1245545398 | F39: =IFERROR(INDEX('Data Annex'!$K$1:$AN$869,MATCH(Assets!F$1&"|"&Assets!$B39,'Data Annex'!$K$1:$K$869,0),MATCH(Assets!F$2,'Data Annex'!$K$1:$AN$1,0)),"") -> 0.1336866688 | G39: =IFERROR(INDEX('Data Annex'!$K$1:$AN$869,MATCH(Assets!G$1&"|"&Assets!$B39,'Data Annex'!$K$1:$K$869,0),MATCH(Assets!G$2,'Data Annex'!$K$1:$AN$1,0)),"") -> 0.1305626164 | H39: =IFERROR(INDEX('Data Annex'!$K$1:$AN$869,MATCH(Assets!H$1&"|"&Assets!$B39,'Data Annex'!$K$1:$K$869,0),MATCH(Assets!H$2,'Data Annex'!$K$1:$AN$1,0)),"") -> 0.1101895082 | I39: =IFERROR(INDEX('Data Annex'!$K$1:$AN$869,MATCH(Assets!I$1&"|"&Assets!$B39,'Data Annex'!$K$1:$K$869,0),MATCH(Assets!I$2,'Data Annex'!$K$1:$AN$1,0)),"") -> 0.0069238627 | J39: =IFERROR(INDEX('Data Annex'!$K$1:$AN$869,MATCH(Assets!J$1&"|"&Assets!$B39,'Data Annex'!$K$1:$K$869,0),MATCH(Assets!J$2,'Data Annex'!$K$1:$AN$1,0)),"") -> 0.0061961812 | K39: =IFERROR(INDEX('Data Annex'!$K$1:$AN$869,MATCH(Assets!K$1&"|"&Assets!$B39,'Data Annex'!$K$1:$K$869,0),MATCH(Assets!K$2,'Data Annex'!$K$1:$AN$1,0)),"") -> 0.0085657487 | L39: =IFERROR(INDEX('Data Annex'!$K$1:$AN$869,MATCH(Assets!L$1&"|"&Assets!$B39,'Data Annex'!$K$1:$K$869,0),MATCH(Assets!L$2,'Data Annex'!$K$1:$AN$1,0)),"") -> 0.0109127064 | M39: =IFERROR(INDEX('Data Annex'!$K$1:$AN$869,MATCH(Assets!M$1&"|"&Assets!$B39,'Data Annex'!$K$1:$K$869,0),MATCH(Assets!M$2,'Data Annex'!$K$1:$AN$1,0)),"") -> 0.1030574969 | N39: =IFERROR(INDEX('Data Annex'!$K$1:$AN$869,MATCH(Assets!N$1&"|"&Assets!$B39,'Data Annex'!$K$1:$K$869,0),MATCH(Assets!N$2,'Data Annex'!$K$1:$AN$1,0)),"") -> 0.0996669637 | O39: =IFERROR(INDEX('Data Annex'!$K$1:$AN$869,MATCH(Assets!O$1&"|"&Assets!$B39,'Data Annex'!$K$1:$K$869,0),MATCH(Assets!O$2,'Data Annex'!$K$1:$AN$1,0)),"") -> 0.0873230937 | P39: =IFERROR(INDEX('Data Annex'!$K$1:$AN$869,MATCH(Assets!P$1&"|"&Assets!$B39,'Data Annex'!$K$1:$K$869,0),MATCH(Assets!P$2,'Data Annex'!$K$1:$AN$1,0)),"") -> 0.0812300645 | Q39: =IFERROR(INDEX('Data Annex'!$K$1:$AN$869,MATCH(Assets!Q$1&"|"&Assets!$B39,'Data Annex'!$K$1:$K$869,0),MATCH(Assets!Q$2,'Data Annex'!$K$1:$AN$1,0)),"") -> 0.7094452135 | R39: =IFERROR(INDEX('Data Annex'!$K$1:$AN$869,MATCH(Assets!R$1&"|"&Assets!$B39,'Data Annex'!$K$1:$K$869,0),MATCH(Assets!R$2,'Data Annex'!$K$1:$AN$1,0)),"") -> 0.7193962991 | S39: =IFERROR(INDEX('Data Annex'!$K$1:$AN$869,MATCH(Assets!S$1&"|"&Assets!$B39,'Data Annex'!$K$1:$K$869,0),MATCH(Assets!S$2,'Data Annex'!$K$1:$AN$1,0)),"") -> 0.7324747763 | T39: =IFERROR(INDEX('Data Annex'!$K$1:$AN$869,MATCH(Assets!T$1&"|"&Assets!$B39,'Data Annex'!$K$1:$K$869,0),MATCH(Assets!T$2,'Data Annex'!$K$1:$AN$1,0)),"") -> 0.7545198456 | U39: =IFERROR(INDEX('Data Annex'!$K$1:$AN$869,MATCH(Assets!U$1&"|"&Assets!$B39,'Data Annex'!$K$1:$K$869,0),MATCH(Assets!U$2,'Data Annex'!$K$1:$AN$1,0)),"") -> 0.0435837578 | V39: =IFERROR(INDEX('Data Annex'!$K$1:$AN$869,MATCH(Assets!V$1&"|"&Assets!$B39,'Data Annex'!$K$1:$K$869,0),MATCH(Assets!V$2,'Data Annex'!$K$1:$AN$1,0)),"") -> 0.028527136 | W39: =IFERROR(INDEX('Data Annex'!$K$1:$AN$869,MATCH(Assets!W$1&"|"&Assets!$B39,'Data Annex'!$K$1:$K$869,0),MATCH(Assets!W$2,'Data Annex'!$K$1:$AN$1,0)),"") -> 0.0278545746 | X39: =IFERROR(INDEX('Data Annex'!$K$1:$AN$869,MATCH(Assets!X$1&"|"&Assets!$B39,'Data Annex'!$K$1:$K$869,0),MATCH(Assets!X$2,'Data Annex'!$K$1:$AN$1,0)),"") -> 0.0276553802 | Y39: =IFERROR(INDEX('Data Annex'!$K$1:$AN$869,MATCH(Assets!Y$1&"|"&Assets!$B39,'Data Annex'!$K$1:$K$869,0),MATCH(Assets!Y$2,'Data Annex'!$K$1:$AN$1,0)),"") -> 0.0124351292 | Z39: =IFERROR(INDEX('Data Annex'!$K$1:$AN$869,MATCH(Assets!Z$1&"|"&Assets!$B39,'Data Annex'!$K$1:$K$869,0),MATCH(Assets!Z$2,'Data Annex'!$K$1:$AN$1,0)),"") -> 0.0125267512 | AA39: =IFERROR(INDEX('Data Annex'!$K$1:$AN$869,MATCH(Assets!AA$1&"|"&Assets!$B39,'Data Annex'!$K$1:$K$869,0),MATCH(Assets!AA$2,'Data Annex'!$K$1:$AN$1,0)),"") -> 0.0132191903 | AB39: =IFERROR(INDEX('Data Annex'!$K$1:$AN$869,MATCH(Assets!AB$1&"|"&Assets!$B39,'Data Annex'!$K$1:$K$869,0),MATCH(Assets!AB$2,'Data Annex'!$K$1:$AN$1,0)),"") -> 0.0154924951
B40: SI | D40: SI | E40: =IFERROR(INDEX('Data Annex'!$K$1:$AN$869,MATCH(Assets!E$1&"|"&Assets!$B40,'Data Annex'!$K$1:$K$869,0),MATCH(Assets!E$2,'Data Annex'!$K$1:$AN$1,0)),"") -> 0.1367993551 | F40: =IFERROR(INDEX('Data Annex'!$K$1:$AN$869,MATCH(Assets!F$1&"|"&Assets!$B40,'Data Annex'!$K$1:$K$869,0),MATCH(Assets!F$2,'Data Annex'!$K$1:$AN$1,0)),"") -> 0.1911769854 | G40: =IFERROR(INDEX('Data Annex'!$K$1:$AN$869,MATCH(Assets!G$1&"|"&Assets!$B40,'Data Annex'!$K$1:$K$869,0),MATCH(Assets!G$2,'Data Annex'!$K$1:$AN$1,0)),"") -> 0.188408611 | H40: =IFERROR(INDEX('Data Annex'!$K$1:$AN$869,MATCH(Assets!H$1&"|"&Assets!$B40,'Data Annex'!$K$1:$K$869,0),MATCH(Assets!H$2,'Data Annex'!$K$1:$AN$1,0)),"") -> 0.203725226 | I40: =IFERROR(INDEX('Data Annex'!$K$1:$AN$869,MATCH(Assets!I$1&"|"&Assets!$B40,'Data Annex'!$K$1:$K$869,0),MATCH(Assets!I$2,'Data Annex'!$K$1:$AN$1,0)),"") -> 0.005349916 | J40: =IFERROR(INDEX('Data Annex'!$K$1:$AN$869,MATCH(Assets!J$1&"|"&Assets!$B40,'Data Annex'!$K$1:$K$869,0),MATCH(Assets!J$2,'Data Annex'!$K$1:$AN$1,0)),"") -> 0.0051909617 | K40: =IFERROR(INDEX('Data Annex'!$K$1:$AN$869,MATCH(Assets!K$1&"|"&Assets!$B40,'Data Annex'!$K$1:$K$869,0),MATCH(Assets!K$2,'Data Annex'!$K$1:$AN$1,0)),"") -> 0.005159625 | L40: =IFERROR(INDEX('Data Annex'!$K$1:$AN$869,MATCH(Assets!L$1&"|"&Assets!$B40,'Data Annex'!$K$1:$K$869,0),MATCH(Assets!L$2,'Data Annex'!$K$1:$AN$1,0)),"") -> 0.0054221659 | M40: =IFERROR(INDEX('Data Annex'!$K$1:$AN$869,MATCH(Assets!M$1&"|"&Assets!$B40,'Data Annex'!$K$1:$K$869,0),MATCH(Assets!M$2,'Data Annex'!$K$1:$AN$1,0)),"") -> 0.2354817283 | N40: =IFERROR(INDEX('Data Annex'!$K$1:$AN$869,MATCH(Assets!N$1&"|"&Assets!$B40,'Data Annex'!$K$1:$K$869,0),MATCH(Assets!N$2,'Data Annex'!$K$1:$AN$1,0)),"") -> 0.221532008 | O40: =IFERROR(INDEX('Data Annex'!$K$1:$AN$869,MATCH(Assets!O$1&"|"&Assets!$B40,'Data Annex'!$K$1:$K$869,0),MATCH(Assets!O$2,'Data Annex'!$K$1:$AN$1,0)),"") -> 0.2295932915 | P40: =IFERROR(INDEX('Data Annex'!$K$1:$AN$869,MATCH(Assets!P$1&"|"&Assets!$B40,'Data Annex'!$K$1:$K$869,0),MATCH(Assets!P$2,'Data Annex'!$K$1:$AN$1,0)),"") -> 0.2370919889 | Q40: =IFERROR(INDEX('Data Annex'!$K$1:$AN$869,MATCH(Assets!Q$1&"|"&Assets!$B40,'Data Annex'!$K$1:$K$869,0),MATCH(Assets!Q$2,'Data Annex'!$K$1:$AN$1,0)),"") -> 0.5933165746 | R40: =IFERROR(INDEX('Data Annex'!$K$1:$AN$869,MATCH(Assets!R$1&"|"&Assets!$B40,'Data Annex'!$K$1:$K$869,0),MATCH(Assets!R$2,'Data Annex'!$K$1:$AN$1,0)),"") -> 0.5549826725 | S40: =IFERROR(INDEX('Data Annex'!$K$1:$AN$869,MATCH(Assets!S$1&"|"&Assets!$B40,'Data Annex'!$K$1:$K$869,0),MATCH(Assets!S$2,'Data Annex'!$K$1:$AN$1,0)),"") -> 0.5508487606 | T40: =IFERROR(INDEX('Data Annex'!$K$1:$AN$869,MATCH(Assets!T$1&"|"&Assets!$B40,'Data Annex'!$K$1:$K$869,0),MATCH(Assets!T$2,'Data Annex'!$K$1:$AN$1,0)),"") -> 0.5285457943 | U40: =IFERROR(INDEX('Data Annex'!$K$1:$AN$869,MATCH(Assets!U$1&"|"&Assets!$B40,'Data Annex'!$K$1:$K$869,0),MATCH(Assets!U$2,'Data Annex'!$K$1:$AN$1,0)),"") -> 0.001694995 | V40: =IFERROR(INDEX('Data Annex'!$K$1:$AN$869,MATCH(Assets!V$1&"|"&Assets!$B40,'Data Annex'!$K$1:$K$869,0),MATCH(Assets!V$2,'Data Annex'!$K$1:$AN$1,0)),"") -> 0.001462927 | W40: =IFERROR(INDEX('Data Annex'!$K$1:$AN$869,MATCH(Assets!W$1&"|"&Assets!$B40,'Data Annex'!$K$1:$K$869,0),MATCH(Assets!W$2,'Data Annex'!$K$1:$AN$1,0)),"") -> 0.0013418032 | X40: =IFERROR(INDEX('Data Annex'!$K$1:$AN$869,MATCH(Assets!X$1&"|"&Assets!$B40,'Data Annex'!$K$1:$K$869,0),MATCH(Assets!X$2,'Data Annex'!$K$1:$AN$1,0)),"") -> 0.001002483 | Y40: =IFERROR(INDEX('Data Annex'!$K$1:$AN$869,MATCH(Assets!Y$1&"|"&Assets!$B40,'Data Annex'!$K$1:$K$869,0),MATCH(Assets!Y$2,'Data Annex'!$K$1:$AN$1,0)),"") -> 0.0273573559 | Z40: =IFERROR(INDEX('Data Annex'!$K$1:$AN$869,MATCH(Assets!Z$1&"|"&Assets!$B40,'Data Annex'!$K$1:$K$869,0),MATCH(Assets!Z$2,'Data Annex'!$K$1:$AN$1,0)),"") -> 0.0256544089 | AA40: =IFERROR(INDEX('Data Annex'!$K$1:$AN$869,MATCH(Assets!AA$1&"|"&Assets!$B40,'Data Annex'!$K$1:$K$869,0),MATCH(Assets!AA$2,'Data Annex'!$K$1:$AN$1,0)),"") -> 0.0246479448 | AB40: =IFERROR(INDEX('Data Annex'!$K$1:$AN$869,MATCH(Assets!AB$1&"|"&Assets!$B40,'Data Annex'!$K$1:$K$869,0),MATCH(Assets!AB$2,'Data Annex'!$K$1:$AN$1,0)),"") -> 0.0242123419
B41: SK | D41: =IF(OR(E41="n.a.",F41="n.a.",G41="n.a.",H41="n.a.",I41="n.a.",J41="n.a.",K41="n.a.",L41="n.a.",M41="n.a.",N41="n.a.",O41="n.a.",P41="n.a.",Q41="n.a.",R41="n.a.",S41="n.a.",T41="n.a.",U41="n.a.",V41="n.a.",W41="n.a.",X41="n.a.",Y41="n.a.",Z41="n.a.",AA41="n.a.",AB41="n.a."),$B41&"*",$B41) -> SK | E41: =IFERROR(INDEX('Data Annex'!$K$1:$AN$869,MATCH(Assets!E$1&"|"&Assets!$B41,'Data Annex'!$K$1:$K$869,0),MATCH(Assets!E$2,'Data Annex'!$K$1:$AN$1,0)),"") -> 0.0427070065 | F41: =IFERROR(INDEX('Data Annex'!$K$1:$AN$869,MATCH(Assets!F$1&"|"&Assets!$B41,'Data Annex'!$K$1:$K$869,0),MATCH(Assets!F$2,'Data Annex'!$K$1:$AN$1,0)),"") -> 0.0522861265 | G41: =IFERROR(INDEX('Data Annex'!$K$1:$AN$869,MATCH(Assets!G$1&"|"&Assets!$B41,'Data Annex'!$K$1:$K$869,0),MATCH(Assets!G$2,'Data Annex'!$K$1:$AN$1,0)),"") -> 0.0631523169 | H41: =IFERROR(INDEX('Data Annex'!$K$1:$AN$869,MATCH(Assets!H$1&"|"&Assets!$B41,'Data Annex'!$K$1:$K$869,0),MATCH(Assets!H$2,'Data Annex'!$K$1:$AN$1,0)),"") -> 0.0789824772 | I41: =IFERROR(INDEX('Data Annex'!$K$1:$AN$869,MATCH(Assets!I$1&"|"&Assets!$B41,'Data Annex'!$K$1:$K$869,0),MATCH(Assets!I$2,'Data Annex'!$K$1:$AN$1,0)),"") -> 0.0009596223 | J41: =IFERROR(INDEX('Data Annex'!$K$1:$AN$869,MATCH(Assets!J$1&"|"&Assets!$B41,'Data Annex'!$K$1:$K$869,0),MATCH(Assets!J$2,'Data Annex'!$K$1:$AN$1,0)),"") -> 0.0009959384 | K41: =IFERROR(INDEX('Data Annex'!$K$1:$AN$869,MATCH(Assets!K$1&"|"&Assets!$B41,'Data Annex'!$K$1:$K$869,0),MATCH(Assets!K$2,'Data Annex'!$K$1:$AN$1,0)),"") -> 0.0011828949 | L41: =IFERROR(INDEX('Data Annex'!$K$1:$AN$869,MATCH(Assets!L$1&"|"&Assets!$B41,'Data Annex'!$K$1:$K$869,0),MATCH(Assets!L$2,'Data Annex'!$K$1:$AN$1,0)),"") -> 0.0003932405 | M41: =IFERROR(INDEX('Data Annex'!$K$1:$AN$869,MATCH(Assets!M$1&"|"&Assets!$B41,'Data Annex'!$K$1:$K$869,0),MATCH(Assets!M$2,'Data Annex'!$K$1:$AN$1,0)),"") -> 0.1348033234 | N41: =IFERROR(INDEX('Data Annex'!$K$1:$AN$869,MATCH(Assets!N$1&"|"&Assets!$B41,'Data Annex'!$K$1:$K$869,0),MATCH(Assets!N$2,'Data Annex'!$K$1:$AN$1,0)),"") -> 0.1548088841 | O41: =IFERROR(INDEX('Data Annex'!$K$1:$AN$869,MATCH(Assets!O$1&"|"&Assets!$B41,'Data Annex'!$K$1:$K$869,0),MATCH(Assets!O$2,'Data Annex'!$K$1:$AN$1,0)),"") -> 0.1461401769 | P41: =IFERROR(INDEX('Data Annex'!$K$1:$AN$869,MATCH(Assets!P$1&"|"&Assets!$B41,'Data Annex'!$K$1:$K$869,0),MATCH(Assets!P$2,'Data Annex'!$K$1:$AN$1,0)),"") -> 0.1378912315 | Q41: =IFERROR(INDEX('Data Annex'!$K$1:$AN$869,MATCH(Assets!Q$1&"|"&Assets!$B41,'Data Annex'!$K$1:$K$869,0),MATCH(Assets!Q$2,'Data Annex'!$K$1:$AN$1,0)),"") -> 0.7968015689 | R41: =IFERROR(INDEX('Data Annex'!$K$1:$AN$869,MATCH(Assets!R$1&"|"&Assets!$B41,'Data Annex'!$K$1:$K$869,0),MATCH(Assets!R$2,'Data Annex'!$K$1:$AN$1,0)),"") -> 0.7677594642 | S41: =IFERROR(INDEX('Data Annex'!$K$1:$AN$869,MATCH(Assets!S$1&"|"&Assets!$B41,'Data Annex'!$K$1:$K$869,0),MATCH(Assets!S$2,'Data Annex'!$K$1:$AN$1,0)),"") -> 0.7652354613 | T41: =IFERROR(INDEX('Data Annex'!$K$1:$AN$869,MATCH(Assets!T$1&"|"&Assets!$B41,'Data Annex'!$K$1:$K$869,0),MATCH(Assets!T$2,'Data Annex'!$K$1:$AN$1,0)),"") -> 0.7589152518 | U41: =IFERROR(INDEX('Data Annex'!$K$1:$AN$869,MATCH(Assets!U$1&"|"&Assets!$B41,'Data Annex'!$K$1:$K$869,0),MATCH(Assets!U$2,'Data Annex'!$K$1:$AN$1,0)),"") -> 0.0053179192 | V41: =IFERROR(INDEX('Data Annex'!$K$1:$AN$869,MATCH(Assets!V$1&"|"&Assets!$B41,'Data Annex'!$K$1:$K$869,0),MATCH(Assets!V$2,'Data Annex'!$K$1:$AN$1,0)),"") -> 0.0052994906 | W41: =IFERROR(INDEX('Data Annex'!$K$1:$AN$869,MATCH(Assets!W$1&"|"&Assets!$B41,'Data Annex'!$K$1:$K$869,0),MATCH(Assets!W$2,'Data Annex'!$K$1:$AN$1,0)),"") -> 0.0055260677 | X41: =IFERROR(INDEX('Data Annex'!$K$1:$AN$869,MATCH(Assets!X$1&"|"&Assets!$B41,'Data Annex'!$K$1:$K$869,0),MATCH(Assets!X$2,'Data Annex'!$K$1:$AN$1,0)),"") -> 0.0055292885 | Y41: =IFERROR(INDEX('Data Annex'!$K$1:$AN$869,MATCH(Assets!Y$1&"|"&Assets!$B41,'Data Annex'!$K$1:$K$869,0),MATCH(Assets!Y$2,'Data Annex'!$K$1:$AN$1,0)),"") -> 0.0194105597 | Z41: =IFERROR(INDEX('Data Annex'!$K$1:$AN$869,MATCH(Assets!Z$1&"|"&Assets!$B41,'Data Annex'!$K$1:$K$869,0),MATCH(Assets!Z$2,'Data Annex'!$K$1:$AN$1,0)),"") -> 0.0188500961 | AA41: =IFERROR(INDEX('Data Annex'!$K$1:$AN$869,MATCH(Assets!AA$1&"|"&Assets!$B41,'Data Annex'!$K$1:$K$869,0),MATCH(Assets!AA$2,'Data Annex'!$K$1:$AN$1,0)),"") -> 0.0187630824 | AB41: =IFERROR(INDEX('Data Annex'!$K$1:$AN$869,MATCH(Assets!AB$1&"|"&Assets!$B41,'Data Annex'!$K$1:$K$869,0),MATCH(Assets!AB$2,'Data Annex'!$K$1:$AN$1,0)),"") -> 0.0182885104
B42: EU | D42: EU/EEA | E42: =IFERROR(INDEX('Data Annex'!$K$1:$AN$869,MATCH(Assets!E$1&"|"&Assets!$B42,'Data Annex'!$K$1:$K$869,0),MATCH(Assets!E$2,'Data Annex'!$K$1:$AN$1,0)),"") -> 0.0879109769 | F42: =IFERROR(INDEX('Data Annex'!$K$1:$AN$869,MATCH(Assets!F$1&"|"&Assets!$B42,'Data Annex'!$K$1:$K$869,0),MATCH(Assets!F$2,'Data Annex'!$K$1:$AN$1,0)),"") -> 0.1108306879 | G42: =IFERROR(INDEX('Data Annex'!$K$1:$AN$869,MATCH(Assets!G$1&"|"&Assets!$B42,'Data Annex'!$K$1:$K$869,0),MATCH(Assets!G$2,'Data Annex'!$K$1:$AN$1,0)),"") -> 0.1215542111 | H42: =IFERROR(INDEX('Data Annex'!$K$1:$AN$869,MATCH(Assets!H$1&"|"&Assets!$B42,'Data Annex'!$K$1:$K$869,0),MATCH(Assets!H$2,'Data Annex'!$K$1:$AN$1,0)),"") -> 0.1253869255 | I42: =IFERROR(INDEX('Data Annex'!$K$1:$AN$869,MATCH(Assets!I$1&"|"&Assets!$B42,'Data Annex'!$K$1:$K$869,0),MATCH(Assets!I$2,'Data Annex'!$K$1:$AN$1,0)),"") -> 0.010660962 | J42: =IFERROR(INDEX('Data Annex'!$K$1:$AN$869,MATCH(Assets!J$1&"|"&Assets!$B42,'Data Annex'!$K$1:$K$869,0),MATCH(Assets!J$2,'Data Annex'!$K$1:$AN$1,0)),"") -> 0.0117164537 | K42: =IFERROR(INDEX('Data Annex'!$K$1:$AN$869,MATCH(Assets!K$1&"|"&Assets!$B42,'Data Annex'!$K$1:$K$869,0),MATCH(Assets!K$2,'Data Annex'!$K$1:$AN$1,0)),"") -> 0.0122845549 | L42: =IFERROR(INDEX('Data Annex'!$K$1:$AN$869,MATCH(Assets!L$1&"|"&Assets!$B42,'Data Annex'!$K$1:$K$869,0),MATCH(Assets!L$2,'Data Annex'!$K$1:$AN$1,0)),"") -> 0.0139528868 | M42: =IFERROR(INDEX('Data Annex'!$K$1:$AN$869,MATCH(Assets!M$1&"|"&Assets!$B42,'Data Annex'!$K$1:$K$869,0),MATCH(Assets!M$2,'Data Annex'!$K$1:$AN$1,0)),"") -> 0.1286776632 | N42: =IFERROR(INDEX('Data Annex'!$K$1:$AN$869,MATCH(Assets!N$1&"|"&Assets!$B42,'Data Annex'!$K$1:$K$869,0),MATCH(Assets!N$2,'Data Annex'!$K$1:$AN$1,0)),"") -> 0.1337493939 | O42: =IFERROR(INDEX('Data Annex'!$K$1:$AN$869,MATCH(Assets!O$1&"|"&Assets!$B42,'Data Annex'!$K$1:$K$869,0),MATCH(Assets!O$2,'Data Annex'!$K$1:$AN$1,0)),"") -> 0.1316342955 | P42: =IFERROR(INDEX('Data Annex'!$K$1:$AN$869,MATCH(Assets!P$1&"|"&Assets!$B42,'Data Annex'!$K$1:$K$869,0),MATCH(Assets!P$2,'Data Annex'!$K$1:$AN$1,0)),"") -> 0.1253474045 | Q42: =IFERROR(INDEX('Data Annex'!$K$1:$AN$869,MATCH(Assets!Q$1&"|"&Assets!$B42,'Data Annex'!$K$1:$K$869,0),MATCH(Assets!Q$2,'Data Annex'!$K$1:$AN$1,0)),"") -> 0.632903649 | R42: =IFERROR(INDEX('Data Annex'!$K$1:$AN$869,MATCH(Assets!R$1&"|"&Assets!$B42,'Data Annex'!$K$1:$K$869,0),MATCH(Assets!R$2,'Data Annex'!$K$1:$AN$1,0)),"") -> 0.6197141233 | S42: =IFERROR(INDEX('Data Annex'!$K$1:$AN$869,MATCH(Assets!S$1&"|"&Assets!$B42,'Data Annex'!$K$1:$K$869,0),MATCH(Assets!S$2,'Data Annex'!$K$1:$AN$1,0)),"") -> 0.6146568487 | T42: =IFERROR(INDEX('Data Annex'!$K$1:$AN$869,MATCH(Assets!T$1&"|"&Assets!$B42,'Data Annex'!$K$1:$K$869,0),MATCH(Assets!T$2,'Data Annex'!$K$1:$AN$1,0)),"") -> 0.6047766353 | U42: =IFERROR(INDEX('Data Annex'!$K$1:$AN$869,MATCH(Assets!U$1&"|"&Assets!$B42,'Data Annex'!$K$1:$K$869,0),MATCH(Assets!U$2,'Data Annex'!$K$1:$AN$1,0)),"") -> 0.0855129494 | V42: =IFERROR(INDEX('Data Annex'!$K$1:$AN$869,MATCH(Assets!V$1&"|"&Assets!$B42,'Data Annex'!$K$1:$K$869,0),MATCH(Assets!V$2,'Data Annex'!$K$1:$AN$1,0)),"") -> 0.0737579273 | W42: =IFERROR(INDEX('Data Annex'!$K$1:$AN$869,MATCH(Assets!W$1&"|"&Assets!$B42,'Data Annex'!$K$1:$K$869,0),MATCH(Assets!W$2,'Data Annex'!$K$1:$AN$1,0)),"") -> 0.0697247785 | X42: =IFERROR(INDEX('Data Annex'!$K$1:$AN$869,MATCH(Assets!X$1&"|"&Assets!$B42,'Data Annex'!$K$1:$K$869,0),MATCH(Assets!X$2,'Data Annex'!$K$1:$AN$1,0)),"") -> 0.0686975736 | Y42: =IFERROR(INDEX('Data Annex'!$K$1:$AN$869,MATCH(Assets!Y$1&"|"&Assets!$B42,'Data Annex'!$K$1:$K$869,0),MATCH(Assets!Y$2,'Data Annex'!$K$1:$AN$1,0)),"") -> 0.0543699921 | Z42: =IFERROR(INDEX('Data Annex'!$K$1:$AN$869,MATCH(Assets!Z$1&"|"&Assets!$B42,'Data Annex'!$K$1:$K$869,0),MATCH(Assets!Z$2,'Data Annex'!$K$1:$AN$1,0)),"") -> 0.05027007 | AA42: =IFERROR(INDEX('Data Annex'!$K$1:$AN$869,MATCH(Assets!AA$1&"|"&Assets!$B42,'Data Annex'!$K$1:$K$869,0),MATCH(Assets!AA$2,'Data Annex'!$K$1:$AN$1,0)),"") -> 0.0501807159 | AB42: =IFERROR(INDEX('Data Annex'!$K$1:$AN$869,MATCH(Assets!AB$1&"|"&Assets!$B42,'Data Annex'!$K$1:$K$869,0),MATCH(Assets!AB$2,'Data Annex'!$K$1:$AN$1,0)),"") -> 0.0618422513
B43: GB | D43: =IF(OR(E43="n.a.",F43="n.a.",G43="n.a.",H43="n.a.",I43="n.a.",J43="n.a.",K43="n.a.",L43="n.a.",M43="n.a.",N43="n.a.",O43="n.a.",P43="n.a.",Q43="n.a.",R43="n.a.",S43="n.a.",T43="n.a.",U43="n.a.",V43="n.a.",W43="n.a.",X43="n.a.",Y43="n.a.",Z43="n.a.",AA43="n.a.",AB43="n.a."),$B43&"*",$B43) -> GB | E43: =IFERROR(INDEX('Data Annex'!$K$1:$AN$869,MATCH(Assets!E$1&"|"&Assets!$B43,'Data Annex'!$K$1:$K$869,0),MATCH(Assets!E$2,'Data Annex'!$K$1:$AN$1,0)),"") -> 0.0848565252 | F43: =IFERROR(INDEX('Data Annex'!$K$1:$AN$869,MATCH(Assets!F$1&"|"&Assets!$B43,'Data Annex'!$K$1:$K$869,0),MATCH(Assets!F$2,'Data Annex'!$K$1:$AN$1,0)),"") -> 0.1064568241 | G43: =IFERROR(INDEX('Data Annex'!$K$1:$AN$869,MATCH(Assets!G$1&"|"&Assets!$B43,'Data Annex'!$K$1:$K$869,0),MATCH(Assets!G$2,'Data Annex'!$K$1:$AN$1,0)),"") -> 0.1200435418 | H43: =IFERROR(INDEX('Data Annex'!$K$1:$AN$869,MATCH(Assets!H$1&"|"&Assets!$B43,'Data Annex'!$K$1:$K$869,0),MATCH(Assets!H$2,'Data Annex'!$K$1:$AN$1,0)),"") -> 0.1211906604 | I43: =IFERROR(INDEX('Data Annex'!$K$1:$AN$869,MATCH(Assets!I$1&"|"&Assets!$B43,'Data Annex'!$K$1:$K$869,0),MATCH(Assets!I$2,'Data Annex'!$K$1:$AN$1,0)),"") -> 0.0165040584 | J43: =IFERROR(INDEX('Data Annex'!$K$1:$AN$869,MATCH(Assets!J$1&"|"&Assets!$B43,'Data Annex'!$K$1:$K$869,0),MATCH(Assets!J$2,'Data Annex'!$K$1:$AN$1,0)),"") -> 0.0212366257 | K43: =IFERROR(INDEX('Data Annex'!$K$1:$AN$869,MATCH(Assets!K$1&"|"&Assets!$B43,'Data Annex'!$K$1:$K$869,0),MATCH(Assets!K$2,'Data Annex'!$K$1:$AN$1,0)),"") -> 0.0236294915 | L43: =IFERROR(INDEX('Data Annex'!$K$1:$AN$869,MATCH(Assets!L$1&"|"&Assets!$B43,'Data Annex'!$K$1:$K$869,0),MATCH(Assets!L$2,'Data Annex'!$K$1:$AN$1,0)),"") -> 0.0297908322 | M43: =IFERROR(INDEX('Data Annex'!$K$1:$AN$869,MATCH(Assets!M$1&"|"&Assets!$B43,'Data Annex'!$K$1:$K$869,0),MATCH(Assets!M$2,'Data Annex'!$K$1:$AN$1,0)),"") -> 0.1353087562 | N43: =IFERROR(INDEX('Data Annex'!$K$1:$AN$869,MATCH(Assets!N$1&"|"&Assets!$B43,'Data Annex'!$K$1:$K$869,0),MATCH(Assets!N$2,'Data Annex'!$K$1:$AN$1,0)),"") -> 0.1420316069 | O43: =IFERROR(INDEX('Data Annex'!$K$1:$AN$869,MATCH(Assets!O$1&"|"&Assets!$B43,'Data Annex'!$K$1:$K$869,0),MATCH(Assets!O$2,'Data Annex'!$K$1:$AN$1,0)),"") -> 0.1366650669 | P43: =IFERROR(INDEX('Data Annex'!$K$1:$AN$869,MATCH(Assets!P$1&"|"&Assets!$B43,'Data Annex'!$K$1:$K$869,0),MATCH(Assets!P$2,'Data Annex'!$K$1:$AN$1,0)),"") -> 0.135176306 | Q43: =IFERROR(INDEX('Data Annex'!$K$1:$AN$869,MATCH(Assets!Q$1&"|"&Assets!$B43,'Data Annex'!$K$1:$K$869,0),MATCH(Assets!Q$2,'Data Annex'!$K$1:$AN$1,0)),"") -> 0.5404571479 | R43: =IFERROR(INDEX('Data Annex'!$K$1:$AN$869,MATCH(Assets!R$1&"|"&Assets!$B43,'Data Annex'!$K$1:$K$869,0),MATCH(Assets!R$2,'Data Annex'!$K$1:$AN$1,0)),"") -> 0.5277939144 | S43: =IFERROR(INDEX('Data Annex'!$K$1:$AN$869,MATCH(Assets!S$1&"|"&Assets!$B43,'Data Annex'!$K$1:$K$869,0),MATCH(Assets!S$2,'Data Annex'!$K$1:$AN$1,0)),"") -> 0.5297046305 | T43: =IFERROR(INDEX('Data Annex'!$K$1:$AN$869,MATCH(Assets!T$1&"|"&Assets!$B43,'Data Annex'!$K$1:$K$869,0),MATCH(Assets!T$2,'Data Annex'!$K$1:$AN$1,0)),"") -> 0.5167866815 | U43: =IFERROR(INDEX('Data Annex'!$K$1:$AN$869,MATCH(Assets!U$1&"|"&Assets!$B43,'Data Annex'!$K$1:$K$869,0),MATCH(Assets!U$2,'Data Annex'!$K$1:$AN$1,0)),"") -> 0.1778297434 | V43: =IFERROR(INDEX('Data Annex'!$K$1:$AN$869,MATCH(Assets!V$1&"|"&Assets!$B43,'Data Annex'!$K$1:$K$869,0),MATCH(Assets!V$2,'Data Annex'!$K$1:$AN$1,0)),"") -> 0.1556732591 | W43: =IFERROR(INDEX('Data Annex'!$K$1:$AN$869,MATCH(Assets!W$1&"|"&Assets!$B43,'Data Annex'!$K$1:$K$869,0),MATCH(Assets!W$2,'Data Annex'!$K$1:$AN$1,0)),"") -> 0.1466682417 | X43: =IFERROR(INDEX('Data Annex'!$K$1:$AN$869,MATCH(Assets!X$1&"|"&Assets!$B43,'Data Annex'!$K$1:$K$869,0),MATCH(Assets!X$2,'Data Annex'!$K$1:$AN$1,0)),"") -> 0.1544924865 | Y43: =IFERROR(INDEX('Data Annex'!$K$1:$AN$869,MATCH(Assets!Y$1&"|"&Assets!$B43,'Data Annex'!$K$1:$K$869,0),MATCH(Assets!Y$2,'Data Annex'!$K$1:$AN$1,0)),"") -> 0.0450437689 | Z43: =IFERROR(INDEX('Data Annex'!$K$1:$AN$869,MATCH(Assets!Z$1&"|"&Assets!$B43,'Data Annex'!$K$1:$K$869,0),MATCH(Assets!Z$2,'Data Annex'!$K$1:$AN$1,0)),"") -> 0.0446895751 | AA43: =IFERROR(INDEX('Data Annex'!$K$1:$AN$869,MATCH(Assets!AA$1&"|"&Assets!$B43,'Data Annex'!$K$1:$K$869,0),MATCH(Assets!AA$2,'Data Annex'!$K$1:$AN$1,0)),"") -> 0.0432890276 | AB43: =IFERROR(INDEX('Data Annex'!$K$1:$AN$869,MATCH(Assets!AB$1&"|"&Assets!$B43,'Data Annex'!$K$1:$K$869,0),MATCH(Assets!AB$2,'Data Annex'!$K$1:$AN$1,0)),"") -> 0.0425630364 | AC43: =IFERROR(INDEX('Data Annex'!$K$1:$AH$869,MATCH(Assets!AC$1&"|"&Assets!$B43,'Data Annex'!$K$1:$K$869,0),MATCH(Assets!AC$2,'Data Annex'!$K$1:$AH$1,0)),"") -> 
F46: T02_1 | G46: T02_1 | H46: T02_1 | I46: T02_1 | J46: T02_2 | K46: T02_2 | L46: T02_2 | M46: T02_2 | P46: T03_1 | Q46: T03_1 | R46: T03_1 | S46: T03_1 | T46: T03_1 | U46: T03_2 | V46: T03_2 | W46: T03_2 | X46: T03_2 | Y46: T03_3 | Z46: T03_3 | AA46: T03_3 | AB46: T03_3
F47: =TEXT(F52,"YYYYMM")+0 -> 202003 | G47: 202006 | H47: 202009 | I47: 202012 | J47: 202003 | K47: 202006 | L47: 202009 | M47: 202012 | Q47: =TEXT(Q52,"YYYYMM")+0 -> 202003 | R47: =TEXT(R52,"YYYYMM")+0 -> 202006 | S47: =TEXT(S52,"YYYYMM")+0 -> 202009 | T47: =TEXT(T52,"YYYYMM")+0 -> 202012 | U47: =TEXT(U52,"YYYYMM")+0 -> 202003 | V47: 202006 | W47: 202009 | X47: 202012 | Y47: 202003 | Z47: 202006 | AA47: 202009 | AB47: 202012
D48: Assets | O48: Financial Assets
D50: Volumes bn EUR | O50: % of total financial assets
F51: Total Assets | J51: Total Financial Assets | Q51: Share of financial assets valued at (amortised) cost | U51: Share of financial assets at fair value through OCI | Y51: Share of financial assets at fair value through profit&loss
F52: =EOMONTH($A$3,-9) -> 2020-03-31 | G52: =EOMONTH($A$3,-6) -> 2020-06-30 | H52: =EOMONTH($A$3,-3) -> 2020-09-30 | I52: =$A$3 -> 2020-12-01 | J52: =EOMONTH($A$3,-9) -> 2020-03-31 | K52: =EOMONTH($A$3,-6) -> 2020-06-30 | L52: =EOMONTH($A$3,-3) -> 2020-09-30 | M52: =$A$3 -> 2020-12-01 | Q52: =EOMONTH($A$3,-9) -> 2020-03-31 | R52: =EOMONTH($A$3,-6) -> 2020-06-30 | S52: =EOMONTH($A$3,-3) -> 2020-09-30 | T52: =$A$3 -> 2020-12-01 | U52: =EOMONTH($A$3,-9) -> 2020-03-31 | V52: =EOMONTH($A$3,-6) -> 2020-06-30 | W52: =EOMONTH($A$3,-3) -> 2020-09-30 | X52: =$A$3 -> 2020-12-01 | Y52: =EOMONTH($A$3,-9) -> 2020-03-31 | Z52: =EOMONTH($A$3,-6) -> 2020-06-30 | AA52: =EOMONTH($A$3,-3) -> 2020-09-30 | AB52: =$A$3 -> 2020-12-01
B53: AT | D53: =IF(OR(F53="n.a.",G53="n.a.",H53="n.a.",I53="n.a.",J53="n.a.",K53="n.a.",L53="n.a.",M53="n.a."),$B53&"*",$B53) -> AT | F53: =IFERROR(INDEX('Data Annex'!$K$1:$AN$869,MATCH(Assets!F$46&"|"&Assets!$B53,'Data Annex'!$K$1:$K$869,0),MATCH(Assets!F$47,'Data Annex'!$K$1:$AN$1,0)),"") -> 650.3351427 | G53: =IFERROR(INDEX('Data Annex'!$K$1:$AN$869,MATCH(Assets!G$46&"|"&Assets!$B53,'Data Annex'!$K$1:$K$869,0),MATCH(Assets!G$47,'Data Annex'!$K$1:$AN$1,0)),"") -> 683.4007252 | H53: =IFERROR(INDEX('Data Annex'!$K$1:$AN$869,MATCH(Assets!H$46&"|"&Assets!$B53,'Data Annex'!$K$1:$K$869,0),MATCH(Assets!H$47,'Data Annex'!$K$1:$AN$1,0)),"") -> 692.1961347 | I53: =IFERROR(INDEX('Data Annex'!$K$1:$AN$869,MATCH(Assets!I$46&"|"&Assets!$B53,'Data Annex'!$K$1:$K$869,0),MATCH(Assets!I$47,'Data Annex'!$K$1:$AN$1,0)),"") -> 705.0132859 | J53: =IFERROR(INDEX('Data Annex'!$K$1:$AN$869,MATCH(Assets!J$46&"|"&Assets!$B53,'Data Annex'!$K$1:$K$869,0),MATCH(Assets!J$47,'Data Annex'!$K$1:$AN$1,0)),"") -> 627.5578988 | K53: =IFERROR(INDEX('Data Annex'!$K$1:$AN$869,MATCH(Assets!K$46&"|"&Assets!$B53,'Data Annex'!$K$1:$K$869,0),MATCH(Assets!K$47,'Data Annex'!$K$1:$AN$1,0)),"") -> 660.643585 | L53: =IFERROR(INDEX('Data Annex'!$K$1:$AN$869,MATCH(Assets!L$46&"|"&Assets!$B53,'Data Annex'!$K$1:$K$869,0),MATCH(Assets!L$47,'Data Annex'!$K$1:$AN$1,0)),"") -> 669.4861932 | M53: =IFERROR(INDEX('Data Annex'!$K$1:$AN$869,MATCH(Assets!M$46&"|"&Assets!$B53,'Data Annex'!$K$1:$K$869,0),MATCH(Assets!M$47,'Data Annex'!$K$1:$AN$1,0)),"") -> 682.3402223 | N53: =M53/I53 -> 0.9678402321 | O53: =+D53 -> AT | Q53: =IFERROR(INDEX('Data Annex'!$K$1:$AN$869,MATCH(Assets!Q$46&"|"&Assets!$B53,'Data Annex'!$K$1:$K$869,0),MATCH(Assets!Q$47,'Data Annex'!$K$1:$AN$1,0)),"") -> 0.8906043099 | R53: =IFERROR(INDEX('Data Annex'!$K$1:$AN$869,MATCH(Assets!R$46&"|"&Assets!$B53,'Data Annex'!$K$1:$K$869,0),MATCH(Assets!R$47,'Data Annex'!$K$1:$AN$1,0)),"") -> 0.8968952138 | S53: =IFERROR(INDEX('Data Annex'!$K$1:$AN$869,MATCH(Assets!S$46&"|"&Assets!$B53,'Data Annex'!$K$1:$K$869,0),MATCH(Assets!S$47,'Data Annex'!$K$1:$AN$1,0)),"") -> 0.9041410902 | T53: =IFERROR(INDEX('Data Annex'!$K$1:$AN$869,MATCH(Assets!T$46&"|"&Assets!$B53,'Data Annex'!$K$1:$K$869,0),MATCH(Assets!T$47,'Data Annex'!$K$1:$AN$1,0)),"") -> 0.9078177729 | U53: =IFERROR(INDEX('Data Annex'!$K$1:$AN$869,MATCH(Assets!U$46&"|"&Assets!$B53,'Data Annex'!$K$1:$K$869,0),MATCH(Assets!U$47,'Data Annex'!$K$1:$AN$1,0)),"") -> 0.0614478503 | V53: =IFERROR(INDEX('Data Annex'!$K$1:$AN$869,MATCH(Assets!V$46&"|"&Assets!$B53,'Data Annex'!$K$1:$K$869,0),MATCH(Assets!V$47,'Data Annex'!$K$1:$AN$1,0)),"") -> 0.0609447226 | W53: =IFERROR(INDEX('Data Annex'!$K$1:$AN$869,MATCH(Assets!W$46&"|"&Assets!$B53,'Data Annex'!$K$1:$K$869,0),MATCH(Assets!W$47,'Data Annex'!$K$1:$AN$1,0)),"") -> 0.0557268353 | X53: =IFERROR(INDEX('Data Annex'!$K$1:$AN$869,MATCH(Assets!X$46&"|"&Assets!$B53,'Data Annex'!$K$1:$K$869,0),MATCH(Assets!X$47,'Data Annex'!$K$1:$AN$1,0)),"") -> 0.0539731566 | Y53: =IFERROR(INDEX('Data Annex'!$K$1:$AN$869,MATCH(Assets!Y$46&"|"&Assets!$B53,'Data Annex'!$K$1:$K$869,0),MATCH(Assets!Y$47,'Data Annex'!$K$1:$AN$1,0)),"") -> 0.0479478398 | Z53: =IFERROR(INDEX('Data Annex'!$K$1:$AN$869,MATCH(Assets!Z$46&"|"&Assets!$B53,'Data Annex'!$K$1:$K$869,0),MATCH(Assets!Z$47,'Data Annex'!$K$1:$AN$1,0)),"") -> 0.0421600635 | AA53: =IFERROR(INDEX('Data Annex'!$K$1:$AN$869,MATCH(Assets!AA$46&"|"&Assets!$B53,'Data Annex'!$K$1:$K$869,0),MATCH(Assets!AA$47,'Data Annex'!$K$1:$AN$1,0)),"") -> 0.0401320744 | AB53: =IFERROR(INDEX('Data Annex'!$K$1:$AN$869,MATCH(Assets!AB$46&"|"&Assets!$B53,'Data Annex'!$K$1:$K$869,0),MATCH(Assets!AB$47,'Data Annex'!$K$1:$AN$1,0)),"") -> 0.0382090705
B54: BE | D54: =IF(OR(F54="n.a.",G54="n.a.",H54="n.a.",I54="n.a.",J54="n.a.",K54="n.a.",L54="n.a.",M54="n.a."),$B54&"*",$B54) -> BE | F54: =IFERROR(INDEX('Data Annex'!$K$1:$AN$869,MATCH(Assets!F$46&"|"&Assets!$B54,'Data Annex'!$K$1:$K$869,0),MATCH(Assets!F$47,'Data Annex'!$K$1:$AN$1,0)),"") -> 1184.206513 | G54: =IFERROR(INDEX('Data Annex'!$K$1:$AN$869,MATCH(Assets!G$46&"|"&Assets!$B54,'Data Annex'!$K$1:$K$869,0),MATCH(Assets!G$47,'Data Annex'!$K$1:$AN$1,0)),"") -> 1203.992874 | H54: =IFERROR(INDEX('Data Annex'!$K$1:$AN$869,MATCH(Assets!H$46&"|"&Assets!$B54,'Data Annex'!$K$1:$K$869,0),MATCH(Assets!H$47,'Data Annex'!$K$1:$AN$1,0)),"") -> 1194.63946 | I54: =IFERROR(INDEX('Data Annex'!$K$1:$AN$869,MATCH(Assets!I$46&"|"&Assets!$B54,'Data Annex'!$K$1:$K$869,0),MATCH(Assets!I$47,'Data Annex'!$K$1:$AN$1,0)),"") -> 1193.725979 | J54: =IFERROR(INDEX('Data Annex'!$K$1:$AN$869,MATCH(Assets!J$46&"|"&Assets!$B54,'Data Annex'!$K$1:$K$869,0),MATCH(Assets!J$47,'Data Annex'!$K$1:$AN$1,0)),"") -> 1113.998201 | K54: =IFERROR(INDEX('Data Annex'!$K$1:$AN$869,MATCH(Assets!K$46&"|"&Assets!$B54,'Data Annex'!$K$1:$K$869,0),MATCH(Assets!K$47,'Data Annex'!$K$1:$AN$1,0)),"") -> 1133.306731 | L54: =IFERROR(INDEX('Data Annex'!$K$1:$AN$869,MATCH(Assets!L$46&"|"&Assets!$B54,'Data Annex'!$K$1:$K$869,0),MATCH(Assets!L$47,'Data Annex'!$K$1:$AN$1,0)),"") -> 1125.484364 | M54: =IFERROR(INDEX('Data Annex'!$K$1:$AN$869,MATCH(Assets!M$46&"|"&Assets!$B54,'Data Annex'!$K$1:$K$869,0),MATCH(Assets!M$47,'Data Annex'!$K$1:$AN$1,0)),"") -> 1123.959252 | N54: =M54/I54 -> 0.9415554926 | O54: BE | Q54: =IFERROR(INDEX('Data Annex'!$K$1:$AN$869,MATCH(Assets!Q$46&"|"&Assets!$B54,'Data Annex'!$K$1:$K$869,0),MATCH(Assets!Q$47,'Data Annex'!$K$1:$AN$1,0)),"") -> 0.8843426539 | R54: =IFERROR(INDEX('Data Annex'!$K$1:$AN$869,MATCH(Assets!R$46&"|"&Assets!$B54,'Data Annex'!$K$1:$K$869,0),MATCH(Assets!R$47,'Data Annex'!$K$1:$AN$1,0)),"") -> 0.8868220369 | S54: =IFERROR(INDEX('Data Annex'!$K$1:$AN$869,MATCH(Assets!S$46&"|"&Assets!$B54,'Data Annex'!$K$1:$K$869,0),MATCH(Assets!S$47,'Data Annex'!$K$1:$AN$1,0)),"") -> 0.8923012843 | T54: =IFERROR(INDEX('Data Annex'!$K$1:$AN$869,MATCH(Assets!T$46&"|"&Assets!$B54,'Data Annex'!$K$1:$K$869,0),MATCH(Assets!T$47,'Data Annex'!$K$1:$AN$1,0)),"") -> 0.9020368774 | U54: =IFERROR(INDEX('Data Annex'!$K$1:$AN$869,MATCH(Assets!U$46&"|"&Assets!$B54,'Data Annex'!$K$1:$K$869,0),MATCH(Assets!U$47,'Data Annex'!$K$1:$AN$1,0)),"") -> 0.0384907027 | V54: =IFERROR(INDEX('Data Annex'!$K$1:$AN$869,MATCH(Assets!V$46&"|"&Assets!$B54,'Data Annex'!$K$1:$K$869,0),MATCH(Assets!V$47,'Data Annex'!$K$1:$AN$1,0)),"") -> 0.0406516805 | W54: =IFERROR(INDEX('Data Annex'!$K$1:$AN$869,MATCH(Assets!W$46&"|"&Assets!$B54,'Data Annex'!$K$1:$K$869,0),MATCH(Assets!W$47,'Data Annex'!$K$1:$AN$1,0)),"") -> 0.0380941387 | X54: =IFERROR(INDEX('Data Annex'!$K$1:$AN$869,MATCH(Assets!X$46&"|"&Assets!$B54,'Data Annex'!$K$1:$K$869,0),MATCH(Assets!X$47,'Data Annex'!$K$1:$AN$1,0)),"") -> 0.0367357918 | Y54: =IFERROR(INDEX('Data Annex'!$K$1:$AN$869,MATCH(Assets!Y$46&"|"&Assets!$B54,'Data Annex'!$K$1:$K$869,0),MATCH(Assets!Y$47,'Data Annex'!$K$1:$AN$1,0)),"") -> 0.0771666434 | Z54: =IFERROR(INDEX('Data Annex'!$K$1:$AN$869,MATCH(Assets!Z$46&"|"&Assets!$B54,'Data Annex'!$K$1:$K$869,0),MATCH(Assets!Z$47,'Data Annex'!$K$1:$AN$1,0)),"") -> 0.0725262826 | AA54: =IFERROR(INDEX('Data Annex'!$K$1:$AN$869,MATCH(Assets!AA$46&"|"&Assets!$B54,'Data Annex'!$K$1:$K$869,0),MATCH(Assets!AA$47,'Data Annex'!$K$1:$AN$1,0)),"") -> 0.069604577 | AB54: =IFERROR(INDEX('Data Annex'!$K$1:$AN$869,MATCH(Assets!AB$46&"|"&Assets!$B54,'Data Annex'!$K$1:$K$869,0),MATCH(Assets!AB$47,'Data Annex'!$K$1:$AN$1,0)),"") -> 0.0612273308
B55: BG | D55: BG | F55: =IFERROR(INDEX('Data Annex'!$K$1:$AN$869,MATCH(Assets!F$46&"|"&Assets!$B55,'Data Annex'!$K$1:$K$869,0),MATCH(Assets!F$47,'Data Annex'!$K$1:$AN$1,0)),"") -> 33.88459147 | G55: =IFERROR(INDEX('Data Annex'!$K$1:$AN$869,MATCH(Assets!G$46&"|"&Assets!$B55,'Data Annex'!$K$1:$K$869,0),MATCH(Assets!G$47,'Data Annex'!$K$1:$AN$1,0)),"") -> 34.0637151 | H55: =IFERROR(INDEX('Data Annex'!$K$1:$AN$869,MATCH(Assets!H$46&"|"&Assets!$B55,'Data Annex'!$K$1:$K$869,0),MATCH(Assets!H$47,'Data Annex'!$K$1:$AN$1,0)),"") -> 35.17179313 | I55: =IFERROR(INDEX('Data Annex'!$K$1:$AN$869,MATCH(Assets!I$46&"|"&Assets!$B55,'Data Annex'!$K$1:$K$869,0),MATCH(Assets!I$47,'Data Annex'!$K$1:$AN$1,0)),"") -> 36.59542131 | J55: =IFERROR(INDEX('Data Annex'!$K$1:$AN$869,MATCH(Assets!J$46&"|"&Assets!$B55,'Data Annex'!$K$1:$K$869,0),MATCH(Assets!J$47,'Data Annex'!$K$1:$AN$1,0)),"") -> 32.14101237 | K55: =IFERROR(INDEX('Data Annex'!$K$1:$AN$869,MATCH(Assets!K$46&"|"&Assets!$B55,'Data Annex'!$K$1:$K$869,0),MATCH(Assets!K$47,'Data Annex'!$K$1:$AN$1,0)),"") -> 32.46579303 | L55: =IFERROR(INDEX('Data Annex'!$K$1:$AN$869,MATCH(Assets!L$46&"|"&Assets!$B55,'Data Annex'!$K$1:$K$869,0),MATCH(Assets!L$47,'Data Annex'!$K$1:$AN$1,0)),"") -> 33.57361693 | M55: =IFERROR(INDEX('Data Annex'!$K$1:$AN$869,MATCH(Assets!M$46&"|"&Assets!$B55,'Data Annex'!$K$1:$K$869,0),MATCH(Assets!M$47,'Data Annex'!$K$1:$AN$1,0)),"") -> 35.037579 | N55: 0.9574306769 | O55: BG | Q55: =IFERROR(INDEX('Data Annex'!$K$1:$AN$869,MATCH(Assets!Q$46&"|"&Assets!$B55,'Data Annex'!$K$1:$K$869,0),MATCH(Assets!Q$47,'Data Annex'!$K$1:$AN$1,0)),"") -> 0.8715538943 | R55: =IFERROR(INDEX('Data Annex'!$K$1:$AN$869,MATCH(Assets!R$46&"|"&Assets!$B55,'Data Annex'!$K$1:$K$869,0),MATCH(Assets!R$47,'Data Annex'!$K$1:$AN$1,0)),"") -> 0.8748735798 | S55: =IFERROR(INDEX('Data Annex'!$K$1:$AN$869,MATCH(Assets!S$46&"|"&Assets!$B55,'Data Annex'!$K$1:$K$869,0),MATCH(Assets!S$47,'Data Annex'!$K$1:$AN$1,0)),"") -> 0.8787684075 | T55: =IFERROR(INDEX('Data Annex'!$K$1:$AN$869,MATCH(Assets!T$46&"|"&Assets!$B55,'Data Annex'!$K$1:$K$869,0),MATCH(Assets!T$47,'Data Annex'!$K$1:$AN$1,0)),"") -> 0.8830303992 | U55: =IFERROR(INDEX('Data Annex'!$K$1:$AN$869,MATCH(Assets!U$46&"|"&Assets!$B55,'Data Annex'!$K$1:$K$869,0),MATCH(Assets!U$47,'Data Annex'!$K$1:$AN$1,0)),"") -> 0.1165408173 | V55: =IFERROR(INDEX('Data Annex'!$K$1:$AN$869,MATCH(Assets!V$46&"|"&Assets!$B55,'Data Annex'!$K$1:$K$869,0),MATCH(Assets!V$47,'Data Annex'!$K$1:$AN$1,0)),"") -> 0.1150578335 | W55: =IFERROR(INDEX('Data Annex'!$K$1:$AN$869,MATCH(Assets!W$46&"|"&Assets!$B55,'Data Annex'!$K$1:$K$869,0),MATCH(Assets!W$47,'Data Annex'!$K$1:$AN$1,0)),"") -> 0.1111537377 | X55: =IFERROR(INDEX('Data Annex'!$K$1:$AN$869,MATCH(Assets!X$46&"|"&Assets!$B55,'Data Annex'!$K$1:$K$869,0),MATCH(Assets!X$47,'Data Annex'!$K$1:$AN$1,0)),"") -> 0.1067015727 | Y55: =IFERROR(INDEX('Data Annex'!$K$1:$AN$869,MATCH(Assets!Y$46&"|"&Assets!$B55,'Data Annex'!$K$1:$K$869,0),MATCH(Assets!Y$47,'Data Annex'!$K$1:$AN$1,0)),"") -> 0.0119052884 | Z55: =IFERROR(INDEX('Data Annex'!$K$1:$AN$869,MATCH(Assets!Z$46&"|"&Assets!$B55,'Data Annex'!$K$1:$K$869,0),MATCH(Assets!Z$47,'Data Annex'!$K$1:$AN$1,0)),"") -> 0.0100685867 | AA55: =IFERROR(INDEX('Data Annex'!$K$1:$AN$869,MATCH(Assets!AA$46&"|"&Assets!$B55,'Data Annex'!$K$1:$K$869,0),MATCH(Assets!AA$47,'Data Annex'!$K$1:$AN$1,0)),"") -> 0.0100778548 | AB55: =IFERROR(INDEX('Data Annex'!$K$1:$AN$869,MATCH(Assets!AB$46&"|"&Assets!$B55,'Data Annex'!$K$1:$K$869,0),MATCH(Assets!AB$47,'Data Annex'!$K$1:$AN$1,0)),"") -> 0.0102680281
B56: CY | D56: CY | F56: =IFERROR(INDEX('Data Annex'!$K$1:$AN$869,MATCH(Assets!F$46&"|"&Assets!$B56,'Data Annex'!$K$1:$K$869,0),MATCH(Assets!F$47,'Data Annex'!$K$1:$AN$1,0)),"") -> 35.332268 | G56: =IFERROR(INDEX('Data Annex'!$K$1:$AN$869,MATCH(Assets!G$46&"|"&Assets!$B56,'Data Annex'!$K$1:$K$869,0),MATCH(Assets!G$47,'Data Annex'!$K$1:$AN$1,0)),"") -> 36.30971339 | H56: =IFERROR(INDEX('Data Annex'!$K$1:$AN$869,MATCH(Assets!H$46&"|"&Assets!$B56,'Data Annex'!$K$1:$K$869,0),MATCH(Assets!H$47,'Data Annex'!$K$1:$AN$1,0)),"") -> 36.27881587 | I56: =IFERROR(INDEX('Data Annex'!$K$1:$AN$869,MATCH(Assets!I$46&"|"&Assets!$B56,'Data Annex'!$K$1:$K$869,0),MATCH(Assets!I$47,'Data Annex'!$K$1:$AN$1,0)),"") -> 36.35587563 | J56: =IFERROR(INDEX('Data Annex'!$K$1:$AN$869,MATCH(Assets!J$46&"|"&Assets!$B56,'Data Annex'!$K$1:$K$869,0),MATCH(Assets!J$47,'Data Annex'!$K$1:$AN$1,0)),"") -> 32.356458 | K56: =IFERROR(INDEX('Data Annex'!$K$1:$AN$869,MATCH(Assets!K$46&"|"&Assets!$B56,'Data Annex'!$K$1:$K$869,0),MATCH(Assets!K$47,'Data Annex'!$K$1:$AN$1,0)),"") -> 33.04124857 | L56: =IFERROR(INDEX('Data Annex'!$K$1:$AN$869,MATCH(Assets!L$46&"|"&Assets!$B56,'Data Annex'!$K$1:$K$869,0),MATCH(Assets!L$47,'Data Annex'!$K$1:$AN$1,0)),"") -> 32.95662734 | M56: =IFERROR(INDEX('Data Annex'!$K$1:$AN$869,MATCH(Assets!M$46&"|"&Assets!$B56,'Data Annex'!$K$1:$K$869,0),MATCH(Assets!M$47,'Data Annex'!$K$1:$AN$1,0)),"") -> 32.92145339 | N56: 0.9055332274 | O56: CY | Q56: =IFERROR(INDEX('Data Annex'!$K$1:$AN$869,MATCH(Assets!Q$46&"|"&Assets!$B56,'Data Annex'!$K$1:$K$869,0),MATCH(Assets!Q$47,'Data Annex'!$K$1:$AN$1,0)),"") -> 0.9483834417 | R56: =IFERROR(INDEX('Data Annex'!$K$1:$AN$869,MATCH(Assets!R$46&"|"&Assets!$B56,'Data Annex'!$K$1:$K$869,0),MATCH(Assets!R$47,'Data Annex'!$K$1:$AN$1,0)),"") -> 0.9543673306 | S56: =IFERROR(INDEX('Data Annex'!$K$1:$AN$869,MATCH(Assets!S$46&"|"&Assets!$B56,'Data Annex'!$K$1:$K$869,0),MATCH(Assets!S$47,'Data Annex'!$K$1:$AN$1,0)),"") -> 0.955791847 | T56: =IFERROR(INDEX('Data Annex'!$K$1:$AN$869,MATCH(Assets!T$46&"|"&Assets!$B56,'Data Annex'!$K$1:$K$869,0),MATCH(Assets!T$47,'Data Annex'!$K$1:$AN$1,0)),"") -> 0.9611545672 | U56: =IFERROR(INDEX('Data Annex'!$K$1:$AN$869,MATCH(Assets!U$46&"|"&Assets!$B56,'Data Annex'!$K$1:$K$869,0),MATCH(Assets!U$47,'Data Annex'!$K$1:$AN$1,0)),"") -> 0.0411619529 | V56: =IFERROR(INDEX('Data Annex'!$K$1:$AN$869,MATCH(Assets!V$46&"|"&Assets!$B56,'Data Annex'!$K$1:$K$869,0),MATCH(Assets!V$47,'Data Annex'!$K$1:$AN$1,0)),"") -> 0.0351524819 | W56: =IFERROR(INDEX('Data Annex'!$K$1:$AN$869,MATCH(Assets!W$46&"|"&Assets!$B56,'Data Annex'!$K$1:$K$869,0),MATCH(Assets!W$47,'Data Annex'!$K$1:$AN$1,0)),"") -> 0.0335326989 | X56: =IFERROR(INDEX('Data Annex'!$K$1:$AN$869,MATCH(Assets!X$46&"|"&Assets!$B56,'Data Annex'!$K$1:$K$869,0),MATCH(Assets!X$47,'Data Annex'!$K$1:$AN$1,0)),"") -> 0.0282086665 | Y56: =IFERROR(INDEX('Data Annex'!$K$1:$AN$869,MATCH(Assets!Y$46&"|"&Assets!$B56,'Data Annex'!$K$1:$K$869,0),MATCH(Assets!Y$47,'Data Annex'!$K$1:$AN$1,0)),"") -> 0.0104546054 | Z56: =IFERROR(INDEX('Data Annex'!$K$1:$AN$869,MATCH(Assets!Z$46&"|"&Assets!$B56,'Data Annex'!$K$1:$K$869,0),MATCH(Assets!Z$47,'Data Annex'!$K$1:$AN$1,0)),"") -> 0.0104801876 | AA56: =IFERROR(INDEX('Data Annex'!$K$1:$AN$869,MATCH(Assets!AA$46&"|"&Assets!$B56,'Data Annex'!$K$1:$K$869,0),MATCH(Assets!AA$47,'Data Annex'!$K$1:$AN$1,0)),"") -> 0.0106754541 | AB56: =IFERROR(INDEX('Data Annex'!$K$1:$AN$869,MATCH(Assets!AB$46&"|"&Assets!$B56,'Data Annex'!$K$1:$K$869,0),MATCH(Assets!AB$47,'Data Annex'!$K$1:$AN$1,0)),"") -> 0.0106367663
B57: CZ | D57: CZ | F57: =IFERROR(INDEX('Data Annex'!$K$1:$AN$869,MATCH(Assets!F$46&"|"&Assets!$B57,'Data Annex'!$K$1:$K$869,0),MATCH(Assets!F$47,'Data Annex'!$K$1:$AN$1,0)),"") -> 172.8526044 | G57: =IFERROR(INDEX('Data Annex'!$K$1:$AN$869,MATCH(Assets!G$46&"|"&Assets!$B57,'Data Annex'!$K$1:$K$869,0),MATCH(Assets!G$47,'Data Annex'!$K$1:$AN$1,0)),"") -> 174.4290417 | H57: =IFERROR(INDEX('Data Annex'!$K$1:$AN$869,MATCH(Assets!H$46&"|"&Assets!$B57,'Data Annex'!$K$1:$K$869,0),MATCH(Assets!H$47,'Data Annex'!$K$1:$AN$1,0)),"") -> 171.7714256 | I57: =IFERROR(INDEX('Data Annex'!$K$1:$AN$869,MATCH(Assets!I$46&"|"&Assets!$B57,'Data Annex'!$K$1:$K$869,0),MATCH(Assets!I$47,'Data Annex'!$K$1:$AN$1,0)),"") -> 170.0010821 | J57: =IFERROR(INDEX('Data Annex'!$K$1:$AN$869,MATCH(Assets!J$46&"|"&Assets!$B57,'Data Annex'!$K$1:$K$869,0),MATCH(Assets!J$47,'Data Annex'!$K$1:$AN$1,0)),"") -> 169.600824 | K57: =IFERROR(INDEX('Data Annex'!$K$1:$AN$869,MATCH(Assets!K$46&"|"&Assets!$B57,'Data Annex'!$K$1:$K$869,0),MATCH(Assets!K$47,'Data Annex'!$K$1:$AN$1,0)),"") -> 171.0277075 | L57: =IFERROR(INDEX('Data Annex'!$K$1:$AN$869,MATCH(Assets!L$46&"|"&Assets!$B57,'Data Annex'!$K$1:$K$869,0),MATCH(Assets!L$47,'Data Annex'!$K$1:$AN$1,0)),"") -> 168.4551541 | M57: =IFERROR(INDEX('Data Annex'!$K$1:$AN$869,MATCH(Assets!M$46&"|"&Assets!$B57,'Data Annex'!$K$1:$K$869,0),MATCH(Assets!M$47,'Data Annex'!$K$1:$AN$1,0)),"") -> 166.6324876 | N57: 0.9801848639 | O57: CZ | Q57: =IFERROR(INDEX('Data Annex'!$K$1:$AN$869,MATCH(Assets!Q$46&"|"&Assets!$B57,'Data Annex'!$K$1:$K$869,0),MATCH(Assets!Q$47,'Data Annex'!$K$1:$AN$1,0)),"") -> 0.9489489939 | R57: =IFERROR(INDEX('Data Annex'!$K$1:$AN$869,MATCH(Assets!R$46&"|"&Assets!$B57,'Data Annex'!$K$1:$K$869,0),MATCH(Assets!R$47,'Data Annex'!$K$1:$AN$1,0)),"") -> 0.9412799347 | S57: =IFERROR(INDEX('Data Annex'!$K$1:$AN$869,MATCH(Assets!S$46&"|"&Assets!$B57,'Data Annex'!$K$1:$K$869,0),MATCH(Assets!S$47,'Data Annex'!$K$1:$AN$1,0)),"") -> 0.9451083652 | T57: =IFERROR(INDEX('Data Annex'!$K$1:$AN$869,MATCH(Assets!T$46&"|"&Assets!$B57,'Data Annex'!$K$1:$K$869,0),MATCH(Assets!T$47,'Data Annex'!$K$1:$AN$1,0)),"") -> 0.9572400468 | U57: =IFERROR(INDEX('Data Annex'!$K$1:$AN$869,MATCH(Assets!U$46&"|"&Assets!$B57,'Data Annex'!$K$1:$K$869,0),MATCH(Assets!U$47,'Data Annex'!$K$1:$AN$1,0)),"") -> 0.016243105 | V57: =IFERROR(INDEX('Data Annex'!$K$1:$AN$869,MATCH(Assets!V$46&"|"&Assets!$B57,'Data Annex'!$K$1:$K$869,0),MATCH(Assets!V$47,'Data Annex'!$K$1:$AN$1,0)),"") -> 0.0227793656 | W57: =IFERROR(INDEX('Data Annex'!$K$1:$AN$869,MATCH(Assets!W$46&"|"&Assets!$B57,'Data Annex'!$K$1:$K$869,0),MATCH(Assets!W$47,'Data Annex'!$K$1:$AN$1,0)),"") -> 0.0211492422 | X57: =IFERROR(INDEX('Data Annex'!$K$1:$AN$869,MATCH(Assets!X$46&"|"&Assets!$B57,'Data Annex'!$K$1:$K$869,0),MATCH(Assets!X$47,'Data Annex'!$K$1:$AN$1,0)),"") -> 0.0190680468 | Y57: =IFERROR(INDEX('Data Annex'!$K$1:$AN$869,MATCH(Assets!Y$46&"|"&Assets!$B57,'Data Annex'!$K$1:$K$869,0),MATCH(Assets!Y$47,'Data Annex'!$K$1:$AN$1,0)),"") -> 0.0348079011 | Z57: =IFERROR(INDEX('Data Annex'!$K$1:$AN$869,MATCH(Assets!Z$46&"|"&Assets!$B57,'Data Annex'!$K$1:$K$869,0),MATCH(Assets!Z$47,'Data Annex'!$K$1:$AN$1,0)),"") -> 0.0359406997 | AA57: =IFERROR(INDEX('Data Annex'!$K$1:$AN$869,MATCH(Assets!AA$46&"|"&Assets!$B57,'Data Annex'!$K$1:$K$869,0),MATCH(Assets!AA$47,'Data Annex'!$K$1:$AN$1,0)),"") -> 0.0337423926 | AB57: =IFERROR(INDEX('Data Annex'!$K$1:$AN$869,MATCH(Assets!AB$46&"|"&Assets!$B57,'Data Annex'!$K$1:$K$869,0),MATCH(Assets!AB$47,'Data Annex'!$K$1:$AN$1,0)),"") -> 0.0236919064
B58: DE | D58: DE | F58: =IFERROR(INDEX('Data Annex'!$K$1:$AN$869,MATCH(Assets!F$46&"|"&Assets!$B58,'Data Annex'!$K$1:$K$869,0),MATCH(Assets!F$47,'Data Annex'!$K$1:$AN$1,0)),"") -> 3940.609298 | G58: =IFERROR(INDEX('Data Annex'!$K$1:$AN$869,MATCH(Assets!G$46&"|"&Assets!$B58,'Data Annex'!$K$1:$K$869,0),MATCH(Assets!G$47,'Data Annex'!$K$1:$AN$1,0)),"") -> 3938.499893 | H58: =IFERROR(INDEX('Data Annex'!$K$1:$AN$869,MATCH(Assets!H$46&"|"&Assets!$B58,'Data Annex'!$K$1:$K$869,0),MATCH(Assets!H$47,'Data Annex'!$K$1:$AN$1,0)),"") -> 3915.716318 | I58: =IFERROR(INDEX('Data Annex'!$K$1:$AN$869,MATCH(Assets!I$46&"|"&Assets!$B58,'Data Annex'!$K$1:$K$869,0),MATCH(Assets!I$47,'Data Annex'!$K$1:$AN$1,0)),"") -> 3742.68177 | J58: =IFERROR(INDEX('Data Annex'!$K$1:$AN$869,MATCH(Assets!J$46&"|"&Assets!$B58,'Data Annex'!$K$1:$K$869,0),MATCH(Assets!J$47,'Data Annex'!$K$1:$AN$1,0)),"") -> 3834.191326 | K58: =IFERROR(INDEX('Data Annex'!$K$1:$AN$869,MATCH(Assets!K$46&"|"&Assets!$B58,'Data Annex'!$K$1:$K$869,0),MATCH(Assets!K$47,'Data Annex'!$K$1:$AN$1,0)),"") -> 3836.154822 | L58: =IFERROR(INDEX('Data Annex'!$K$1:$AN$869,MATCH(Assets!L$46&"|"&Assets!$B58,'Data Annex'!$K$1:$K$869,0),MATCH(Assets!L$47,'Data Annex'!$K$1:$AN$1,0)),"") -> 3814.524888 | M58: =IFERROR(INDEX('Data Annex'!$K$1:$AN$869,MATCH(Assets!M$46&"|"&Assets!$B58,'Data Annex'!$K$1:$K$869,0),MATCH(Assets!M$47,'Data Annex'!$K$1:$AN$1,0)),"") -> 3642.934278 | N58: 0.9733486577 | O58: DE | Q58: =IFERROR(INDEX('Data Annex'!$K$1:$AN$869,MATCH(Assets!Q$46&"|"&Assets!$B58,'Data Annex'!$K$1:$K$869,0),MATCH(Assets!Q$47,'Data Annex'!$K$1:$AN$1,0)),"") -> 0.682269238 | R58: =IFERROR(INDEX('Data Annex'!$K$1:$AN$869,MATCH(Assets!R$46&"|"&Assets!$B58,'Data Annex'!$K$1:$K$869,0),MATCH(Assets!R$47,'Data Annex'!$K$1:$AN$1,0)),"") -> 0.6967062709 | S58: =IFERROR(INDEX('Data Annex'!$K$1:$AN$869,MATCH(Assets!S$46&"|"&Assets!$B58,'Data Annex'!$K$1:$K$869,0),MATCH(Assets!S$47,'Data Annex'!$K$1:$AN$1,0)),"") -> 0.7048212328 | T58: =IFERROR(INDEX('Data Annex'!$K$1:$AN$869,MATCH(Assets!T$46&"|"&Assets!$B58,'Data Annex'!$K$1:$K$869,0),MATCH(Assets!T$47,'Data Annex'!$K$1:$AN$1,0)),"") -> 0.7016630738 | U58: =IFERROR(INDEX('Data Annex'!$K$1:$AN$869,MATCH(Assets!U$46&"|"&Assets!$B58,'Data Annex'!$K$1:$K$869,0),MATCH(Assets!U$47,'Data Annex'!$K$1:$AN$1,0)),"") -> 0.0595575027 | V58: =IFERROR(INDEX('Data Annex'!$K$1:$AN$869,MATCH(Assets!V$46&"|"&Assets!$B58,'Data Annex'!$K$1:$K$869,0),MATCH(Assets!V$47,'Data Annex'!$K$1:$AN$1,0)),"") -> 0.0623231241 | W58: =IFERROR(INDEX('Data Annex'!$K$1:$AN$869,MATCH(Assets!W$46&"|"&Assets!$B58,'Data Annex'!$K$1:$K$869,0),MATCH(Assets!W$47,'Data Annex'!$K$1:$AN$1,0)),"") -> 0.0642457177 | X58: =IFERROR(INDEX('Data Annex'!$K$1:$AN$869,MATCH(Assets!X$46&"|"&Assets!$B58,'Data Annex'!$K$1:$K$869,0),MATCH(Assets!X$47,'Data Annex'!$K$1:$AN$1,0)),"") -> 0.0673945378 | Y58: =IFERROR(INDEX('Data Annex'!$K$1:$AN$869,MATCH(Assets!Y$46&"|"&Assets!$B58,'Data Annex'!$K$1:$K$869,0),MATCH(Assets!Y$47,'Data Annex'!$K$1:$AN$1,0)),"") -> 0.2584173741 | Z58: =IFERROR(INDEX('Data Annex'!$K$1:$AN$869,MATCH(Assets!Z$46&"|"&Assets!$B58,'Data Annex'!$K$1:$K$869,0),MATCH(Assets!Z$47,'Data Annex'!$K$1:$AN$1,0)),"") -> 0.24121301 | AA58: =IFERROR(INDEX('Data Annex'!$K$1:$AN$869,MATCH(Assets!AA$46&"|"&Assets!$B58,'Data Annex'!$K$1:$K$869,0),MATCH(Assets!AA$47,'Data Annex'!$K$1:$AN$1,0)),"") -> 0.2311752458 | AB58: =IFERROR(INDEX('Data Annex'!$K$1:$AN$869,MATCH(Assets!AB$46&"|"&Assets!$B58,'Data Annex'!$K$1:$K$869,0),MATCH(Assets!AB$47,'Data Annex'!$K$1:$AN$1,0)),"") -> 0.2309423884
B59: DK | D59: DK | F59: =IFERROR(INDEX('Data Annex'!$K$1:$AN$869,MATCH(Assets!F$46&"|"&Assets!$B59,'Data Annex'!$K$1:$K$869,0),MATCH(Assets!F$47,'Data Annex'!$K$1:$AN$1,0)),"") -> 789.7571494 | G59: =IFERROR(INDEX('Data Annex'!$K$1:$AN$869,MATCH(Assets!G$46&"|"&Assets!$B59,'Data Annex'!$K$1:$K$869,0),MATCH(Assets!G$47,'Data Annex'!$K$1:$AN$1,0)),"") -> 791.2617091 | H59: =IFERROR(INDEX('Data Annex'!$K$1:$AN$869,MATCH(Assets!H$46&"|"&Assets!$B59,'Data Annex'!$K$1:$K$869,0),MATCH(Assets!H$47,'Data Annex'!$K$1:$AN$1,0)),"") -> 794.2693591 | I59: =IFERROR(INDEX('Data Annex'!$K$1:$AN$869,MATCH(Assets!I$46&"|"&Assets!$B59,'Data Annex'!$K$1:$K$869,0),MATCH(Assets!I$47,'Data Annex'!$K$1:$AN$1,0)),"") -> 813.5481474 | J59: =IFERROR(INDEX('Data Annex'!$K$1:$AN$869,MATCH(Assets!J$46&"|"&Assets!$B59,'Data Annex'!$K$1:$K$869,0),MATCH(Assets!J$47,'Data Annex'!$K$1:$AN$1,0)),"") -> 769.5362274 | K59: =IFERROR(INDEX('Data Annex'!$K$1:$AN$869,MATCH(Assets!K$46&"|"&Assets!$B59,'Data Annex'!$K$1:$K$869,0),MATCH(Assets!K$47,'Data Annex'!$K$1:$AN$1,0)),"") -> 772.4552703 | L59: =IFERROR(INDEX('Data Annex'!$K$1:$AN$869,MATCH(Assets!L$46&"|"&Assets!$B59,'Data Annex'!$K$1:$K$869,0),MATCH(Assets!L$47,'Data Annex'!$K$1:$AN$1,0)),"") -> 775.3180648 | M59: =IFERROR(INDEX('Data Annex'!$K$1:$AN$869,MATCH(Assets!M$46&"|"&Assets!$B59,'Data Annex'!$K$1:$K$869,0),MATCH(Assets!M$47,'Data Annex'!$K$1:$AN$1,0)),"") -> 794.437018 | N59: 0.976508914 | O59: DK | Q59: =IFERROR(INDEX('Data Annex'!$K$1:$AN$869,MATCH(Assets!Q$46&"|"&Assets!$B59,'Data Annex'!$K$1:$K$869,0),MATCH(Assets!Q$47,'Data Annex'!$K$1:$AN$1,0)),"") -> 0.3133201889 | R59: =IFERROR(INDEX('Data Annex'!$K$1:$AN$869,MATCH(Assets!R$46&"|"&Assets!$B59,'Data Annex'!$K$1:$K$869,0),MATCH(Assets!R$47,'Data Annex'!$K$1:$AN$1,0)),"") -> 0.3167152098 | S59: =IFERROR(INDEX('Data Annex'!$K$1:$AN$869,MATCH(Assets!S$46&"|"&Assets!$B59,'Data Annex'!$K$1:$K$869,0),MATCH(Assets!S$47,'Data Annex'!$K$1:$AN$1,0)),"") -> 0.3149174566 | T59: =IFERROR(INDEX('Data Annex'!$K$1:$AN$869,MATCH(Assets!T$46&"|"&Assets!$B59,'Data Annex'!$K$1:$K$869,0),MATCH(Assets!T$47,'Data Annex'!$K$1:$AN$1,0)),"") -> 0.3332168889 | U59: =IFERROR(INDEX('Data Annex'!$K$1:$AN$869,MATCH(Assets!U$46&"|"&Assets!$B59,'Data Annex'!$K$1:$K$869,0),MATCH(Assets!U$47,'Data Annex'!$K$1:$AN$1,0)),"") -> 0.0191292582 | V59: =IFERROR(INDEX('Data Annex'!$K$1:$AN$869,MATCH(Assets!V$46&"|"&Assets!$B59,'Data Annex'!$K$1:$K$869,0),MATCH(Assets!V$47,'Data Annex'!$K$1:$AN$1,0)),"") -> 0.020043518 | W59: =IFERROR(INDEX('Data Annex'!$K$1:$AN$869,MATCH(Assets!W$46&"|"&Assets!$B59,'Data Annex'!$K$1:$K$869,0),MATCH(Assets!W$47,'Data Annex'!$K$1:$AN$1,0)),"") -> 0.0204615101 | X59: =IFERROR(INDEX('Data Annex'!$K$1:$AN$869,MATCH(Assets!X$46&"|"&Assets!$B59,'Data Annex'!$K$1:$K$869,0),MATCH(Assets!X$47,'Data Annex'!$K$1:$AN$1,0)),"") -> 0.0197827752 | Y59: =IFERROR(INDEX('Data Annex'!$K$1:$AN$869,MATCH(Assets!Y$46&"|"&Assets!$B59,'Data Annex'!$K$1:$K$869,0),MATCH(Assets!Y$47,'Data Annex'!$K$1:$AN$1,0)),"") -> 0.667550553 | Z59: =IFERROR(INDEX('Data Annex'!$K$1:$AN$869,MATCH(Assets!Z$46&"|"&Assets!$B59,'Data Annex'!$K$1:$K$869,0),MATCH(Assets!Z$47,'Data Annex'!$K$1:$AN$1,0)),"") -> 0.6632412723 | AA59: =IFERROR(INDEX('Data Annex'!$K$1:$AN$869,MATCH(Assets!AA$46&"|"&Assets!$B59,'Data Annex'!$K$1:$K$869,0),MATCH(Assets!AA$47,'Data Annex'!$K$1:$AN$1,0)),"") -> 0.6646210332 | AB59: =IFERROR(INDEX('Data Annex'!$K$1:$AN$869,MATCH(Assets!AB$46&"|"&Assets!$B59,'Data Annex'!$K$1:$K$869,0),MATCH(Assets!AB$47,'Data Annex'!$K$1:$AN$1,0)),"") -> 0.6470003359
B60: EE | D60: EE | F60: =IFERROR(INDEX('Data Annex'!$K$1:$AN$869,MATCH(Assets!F$46&"|"&Assets!$B60,'Data Annex'!$K$1:$K$869,0),MATCH(Assets!F$47,'Data Annex'!$K$1:$AN$1,0)),"") -> 35.17232601 | G60: =IFERROR(INDEX('Data Annex'!$K$1:$AN$869,MATCH(Assets!G$46&"|"&Assets!$B60,'Data Annex'!$K$1:$K$869,0),MATCH(Assets!G$47,'Data Annex'!$K$1:$AN$1,0)),"") -> 38.1909144 | H60: =IFERROR(INDEX('Data Annex'!$K$1:$AN$869,MATCH(Assets!H$46&"|"&Assets!$B60,'Data Annex'!$K$1:$K$869,0),MATCH(Assets!H$47,'Data Annex'!$K$1:$AN$1,0)),"") -> 39.46389125 | I60: =IFERROR(INDEX('Data Annex'!$K$1:$AN$869,MATCH(Assets!I$46&"|"&Assets!$B60,'Data Annex'!$K$1:$K$869,0),MATCH(Assets!I$47,'Data Annex'!$K$1:$AN$1,0)),"") -> 41.52329134 | J60: =IFERROR(INDEX('Data Annex'!$K$1:$AN$869,MATCH(Assets!J$46&"|"&Assets!$B60,'Data Annex'!$K$1:$K$869,0),MATCH(Assets!J$47,'Data Annex'!$K$1:$AN$1,0)),"") -> 34.77545278 | K60: =IFERROR(INDEX('Data Annex'!$K$1:$AN$869,MATCH(Assets!K$46&"|"&Assets!$B60,'Data Annex'!$K$1:$K$869,0),MATCH(Assets!K$47,'Data Annex'!$K$1:$AN$1,0)),"") -> 37.78401105 | L60: =IFERROR(INDEX('Data Annex'!$K$1:$AN$869,MATCH(Assets!L$46&"|"&Assets!$B60,'Data Annex'!$K$1:$K$869,0),MATCH(Assets!L$47,'Data Annex'!$K$1:$AN$1,0)),"") -> 39.0451482 | M60: =IFERROR(INDEX('Data Annex'!$K$1:$AN$869,MATCH(Assets!M$46&"|"&Assets!$B60,'Data Annex'!$K$1:$K$869,0),MATCH(Assets!M$47,'Data Annex'!$K$1:$AN$1,0)),"") -> 41.03292144 | N60: 0.9881904858 | O60: EE | Q60: =IFERROR(INDEX('Data Annex'!$K$1:$AN$869,MATCH(Assets!Q$46&"|"&Assets!$B60,'Data Annex'!$K$1:$K$869,0),MATCH(Assets!Q$47,'Data Annex'!$K$1:$AN$1,0)),"") -> 0.9754661 | R60: =IFERROR(INDEX('Data Annex'!$K$1:$AN$869,MATCH(Assets!R$46&"|"&Assets!$B60,'Data Annex'!$K$1:$K$869,0),MATCH(Assets!R$47,'Data Annex'!$K$1:$AN$1,0)),"") -> 0.917327646 | S60: =IFERROR(INDEX('Data Annex'!$K$1:$AN$869,MATCH(Assets!S$46&"|"&Assets!$B60,'Data Annex'!$K$1:$K$869,0),MATCH(Assets!S$47,'Data Annex'!$K$1:$AN$1,0)),"") -> 0.9190256213 | T60: =IFERROR(INDEX('Data Annex'!$K$1:$AN$869,MATCH(Assets!T$46&"|"&Assets!$B60,'Data Annex'!$K$1:$K$869,0),MATCH(Assets!T$47,'Data Annex'!$K$1:$AN$1,0)),"") -> 0.9277236787 | U60: =IFERROR(INDEX('Data Annex'!$K$1:$AN$869,MATCH(Assets!U$46&"|"&Assets!$B60,'Data Annex'!$K$1:$K$869,0),MATCH(Assets!U$47,'Data Annex'!$K$1:$AN$1,0)),"") -> 1.64466e-05 | V60: =IFERROR(INDEX('Data Annex'!$K$1:$AN$869,MATCH(Assets!V$46&"|"&Assets!$B60,'Data Annex'!$K$1:$K$869,0),MATCH(Assets!V$47,'Data Annex'!$K$1:$AN$1,0)),"") -> 2.09701e-05 | W60: =IFERROR(INDEX('Data Annex'!$K$1:$AN$869,MATCH(Assets!W$46&"|"&Assets!$B60,'Data Annex'!$K$1:$K$869,0),MATCH(Assets!W$47,'Data Annex'!$K$1:$AN$1,0)),"") -> 2.02928e-05 | X60: =IFERROR(INDEX('Data Annex'!$K$1:$AN$869,MATCH(Assets!X$46&"|"&Assets!$B60,'Data Annex'!$K$1:$K$869,0),MATCH(Assets!X$47,'Data Annex'!$K$1:$AN$1,0)),"") -> 3.4106762e-06 | Y60: =IFERROR(INDEX('Data Annex'!$K$1:$AN$869,MATCH(Assets!Y$46&"|"&Assets!$B60,'Data Annex'!$K$1:$K$869,0),MATCH(Assets!Y$47,'Data Annex'!$K$1:$AN$1,0)),"") -> 0.0245174534 | Z60: =IFERROR(INDEX('Data Annex'!$K$1:$AN$869,MATCH(Assets!Z$46&"|"&Assets!$B60,'Data Annex'!$K$1:$K$869,0),MATCH(Assets!Z$47,'Data Annex'!$K$1:$AN$1,0)),"") -> 0.0826513838 | AA60: =IFERROR(INDEX('Data Annex'!$K$1:$AN$869,MATCH(Assets!AA$46&"|"&Assets!$B60,'Data Annex'!$K$1:$K$869,0),MATCH(Assets!AA$47,'Data Annex'!$K$1:$AN$1,0)),"") -> 0.0809540859 | AB60: =IFERROR(INDEX('Data Annex'!$K$1:$AN$869,MATCH(Assets!AB$46&"|"&Assets!$B60,'Data Annex'!$K$1:$K$869,0),MATCH(Assets!AB$47,'Data Annex'!$K$1:$AN$1,0)),"") -> 0.0722729106
B61: ES | D61: ES | F61: =IFERROR(INDEX('Data Annex'!$K$1:$AN$869,MATCH(Assets!F$46&"|"&Assets!$B61,'Data Annex'!$K$1:$K$869,0),MATCH(Assets!F$47,'Data Annex'!$K$1:$AN$1,0)),"") -> 3418.587811 | G61: =IFERROR(INDEX('Data Annex'!$K$1:$AN$869,MATCH(Assets!G$46&"|"&Assets!$B61,'Data Annex'!$K$1:$K$869,0),MATCH(Assets!G$47,'Data Annex'!$K$1:$AN$1,0)),"") -> 3558.886843 | H61: =IFERROR(INDEX('Data Annex'!$K$1:$AN$869,MATCH(Assets!H$46&"|"&Assets!$B61,'Data Annex'!$K$1:$K$869,0),MATCH(Assets!H$47,'Data Annex'!$K$1:$AN$1,0)),"") -> 3477.47534 | I61: =IFERROR(INDEX('Data Annex'!$K$1:$AN$869,MATCH(Assets!I$46&"|"&Assets!$B61,'Data Annex'!$K$1:$K$869,0),MATCH(Assets!I$47,'Data Annex'!$K$1:$AN$1,0)),"") -> 3476.098049 | J61: =IFERROR(INDEX('Data Annex'!$K$1:$AN$869,MATCH(Assets!J$46&"|"&Assets!$B61,'Data Annex'!$K$1:$K$869,0),MATCH(Assets!J$47,'Data Annex'!$K$1:$AN$1,0)),"") -> 3156.685301 | K61: =IFERROR(INDEX('Data Annex'!$K$1:$AN$869,MATCH(Assets!K$46&"|"&Assets!$B61,'Data Annex'!$K$1:$K$869,0),MATCH(Assets!K$47,'Data Annex'!$K$1:$AN$1,0)),"") -> 3317.372509 | L61: =IFERROR(INDEX('Data Annex'!$K$1:$AN$869,MATCH(Assets!L$46&"|"&Assets!$B61,'Data Annex'!$K$1:$K$869,0),MATCH(Assets!L$47,'Data Annex'!$K$1:$AN$1,0)),"") -> 3238.587634 | M61: =IFERROR(INDEX('Data Annex'!$K$1:$AN$869,MATCH(Assets!M$46&"|"&Assets!$B61,'Data Annex'!$K$1:$K$869,0),MATCH(Assets!M$47,'Data Annex'!$K$1:$AN$1,0)),"") -> 2976.158671 | N61: 0.8561779988 | O61: ES | Q61: =IFERROR(INDEX('Data Annex'!$K$1:$AN$869,MATCH(Assets!Q$46&"|"&Assets!$B61,'Data Annex'!$K$1:$K$869,0),MATCH(Assets!Q$47,'Data Annex'!$K$1:$AN$1,0)),"") -> 0.8199395491 | R61: =IFERROR(INDEX('Data Annex'!$K$1:$AN$869,MATCH(Assets!R$46&"|"&Assets!$B61,'Data Annex'!$K$1:$K$869,0),MATCH(Assets!R$47,'Data Annex'!$K$1:$AN$1,0)),"") -> 0.8156548724 | S61: =IFERROR(INDEX('Data Annex'!$K$1:$AN$869,MATCH(Assets!S$46&"|"&Assets!$B61,'Data Annex'!$K$1:$K$869,0),MATCH(Assets!S$47,'Data Annex'!$K$1:$AN$1,0)),"") -> 0.8288845988 | T61: =IFERROR(INDEX('Data Annex'!$K$1:$AN$869,MATCH(Assets!T$46&"|"&Assets!$B61,'Data Annex'!$K$1:$K$869,0),MATCH(Assets!T$47,'Data Annex'!$K$1:$AN$1,0)),"") -> 0.8277100165 | U61: =IFERROR(INDEX('Data Annex'!$K$1:$AN$869,MATCH(Assets!U$46&"|"&Assets!$B61,'Data Annex'!$K$1:$K$869,0),MATCH(Assets!U$47,'Data Annex'!$K$1:$AN$1,0)),"") -> 0.0620797779 | V61: =IFERROR(INDEX('Data Annex'!$K$1:$AN$869,MATCH(Assets!V$46&"|"&Assets!$B61,'Data Annex'!$K$1:$K$869,0),MATCH(Assets!V$47,'Data Annex'!$K$1:$AN$1,0)),"") -> 0.0665238781 | W61: =IFERROR(INDEX('Data Annex'!$K$1:$AN$869,MATCH(Assets!W$46&"|"&Assets!$B61,'Data Annex'!$K$1:$K$869,0),MATCH(Assets!W$47,'Data Annex'!$K$1:$AN$1,0)),"") -> 0.0660606907 | X61: =IFERROR(INDEX('Data Annex'!$K$1:$AN$869,MATCH(Assets!X$46&"|"&Assets!$B61,'Data Annex'!$K$1:$K$869,0),MATCH(Assets!X$47,'Data Annex'!$K$1:$AN$1,0)),"") -> 0.0689198684 | Y61: =IFERROR(INDEX('Data Annex'!$K$1:$AN$869,MATCH(Assets!Y$46&"|"&Assets!$B61,'Data Annex'!$K$1:$K$869,0),MATCH(Assets!Y$47,'Data Annex'!$K$1:$AN$1,0)),"") -> 0.1179806731 | Z61: =IFERROR(INDEX('Data Annex'!$K$1:$AN$869,MATCH(Assets!Z$46&"|"&Assets!$B61,'Data Annex'!$K$1:$K$869,0),MATCH(Assets!Z$47,'Data Annex'!$K$1:$AN$1,0)),"") -> 0.1178212495 | AA61: =IFERROR(INDEX('Data Annex'!$K$1:$AN$869,MATCH(Assets!AA$46&"|"&Assets!$B61,'Data Annex'!$K$1:$K$869,0),MATCH(Assets!AA$47,'Data Annex'!$K$1:$AN$1,0)),"") -> 0.1050547104 | AB61: =IFERROR(INDEX('Data Annex'!$K$1:$AN$869,MATCH(Assets!AB$46&"|"&Assets!$B61,'Data Annex'!$K$1:$K$869,0),MATCH(Assets!AB$47,'Data Annex'!$K$1:$AN$1,0)),"") -> 0.1033701152
B62: FI | D62: FI | F62: =IFERROR(INDEX('Data Annex'!$K$1:$AN$869,MATCH(Assets!F$46&"|"&Assets!$B62,'Data Annex'!$K$1:$K$869,0),MATCH(Assets!F$47,'Data Annex'!$K$1:$AN$1,0)),"") -> 742.4337193 | G62: =IFERROR(INDEX('Data Annex'!$K$1:$AN$869,MATCH(Assets!G$46&"|"&Assets!$B62,'Data Annex'!$K$1:$K$869,0),MATCH(Assets!G$47,'Data Annex'!$K$1:$AN$1,0)),"") -> 737.7686125 | H62: =IFERROR(INDEX('Data Annex'!$K$1:$AN$869,MATCH(Assets!H$46&"|"&Assets!$B62,'Data Annex'!$K$1:$K$869,0),MATCH(Assets!H$47,'Data Annex'!$K$1:$AN$1,0)),"") -> 724.1444049 | I62: =IFERROR(INDEX('Data Annex'!$K$1:$AN$869,MATCH(Assets!I$46&"|"&Assets!$B62,'Data Annex'!$K$1:$K$869,0),MATCH(Assets!I$47,'Data Annex'!$K$1:$AN$1,0)),"") -> 698.2122516 | J62: =IFERROR(INDEX('Data Annex'!$K$1:$AN$869,MATCH(Assets!J$46&"|"&Assets!$B62,'Data Annex'!$K$1:$K$869,0),MATCH(Assets!J$47,'Data Annex'!$K$1:$AN$1,0)),"") -> 723.7529537 | K62: =IFERROR(INDEX('Data Annex'!$K$1:$AN$869,MATCH(Assets!K$46&"|"&Assets!$B62,'Data Annex'!$K$1:$K$869,0),MATCH(Assets!K$47,'Data Annex'!$K$1:$AN$1,0)),"") -> 720.7055516 | L62: =IFERROR(INDEX('Data Annex'!$K$1:$AN$869,MATCH(Assets!L$46&"|"&Assets!$B62,'Data Annex'!$K$1:$K$869,0),MATCH(Assets!L$47,'Data Annex'!$K$1:$AN$1,0)),"") -> 707.5589207 | M62: =IFERROR(INDEX('Data Annex'!$K$1:$AN$869,MATCH(Assets!M$46&"|"&Assets!$B62,'Data Annex'!$K$1:$K$869,0),MATCH(Assets!M$47,'Data Annex'!$K$1:$AN$1,0)),"") -> 681.2749212 | N62: 0.9757418603 | O62: FI | Q62: =IFERROR(INDEX('Data Annex'!$K$1:$AN$869,MATCH(Assets!Q$46&"|"&Assets!$B62,'Data Annex'!$K$1:$K$869,0),MATCH(Assets!Q$47,'Data Annex'!$K$1:$AN$1,0)),"") -> 0.6171210416 | R62: =IFERROR(INDEX('Data Annex'!$K$1:$AN$869,MATCH(Assets!R$46&"|"&Assets!$B62,'Data Annex'!$K$1:$K$869,0),MATCH(Assets!R$47,'Data Annex'!$K$1:$AN$1,0)),"") -> 0.6393878324 | S62: =IFERROR(INDEX('Data Annex'!$K$1:$AN$869,MATCH(Assets!S$46&"|"&Assets!$B62,'Data Annex'!$K$1:$K$869,0),MATCH(Assets!S$47,'Data Annex'!$K$1:$AN$1,0)),"") -> 0.649657116 | T62: =IFERROR(INDEX('Data Annex'!$K$1:$AN$869,MATCH(Assets!T$46&"|"&Assets!$B62,'Data Annex'!$K$1:$K$869,0),MATCH(Assets!T$47,'Data Annex'!$K$1:$AN$1,0)),"") -> 0.6728621866 | U62: =IFERROR(INDEX('Data Annex'!$K$1:$AN$869,MATCH(Assets!U$46&"|"&Assets!$B62,'Data Annex'!$K$1:$K$869,0),MATCH(Assets!U$47,'Data Annex'!$K$1:$AN$1,0)),"") -> 0.0663093228 | V62: =IFERROR(INDEX('Data Annex'!$K$1:$AN$869,MATCH(Assets!V$46&"|"&Assets!$B62,'Data Annex'!$K$1:$K$869,0),MATCH(Assets!V$47,'Data Annex'!$K$1:$AN$1,0)),"") -> 0.0692564117 | W62: =IFERROR(INDEX('Data Annex'!$K$1:$AN$869,MATCH(Assets!W$46&"|"&Assets!$B62,'Data Annex'!$K$1:$K$869,0),MATCH(Assets!W$47,'Data Annex'!$K$1:$AN$1,0)),"") -> 0.0698190058 | X62: =IFERROR(INDEX('Data Annex'!$K$1:$AN$869,MATCH(Assets!X$46&"|"&Assets!$B62,'Data Annex'!$K$1:$K$869,0),MATCH(Assets!X$47,'Data Annex'!$K$1:$AN$1,0)),"") -> 0.0712482112 | Y62: =IFERROR(INDEX('Data Annex'!$K$1:$AN$869,MATCH(Assets!Y$46&"|"&Assets!$B62,'Data Annex'!$K$1:$K$869,0),MATCH(Assets!Y$47,'Data Annex'!$K$1:$AN$1,0)),"") -> 0.3165696355 | Z62: =IFERROR(INDEX('Data Annex'!$K$1:$AN$869,MATCH(Assets!Z$46&"|"&Assets!$B62,'Data Annex'!$K$1:$K$869,0),MATCH(Assets!Z$47,'Data Annex'!$K$1:$AN$1,0)),"") -> 0.2913557559 | AA62: =IFERROR(INDEX('Data Annex'!$K$1:$AN$869,MATCH(Assets!AA$46&"|"&Assets!$B62,'Data Annex'!$K$1:$K$869,0),MATCH(Assets!AA$47,'Data Annex'!$K$1:$AN$1,0)),"") -> 0.2805238782 | AB62: =IFERROR(INDEX('Data Annex'!$K$1:$AN$869,MATCH(Assets!AB$46&"|"&Assets!$B62,'Data Annex'!$K$1:$K$869,0),MATCH(Assets!AB$47,'Data Annex'!$K$1:$AN$1,0)),"") -> 0.2558896022
B63: FR | D63: FR | F63: =IFERROR(INDEX('Data Annex'!$K$1:$AN$869,MATCH(Assets!F$46&"|"&Assets!$B63,'Data Annex'!$K$1:$K$869,0),MATCH(Assets!F$47,'Data Annex'!$K$1:$AN$1,0)),"") -> 8336.611511 | G63: =IFERROR(INDEX('Data Annex'!$K$1:$AN$869,MATCH(Assets!G$46&"|"&Assets!$B63,'Data Annex'!$K$1:$K$869,0),MATCH(Assets!G$47,'Data Annex'!$K$1:$AN$1,0)),"") -> 8445.979585 | H63: =IFERROR(INDEX('Data Annex'!$K$1:$AN$869,MATCH(Assets!H$46&"|"&Assets!$B63,'Data Annex'!$K$1:$K$869,0),MATCH(Assets!H$47,'Data Annex'!$K$1:$AN$1,0)),"") -> 8465.079764 | I63: =IFERROR(INDEX('Data Annex'!$K$1:$AN$869,MATCH(Assets!I$46&"|"&Assets!$B63,'Data Annex'!$K$1:$K$869,0),MATCH(Assets!I$47,'Data Annex'!$K$1:$AN$1,0)),"") -> 8308.165327 | J63: =IFERROR(INDEX('Data Annex'!$K$1:$AN$869,MATCH(Assets!J$46&"|"&Assets!$B63,'Data Annex'!$K$1:$K$869,0),MATCH(Assets!J$47,'Data Annex'!$K$1:$AN$1,0)),"") -> 7727.572056 | K63: =IFERROR(INDEX('Data Annex'!$K$1:$AN$869,MATCH(Assets!K$46&"|"&Assets!$B63,'Data Annex'!$K$1:$K$869,0),MATCH(Assets!K$47,'Data Annex'!$K$1:$AN$1,0)),"") -> 7896.422445 | L63: =IFERROR(INDEX('Data Annex'!$K$1:$AN$869,MATCH(Assets!L$46&"|"&Assets!$B63,'Data Annex'!$K$1:$K$869,0),MATCH(Assets!L$47,'Data Annex'!$K$1:$AN$1,0)),"") -> 7911.007215 | M63: =IFERROR(INDEX('Data Annex'!$K$1:$AN$869,MATCH(Assets!M$46&"|"&Assets!$B63,'Data Annex'!$K$1:$K$869,0),MATCH(Assets!M$47,'Data Annex'!$K$1:$AN$1,0)),"") -> 7755.475881 | N63: 0.9334763544 | O63: FR | Q63: =IFERROR(INDEX('Data Annex'!$K$1:$AN$869,MATCH(Assets!Q$46&"|"&Assets!$B63,'Data Annex'!$K$1:$K$869,0),MATCH(Assets!Q$47,'Data Annex'!$K$1:$AN$1,0)),"") -> 0.6830074204 | R63: =IFERROR(INDEX('Data Annex'!$K$1:$AN$869,MATCH(Assets!R$46&"|"&Assets!$B63,'Data Annex'!$K$1:$K$869,0),MATCH(Assets!R$47,'Data Annex'!$K$1:$AN$1,0)),"") -> 0.7142591836 | S63: =IFERROR(INDEX('Data Annex'!$K$1:$AN$869,MATCH(Assets!S$46&"|"&Assets!$B63,'Data Annex'!$K$1:$K$869,0),MATCH(Assets!S$47,'Data Annex'!$K$1:$AN$1,0)),"") -> 0.7174266865 | T63: =IFERROR(INDEX('Data Annex'!$K$1:$AN$869,MATCH(Assets!T$46&"|"&Assets!$B63,'Data Annex'!$K$1:$K$869,0),MATCH(Assets!T$47,'Data Annex'!$K$1:$AN$1,0)),"") -> 0.7285288098 | U63: =IFERROR(INDEX('Data Annex'!$K$1:$AN$869,MATCH(Assets!U$46&"|"&Assets!$B63,'Data Annex'!$K$1:$K$869,0),MATCH(Assets!U$47,'Data Annex'!$K$1:$AN$1,0)),"") -> 0.0390971138 | V63: =IFERROR(INDEX('Data Annex'!$K$1:$AN$869,MATCH(Assets!V$46&"|"&Assets!$B63,'Data Annex'!$K$1:$K$869,0),MATCH(Assets!V$47,'Data Annex'!$K$1:$AN$1,0)),"") -> 0.0396748238 | W63: =IFERROR(INDEX('Data Annex'!$K$1:$AN$869,MATCH(Assets!W$46&"|"&Assets!$B63,'Data Annex'!$K$1:$K$869,0),MATCH(Assets!W$47,'Data Annex'!$K$1:$AN$1,0)),"") -> 0.0383144805 | X63: =IFERROR(INDEX('Data Annex'!$K$1:$AN$869,MATCH(Assets!X$46&"|"&Assets!$B63,'Data Annex'!$K$1:$K$869,0),MATCH(Assets!X$47,'Data Annex'!$K$1:$AN$1,0)),"") -> 0.0383390663 | Y63: =IFERROR(INDEX('Data Annex'!$K$1:$AN$869,MATCH(Assets!Y$46&"|"&Assets!$B63,'Data Annex'!$K$1:$K$869,0),MATCH(Assets!Y$47,'Data Annex'!$K$1:$AN$1,0)),"") -> 0.2778954657 | Z63: =IFERROR(INDEX('Data Annex'!$K$1:$AN$869,MATCH(Assets!Z$46&"|"&Assets!$B63,'Data Annex'!$K$1:$K$869,0),MATCH(Assets!Z$47,'Data Annex'!$K$1:$AN$1,0)),"") -> 0.2460659925 | AA63: =IFERROR(INDEX('Data Annex'!$K$1:$AN$869,MATCH(Assets!AA$46&"|"&Assets!$B63,'Data Annex'!$K$1:$K$869,0),MATCH(Assets!AA$47,'Data Annex'!$K$1:$AN$1,0)),"") -> 0.244258833 | AB63: =IFERROR(INDEX('Data Annex'!$K$1:$AN$869,MATCH(Assets!AB$46&"|"&Assets!$B63,'Data Annex'!$K$1:$K$869,0),MATCH(Assets!AB$47,'Data Annex'!$K$1:$AN$1,0)),"") -> 0.2331321239
B64: GR | D64: GR | F64: =IFERROR(INDEX('Data Annex'!$K$1:$AN$869,MATCH(Assets!F$46&"|"&Assets!$B64,'Data Annex'!$K$1:$K$869,0),MATCH(Assets!F$47,'Data Annex'!$K$1:$AN$1,0)),"") -> 258.7232788 | G64: =IFERROR(INDEX('Data Annex'!$K$1:$AN$869,MATCH(Assets!G$46&"|"&Assets!$B64,'Data Annex'!$K$1:$K$869,0),MATCH(Assets!G$47,'Data Annex'!$K$1:$AN$1,0)),"") -> 270.7626866 | H64: =IFERROR(INDEX('Data Annex'!$K$1:$AN$869,MATCH(Assets!H$46&"|"&Assets!$B64,'Data Annex'!$K$1:$K$869,0),MATCH(Assets!H$47,'Data Annex'!$K$1:$AN$1,0)),"") -> 274.794674 | I64: =IFERROR(INDEX('Data Annex'!$K$1:$AN$869,MATCH(Assets!I$46&"|"&Assets!$B64,'Data Annex'!$K$1:$K$869,0),MATCH(Assets!I$47,'Data Annex'!$K$1:$AN$1,0)),"") -> 282.9488056 | J64: =IFERROR(INDEX('Data Annex'!$K$1:$AN$869,MATCH(Assets!J$46&"|"&Assets!$B64,'Data Annex'!$K$1:$K$869,0),MATCH(Assets!J$47,'Data Annex'!$K$1:$AN$1,0)),"") -> 215.5847347 | K64: =IFERROR(INDEX('Data Annex'!$K$1:$AN$869,MATCH(Assets!K$46&"|"&Assets!$B64,'Data Annex'!$K$1:$K$869,0),MATCH(Assets!K$47,'Data Annex'!$K$1:$AN$1,0)),"") -> 225.0877121 | L64: =IFERROR(INDEX('Data Annex'!$K$1:$AN$869,MATCH(Assets!L$46&"|"&Assets!$B64,'Data Annex'!$K$1:$K$869,0),MATCH(Assets!L$47,'Data Annex'!$K$1:$AN$1,0)),"") -> 231.8470509 | M64: =IFERROR(INDEX('Data Annex'!$K$1:$AN$869,MATCH(Assets!M$46&"|"&Assets!$B64,'Data Annex'!$K$1:$K$869,0),MATCH(Assets!M$47,'Data Annex'!$K$1:$AN$1,0)),"") -> 238.0895308 | N64: 0.8414579814 | O64: GR | Q64: =IFERROR(INDEX('Data Annex'!$K$1:$AN$869,MATCH(Assets!Q$46&"|"&Assets!$B64,'Data Annex'!$K$1:$K$869,0),MATCH(Assets!Q$47,'Data Annex'!$K$1:$AN$1,0)),"") -> 0.8722019047 | R64: =IFERROR(INDEX('Data Annex'!$K$1:$AN$869,MATCH(Assets!R$46&"|"&Assets!$B64,'Data Annex'!$K$1:$K$869,0),MATCH(Assets!R$47,'Data Annex'!$K$1:$AN$1,0)),"") -> 0.8687229472 | S64: =IFERROR(INDEX('Data Annex'!$K$1:$AN$869,MATCH(Assets!S$46&"|"&Assets!$B64,'Data Annex'!$K$1:$K$869,0),MATCH(Assets!S$47,'Data Annex'!$K$1:$AN$1,0)),"") -> 0.8795110219 | T64: =IFERROR(INDEX('Data Annex'!$K$1:$AN$869,MATCH(Assets!T$46&"|"&Assets!$B64,'Data Annex'!$K$1:$K$869,0),MATCH(Assets!T$47,'Data Annex'!$K$1:$AN$1,0)),"") -> 0.878253334 | U64: =IFERROR(INDEX('Data Annex'!$K$1:$AN$869,MATCH(Assets!U$46&"|"&Assets!$B64,'Data Annex'!$K$1:$K$869,0),MATCH(Assets!U$47,'Data Annex'!$K$1:$AN$1,0)),"") -> 0.0736192929 | V64: =IFERROR(INDEX('Data Annex'!$K$1:$AN$869,MATCH(Assets!V$46&"|"&Assets!$B64,'Data Annex'!$K$1:$K$869,0),MATCH(Assets!V$47,'Data Annex'!$K$1:$AN$1,0)),"") -> 0.0781357989 | W64: =IFERROR(INDEX('Data Annex'!$K$1:$AN$869,MATCH(Assets!W$46&"|"&Assets!$B64,'Data Annex'!$K$1:$K$869,0),MATCH(Assets!W$47,'Data Annex'!$K$1:$AN$1,0)),"") -> 0.0705314146 | X64: =IFERROR(INDEX('Data Annex'!$K$1:$AN$869,MATCH(Assets!X$46&"|"&Assets!$B64,'Data Annex'!$K$1:$K$869,0),MATCH(Assets!X$47,'Data Annex'!$K$1:$AN$1,0)),"") -> 0.072455999 | Y64: =IFERROR(INDEX('Data Annex'!$K$1:$AN$869,MATCH(Assets!Y$46&"|"&Assets!$B64,'Data Annex'!$K$1:$K$869,0),MATCH(Assets!Y$47,'Data Annex'!$K$1:$AN$1,0)),"") -> 0.0541788024 | Z64: =IFERROR(INDEX('Data Annex'!$K$1:$AN$869,MATCH(Assets!Z$46&"|"&Assets!$B64,'Data Annex'!$K$1:$K$869,0),MATCH(Assets!Z$47,'Data Annex'!$K$1:$AN$1,0)),"") -> 0.0531412539 | AA64: =IFERROR(INDEX('Data Annex'!$K$1:$AN$869,MATCH(Assets!AA$46&"|"&Assets!$B64,'Data Annex'!$K$1:$K$869,0),MATCH(Assets!AA$47,'Data Annex'!$K$1:$AN$1,0)),"") -> 0.0499575635 | AB64: =IFERROR(INDEX('Data Annex'!$K$1:$AN$869,MATCH(Assets!AB$46&"|"&Assets!$B64,'Data Annex'!$K$1:$K$869,0),MATCH(Assets!AB$47,'Data Annex'!$K$1:$AN$1,0)),"") -> 0.0492906671
B65: HR | D65: HR | F65: =IFERROR(INDEX('Data Annex'!$K$1:$AN$869,MATCH(Assets!F$46&"|"&Assets!$B65,'Data Annex'!$K$1:$K$869,0),MATCH(Assets!F$47,'Data Annex'!$K$1:$AN$1,0)),"") -> 45.47576744 | G65: =IFERROR(INDEX('Data Annex'!$K$1:$AN$869,MATCH(Assets!G$46&"|"&Assets!$B65,'Data Annex'!$K$1:$K$869,0),MATCH(Assets!G$47,'Data Annex'!$K$1:$AN$1,0)),"") -> 46.64333852 | H65: =IFERROR(INDEX('Data Annex'!$K$1:$AN$869,MATCH(Assets!H$46&"|"&Assets!$B65,'Data Annex'!$K$1:$K$869,0),MATCH(Assets!H$47,'Data Annex'!$K$1:$AN$1,0)),"") -> 46.69420196 | I65: =IFERROR(INDEX('Data Annex'!$K$1:$AN$869,MATCH(Assets!I$46&"|"&Assets!$B65,'Data Annex'!$K$1:$K$869,0),MATCH(Assets!I$47,'Data Annex'!$K$1:$AN$1,0)),"") -> 47.76764184 | J65: =IFERROR(INDEX('Data Annex'!$K$1:$AN$869,MATCH(Assets!J$46&"|"&Assets!$B65,'Data Annex'!$K$1:$K$869,0),MATCH(Assets!J$47,'Data Annex'!$K$1:$AN$1,0)),"") -> 44.36211331 | K65: =IFERROR(INDEX('Data Annex'!$K$1:$AN$869,MATCH(Assets!K$46&"|"&Assets!$B65,'Data Annex'!$K$1:$K$869,0),MATCH(Assets!K$47,'Data Annex'!$K$1:$AN$1,0)),"") -> 45.49530257 | L65: =IFERROR(INDEX('Data Annex'!$K$1:$AN$869,MATCH(Assets!L$46&"|"&Assets!$B65,'Data Annex'!$K$1:$K$869,0),MATCH(Assets!L$47,'Data Annex'!$K$1:$AN$1,0)),"") -> 45.55277238 | M65: =IFERROR(INDEX('Data Annex'!$K$1:$AN$869,MATCH(Assets!M$46&"|"&Assets!$B65,'Data Annex'!$K$1:$K$869,0),MATCH(Assets!M$47,'Data Annex'!$K$1:$AN$1,0)),"") -> 46.58846444 | N65: 0.9753143059 | O65: HR | Q65: =IFERROR(INDEX('Data Annex'!$K$1:$AN$869,MATCH(Assets!Q$46&"|"&Assets!$B65,'Data Annex'!$K$1:$K$869,0),MATCH(Assets!Q$47,'Data Annex'!$K$1:$AN$1,0)),"") -> 0.8839805785 | R65: =IFERROR(INDEX('Data Annex'!$K$1:$AN$869,MATCH(Assets!R$46&"|"&Assets!$B65,'Data Annex'!$K$1:$K$869,0),MATCH(Assets!R$47,'Data Annex'!$K$1:$AN$1,0)),"") -> 0.8886704138 | S65: =IFERROR(INDEX('Data Annex'!$K$1:$AN$869,MATCH(Assets!S$46&"|"&Assets!$B65,'Data Annex'!$K$1:$K$869,0),MATCH(Assets!S$47,'Data Annex'!$K$1:$AN$1,0)),"") -> 0.8890793945 | T65: =IFERROR(INDEX('Data Annex'!$K$1:$AN$869,MATCH(Assets!T$46&"|"&Assets!$B65,'Data Annex'!$K$1:$K$869,0),MATCH(Assets!T$47,'Data Annex'!$K$1:$AN$1,0)),"") -> 0.892736367 | U65: =IFERROR(INDEX('Data Annex'!$K$1:$AN$869,MATCH(Assets!U$46&"|"&Assets!$B65,'Data Annex'!$K$1:$K$869,0),MATCH(Assets!U$47,'Data Annex'!$K$1:$AN$1,0)),"") -> 0.102436067 | V65: =IFERROR(INDEX('Data Annex'!$K$1:$AN$869,MATCH(Assets!V$46&"|"&Assets!$B65,'Data Annex'!$K$1:$K$869,0),MATCH(Assets!V$47,'Data Annex'!$K$1:$AN$1,0)),"") -> 0.0996071298 | W65: =IFERROR(INDEX('Data Annex'!$K$1:$AN$869,MATCH(Assets!W$46&"|"&Assets!$B65,'Data Annex'!$K$1:$K$869,0),MATCH(Assets!W$47,'Data Annex'!$K$1:$AN$1,0)),"") -> 0.1024800096 | X65: =IFERROR(INDEX('Data Annex'!$K$1:$AN$869,MATCH(Assets!X$46&"|"&Assets!$B65,'Data Annex'!$K$1:$K$869,0),MATCH(Assets!X$47,'Data Annex'!$K$1:$AN$1,0)),"") -> 0.0995283032 | Y65: =IFERROR(INDEX('Data Annex'!$K$1:$AN$869,MATCH(Assets!Y$46&"|"&Assets!$B65,'Data Annex'!$K$1:$K$869,0),MATCH(Assets!Y$47,'Data Annex'!$K$1:$AN$1,0)),"") -> 0.0135833545 | Z65: =IFERROR(INDEX('Data Annex'!$K$1:$AN$869,MATCH(Assets!Z$46&"|"&Assets!$B65,'Data Annex'!$K$1:$K$869,0),MATCH(Assets!Z$47,'Data Annex'!$K$1:$AN$1,0)),"") -> 0.0117224565 | AA65: =IFERROR(INDEX('Data Annex'!$K$1:$AN$869,MATCH(Assets!AA$46&"|"&Assets!$B65,'Data Annex'!$K$1:$K$869,0),MATCH(Assets!AA$47,'Data Annex'!$K$1:$AN$1,0)),"") -> 0.008440596 | AB65: =IFERROR(INDEX('Data Annex'!$K$1:$AN$869,MATCH(Assets!AB$46&"|"&Assets!$B65,'Data Annex'!$K$1:$K$869,0),MATCH(Assets!AB$47,'Data Annex'!$K$1:$AN$1,0)),"") -> 0.0077353297
B66: HU | D66: HU | F66: =IFERROR(INDEX('Data Annex'!$K$1:$AN$869,MATCH(Assets!F$46&"|"&Assets!$B66,'Data Annex'!$K$1:$K$869,0),MATCH(Assets!F$47,'Data Annex'!$K$1:$AN$1,0)),"") -> 80.52061871 | G66: =IFERROR(INDEX('Data Annex'!$K$1:$AN$869,MATCH(Assets!G$46&"|"&Assets!$B66,'Data Annex'!$K$1:$K$869,0),MATCH(Assets!G$47,'Data Annex'!$K$1:$AN$1,0)),"") -> 82.35589576 | H66: =IFERROR(INDEX('Data Annex'!$K$1:$AN$869,MATCH(Assets!H$46&"|"&Assets!$B66,'Data Annex'!$K$1:$K$869,0),MATCH(Assets!H$47,'Data Annex'!$K$1:$AN$1,0)),"") -> 83.6549559 | I66: =IFERROR(INDEX('Data Annex'!$K$1:$AN$869,MATCH(Assets!I$46&"|"&Assets!$B66,'Data Annex'!$K$1:$K$869,0),MATCH(Assets!I$47,'Data Annex'!$K$1:$AN$1,0)),"") -> 87.56391014 | J66: =IFERROR(INDEX('Data Annex'!$K$1:$AN$869,MATCH(Assets!J$46&"|"&Assets!$B66,'Data Annex'!$K$1:$K$869,0),MATCH(Assets!J$47,'Data Annex'!$K$1:$AN$1,0)),"") -> 77.05530522 | K66: =IFERROR(INDEX('Data Annex'!$K$1:$AN$869,MATCH(Assets!K$46&"|"&Assets!$B66,'Data Annex'!$K$1:$K$869,0),MATCH(Assets!K$47,'Data Annex'!$K$1:$AN$1,0)),"") -> 78.75278804 | L66: =IFERROR(INDEX('Data Annex'!$K$1:$AN$869,MATCH(Assets!L$46&"|"&Assets!$B66,'Data Annex'!$K$1:$K$869,0),MATCH(Assets!L$47,'Data Annex'!$K$1:$AN$1,0)),"") -> 80.22052064 | M66: =IFERROR(INDEX('Data Annex'!$K$1:$AN$869,MATCH(Assets!M$46&"|"&Assets!$B66,'Data Annex'!$K$1:$K$869,0),MATCH(Assets!M$47,'Data Annex'!$K$1:$AN$1,0)),"") -> 83.97789555 | N66: 0.9590468883 | O66: HU | Q66: =IFERROR(INDEX('Data Annex'!$K$1:$AN$869,MATCH(Assets!Q$46&"|"&Assets!$B66,'Data Annex'!$K$1:$K$869,0),MATCH(Assets!Q$47,'Data Annex'!$K$1:$AN$1,0)),"") -> 0.8619282997 | R66: =IFERROR(INDEX('Data Annex'!$K$1:$AN$869,MATCH(Assets!R$46&"|"&Assets!$B66,'Data Annex'!$K$1:$K$869,0),MATCH(Assets!R$47,'Data Annex'!$K$1:$AN$1,0)),"") -> 0.88515992 | S66: =IFERROR(INDEX('Data Annex'!$K$1:$AN$869,MATCH(Assets!S$46&"|"&Assets!$B66,'Data Annex'!$K$1:$K$869,0),MATCH(Assets!S$47,'Data Annex'!$K$1:$AN$1,0)),"") -> 0.8856138134 | T66: =IFERROR(INDEX('Data Annex'!$K$1:$AN$869,MATCH(Assets!T$46&"|"&Assets!$B66,'Data Annex'!$K$1:$K$869,0),MATCH(Assets!T$47,'Data Annex'!$K$1:$AN$1,0)),"") -> 0.8657819756 | U66: =IFERROR(INDEX('Data Annex'!$K$1:$AN$869,MATCH(Assets!U$46&"|"&Assets!$B66,'Data Annex'!$K$1:$K$869,0),MATCH(Assets!U$47,'Data Annex'!$K$1:$AN$1,0)),"") -> 0.1068820323 | V66: =IFERROR(INDEX('Data Annex'!$K$1:$AN$869,MATCH(Assets!V$46&"|"&Assets!$B66,'Data Annex'!$K$1:$K$869,0),MATCH(Assets!V$47,'Data Annex'!$K$1:$AN$1,0)),"") -> 0.0891916038 | W66: =IFERROR(INDEX('Data Annex'!$K$1:$AN$869,MATCH(Assets!W$46&"|"&Assets!$B66,'Data Annex'!$K$1:$K$869,0),MATCH(Assets!W$47,'Data Annex'!$K$1:$AN$1,0)),"") -> 0.0908343104 | X66: =IFERROR(INDEX('Data Annex'!$K$1:$AN$869,MATCH(Assets!X$46&"|"&Assets!$B66,'Data Annex'!$K$1:$K$869,0),MATCH(Assets!X$47,'Data Annex'!$K$1:$AN$1,0)),"") -> 0.0875154292 | Y66: =IFERROR(INDEX('Data Annex'!$K$1:$AN$869,MATCH(Assets!Y$46&"|"&Assets!$B66,'Data Annex'!$K$1:$K$869,0),MATCH(Assets!Y$47,'Data Annex'!$K$1:$AN$1,0)),"") -> 0.031189668 | Z66: =IFERROR(INDEX('Data Annex'!$K$1:$AN$869,MATCH(Assets!Z$46&"|"&Assets!$B66,'Data Annex'!$K$1:$K$869,0),MATCH(Assets!Z$47,'Data Annex'!$K$1:$AN$1,0)),"") -> 0.0256484762 | AA66: =IFERROR(INDEX('Data Annex'!$K$1:$AN$869,MATCH(Assets!AA$46&"|"&Assets!$B66,'Data Annex'!$K$1:$K$869,0),MATCH(Assets!AA$47,'Data Annex'!$K$1:$AN$1,0)),"") -> 0.0235518762 | AB66: =IFERROR(INDEX('Data Annex'!$K$1:$AN$869,MATCH(Assets!AB$46&"|"&Assets!$B66,'Data Annex'!$K$1:$K$869,0),MATCH(Assets!AB$47,'Data Annex'!$K$1:$AN$1,0)),"") -> 0.0467025952
B67: IE | D67: IE | F67: =IFERROR(INDEX('Data Annex'!$K$1:$AN$869,MATCH(Assets!F$46&"|"&Assets!$B67,'Data Annex'!$K$1:$K$869,0),MATCH(Assets!F$47,'Data Annex'!$K$1:$AN$1,0)),"") -> 276.0607329 | G67: =IFERROR(INDEX('Data Annex'!$K$1:$AN$869,MATCH(Assets!G$46&"|"&Assets!$B67,'Data Annex'!$K$1:$K$869,0),MATCH(Assets!G$47,'Data Annex'!$K$1:$AN$1,0)),"") -> 275.8759662 | H67: =IFERROR(INDEX('Data Annex'!$K$1:$AN$869,MATCH(Assets!H$46&"|"&Assets!$B67,'Data Annex'!$K$1:$K$869,0),MATCH(Assets!H$47,'Data Annex'!$K$1:$AN$1,0)),"") -> 279.8104981 | I67: =IFERROR(INDEX('Data Annex'!$K$1:$AN$869,MATCH(Assets!I$46&"|"&Assets!$B67,'Data Annex'!$K$1:$K$869,0),MATCH(Assets!I$47,'Data Annex'!$K$1:$AN$1,0)),"") -> 285.5025514 | J67: =IFERROR(INDEX('Data Annex'!$K$1:$AN$869,MATCH(Assets!J$46&"|"&Assets!$B67,'Data Annex'!$K$1:$K$869,0),MATCH(Assets!J$47,'Data Annex'!$K$1:$AN$1,0)),"") -> 260.3554655 | K67: =IFERROR(INDEX('Data Annex'!$K$1:$AN$869,MATCH(Assets!K$46&"|"&Assets!$B67,'Data Annex'!$K$1:$K$869,0),MATCH(Assets!K$47,'Data Annex'!$K$1:$AN$1,0)),"") -> 260.9006879 | L67: =IFERROR(INDEX('Data Annex'!$K$1:$AN$869,MATCH(Assets!L$46&"|"&Assets!$B67,'Data Annex'!$K$1:$K$869,0),MATCH(Assets!L$47,'Data Annex'!$K$1:$AN$1,0)),"") -> 265.9846481 | M67: =IFERROR(INDEX('Data Annex'!$K$1:$AN$869,MATCH(Assets!M$46&"|"&Assets!$B67,'Data Annex'!$K$1:$K$869,0),MATCH(Assets!M$47,'Data Annex'!$K$1:$AN$1,0)),"") -> 272.4465003 | N67: 0.9542699322 | O67: IE | Q67: =IFERROR(INDEX('Data Annex'!$K$1:$AN$869,MATCH(Assets!Q$46&"|"&Assets!$B67,'Data Annex'!$K$1:$K$869,0),MATCH(Assets!Q$47,'Data Annex'!$K$1:$AN$1,0)),"") -> 0.838801286 | R67: =IFERROR(INDEX('Data Annex'!$K$1:$AN$869,MATCH(Assets!R$46&"|"&Assets!$B67,'Data Annex'!$K$1:$K$869,0),MATCH(Assets!R$47,'Data Annex'!$K$1:$AN$1,0)),"") -> 0.8322741285 | S67: =IFERROR(INDEX('Data Annex'!$K$1:$AN$869,MATCH(Assets!S$46&"|"&Assets!$B67,'Data Annex'!$K$1:$K$869,0),MATCH(Assets!S$47,'Data Annex'!$K$1:$AN$1,0)),"") -> 0.8408955359 | T67: =IFERROR(INDEX('Data Annex'!$K$1:$AN$869,MATCH(Assets!T$46&"|"&Assets!$B67,'Data Annex'!$K$1:$K$869,0),MATCH(Assets!T$47,'Data Annex'!$K$1:$AN$1,0)),"") -> 0.8367224414 | U67: =IFERROR(INDEX('Data Annex'!$K$1:$AN$869,MATCH(Assets!U$46&"|"&Assets!$B67,'Data Annex'!$K$1:$K$869,0),MATCH(Assets!U$47,'Data Annex'!$K$1:$AN$1,0)),"") -> 0.1158589216 | V67: =IFERROR(INDEX('Data Annex'!$K$1:$AN$869,MATCH(Assets!V$46&"|"&Assets!$B67,'Data Annex'!$K$1:$K$869,0),MATCH(Assets!V$47,'Data Annex'!$K$1:$AN$1,0)),"") -> 0.1206746027 | W67: =IFERROR(INDEX('Data Annex'!$K$1:$AN$869,MATCH(Assets!W$46&"|"&Assets!$B67,'Data Annex'!$K$1:$K$869,0),MATCH(Assets!W$47,'Data Annex'!$K$1:$AN$1,0)),"") -> 0.1137444736 | X67: =IFERROR(INDEX('Data Annex'!$K$1:$AN$869,MATCH(Assets!X$46&"|"&Assets!$B67,'Data Annex'!$K$1:$K$869,0),MATCH(Assets!X$47,'Data Annex'!$K$1:$AN$1,0)),"") -> 0.1095492314 | Y67: =IFERROR(INDEX('Data Annex'!$K$1:$AN$869,MATCH(Assets!Y$46&"|"&Assets!$B67,'Data Annex'!$K$1:$K$869,0),MATCH(Assets!Y$47,'Data Annex'!$K$1:$AN$1,0)),"") -> 0.0453397924 | Z67: =IFERROR(INDEX('Data Annex'!$K$1:$AN$869,MATCH(Assets!Z$46&"|"&Assets!$B67,'Data Annex'!$K$1:$K$869,0),MATCH(Assets!Z$47,'Data Annex'!$K$1:$AN$1,0)),"") -> 0.0470512688 | AA67: =IFERROR(INDEX('Data Annex'!$K$1:$AN$869,MATCH(Assets!AA$46&"|"&Assets!$B67,'Data Annex'!$K$1:$K$869,0),MATCH(Assets!AA$47,'Data Annex'!$K$1:$AN$1,0)),"") -> 0.0453599904 | AB67: =IFERROR(INDEX('Data Annex'!$K$1:$AN$869,MATCH(Assets!AB$46&"|"&Assets!$B67,'Data Annex'!$K$1:$K$869,0),MATCH(Assets!AB$47,'Data Annex'!$K$1:$AN$1,0)),"") -> 0.0537283272
B68: IS | D68: IS | F68: =IFERROR(INDEX('Data Annex'!$K$1:$AN$869,MATCH(Assets!F$46&"|"&Assets!$B68,'Data Annex'!$K$1:$K$869,0),MATCH(Assets!F$47,'Data Annex'!$K$1:$AN$1,0)),"") -> 25.49290494 | G68: =IFERROR(INDEX('Data Annex'!$K$1:$AN$869,MATCH(Assets!G$46&"|"&Assets!$B68,'Data Annex'!$K$1:$K$869,0),MATCH(Assets!G$47,'Data Annex'!$K$1:$AN$1,0)),"") -> 25.65389929 | H68: =IFERROR(INDEX('Data Annex'!$K$1:$AN$869,MATCH(Assets!H$46&"|"&Assets!$B68,'Data Annex'!$K$1:$K$869,0),MATCH(Assets!H$47,'Data Annex'!$K$1:$AN$1,0)),"") -> 25.74136607 | I68: =IFERROR(INDEX('Data Annex'!$K$1:$AN$869,MATCH(Assets!I$46&"|"&Assets!$B68,'Data Annex'!$K$1:$K$869,0),MATCH(Assets!I$47,'Data Annex'!$K$1:$AN$1,0)),"") -> 26.14674737 | J68: =IFERROR(INDEX('Data Annex'!$K$1:$AN$869,MATCH(Assets!J$46&"|"&Assets!$B68,'Data Annex'!$K$1:$K$869,0),MATCH(Assets!J$47,'Data Annex'!$K$1:$AN$1,0)),"") -> 24.6708315 | K68: =IFERROR(INDEX('Data Annex'!$K$1:$AN$869,MATCH(Assets!K$46&"|"&Assets!$B68,'Data Annex'!$K$1:$K$869,0),MATCH(Assets!K$47,'Data Annex'!$K$1:$AN$1,0)),"") -> 24.81608029 | L68: =IFERROR(INDEX('Data Annex'!$K$1:$AN$869,MATCH(Assets!L$46&"|"&Assets!$B68,'Data Annex'!$K$1:$K$869,0),MATCH(Assets!L$47,'Data Annex'!$K$1:$AN$1,0)),"") -> 24.93600112 | M68: =IFERROR(INDEX('Data Annex'!$K$1:$AN$869,MATCH(Assets!M$46&"|"&Assets!$B68,'Data Annex'!$K$1:$K$869,0),MATCH(Assets!M$47,'Data Annex'!$K$1:$AN$1,0)),"") -> 25.52521814 | N68: 0.976229195 | O68: IS | Q68: =IFERROR(INDEX('Data Annex'!$K$1:$AN$869,MATCH(Assets!Q$46&"|"&Assets!$B68,'Data Annex'!$K$1:$K$869,0),MATCH(Assets!Q$47,'Data Annex'!$K$1:$AN$1,0)),"") -> 0.887015497 | R68: =IFERROR(INDEX('Data Annex'!$K$1:$AN$869,MATCH(Assets!R$46&"|"&Assets!$B68,'Data Annex'!$K$1:$K$869,0),MATCH(Assets!R$47,'Data Annex'!$K$1:$AN$1,0)),"") -> 0.8714492601 | S68: =IFERROR(INDEX('Data Annex'!$K$1:$AN$869,MATCH(Assets!S$46&"|"&Assets!$B68,'Data Annex'!$K$1:$K$869,0),MATCH(Assets!S$47,'Data Annex'!$K$1:$AN$1,0)),"") -> 0.8654610748 | T68: =IFERROR(INDEX('Data Annex'!$K$1:$AN$869,MATCH(Assets!T$46&"|"&Assets!$B68,'Data Annex'!$K$1:$K$869,0),MATCH(Assets!T$47,'Data Annex'!$K$1:$AN$1,0)),"") -> 0.8648231305 | U68: =IFERROR(INDEX('Data Annex'!$K$1:$AN$869,MATCH(Assets!U$46&"|"&Assets!$B68,'Data Annex'!$K$1:$K$869,0),MATCH(Assets!U$47,'Data Annex'!$K$1:$AN$1,0)),"") -> 0.0293613616 | V68: =IFERROR(INDEX('Data Annex'!$K$1:$AN$869,MATCH(Assets!V$46&"|"&Assets!$B68,'Data Annex'!$K$1:$K$869,0),MATCH(Assets!V$47,'Data Annex'!$K$1:$AN$1,0)),"") -> 0.0316839913 | W68: =IFERROR(INDEX('Data Annex'!$K$1:$AN$869,MATCH(Assets!W$46&"|"&Assets!$B68,'Data Annex'!$K$1:$K$869,0),MATCH(Assets!W$47,'Data Annex'!$K$1:$AN$1,0)),"") -> 0.0378111705 | X68: =IFERROR(INDEX('Data Annex'!$K$1:$AN$869,MATCH(Assets!X$46&"|"&Assets!$B68,'Data Annex'!$K$1:$K$869,0),MATCH(Assets!X$47,'Data Annex'!$K$1:$AN$1,0)),"") -> 0.0345477863 | Y68: =IFERROR(INDEX('Data Annex'!$K$1:$AN$869,MATCH(Assets!Y$46&"|"&Assets!$B68,'Data Annex'!$K$1:$K$869,0),MATCH(Assets!Y$47,'Data Annex'!$K$1:$AN$1,0)),"") -> 0.0836231414 | Z68: =IFERROR(INDEX('Data Annex'!$K$1:$AN$869,MATCH(Assets!Z$46&"|"&Assets!$B68,'Data Annex'!$K$1:$K$869,0),MATCH(Assets!Z$47,'Data Annex'!$K$1:$AN$1,0)),"") -> 0.0968667486 | AA68: =IFERROR(INDEX('Data Annex'!$K$1:$AN$869,MATCH(Assets!AA$46&"|"&Assets!$B68,'Data Annex'!$K$1:$K$869,0),MATCH(Assets!AA$47,'Data Annex'!$K$1:$AN$1,0)),"") -> 0.0967277547 | AB68: =IFERROR(INDEX('Data Annex'!$K$1:$AN$869,MATCH(Assets!AB$46&"|"&Assets!$B68,'Data Annex'!$K$1:$K$869,0),MATCH(Assets!AB$47,'Data Annex'!$K$1:$AN$1,0)),"") -> 0.1006290832
B69: IT | D69: IT | F69: =IFERROR(INDEX('Data Annex'!$K$1:$AN$869,MATCH(Assets!F$46&"|"&Assets!$B69,'Data Annex'!$K$1:$K$869,0),MATCH(Assets!F$47,'Data Annex'!$K$1:$AN$1,0)),"") -> 2466.60961 | G69: =IFERROR(INDEX('Data Annex'!$K$1:$AN$869,MATCH(Assets!G$46&"|"&Assets!$B69,'Data Annex'!$K$1:$K$869,0),MATCH(Assets!G$47,'Data Annex'!$K$1:$AN$1,0)),"") -> 2545.205181 | H69: =IFERROR(INDEX('Data Annex'!$K$1:$AN$869,MATCH(Assets!H$46&"|"&Assets!$B69,'Data Annex'!$K$1:$K$869,0),MATCH(Assets!H$47,'Data Annex'!$K$1:$AN$1,0)),"") -> 2582.706742 | I69: =IFERROR(INDEX('Data Annex'!$K$1:$AN$869,MATCH(Assets!I$46&"|"&Assets!$B69,'Data Annex'!$K$1:$K$869,0),MATCH(Assets!I$47,'Data Annex'!$K$1:$AN$1,0)),"") -> 2623.627915 | J69: =IFERROR(INDEX('Data Annex'!$K$1:$AN$869,MATCH(Assets!J$46&"|"&Assets!$B69,'Data Annex'!$K$1:$K$869,0),MATCH(Assets!J$47,'Data Annex'!$K$1:$AN$1,0)),"") -> 2320.95113 | K69: =IFERROR(INDEX('Data Annex'!$K$1:$AN$869,MATCH(Assets!K$46&"|"&Assets!$B69,'Data Annex'!$K$1:$K$869,0),MATCH(Assets!K$47,'Data Annex'!$K$1:$AN$1,0)),"") -> 2397.137287 | L69: =IFERROR(INDEX('Data Annex'!$K$1:$AN$869,MATCH(Assets!L$46&"|"&Assets!$B69,'Data Annex'!$K$1:$K$869,0),MATCH(Assets!L$47,'Data Annex'!$K$1:$AN$1,0)),"") -> 2434.438404 | M69: =IFERROR(INDEX('Data Annex'!$K$1:$AN$869,MATCH(Assets!M$46&"|"&Assets!$B69,'Data Annex'!$K$1:$K$869,0),MATCH(Assets!M$47,'Data Annex'!$K$1:$AN$1,0)),"") -> 2452.075444 | N69: 0.9346124998 | O69: IT | Q69: =IFERROR(INDEX('Data Annex'!$K$1:$AN$869,MATCH(Assets!Q$46&"|"&Assets!$B69,'Data Annex'!$K$1:$K$869,0),MATCH(Assets!Q$47,'Data Annex'!$K$1:$AN$1,0)),"") -> 0.8228961806 | R69: =IFERROR(INDEX('Data Annex'!$K$1:$AN$869,MATCH(Assets!R$46&"|"&Assets!$B69,'Data Annex'!$K$1:$K$869,0),MATCH(Assets!R$47,'Data Annex'!$K$1:$AN$1,0)),"") -> 0.8276777698 | S69: =IFERROR(INDEX('Data Annex'!$K$1:$AN$869,MATCH(Assets!S$46&"|"&Assets!$B69,'Data Annex'!$K$1:$K$869,0),MATCH(Assets!S$47,'Data Annex'!$K$1:$AN$1,0)),"") -> 0.8341243721 | T69: =IFERROR(INDEX('Data Annex'!$K$1:$AN$869,MATCH(Assets!T$46&"|"&Assets!$B69,'Data Annex'!$K$1:$K$869,0),MATCH(Assets!T$47,'Data Annex'!$K$1:$AN$1,0)),"") -> 0.8491592846 | U69: =IFERROR(INDEX('Data Annex'!$K$1:$AN$869,MATCH(Assets!U$46&"|"&Assets!$B69,'Data Annex'!$K$1:$K$869,0),MATCH(Assets!U$47,'Data Annex'!$K$1:$AN$1,0)),"") -> 0.0930693838 | V69: =IFERROR(INDEX('Data Annex'!$K$1:$AN$869,MATCH(Assets!V$46&"|"&Assets!$B69,'Data Annex'!$K$1:$K$869,0),MATCH(Assets!V$47,'Data Annex'!$K$1:$AN$1,0)),"") -> 0.0896259096 | W69: =IFERROR(INDEX('Data Annex'!$K$1:$AN$869,MATCH(Assets!W$46&"|"&Assets!$B69,'Data Annex'!$K$1:$K$869,0),MATCH(Assets!W$47,'Data Annex'!$K$1:$AN$1,0)),"") -> 0.0854402656 | X69: =IFERROR(INDEX('Data Annex'!$K$1:$AN$869,MATCH(Assets!X$46&"|"&Assets!$B69,'Data Annex'!$K$1:$K$869,0),MATCH(Assets!X$47,'Data Annex'!$K$1:$AN$1,0)),"") -> 0.0738176998 | Y69: =IFERROR(INDEX('Data Annex'!$K$1:$AN$869,MATCH(Assets!Y$46&"|"&Assets!$B69,'Data Annex'!$K$1:$K$869,0),MATCH(Assets!Y$47,'Data Annex'!$K$1:$AN$1,0)),"") -> 0.0840344356 | Z69: =IFERROR(INDEX('Data Annex'!$K$1:$AN$869,MATCH(Assets!Z$46&"|"&Assets!$B69,'Data Annex'!$K$1:$K$869,0),MATCH(Assets!Z$47,'Data Annex'!$K$1:$AN$1,0)),"") -> 0.0826963205 | AA69: =IFERROR(INDEX('Data Annex'!$K$1:$AN$869,MATCH(Assets!AA$46&"|"&Assets!$B69,'Data Annex'!$K$1:$K$869,0),MATCH(Assets!AA$47,'Data Annex'!$K$1:$AN$1,0)),"") -> 0.0804353623 | AB69: =IFERROR(INDEX('Data Annex'!$K$1:$AN$869,MATCH(Assets!AB$46&"|"&Assets!$B69,'Data Annex'!$K$1:$K$869,0),MATCH(Assets!AB$47,'Data Annex'!$K$1:$AN$1,0)),"") -> 0.0770230156
B70: LT | D70: LT | F70: =IFERROR(INDEX('Data Annex'!$K$1:$AN$869,MATCH(Assets!F$46&"|"&Assets!$B70,'Data Annex'!$K$1:$K$869,0),MATCH(Assets!F$47,'Data Annex'!$K$1:$AN$1,0)),"") -> 22.044845 | G70: =IFERROR(INDEX('Data Annex'!$K$1:$AN$869,MATCH(Assets!G$46&"|"&Assets!$B70,'Data Annex'!$K$1:$K$869,0),MATCH(Assets!G$47,'Data Annex'!$K$1:$AN$1,0)),"") -> 23.313285 | H70: =IFERROR(INDEX('Data Annex'!$K$1:$AN$869,MATCH(Assets!H$46&"|"&Assets!$B70,'Data Annex'!$K$1:$K$869,0),MATCH(Assets!H$47,'Data Annex'!$K$1:$AN$1,0)),"") -> 25.067414 | I70: =IFERROR(INDEX('Data Annex'!$K$1:$AN$869,MATCH(Assets!I$46&"|"&Assets!$B70,'Data Annex'!$K$1:$K$869,0),MATCH(Assets!I$47,'Data Annex'!$K$1:$AN$1,0)),"") -> 27.242588 | J70: =IFERROR(INDEX('Data Annex'!$K$1:$AN$869,MATCH(Assets!J$46&"|"&Assets!$B70,'Data Annex'!$K$1:$K$869,0),MATCH(Assets!J$47,'Data Annex'!$K$1:$AN$1,0)),"") -> 21.858897 | K70: =IFERROR(INDEX('Data Annex'!$K$1:$AN$869,MATCH(Assets!K$46&"|"&Assets!$B70,'Data Annex'!$K$1:$K$869,0),MATCH(Assets!K$47,'Data Annex'!$K$1:$AN$1,0)),"") -> 23.095373 | L70: =IFERROR(INDEX('Data Annex'!$K$1:$AN$869,MATCH(Assets!L$46&"|"&Assets!$B70,'Data Annex'!$K$1:$K$869,0),MATCH(Assets!L$47,'Data Annex'!$K$1:$AN$1,0)),"") -> 24.849712 | M70: =IFERROR(INDEX('Data Annex'!$K$1:$AN$869,MATCH(Assets!M$46&"|"&Assets!$B70,'Data Annex'!$K$1:$K$869,0),MATCH(Assets!M$47,'Data Annex'!$K$1:$AN$1,0)),"") -> 27.028702 | N70: 0.992148837 | O70: LT | Q70: =IFERROR(INDEX('Data Annex'!$K$1:$AN$869,MATCH(Assets!Q$46&"|"&Assets!$B70,'Data Annex'!$K$1:$K$869,0),MATCH(Assets!Q$47,'Data Annex'!$K$1:$AN$1,0)),"") -> 0.9770282096 | R70: =IFERROR(INDEX('Data Annex'!$K$1:$AN$869,MATCH(Assets!R$46&"|"&Assets!$B70,'Data Annex'!$K$1:$K$869,0),MATCH(Assets!R$47,'Data Annex'!$K$1:$AN$1,0)),"") -> 0.9684527286 | S70: =IFERROR(INDEX('Data Annex'!$K$1:$AN$869,MATCH(Assets!S$46&"|"&Assets!$B70,'Data Annex'!$K$1:$K$869,0),MATCH(Assets!S$47,'Data Annex'!$K$1:$AN$1,0)),"") -> 0.970097239 | T70: =IFERROR(INDEX('Data Annex'!$K$1:$AN$869,MATCH(Assets!T$46&"|"&Assets!$B70,'Data Annex'!$K$1:$K$869,0),MATCH(Assets!T$47,'Data Annex'!$K$1:$AN$1,0)),"") -> 0.96950353 | U70: =IFERROR(INDEX('Data Annex'!$K$1:$AN$869,MATCH(Assets!U$46&"|"&Assets!$B70,'Data Annex'!$K$1:$K$869,0),MATCH(Assets!U$47,'Data Annex'!$K$1:$AN$1,0)),"") -> 0.0003177196 | V70: =IFERROR(INDEX('Data Annex'!$K$1:$AN$869,MATCH(Assets!V$46&"|"&Assets!$B70,'Data Annex'!$K$1:$K$869,0),MATCH(Assets!V$47,'Data Annex'!$K$1:$AN$1,0)),"") -> 0.001598069 | W70: =IFERROR(INDEX('Data Annex'!$K$1:$AN$869,MATCH(Assets!W$46&"|"&Assets!$B70,'Data Annex'!$K$1:$K$869,0),MATCH(Assets!W$47,'Data Annex'!$K$1:$AN$1,0)),"") -> 0.0013053672 | X70: =IFERROR(INDEX('Data Annex'!$K$1:$AN$869,MATCH(Assets!X$46&"|"&Assets!$B70,'Data Annex'!$K$1:$K$869,0),MATCH(Assets!X$47,'Data Annex'!$K$1:$AN$1,0)),"") -> 0.0011258032 | Y70: =IFERROR(INDEX('Data Annex'!$K$1:$AN$869,MATCH(Assets!Y$46&"|"&Assets!$B70,'Data Annex'!$K$1:$K$869,0),MATCH(Assets!Y$47,'Data Annex'!$K$1:$AN$1,0)),"") -> 0.0226540708 | Z70: =IFERROR(INDEX('Data Annex'!$K$1:$AN$869,MATCH(Assets!Z$46&"|"&Assets!$B70,'Data Annex'!$K$1:$K$869,0),MATCH(Assets!Z$47,'Data Annex'!$K$1:$AN$1,0)),"") -> 0.0299492024 | AA70: =IFERROR(INDEX('Data Annex'!$K$1:$AN$869,MATCH(Assets!AA$46&"|"&Assets!$B70,'Data Annex'!$K$1:$K$869,0),MATCH(Assets!AA$47,'Data Annex'!$K$1:$AN$1,0)),"") -> 0.0285973938 | AB70: =IFERROR(INDEX('Data Annex'!$K$1:$AN$869,MATCH(Assets!AB$46&"|"&Assets!$B70,'Data Annex'!$K$1:$K$869,0),MATCH(Assets!AB$47,'Data Annex'!$K$1:$AN$1,0)),"") -> 0.0293706668
B71: LU | D71: LU | F71: =IFERROR(INDEX('Data Annex'!$K$1:$AN$869,MATCH(Assets!F$46&"|"&Assets!$B71,'Data Annex'!$K$1:$K$869,0),MATCH(Assets!F$47,'Data Annex'!$K$1:$AN$1,0)),"") -> 231.0255539 | G71: =IFERROR(INDEX('Data Annex'!$K$1:$AN$869,MATCH(Assets!G$46&"|"&Assets!$B71,'Data Annex'!$K$1:$K$869,0),MATCH(Assets!G$47,'Data Annex'!$K$1:$AN$1,0)),"") -> 221.3351309 | H71: =IFERROR(INDEX('Data Annex'!$K$1:$AN$869,MATCH(Assets!H$46&"|"&Assets!$B71,'Data Annex'!$K$1:$K$869,0),MATCH(Assets!H$47,'Data Annex'!$K$1:$AN$1,0)),"") -> 218.7217715 | I71: =IFERROR(INDEX('Data Annex'!$K$1:$AN$869,MATCH(Assets!I$46&"|"&Assets!$B71,'Data Annex'!$K$1:$K$869,0),MATCH(Assets!I$47,'Data Annex'!$K$1:$AN$1,0)),"") -> 177.2631765 | J71: =IFERROR(INDEX('Data Annex'!$K$1:$AN$869,MATCH(Assets!J$46&"|"&Assets!$B71,'Data Annex'!$K$1:$K$869,0),MATCH(Assets!J$47,'Data Annex'!$K$1:$AN$1,0)),"") -> 225.2481898 | K71: =IFERROR(INDEX('Data Annex'!$K$1:$AN$869,MATCH(Assets!K$46&"|"&Assets!$B71,'Data Annex'!$K$1:$K$869,0),MATCH(Assets!K$47,'Data Annex'!$K$1:$AN$1,0)),"") -> 215.6807873 | L71: =IFERROR(INDEX('Data Annex'!$K$1:$AN$869,MATCH(Assets!L$46&"|"&Assets!$B71,'Data Annex'!$K$1:$K$869,0),MATCH(Assets!L$47,'Data Annex'!$K$1:$AN$1,0)),"") -> 212.8172027 | M71: =IFERROR(INDEX('Data Annex'!$K$1:$AN$869,MATCH(Assets!M$46&"|"&Assets!$B71,'Data Annex'!$K$1:$K$869,0),MATCH(Assets!M$47,'Data Annex'!$K$1:$AN$1,0)),"") -> 172.2168122 | N71: 0.9715317961 | O71: LU | Q71: =IFERROR(INDEX('Data Annex'!$K$1:$AN$869,MATCH(Assets!Q$46&"|"&Assets!$B71,'Data Annex'!$K$1:$K$869,0),MATCH(Assets!Q$47,'Data Annex'!$K$1:$AN$1,0)),"") -> 0.7032551384 | R71: =IFERROR(INDEX('Data Annex'!$K$1:$AN$869,MATCH(Assets!R$46&"|"&Assets!$B71,'Data Annex'!$K$1:$K$869,0),MATCH(Assets!R$47,'Data Annex'!$K$1:$AN$1,0)),"") -> 0.7210186325 | S71: =IFERROR(INDEX('Data Annex'!$K$1:$AN$869,MATCH(Assets!S$46&"|"&Assets!$B71,'Data Annex'!$K$1:$K$869,0),MATCH(Assets!S$47,'Data Annex'!$K$1:$AN$1,0)),"") -> 0.7297893112 | T71: =IFERROR(INDEX('Data Annex'!$K$1:$AN$869,MATCH(Assets!T$46&"|"&Assets!$B71,'Data Annex'!$K$1:$K$869,0),MATCH(Assets!T$47,'Data Annex'!$K$1:$AN$1,0)),"") -> 0.9184280283 | U71: =IFERROR(INDEX('Data Annex'!$K$1:$AN$869,MATCH(Assets!U$46&"|"&Assets!$B71,'Data Annex'!$K$1:$K$869,0),MATCH(Assets!U$47,'Data Annex'!$K$1:$AN$1,0)),"") -> 0.0486689441 | V71: =IFERROR(INDEX('Data Annex'!$K$1:$AN$869,MATCH(Assets!V$46&"|"&Assets!$B71,'Data Annex'!$K$1:$K$869,0),MATCH(Assets!V$47,'Data Annex'!$K$1:$AN$1,0)),"") -> 0.0535360826 | W71: =IFERROR(INDEX('Data Annex'!$K$1:$AN$869,MATCH(Assets!W$46&"|"&Assets!$B71,'Data Annex'!$K$1:$K$869,0),MATCH(Assets!W$47,'Data Annex'!$K$1:$AN$1,0)),"") -> 0.05193172 | X71: =IFERROR(INDEX('Data Annex'!$K$1:$AN$869,MATCH(Assets!X$46&"|"&Assets!$B71,'Data Annex'!$K$1:$K$869,0),MATCH(Assets!X$47,'Data Annex'!$K$1:$AN$1,0)),"") -> 0.0636790115 | Y71: =IFERROR(INDEX('Data Annex'!$K$1:$AN$869,MATCH(Assets!Y$46&"|"&Assets!$B71,'Data Annex'!$K$1:$K$869,0),MATCH(Assets!Y$47,'Data Annex'!$K$1:$AN$1,0)),"") -> 0.2480759175 | Z71: =IFERROR(INDEX('Data Annex'!$K$1:$AN$869,MATCH(Assets!Z$46&"|"&Assets!$B71,'Data Annex'!$K$1:$K$869,0),MATCH(Assets!Z$47,'Data Annex'!$K$1:$AN$1,0)),"") -> 0.2254452849 | AA71: =IFERROR(INDEX('Data Annex'!$K$1:$AN$869,MATCH(Assets!AA$46&"|"&Assets!$B71,'Data Annex'!$K$1:$K$869,0),MATCH(Assets!AA$47,'Data Annex'!$K$1:$AN$1,0)),"") -> 0.2182789687 | AB71: =IFERROR(INDEX('Data Annex'!$K$1:$AN$869,MATCH(Assets!AB$46&"|"&Assets!$B71,'Data Annex'!$K$1:$K$869,0),MATCH(Assets!AB$47,'Data Annex'!$K$1:$AN$1,0)),"") -> 0.0178929602
B72: LV | D72: LV | F72: =IFERROR(INDEX('Data Annex'!$K$1:$AN$869,MATCH(Assets!F$46&"|"&Assets!$B72,'Data Annex'!$K$1:$K$869,0),MATCH(Assets!F$47,'Data Annex'!$K$1:$AN$1,0)),"") -> 13.94709194 | G72: =IFERROR(INDEX('Data Annex'!$K$1:$AN$869,MATCH(Assets!G$46&"|"&Assets!$B72,'Data Annex'!$K$1:$K$869,0),MATCH(Assets!G$47,'Data Annex'!$K$1:$AN$1,0)),"") -> 15.49101397 | H72: =IFERROR(INDEX('Data Annex'!$K$1:$AN$869,MATCH(Assets!H$46&"|"&Assets!$B72,'Data Annex'!$K$1:$K$869,0),MATCH(Assets!H$47,'Data Annex'!$K$1:$AN$1,0)),"") -> 15.78316162 | I72: =IFERROR(INDEX('Data Annex'!$K$1:$AN$869,MATCH(Assets!I$46&"|"&Assets!$B72,'Data Annex'!$K$1:$K$869,0),MATCH(Assets!I$47,'Data Annex'!$K$1:$AN$1,0)),"") -> 8.798443675 | J72: =IFERROR(INDEX('Data Annex'!$K$1:$AN$869,MATCH(Assets!J$46&"|"&Assets!$B72,'Data Annex'!$K$1:$K$869,0),MATCH(Assets!J$47,'Data Annex'!$K$1:$AN$1,0)),"") -> 13.77045684 | K72: =IFERROR(INDEX('Data Annex'!$K$1:$AN$869,MATCH(Assets!K$46&"|"&Assets!$B72,'Data Annex'!$K$1:$K$869,0),MATCH(Assets!K$47,'Data Annex'!$K$1:$AN$1,0)),"") -> 15.31503411 | L72: =IFERROR(INDEX('Data Annex'!$K$1:$AN$869,MATCH(Assets!L$46&"|"&Assets!$B72,'Data Annex'!$K$1:$K$869,0),MATCH(Assets!L$47,'Data Annex'!$K$1:$AN$1,0)),"") -> 15.61511859 | M72: =IFERROR(INDEX('Data Annex'!$K$1:$AN$869,MATCH(Assets!M$46&"|"&Assets!$B72,'Data Annex'!$K$1:$K$869,0),MATCH(Assets!M$47,'Data Annex'!$K$1:$AN$1,0)),"") -> 8.716639073 | N72: 0.9907023782 | O72: LV | Q72: =IFERROR(INDEX('Data Annex'!$K$1:$AN$869,MATCH(Assets!Q$46&"|"&Assets!$B72,'Data Annex'!$K$1:$K$869,0),MATCH(Assets!Q$47,'Data Annex'!$K$1:$AN$1,0)),"") -> 0.9571372556 | R72: =IFERROR(INDEX('Data Annex'!$K$1:$AN$869,MATCH(Assets!R$46&"|"&Assets!$B72,'Data Annex'!$K$1:$K$869,0),MATCH(Assets!R$47,'Data Annex'!$K$1:$AN$1,0)),"") -> 0.8913249433 | S72: =IFERROR(INDEX('Data Annex'!$K$1:$AN$869,MATCH(Assets!S$46&"|"&Assets!$B72,'Data Annex'!$K$1:$K$869,0),MATCH(Assets!S$47,'Data Annex'!$K$1:$AN$1,0)),"") -> 0.8864917444 | T72: =IFERROR(INDEX('Data Annex'!$K$1:$AN$869,MATCH(Assets!T$46&"|"&Assets!$B72,'Data Annex'!$K$1:$K$869,0),MATCH(Assets!T$47,'Data Annex'!$K$1:$AN$1,0)),"") -> 0.9231690327 | U72: =IFERROR(INDEX('Data Annex'!$K$1:$AN$869,MATCH(Assets!U$46&"|"&Assets!$B72,'Data Annex'!$K$1:$K$869,0),MATCH(Assets!U$47,'Data Annex'!$K$1:$AN$1,0)),"") -> 0.0220874744 | V72: =IFERROR(INDEX('Data Annex'!$K$1:$AN$869,MATCH(Assets!V$46&"|"&Assets!$B72,'Data Annex'!$K$1:$K$869,0),MATCH(Assets!V$47,'Data Annex'!$K$1:$AN$1,0)),"") -> 0.0244807545 | W72: =IFERROR(INDEX('Data Annex'!$K$1:$AN$869,MATCH(Assets!W$46&"|"&Assets!$B72,'Data Annex'!$K$1:$K$869,0),MATCH(Assets!W$47,'Data Annex'!$K$1:$AN$1,0)),"") -> 0.0306981949 | X72: =IFERROR(INDEX('Data Annex'!$K$1:$AN$869,MATCH(Assets!X$46&"|"&Assets!$B72,'Data Annex'!$K$1:$K$869,0),MATCH(Assets!X$47,'Data Annex'!$K$1:$AN$1,0)),"") -> 0.0388308466 | Y72: =IFERROR(INDEX('Data Annex'!$K$1:$AN$869,MATCH(Assets!Y$46&"|"&Assets!$B72,'Data Annex'!$K$1:$K$869,0),MATCH(Assets!Y$47,'Data Annex'!$K$1:$AN$1,0)),"") -> 0.02077527 | Z72: =IFERROR(INDEX('Data Annex'!$K$1:$AN$869,MATCH(Assets!Z$46&"|"&Assets!$B72,'Data Annex'!$K$1:$K$869,0),MATCH(Assets!Z$47,'Data Annex'!$K$1:$AN$1,0)),"") -> 0.0841943021 | AA72: =IFERROR(INDEX('Data Annex'!$K$1:$AN$869,MATCH(Assets!AA$46&"|"&Assets!$B72,'Data Annex'!$K$1:$K$869,0),MATCH(Assets!AA$47,'Data Annex'!$K$1:$AN$1,0)),"") -> 0.0828100607 | AB72: =IFERROR(INDEX('Data Annex'!$K$1:$AN$869,MATCH(Assets!AB$46&"|"&Assets!$B72,'Data Annex'!$K$1:$K$869,0),MATCH(Assets!AB$47,'Data Annex'!$K$1:$AN$1,0)),"") -> 0.0380001207
B73: MT | D73: MT | F73: =IFERROR(INDEX('Data Annex'!$K$1:$AN$869,MATCH(Assets!F$46&"|"&Assets!$B73,'Data Annex'!$K$1:$K$869,0),MATCH(Assets!F$47,'Data Annex'!$K$1:$AN$1,0)),"") -> 21.73989099 | G73: =IFERROR(INDEX('Data Annex'!$K$1:$AN$869,MATCH(Assets!G$46&"|"&Assets!$B73,'Data Annex'!$K$1:$K$869,0),MATCH(Assets!G$47,'Data Annex'!$K$1:$AN$1,0)),"") -> 22.388761 | H73: =IFERROR(INDEX('Data Annex'!$K$1:$AN$869,MATCH(Assets!H$46&"|"&Assets!$B73,'Data Annex'!$K$1:$K$869,0),MATCH(Assets!H$47,'Data Annex'!$K$1:$AN$1,0)),"") -> 22.49619345 | I73: =IFERROR(INDEX('Data Annex'!$K$1:$AN$869,MATCH(Assets!I$46&"|"&Assets!$B73,'Data Annex'!$K$1:$K$869,0),MATCH(Assets!I$47,'Data Annex'!$K$1:$AN$1,0)),"") -> 22.85374554 | J73: =IFERROR(INDEX('Data Annex'!$K$1:$AN$869,MATCH(Assets!J$46&"|"&Assets!$B73,'Data Annex'!$K$1:$K$869,0),MATCH(Assets!J$47,'Data Annex'!$K$1:$AN$1,0)),"") -> 21.0329051 | K73: =IFERROR(INDEX('Data Annex'!$K$1:$AN$869,MATCH(Assets!K$46&"|"&Assets!$B73,'Data Annex'!$K$1:$K$869,0),MATCH(Assets!K$47,'Data Annex'!$K$1:$AN$1,0)),"") -> 21.69237724 | L73: =IFERROR(INDEX('Data Annex'!$K$1:$AN$869,MATCH(Assets!L$46&"|"&Assets!$B73,'Data Annex'!$K$1:$K$869,0),MATCH(Assets!L$47,'Data Annex'!$K$1:$AN$1,0)),"") -> 21.81917865 | M73: =IFERROR(INDEX('Data Annex'!$K$1:$AN$869,MATCH(Assets!M$46&"|"&Assets!$B73,'Data Annex'!$K$1:$K$869,0),MATCH(Assets!M$47,'Data Annex'!$K$1:$AN$1,0)),"") -> 22.13203145 | N73: 0.9684203151 | O73: MT | Q73: =IFERROR(INDEX('Data Annex'!$K$1:$AN$869,MATCH(Assets!Q$46&"|"&Assets!$B73,'Data Annex'!$K$1:$K$869,0),MATCH(Assets!Q$47,'Data Annex'!$K$1:$AN$1,0)),"") -> 0.9044110821 | R73: =IFERROR(INDEX('Data Annex'!$K$1:$AN$869,MATCH(Assets!R$46&"|"&Assets!$B73,'Data Annex'!$K$1:$K$869,0),MATCH(Assets!R$47,'Data Annex'!$K$1:$AN$1,0)),"") -> 0.8799762531 | S73: =IFERROR(INDEX('Data Annex'!$K$1:$AN$869,MATCH(Assets!S$46&"|"&Assets!$B73,'Data Annex'!$K$1:$K$869,0),MATCH(Assets!S$47,'Data Annex'!$K$1:$AN$1,0)),"") -> 0.8883434702 | T73: =IFERROR(INDEX('Data Annex'!$K$1:$AN$869,MATCH(Assets!T$46&"|"&Assets!$B73,'Data Annex'!$K$1:$K$869,0),MATCH(Assets!T$47,'Data Annex'!$K$1:$AN$1,0)),"") -> 0.8970539531 | U73: =IFERROR(INDEX('Data Annex'!$K$1:$AN$869,MATCH(Assets!U$46&"|"&Assets!$B73,'Data Annex'!$K$1:$K$869,0),MATCH(Assets!U$47,'Data Annex'!$K$1:$AN$1,0)),"") -> 0.0847910397 | V73: =IFERROR(INDEX('Data Annex'!$K$1:$AN$869,MATCH(Assets!V$46&"|"&Assets!$B73,'Data Annex'!$K$1:$K$869,0),MATCH(Assets!V$47,'Data Annex'!$K$1:$AN$1,0)),"") -> 0.1112077249 | W73: =IFERROR(INDEX('Data Annex'!$K$1:$AN$869,MATCH(Assets!W$46&"|"&Assets!$B73,'Data Annex'!$K$1:$K$869,0),MATCH(Assets!W$47,'Data Annex'!$K$1:$AN$1,0)),"") -> 0.1031444159 | X73: =IFERROR(INDEX('Data Annex'!$K$1:$AN$869,MATCH(Assets!X$46&"|"&Assets!$B73,'Data Annex'!$K$1:$K$869,0),MATCH(Assets!X$47,'Data Annex'!$K$1:$AN$1,0)),"") -> 0.0948983017 | Y73: =IFERROR(INDEX('Data Annex'!$K$1:$AN$869,MATCH(Assets!Y$46&"|"&Assets!$B73,'Data Annex'!$K$1:$K$869,0),MATCH(Assets!Y$47,'Data Annex'!$K$1:$AN$1,0)),"") -> 0.0107978782 | Z73: =IFERROR(INDEX('Data Annex'!$K$1:$AN$869,MATCH(Assets!Z$46&"|"&Assets!$B73,'Data Annex'!$K$1:$K$869,0),MATCH(Assets!Z$47,'Data Annex'!$K$1:$AN$1,0)),"") -> 0.008816022 | AA73: =IFERROR(INDEX('Data Annex'!$K$1:$AN$869,MATCH(Assets!AA$46&"|"&Assets!$B73,'Data Annex'!$K$1:$K$869,0),MATCH(Assets!AA$47,'Data Annex'!$K$1:$AN$1,0)),"") -> 0.0085121139 | AB73: =IFERROR(INDEX('Data Annex'!$K$1:$AN$869,MATCH(Assets!AB$46&"|"&Assets!$B73,'Data Annex'!$K$1:$K$869,0),MATCH(Assets!AB$47,'Data Annex'!$K$1:$AN$1,0)),"") -> 0.0080477452
B74: NL | D74: NL | F74: =IFERROR(INDEX('Data Annex'!$K$1:$AN$869,MATCH(Assets!F$46&"|"&Assets!$B74,'Data Annex'!$K$1:$K$869,0),MATCH(Assets!F$47,'Data Annex'!$K$1:$AN$1,0)),"") -> 2212.146183 | G74: =IFERROR(INDEX('Data Annex'!$K$1:$AN$869,MATCH(Assets!G$46&"|"&Assets!$B74,'Data Annex'!$K$1:$K$869,0),MATCH(Assets!G$47,'Data Annex'!$K$1:$AN$1,0)),"") -> 2262.356289 | H74: =IFERROR(INDEX('Data Annex'!$K$1:$AN$869,MATCH(Assets!H$46&"|"&Assets!$B74,'Data Annex'!$K$1:$K$869,0),MATCH(Assets!H$47,'Data Annex'!$K$1:$AN$1,0)),"") -> 2290.66618 | I74: =IFERROR(INDEX('Data Annex'!$K$1:$AN$869,MATCH(Assets!I$46&"|"&Assets!$B74,'Data Annex'!$K$1:$K$869,0),MATCH(Assets!I$47,'Data Annex'!$K$1:$AN$1,0)),"") -> 2193.284832 | J74: =IFERROR(INDEX('Data Annex'!$K$1:$AN$869,MATCH(Assets!J$46&"|"&Assets!$B74,'Data Annex'!$K$1:$K$869,0),MATCH(Assets!J$47,'Data Annex'!$K$1:$AN$1,0)),"") -> 2135.95156 | K74: =IFERROR(INDEX('Data Annex'!$K$1:$AN$869,MATCH(Assets!K$46&"|"&Assets!$B74,'Data Annex'!$K$1:$K$869,0),MATCH(Assets!K$47,'Data Annex'!$K$1:$AN$1,0)),"") -> 2184.212768 | L74: =IFERROR(INDEX('Data Annex'!$K$1:$AN$869,MATCH(Assets!L$46&"|"&Assets!$B74,'Data Annex'!$K$1:$K$869,0),MATCH(Assets!L$47,'Data Annex'!$K$1:$AN$1,0)),"") -> 2214.987825 | M74: =IFERROR(INDEX('Data Annex'!$K$1:$AN$869,MATCH(Assets!M$46&"|"&Assets!$B74,'Data Annex'!$K$1:$K$869,0),MATCH(Assets!M$47,'Data Annex'!$K$1:$AN$1,0)),"") -> 2121.969838 | N74: 0.9674848461 | O74: NL | Q74: =IFERROR(INDEX('Data Annex'!$K$1:$AN$869,MATCH(Assets!Q$46&"|"&Assets!$B74,'Data Annex'!$K$1:$K$869,0),MATCH(Assets!Q$47,'Data Annex'!$K$1:$AN$1,0)),"") -> 0.8630421445 | R74: =IFERROR(INDEX('Data Annex'!$K$1:$AN$869,MATCH(Assets!R$46&"|"&Assets!$B74,'Data Annex'!$K$1:$K$869,0),MATCH(Assets!R$47,'Data Annex'!$K$1:$AN$1,0)),"") -> 0.8683345005 | S74: =IFERROR(INDEX('Data Annex'!$K$1:$AN$869,MATCH(Assets!S$46&"|"&Assets!$B74,'Data Annex'!$K$1:$K$869,0),MATCH(Assets!S$47,'Data Annex'!$K$1:$AN$1,0)),"") -> 0.8727921323 | T74: =IFERROR(INDEX('Data Annex'!$K$1:$AN$869,MATCH(Assets!T$46&"|"&Assets!$B74,'Data Annex'!$K$1:$K$869,0),MATCH(Assets!T$47,'Data Annex'!$K$1:$AN$1,0)),"") -> 0.8740992185 | U74: =IFERROR(INDEX('Data Annex'!$K$1:$AN$869,MATCH(Assets!U$46&"|"&Assets!$B74,'Data Annex'!$K$1:$K$869,0),MATCH(Assets!U$47,'Data Annex'!$K$1:$AN$1,0)),"") -> 0.0514778986 | V74: =IFERROR(INDEX('Data Annex'!$K$1:$AN$869,MATCH(Assets!V$46&"|"&Assets!$B74,'Data Annex'!$K$1:$K$869,0),MATCH(Assets!V$47,'Data Annex'!$K$1:$AN$1,0)),"") -> 0.0530070786 | W74: =IFERROR(INDEX('Data Annex'!$K$1:$AN$869,MATCH(Assets!W$46&"|"&Assets!$B74,'Data Annex'!$K$1:$K$869,0),MATCH(Assets!W$47,'Data Annex'!$K$1:$AN$1,0)),"") -> 0.050848488 | X74: =IFERROR(INDEX('Data Annex'!$K$1:$AN$869,MATCH(Assets!X$46&"|"&Assets!$B74,'Data Annex'!$K$1:$K$869,0),MATCH(Assets!X$47,'Data Annex'!$K$1:$AN$1,0)),"") -> 0.0517055198 | Y74: =IFERROR(INDEX('Data Annex'!$K$1:$AN$869,MATCH(Assets!Y$46&"|"&Assets!$B74,'Data Annex'!$K$1:$K$869,0),MATCH(Assets!Y$47,'Data Annex'!$K$1:$AN$1,0)),"") -> 0.0854799569 | Z74: =IFERROR(INDEX('Data Annex'!$K$1:$AN$869,MATCH(Assets!Z$46&"|"&Assets!$B74,'Data Annex'!$K$1:$K$869,0),MATCH(Assets!Z$47,'Data Annex'!$K$1:$AN$1,0)),"") -> 0.078658421 | AA74: =IFERROR(INDEX('Data Annex'!$K$1:$AN$869,MATCH(Assets!AA$46&"|"&Assets!$B74,'Data Annex'!$K$1:$K$869,0),MATCH(Assets!AA$47,'Data Annex'!$K$1:$AN$1,0)),"") -> 0.0763593797 | AB74: =IFERROR(INDEX('Data Annex'!$K$1:$AN$869,MATCH(Assets!AB$46&"|"&Assets!$B74,'Data Annex'!$K$1:$K$869,0),MATCH(Assets!AB$47,'Data Annex'!$K$1:$AN$1,0)),"") -> 0.0741952617
B75: NO | D75: NO | F75: =IFERROR(INDEX('Data Annex'!$K$1:$AN$869,MATCH(Assets!F$46&"|"&Assets!$B75,'Data Annex'!$K$1:$K$869,0),MATCH(Assets!F$47,'Data Annex'!$K$1:$AN$1,0)),"") -> 301.5625295 | G75: =IFERROR(INDEX('Data Annex'!$K$1:$AN$869,MATCH(Assets!G$46&"|"&Assets!$B75,'Data Annex'!$K$1:$K$869,0),MATCH(Assets!G$47,'Data Annex'!$K$1:$AN$1,0)),"") -> 303.6580119 | H75: =IFERROR(INDEX('Data Annex'!$K$1:$AN$869,MATCH(Assets!H$46&"|"&Assets!$B75,'Data Annex'!$K$1:$K$869,0),MATCH(Assets!H$47,'Data Annex'!$K$1:$AN$1,0)),"") -> 297.2320525 | I75: =IFERROR(INDEX('Data Annex'!$K$1:$AN$869,MATCH(Assets!I$46&"|"&Assets!$B75,'Data Annex'!$K$1:$K$869,0),MATCH(Assets!I$47,'Data Annex'!$K$1:$AN$1,0)),"") -> 302.9686131 | J75: =IFERROR(INDEX('Data Annex'!$K$1:$AN$869,MATCH(Assets!J$46&"|"&Assets!$B75,'Data Annex'!$K$1:$K$869,0),MATCH(Assets!J$47,'Data Annex'!$K$1:$AN$1,0)),"") -> 297.1586388 | K75: =IFERROR(INDEX('Data Annex'!$K$1:$AN$869,MATCH(Assets!K$46&"|"&Assets!$B75,'Data Annex'!$K$1:$K$869,0),MATCH(Assets!K$47,'Data Annex'!$K$1:$AN$1,0)),"") -> 298.6709538 | L75: =IFERROR(INDEX('Data Annex'!$K$1:$AN$869,MATCH(Assets!L$46&"|"&Assets!$B75,'Data Annex'!$K$1:$K$869,0),MATCH(Assets!L$47,'Data Annex'!$K$1:$AN$1,0)),"") -> 292.669355 | M75: =IFERROR(INDEX('Data Annex'!$K$1:$AN$869,MATCH(Assets!M$46&"|"&Assets!$B75,'Data Annex'!$K$1:$K$869,0),MATCH(Assets!M$47,'Data Annex'!$K$1:$AN$1,0)),"") -> 298.4313948 | N75: 0.9850241311 | O75: NO | Q75: =IFERROR(INDEX('Data Annex'!$K$1:$AN$869,MATCH(Assets!Q$46&"|"&Assets!$B75,'Data Annex'!$K$1:$K$869,0),MATCH(Assets!Q$47,'Data Annex'!$K$1:$AN$1,0)),"") -> 0.777571454 | R75: =IFERROR(INDEX('Data Annex'!$K$1:$AN$869,MATCH(Assets!R$46&"|"&Assets!$B75,'Data Annex'!$K$1:$K$869,0),MATCH(Assets!R$47,'Data Annex'!$K$1:$AN$1,0)),"") -> 0.7662843486 | S75: =IFERROR(INDEX('Data Annex'!$K$1:$AN$869,MATCH(Assets!S$46&"|"&Assets!$B75,'Data Annex'!$K$1:$K$869,0),MATCH(Assets!S$47,'Data Annex'!$K$1:$AN$1,0)),"") -> 0.7794090304 | T75: =IFERROR(INDEX('Data Annex'!$K$1:$AN$869,MATCH(Assets!T$46&"|"&Assets!$B75,'Data Annex'!$K$1:$K$869,0),MATCH(Assets!T$47,'Data Annex'!$K$1:$AN$1,0)),"") -> 0.769211687 | U75: =IFERROR(INDEX('Data Annex'!$K$1:$AN$869,MATCH(Assets!U$46&"|"&Assets!$B75,'Data Annex'!$K$1:$K$869,0),MATCH(Assets!U$47,'Data Annex'!$K$1:$AN$1,0)),"") -> 0.047335695 | V75: =IFERROR(INDEX('Data Annex'!$K$1:$AN$869,MATCH(Assets!V$46&"|"&Assets!$B75,'Data Annex'!$K$1:$K$869,0),MATCH(Assets!V$47,'Data Annex'!$K$1:$AN$1,0)),"") -> 0.0514201702 | W75: =IFERROR(INDEX('Data Annex'!$K$1:$AN$869,MATCH(Assets!W$46&"|"&Assets!$B75,'Data Annex'!$K$1:$K$869,0),MATCH(Assets!W$47,'Data Annex'!$K$1:$AN$1,0)),"") -> 0.053362937 | X75: =IFERROR(INDEX('Data Annex'!$K$1:$AN$869,MATCH(Assets!X$46&"|"&Assets!$B75,'Data Annex'!$K$1:$K$869,0),MATCH(Assets!X$47,'Data Annex'!$K$1:$AN$1,0)),"") -> 0.0568657281 | Y75: =IFERROR(INDEX('Data Annex'!$K$1:$AN$869,MATCH(Assets!Y$46&"|"&Assets!$B75,'Data Annex'!$K$1:$K$869,0),MATCH(Assets!Y$47,'Data Annex'!$K$1:$AN$1,0)),"") -> 0.175092851 | Z75: =IFERROR(INDEX('Data Annex'!$K$1:$AN$869,MATCH(Assets!Z$46&"|"&Assets!$B75,'Data Annex'!$K$1:$K$869,0),MATCH(Assets!Z$47,'Data Annex'!$K$1:$AN$1,0)),"") -> 0.1822954812 | AA75: =IFERROR(INDEX('Data Annex'!$K$1:$AN$869,MATCH(Assets!AA$46&"|"&Assets!$B75,'Data Annex'!$K$1:$K$869,0),MATCH(Assets!AA$47,'Data Annex'!$K$1:$AN$1,0)),"") -> 0.1672280326 | AB75: =IFERROR(INDEX('Data Annex'!$K$1:$AN$869,MATCH(Assets!AB$46&"|"&Assets!$B75,'Data Annex'!$K$1:$K$869,0),MATCH(Assets!AB$47,'Data Annex'!$K$1:$AN$1,0)),"") -> 0.1739225848
B76: PL | D76: PL | F76: =IFERROR(INDEX('Data Annex'!$K$1:$AN$869,MATCH(Assets!F$46&"|"&Assets!$B76,'Data Annex'!$K$1:$K$869,0),MATCH(Assets!F$47,'Data Annex'!$K$1:$AN$1,0)),"") -> 174.8445108 | G76: =IFERROR(INDEX('Data Annex'!$K$1:$AN$869,MATCH(Assets!G$46&"|"&Assets!$B76,'Data Annex'!$K$1:$K$869,0),MATCH(Assets!G$47,'Data Annex'!$K$1:$AN$1,0)),"") -> 186.7362212 | H76: =IFERROR(INDEX('Data Annex'!$K$1:$AN$869,MATCH(Assets!H$46&"|"&Assets!$B76,'Data Annex'!$K$1:$K$869,0),MATCH(Assets!H$47,'Data Annex'!$K$1:$AN$1,0)),"") -> 182.4476114 | I76: =IFERROR(INDEX('Data Annex'!$K$1:$AN$869,MATCH(Assets!I$46&"|"&Assets!$B76,'Data Annex'!$K$1:$K$869,0),MATCH(Assets!I$47,'Data Annex'!$K$1:$AN$1,0)),"") -> 184.7185093 | J76: =IFERROR(INDEX('Data Annex'!$K$1:$AN$869,MATCH(Assets!J$46&"|"&Assets!$B76,'Data Annex'!$K$1:$K$869,0),MATCH(Assets!J$47,'Data Annex'!$K$1:$AN$1,0)),"") -> 168.7776961 | K76: =IFERROR(INDEX('Data Annex'!$K$1:$AN$869,MATCH(Assets!K$46&"|"&Assets!$B76,'Data Annex'!$K$1:$K$869,0),MATCH(Assets!K$47,'Data Annex'!$K$1:$AN$1,0)),"") -> 180.7310921 | L76: =IFERROR(INDEX('Data Annex'!$K$1:$AN$869,MATCH(Assets!L$46&"|"&Assets!$B76,'Data Annex'!$K$1:$K$869,0),MATCH(Assets!L$47,'Data Annex'!$K$1:$AN$1,0)),"") -> 176.6655917 | M76: =IFERROR(INDEX('Data Annex'!$K$1:$AN$869,MATCH(Assets!M$46&"|"&Assets!$B76,'Data Annex'!$K$1:$K$869,0),MATCH(Assets!M$47,'Data Annex'!$K$1:$AN$1,0)),"") -> 178.6133317 | N76: 0.9669487503 | O76: PL | Q76: =IFERROR(INDEX('Data Annex'!$K$1:$AN$869,MATCH(Assets!Q$46&"|"&Assets!$B76,'Data Annex'!$K$1:$K$869,0),MATCH(Assets!Q$47,'Data Annex'!$K$1:$AN$1,0)),"") -> 0.7821685287 | R76: =IFERROR(INDEX('Data Annex'!$K$1:$AN$869,MATCH(Assets!R$46&"|"&Assets!$B76,'Data Annex'!$K$1:$K$869,0),MATCH(Assets!R$47,'Data Annex'!$K$1:$AN$1,0)),"") -> 0.7440716971 | S76: =IFERROR(INDEX('Data Annex'!$K$1:$AN$869,MATCH(Assets!S$46&"|"&Assets!$B76,'Data Annex'!$K$1:$K$869,0),MATCH(Assets!S$47,'Data Annex'!$K$1:$AN$1,0)),"") -> 0.7341933818 | T76: =IFERROR(INDEX('Data Annex'!$K$1:$AN$869,MATCH(Assets!T$46&"|"&Assets!$B76,'Data Annex'!$K$1:$K$869,0),MATCH(Assets!T$47,'Data Annex'!$K$1:$AN$1,0)),"") -> 0.7396490436 | U76: =IFERROR(INDEX('Data Annex'!$K$1:$AN$869,MATCH(Assets!U$46&"|"&Assets!$B76,'Data Annex'!$K$1:$K$869,0),MATCH(Assets!U$47,'Data Annex'!$K$1:$AN$1,0)),"") -> 0.1801024739 | V76: =IFERROR(INDEX('Data Annex'!$K$1:$AN$869,MATCH(Assets!V$46&"|"&Assets!$B76,'Data Annex'!$K$1:$K$869,0),MATCH(Assets!V$47,'Data Annex'!$K$1:$AN$1,0)),"") -> 0.2210887401 | W76: =IFERROR(INDEX('Data Annex'!$K$1:$AN$869,MATCH(Assets!W$46&"|"&Assets!$B76,'Data Annex'!$K$1:$K$869,0),MATCH(Assets!W$47,'Data Annex'!$K$1:$AN$1,0)),"") -> 0.2303220245 | X76: =IFERROR(INDEX('Data Annex'!$K$1:$AN$869,MATCH(Assets!X$46&"|"&Assets!$B76,'Data Annex'!$K$1:$K$869,0),MATCH(Assets!X$47,'Data Annex'!$K$1:$AN$1,0)),"") -> 0.228171558 | Y76: =IFERROR(INDEX('Data Annex'!$K$1:$AN$869,MATCH(Assets!Y$46&"|"&Assets!$B76,'Data Annex'!$K$1:$K$869,0),MATCH(Assets!Y$47,'Data Annex'!$K$1:$AN$1,0)),"") -> 0.0377289974 | Z76: =IFERROR(INDEX('Data Annex'!$K$1:$AN$869,MATCH(Assets!Z$46&"|"&Assets!$B76,'Data Annex'!$K$1:$K$869,0),MATCH(Assets!Z$47,'Data Annex'!$K$1:$AN$1,0)),"") -> 0.0348395628 | AA76: =IFERROR(INDEX('Data Annex'!$K$1:$AN$869,MATCH(Assets!AA$46&"|"&Assets!$B76,'Data Annex'!$K$1:$K$869,0),MATCH(Assets!AA$47,'Data Annex'!$K$1:$AN$1,0)),"") -> 0.0354845937 | AB76: =IFERROR(INDEX('Data Annex'!$K$1:$AN$869,MATCH(Assets!AB$46&"|"&Assets!$B76,'Data Annex'!$K$1:$K$869,0),MATCH(Assets!AB$47,'Data Annex'!$K$1:$AN$1,0)),"") -> 0.0321793984
B77: PT | D77: PT | F77: =IFERROR(INDEX('Data Annex'!$K$1:$AN$869,MATCH(Assets!F$46&"|"&Assets!$B77,'Data Annex'!$K$1:$K$869,0),MATCH(Assets!F$47,'Data Annex'!$K$1:$AN$1,0)),"") -> 337.6026169 | G77: =IFERROR(INDEX('Data Annex'!$K$1:$AN$869,MATCH(Assets!G$46&"|"&Assets!$B77,'Data Annex'!$K$1:$K$869,0),MATCH(Assets!G$47,'Data Annex'!$K$1:$AN$1,0)),"") -> 356.0361086 | H77: =IFERROR(INDEX('Data Annex'!$K$1:$AN$869,MATCH(Assets!H$46&"|"&Assets!$B77,'Data Annex'!$K$1:$K$869,0),MATCH(Assets!H$47,'Data Annex'!$K$1:$AN$1,0)),"") -> 354.1518472 | I77: =IFERROR(INDEX('Data Annex'!$K$1:$AN$869,MATCH(Assets!I$46&"|"&Assets!$B77,'Data Annex'!$K$1:$K$869,0),MATCH(Assets!I$47,'Data Annex'!$K$1:$AN$1,0)),"") -> 355.1532874 | J77: =IFERROR(INDEX('Data Annex'!$K$1:$AN$869,MATCH(Assets!J$46&"|"&Assets!$B77,'Data Annex'!$K$1:$K$869,0),MATCH(Assets!J$47,'Data Annex'!$K$1:$AN$1,0)),"") -> 315.4407639 | K77: =IFERROR(INDEX('Data Annex'!$K$1:$AN$869,MATCH(Assets!K$46&"|"&Assets!$B77,'Data Annex'!$K$1:$K$869,0),MATCH(Assets!K$47,'Data Annex'!$K$1:$AN$1,0)),"") -> 335.0759192 | L77: =IFERROR(INDEX('Data Annex'!$K$1:$AN$869,MATCH(Assets!L$46&"|"&Assets!$B77,'Data Annex'!$K$1:$K$869,0),MATCH(Assets!L$47,'Data Annex'!$K$1:$AN$1,0)),"") -> 331.0442657 | M77: =IFERROR(INDEX('Data Annex'!$K$1:$AN$869,MATCH(Assets!M$46&"|"&Assets!$B77,'Data Annex'!$K$1:$K$869,0),MATCH(Assets!M$47,'Data Annex'!$K$1:$AN$1,0)),"") -> 332.9438269 | N77: 0.9374651418 | O77: PT | Q77: =IFERROR(INDEX('Data Annex'!$K$1:$AN$869,MATCH(Assets!Q$46&"|"&Assets!$B77,'Data Annex'!$K$1:$K$869,0),MATCH(Assets!Q$47,'Data Annex'!$K$1:$AN$1,0)),"") -> 0.8342806062 | R77: =IFERROR(INDEX('Data Annex'!$K$1:$AN$869,MATCH(Assets!R$46&"|"&Assets!$B77,'Data Annex'!$K$1:$K$869,0),MATCH(Assets!R$47,'Data Annex'!$K$1:$AN$1,0)),"") -> 0.8319262862 | S77: =IFERROR(INDEX('Data Annex'!$K$1:$AN$869,MATCH(Assets!S$46&"|"&Assets!$B77,'Data Annex'!$K$1:$K$869,0),MATCH(Assets!S$47,'Data Annex'!$K$1:$AN$1,0)),"") -> 0.8368844904 | T77: =IFERROR(INDEX('Data Annex'!$K$1:$AN$869,MATCH(Assets!T$46&"|"&Assets!$B77,'Data Annex'!$K$1:$K$869,0),MATCH(Assets!T$47,'Data Annex'!$K$1:$AN$1,0)),"") -> 0.8495832517 | U77: =IFERROR(INDEX('Data Annex'!$K$1:$AN$869,MATCH(Assets!U$46&"|"&Assets!$B77,'Data Annex'!$K$1:$K$869,0),MATCH(Assets!U$47,'Data Annex'!$K$1:$AN$1,0)),"") -> 0.1103466609 | V77: =IFERROR(INDEX('Data Annex'!$K$1:$AN$869,MATCH(Assets!V$46&"|"&Assets!$B77,'Data Annex'!$K$1:$K$869,0),MATCH(Assets!V$47,'Data Annex'!$K$1:$AN$1,0)),"") -> 0.1167063041 | W77: =IFERROR(INDEX('Data Annex'!$K$1:$AN$869,MATCH(Assets!W$46&"|"&Assets!$B77,'Data Annex'!$K$1:$K$869,0),MATCH(Assets!W$47,'Data Annex'!$K$1:$AN$1,0)),"") -> 0.1168661438 | X77: =IFERROR(INDEX('Data Annex'!$K$1:$AN$869,MATCH(Assets!X$46&"|"&Assets!$B77,'Data Annex'!$K$1:$K$869,0),MATCH(Assets!X$47,'Data Annex'!$K$1:$AN$1,0)),"") -> 0.1120274032 | Y77: =IFERROR(INDEX('Data Annex'!$K$1:$AN$869,MATCH(Assets!Y$46&"|"&Assets!$B77,'Data Annex'!$K$1:$K$869,0),MATCH(Assets!Y$47,'Data Annex'!$K$1:$AN$1,0)),"") -> 0.0553727328 | Z77: =IFERROR(INDEX('Data Annex'!$K$1:$AN$869,MATCH(Assets!Z$46&"|"&Assets!$B77,'Data Annex'!$K$1:$K$869,0),MATCH(Assets!Z$47,'Data Annex'!$K$1:$AN$1,0)),"") -> 0.0513674097 | AA77: =IFERROR(INDEX('Data Annex'!$K$1:$AN$869,MATCH(Assets!AA$46&"|"&Assets!$B77,'Data Annex'!$K$1:$K$869,0),MATCH(Assets!AA$47,'Data Annex'!$K$1:$AN$1,0)),"") -> 0.0462493659 | AB77: =IFERROR(INDEX('Data Annex'!$K$1:$AN$869,MATCH(Assets!AB$46&"|"&Assets!$B77,'Data Annex'!$K$1:$K$869,0),MATCH(Assets!AB$47,'Data Annex'!$K$1:$AN$1,0)),"") -> 0.0383893452
B78: RO | D78: RO | F78: =IFERROR(INDEX('Data Annex'!$K$1:$AN$869,MATCH(Assets!F$46&"|"&Assets!$B78,'Data Annex'!$K$1:$K$869,0),MATCH(Assets!F$47,'Data Annex'!$K$1:$AN$1,0)),"") -> 48.40104522 | G78: =IFERROR(INDEX('Data Annex'!$K$1:$AN$869,MATCH(Assets!G$46&"|"&Assets!$B78,'Data Annex'!$K$1:$K$869,0),MATCH(Assets!G$47,'Data Annex'!$K$1:$AN$1,0)),"") -> 48.513647 | H78: =IFERROR(INDEX('Data Annex'!$K$1:$AN$869,MATCH(Assets!H$46&"|"&Assets!$B78,'Data Annex'!$K$1:$K$869,0),MATCH(Assets!H$47,'Data Annex'!$K$1:$AN$1,0)),"") -> 49.13824223 | I78: =IFERROR(INDEX('Data Annex'!$K$1:$AN$869,MATCH(Assets!I$46&"|"&Assets!$B78,'Data Annex'!$K$1:$K$869,0),MATCH(Assets!I$47,'Data Annex'!$K$1:$AN$1,0)),"") -> 51.96803506 | J78: =IFERROR(INDEX('Data Annex'!$K$1:$AN$869,MATCH(Assets!J$46&"|"&Assets!$B78,'Data Annex'!$K$1:$K$869,0),MATCH(Assets!J$47,'Data Annex'!$K$1:$AN$1,0)),"") -> 47.16755096 | K78: =IFERROR(INDEX('Data Annex'!$K$1:$AN$869,MATCH(Assets!K$46&"|"&Assets!$B78,'Data Annex'!$K$1:$K$869,0),MATCH(Assets!K$47,'Data Annex'!$K$1:$AN$1,0)),"") -> 47.27843191 | L78: =IFERROR(INDEX('Data Annex'!$K$1:$AN$869,MATCH(Assets!L$46&"|"&Assets!$B78,'Data Annex'!$K$1:$K$869,0),MATCH(Assets!L$47,'Data Annex'!$K$1:$AN$1,0)),"") -> 47.95089992 | M78: =IFERROR(INDEX('Data Annex'!$K$1:$AN$869,MATCH(Assets!M$46&"|"&Assets!$B78,'Data Annex'!$K$1:$K$869,0),MATCH(Assets!M$47,'Data Annex'!$K$1:$AN$1,0)),"") -> 50.76061935 | N78: 0.976766185 | O78: RO | Q78: =IFERROR(INDEX('Data Annex'!$K$1:$AN$869,MATCH(Assets!Q$46&"|"&Assets!$B78,'Data Annex'!$K$1:$K$869,0),MATCH(Assets!Q$47,'Data Annex'!$K$1:$AN$1,0)),"") -> 0.7860061435 | R78: =IFERROR(INDEX('Data Annex'!$K$1:$AN$869,MATCH(Assets!R$46&"|"&Assets!$B78,'Data Annex'!$K$1:$K$869,0),MATCH(Assets!R$47,'Data Annex'!$K$1:$AN$1,0)),"") -> 0.7760492608 | S78: =IFERROR(INDEX('Data Annex'!$K$1:$AN$869,MATCH(Assets!S$46&"|"&Assets!$B78,'Data Annex'!$K$1:$K$869,0),MATCH(Assets!S$47,'Data Annex'!$K$1:$AN$1,0)),"") -> 0.77264143 | T78: =IFERROR(INDEX('Data Annex'!$K$1:$AN$869,MATCH(Assets!T$46&"|"&Assets!$B78,'Data Annex'!$K$1:$K$869,0),MATCH(Assets!T$47,'Data Annex'!$K$1:$AN$1,0)),"") -> 0.7587657983 | U78: =IFERROR(INDEX('Data Annex'!$K$1:$AN$869,MATCH(Assets!U$46&"|"&Assets!$B78,'Data Annex'!$K$1:$K$869,0),MATCH(Assets!U$47,'Data Annex'!$K$1:$AN$1,0)),"") -> 0.1919226067 | V78: =IFERROR(INDEX('Data Annex'!$K$1:$AN$869,MATCH(Assets!V$46&"|"&Assets!$B78,'Data Annex'!$K$1:$K$869,0),MATCH(Assets!V$47,'Data Annex'!$K$1:$AN$1,0)),"") -> 0.2023029169 | W78: =IFERROR(INDEX('Data Annex'!$K$1:$AN$869,MATCH(Assets!W$46&"|"&Assets!$B78,'Data Annex'!$K$1:$K$869,0),MATCH(Assets!W$47,'Data Annex'!$K$1:$AN$1,0)),"") -> 0.2068212646 | X78: =IFERROR(INDEX('Data Annex'!$K$1:$AN$869,MATCH(Assets!X$46&"|"&Assets!$B78,'Data Annex'!$K$1:$K$869,0),MATCH(Assets!X$47,'Data Annex'!$K$1:$AN$1,0)),"") -> 0.2199504493 | Y78: =IFERROR(INDEX('Data Annex'!$K$1:$AN$869,MATCH(Assets!Y$46&"|"&Assets!$B78,'Data Annex'!$K$1:$K$869,0),MATCH(Assets!Y$47,'Data Annex'!$K$1:$AN$1,0)),"") -> 0.0220712498 | Z78: =IFERROR(INDEX('Data Annex'!$K$1:$AN$869,MATCH(Assets!Z$46&"|"&Assets!$B78,'Data Annex'!$K$1:$K$869,0),MATCH(Assets!Z$47,'Data Annex'!$K$1:$AN$1,0)),"") -> 0.0216478223 | AA78: =IFERROR(INDEX('Data Annex'!$K$1:$AN$869,MATCH(Assets!AA$46&"|"&Assets!$B78,'Data Annex'!$K$1:$K$869,0),MATCH(Assets!AA$47,'Data Annex'!$K$1:$AN$1,0)),"") -> 0.0205373054 | AB78: =IFERROR(INDEX('Data Annex'!$K$1:$AN$869,MATCH(Assets!AB$46&"|"&Assets!$B78,'Data Annex'!$K$1:$K$869,0),MATCH(Assets!AB$47,'Data Annex'!$K$1:$AN$1,0)),"") -> 0.0212837525
B79: SE | D79: SE | F79: =IFERROR(INDEX('Data Annex'!$K$1:$AN$869,MATCH(Assets!F$46&"|"&Assets!$B79,'Data Annex'!$K$1:$K$869,0),MATCH(Assets!F$47,'Data Annex'!$K$1:$AN$1,0)),"") -> 940.1780551 | G79: =IFERROR(INDEX('Data Annex'!$K$1:$AN$869,MATCH(Assets!G$46&"|"&Assets!$B79,'Data Annex'!$K$1:$K$869,0),MATCH(Assets!G$47,'Data Annex'!$K$1:$AN$1,0)),"") -> 980.1949257 | H79: =IFERROR(INDEX('Data Annex'!$K$1:$AN$869,MATCH(Assets!H$46&"|"&Assets!$B79,'Data Annex'!$K$1:$K$869,0),MATCH(Assets!H$47,'Data Annex'!$K$1:$AN$1,0)),"") -> 941.9134368 | I79: =IFERROR(INDEX('Data Annex'!$K$1:$AN$869,MATCH(Assets!I$46&"|"&Assets!$B79,'Data Annex'!$K$1:$K$869,0),MATCH(Assets!I$47,'Data Annex'!$K$1:$AN$1,0)),"") -> 939.9334633 | J79: =IFERROR(INDEX('Data Annex'!$K$1:$AN$869,MATCH(Assets!J$46&"|"&Assets!$B79,'Data Annex'!$K$1:$K$869,0),MATCH(Assets!J$47,'Data Annex'!$K$1:$AN$1,0)),"") -> 928.4868195 | K79: =IFERROR(INDEX('Data Annex'!$K$1:$AN$869,MATCH(Assets!K$46&"|"&Assets!$B79,'Data Annex'!$K$1:$K$869,0),MATCH(Assets!K$47,'Data Annex'!$K$1:$AN$1,0)),"") -> 967.9162677 | L79: =IFERROR(INDEX('Data Annex'!$K$1:$AN$869,MATCH(Assets!L$46&"|"&Assets!$B79,'Data Annex'!$K$1:$K$869,0),MATCH(Assets!L$47,'Data Annex'!$K$1:$AN$1,0)),"") -> 929.4621038 | M79: =IFERROR(INDEX('Data Annex'!$K$1:$AN$869,MATCH(Assets!M$46&"|"&Assets!$B79,'Data Annex'!$K$1:$K$869,0),MATCH(Assets!M$47,'Data Annex'!$K$1:$AN$1,0)),"") -> 925.3715487 | N79: 0.9845075049 | O79: SE | Q79: =IFERROR(INDEX('Data Annex'!$K$1:$AN$869,MATCH(Assets!Q$46&"|"&Assets!$B79,'Data Annex'!$K$1:$K$869,0),MATCH(Assets!Q$47,'Data Annex'!$K$1:$AN$1,0)),"") -> 0.828298007 | R79: =IFERROR(INDEX('Data Annex'!$K$1:$AN$869,MATCH(Assets!R$46&"|"&Assets!$B79,'Data Annex'!$K$1:$K$869,0),MATCH(Assets!R$47,'Data Annex'!$K$1:$AN$1,0)),"") -> 0.8410936998 | S79: =IFERROR(INDEX('Data Annex'!$K$1:$AN$869,MATCH(Assets!S$46&"|"&Assets!$B79,'Data Annex'!$K$1:$K$869,0),MATCH(Assets!S$47,'Data Annex'!$K$1:$AN$1,0)),"") -> 0.8533020936 | T79: =IFERROR(INDEX('Data Annex'!$K$1:$AN$869,MATCH(Assets!T$46&"|"&Assets!$B79,'Data Annex'!$K$1:$K$869,0),MATCH(Assets!T$47,'Data Annex'!$K$1:$AN$1,0)),"") -> 0.8700521538 | U79: =IFERROR(INDEX('Data Annex'!$K$1:$AN$869,MATCH(Assets!U$46&"|"&Assets!$B79,'Data Annex'!$K$1:$K$869,0),MATCH(Assets!U$47,'Data Annex'!$K$1:$AN$1,0)),"") -> 0.0123938793 | V79: =IFERROR(INDEX('Data Annex'!$K$1:$AN$869,MATCH(Assets!V$46&"|"&Assets!$B79,'Data Annex'!$K$1:$K$869,0),MATCH(Assets!V$47,'Data Annex'!$K$1:$AN$1,0)),"") -> 0.00979873 | W79: =IFERROR(INDEX('Data Annex'!$K$1:$AN$869,MATCH(Assets!W$46&"|"&Assets!$B79,'Data Annex'!$K$1:$K$869,0),MATCH(Assets!W$47,'Data Annex'!$K$1:$AN$1,0)),"") -> 0.0100801474 | X79: =IFERROR(INDEX('Data Annex'!$K$1:$AN$869,MATCH(Assets!X$46&"|"&Assets!$B79,'Data Annex'!$K$1:$K$869,0),MATCH(Assets!X$47,'Data Annex'!$K$1:$AN$1,0)),"") -> 0.0110727452 | Y79: =IFERROR(INDEX('Data Annex'!$K$1:$AN$869,MATCH(Assets!Y$46&"|"&Assets!$B79,'Data Annex'!$K$1:$K$869,0),MATCH(Assets!Y$47,'Data Annex'!$K$1:$AN$1,0)),"") -> 0.1593081136 | Z79: =IFERROR(INDEX('Data Annex'!$K$1:$AN$869,MATCH(Assets!Z$46&"|"&Assets!$B79,'Data Annex'!$K$1:$K$869,0),MATCH(Assets!Z$47,'Data Annex'!$K$1:$AN$1,0)),"") -> 0.1491075702 | AA79: =IFERROR(INDEX('Data Annex'!$K$1:$AN$869,MATCH(Assets!AA$46&"|"&Assets!$B79,'Data Annex'!$K$1:$K$869,0),MATCH(Assets!AA$47,'Data Annex'!$K$1:$AN$1,0)),"") -> 0.136617759 | AB79: =IFERROR(INDEX('Data Annex'!$K$1:$AN$869,MATCH(Assets!AB$46&"|"&Assets!$B79,'Data Annex'!$K$1:$K$869,0),MATCH(Assets!AB$47,'Data Annex'!$K$1:$AN$1,0)),"") -> 0.1188751009
B80: SI | D80: SI | F80: =IFERROR(INDEX('Data Annex'!$K$1:$AN$869,MATCH(Assets!F$46&"|"&Assets!$B80,'Data Annex'!$K$1:$K$869,0),MATCH(Assets!F$47,'Data Annex'!$K$1:$AN$1,0)),"") -> 26.61125482 | G80: =IFERROR(INDEX('Data Annex'!$K$1:$AN$869,MATCH(Assets!G$46&"|"&Assets!$B80,'Data Annex'!$K$1:$K$869,0),MATCH(Assets!G$47,'Data Annex'!$K$1:$AN$1,0)),"") -> 27.4030235 | H80: =IFERROR(INDEX('Data Annex'!$K$1:$AN$869,MATCH(Assets!H$46&"|"&Assets!$B80,'Data Annex'!$K$1:$K$869,0),MATCH(Assets!H$47,'Data Annex'!$K$1:$AN$1,0)),"") -> 27.67413222 | I80: =IFERROR(INDEX('Data Annex'!$K$1:$AN$869,MATCH(Assets!I$46&"|"&Assets!$B80,'Data Annex'!$K$1:$K$869,0),MATCH(Assets!I$47,'Data Annex'!$K$1:$AN$1,0)),"") -> 32.39711546 | J80: =IFERROR(INDEX('Data Annex'!$K$1:$AN$869,MATCH(Assets!J$46&"|"&Assets!$B80,'Data Annex'!$K$1:$K$869,0),MATCH(Assets!J$47,'Data Annex'!$K$1:$AN$1,0)),"") -> 25.88324025 | K80: =IFERROR(INDEX('Data Annex'!$K$1:$AN$869,MATCH(Assets!K$46&"|"&Assets!$B80,'Data Annex'!$K$1:$K$869,0),MATCH(Assets!K$47,'Data Annex'!$K$1:$AN$1,0)),"") -> 26.70001613 | L80: =IFERROR(INDEX('Data Annex'!$K$1:$AN$869,MATCH(Assets!L$46&"|"&Assets!$B80,'Data Annex'!$K$1:$K$869,0),MATCH(Assets!L$47,'Data Annex'!$K$1:$AN$1,0)),"") -> 26.99202274 | M80: =IFERROR(INDEX('Data Annex'!$K$1:$AN$869,MATCH(Assets!M$46&"|"&Assets!$B80,'Data Annex'!$K$1:$K$869,0),MATCH(Assets!M$47,'Data Annex'!$K$1:$AN$1,0)),"") -> 31.61270542 | N80: 0.9757876581 | O80: SI | Q80: =IFERROR(INDEX('Data Annex'!$K$1:$AN$869,MATCH(Assets!Q$46&"|"&Assets!$B80,'Data Annex'!$K$1:$K$869,0),MATCH(Assets!Q$47,'Data Annex'!$K$1:$AN$1,0)),"") -> 0.816409491 | R80: =IFERROR(INDEX('Data Annex'!$K$1:$AN$869,MATCH(Assets!R$46&"|"&Assets!$B80,'Data Annex'!$K$1:$K$869,0),MATCH(Assets!R$47,'Data Annex'!$K$1:$AN$1,0)),"") -> 0.8300208526 | S80: =IFERROR(INDEX('Data Annex'!$K$1:$AN$869,MATCH(Assets!S$46&"|"&Assets!$B80,'Data Annex'!$K$1:$K$869,0),MATCH(Assets!S$47,'Data Annex'!$K$1:$AN$1,0)),"") -> 0.8268814403 | T80: =IFERROR(INDEX('Data Annex'!$K$1:$AN$869,MATCH(Assets!T$46&"|"&Assets!$B80,'Data Annex'!$K$1:$K$869,0),MATCH(Assets!T$47,'Data Annex'!$K$1:$AN$1,0)),"") -> 0.8114558947 | U80: =IFERROR(INDEX('Data Annex'!$K$1:$AN$869,MATCH(Assets!U$46&"|"&Assets!$B80,'Data Annex'!$K$1:$K$869,0),MATCH(Assets!U$47,'Data Annex'!$K$1:$AN$1,0)),"") -> 0.176875199 | V80: =IFERROR(INDEX('Data Annex'!$K$1:$AN$869,MATCH(Assets!V$46&"|"&Assets!$B80,'Data Annex'!$K$1:$K$869,0),MATCH(Assets!V$47,'Data Annex'!$K$1:$AN$1,0)),"") -> 0.1637986256 | W80: =IFERROR(INDEX('Data Annex'!$K$1:$AN$869,MATCH(Assets!W$46&"|"&Assets!$B80,'Data Annex'!$K$1:$K$869,0),MATCH(Assets!W$47,'Data Annex'!$K$1:$AN$1,0)),"") -> 0.1671775565 | X80: =IFERROR(INDEX('Data Annex'!$K$1:$AN$869,MATCH(Assets!X$46&"|"&Assets!$B80,'Data Annex'!$K$1:$K$869,0),MATCH(Assets!X$47,'Data Annex'!$K$1:$AN$1,0)),"") -> 0.1809458826 | Y80: =IFERROR(INDEX('Data Annex'!$K$1:$AN$869,MATCH(Assets!Y$46&"|"&Assets!$B80,'Data Annex'!$K$1:$K$869,0),MATCH(Assets!Y$47,'Data Annex'!$K$1:$AN$1,0)),"") -> 0.0067153101 | Z80: =IFERROR(INDEX('Data Annex'!$K$1:$AN$869,MATCH(Assets!Z$46&"|"&Assets!$B80,'Data Annex'!$K$1:$K$869,0),MATCH(Assets!Z$47,'Data Annex'!$K$1:$AN$1,0)),"") -> 0.0061805218 | AA80: =IFERROR(INDEX('Data Annex'!$K$1:$AN$869,MATCH(Assets!AA$46&"|"&Assets!$B80,'Data Annex'!$K$1:$K$869,0),MATCH(Assets!AA$47,'Data Annex'!$K$1:$AN$1,0)),"") -> 0.0059410032 | AB80: =IFERROR(INDEX('Data Annex'!$K$1:$AN$869,MATCH(Assets!AB$46&"|"&Assets!$B80,'Data Annex'!$K$1:$K$869,0),MATCH(Assets!AB$47,'Data Annex'!$K$1:$AN$1,0)),"") -> 0.0075982226
B81: SK | D81: SK | F81: =IFERROR(INDEX('Data Annex'!$K$1:$AN$869,MATCH(Assets!F$46&"|"&Assets!$B81,'Data Annex'!$K$1:$K$869,0),MATCH(Assets!F$47,'Data Annex'!$K$1:$AN$1,0)),"") -> 50.62370566 | G81: =IFERROR(INDEX('Data Annex'!$K$1:$AN$869,MATCH(Assets!G$46&"|"&Assets!$B81,'Data Annex'!$K$1:$K$869,0),MATCH(Assets!G$47,'Data Annex'!$K$1:$AN$1,0)),"") -> 52.76961206 | H81: =IFERROR(INDEX('Data Annex'!$K$1:$AN$869,MATCH(Assets!H$46&"|"&Assets!$B81,'Data Annex'!$K$1:$K$869,0),MATCH(Assets!H$47,'Data Annex'!$K$1:$AN$1,0)),"") -> 54.14568922 | I81: =IFERROR(INDEX('Data Annex'!$K$1:$AN$869,MATCH(Assets!I$46&"|"&Assets!$B81,'Data Annex'!$K$1:$K$869,0),MATCH(Assets!I$47,'Data Annex'!$K$1:$AN$1,0)),"") -> 55.6011076 | J81: =IFERROR(INDEX('Data Annex'!$K$1:$AN$869,MATCH(Assets!J$46&"|"&Assets!$B81,'Data Annex'!$K$1:$K$869,0),MATCH(Assets!J$47,'Data Annex'!$K$1:$AN$1,0)),"") -> 49.6410712 | K81: =IFERROR(INDEX('Data Annex'!$K$1:$AN$869,MATCH(Assets!K$46&"|"&Assets!$B81,'Data Annex'!$K$1:$K$869,0),MATCH(Assets!K$47,'Data Annex'!$K$1:$AN$1,0)),"") -> 51.77489981 | L81: =IFERROR(INDEX('Data Annex'!$K$1:$AN$869,MATCH(Assets!L$46&"|"&Assets!$B81,'Data Annex'!$K$1:$K$869,0),MATCH(Assets!L$47,'Data Annex'!$K$1:$AN$1,0)),"") -> 53.12974919 | M81: =IFERROR(INDEX('Data Annex'!$K$1:$AN$869,MATCH(Assets!M$46&"|"&Assets!$B81,'Data Annex'!$K$1:$K$869,0),MATCH(Assets!M$47,'Data Annex'!$K$1:$AN$1,0)),"") -> 54.58424617 | N81: 0.9817114896 | O81: SK | Q81: =IFERROR(INDEX('Data Annex'!$K$1:$AN$869,MATCH(Assets!Q$46&"|"&Assets!$B81,'Data Annex'!$K$1:$K$869,0),MATCH(Assets!Q$47,'Data Annex'!$K$1:$AN$1,0)),"") -> 0.9597650937 | R81: =IFERROR(INDEX('Data Annex'!$K$1:$AN$869,MATCH(Assets!R$46&"|"&Assets!$B81,'Data Annex'!$K$1:$K$869,0),MATCH(Assets!R$47,'Data Annex'!$K$1:$AN$1,0)),"") -> 0.9482174247 | S81: =IFERROR(INDEX('Data Annex'!$K$1:$AN$869,MATCH(Assets!S$46&"|"&Assets!$B81,'Data Annex'!$K$1:$K$869,0),MATCH(Assets!S$47,'Data Annex'!$K$1:$AN$1,0)),"") -> 0.9543258737 | T81: =IFERROR(INDEX('Data Annex'!$K$1:$AN$869,MATCH(Assets!T$46&"|"&Assets!$B81,'Data Annex'!$K$1:$K$869,0),MATCH(Assets!T$47,'Data Annex'!$K$1:$AN$1,0)),"") -> 0.9595329835 | U81: =IFERROR(INDEX('Data Annex'!$K$1:$AN$869,MATCH(Assets!U$46&"|"&Assets!$B81,'Data Annex'!$K$1:$K$869,0),MATCH(Assets!U$47,'Data Annex'!$K$1:$AN$1,0)),"") -> 0.033982166 | V81: =IFERROR(INDEX('Data Annex'!$K$1:$AN$869,MATCH(Assets!V$46&"|"&Assets!$B81,'Data Annex'!$K$1:$K$869,0),MATCH(Assets!V$47,'Data Annex'!$K$1:$AN$1,0)),"") -> 0.0419812895 | W81: =IFERROR(INDEX('Data Annex'!$K$1:$AN$869,MATCH(Assets!W$46&"|"&Assets!$B81,'Data Annex'!$K$1:$K$869,0),MATCH(Assets!W$47,'Data Annex'!$K$1:$AN$1,0)),"") -> 0.0365191766 | X81: =IFERROR(INDEX('Data Annex'!$K$1:$AN$869,MATCH(Assets!X$46&"|"&Assets!$B81,'Data Annex'!$K$1:$K$869,0),MATCH(Assets!X$47,'Data Annex'!$K$1:$AN$1,0)),"") -> 0.0336961339 | Y81: =IFERROR(INDEX('Data Annex'!$K$1:$AN$869,MATCH(Assets!Y$46&"|"&Assets!$B81,'Data Annex'!$K$1:$K$869,0),MATCH(Assets!Y$47,'Data Annex'!$K$1:$AN$1,0)),"") -> 0.0062527403 | Z81: =IFERROR(INDEX('Data Annex'!$K$1:$AN$869,MATCH(Assets!Z$46&"|"&Assets!$B81,'Data Annex'!$K$1:$K$869,0),MATCH(Assets!Z$47,'Data Annex'!$K$1:$AN$1,0)),"") -> 0.0098012858 | AA81: =IFERROR(INDEX('Data Annex'!$K$1:$AN$869,MATCH(Assets!AA$46&"|"&Assets!$B81,'Data Annex'!$K$1:$K$869,0),MATCH(Assets!AA$47,'Data Annex'!$K$1:$AN$1,0)),"") -> 0.0091549497 | AB81: =IFERROR(INDEX('Data Annex'!$K$1:$AN$869,MATCH(Assets!AB$46&"|"&Assets!$B81,'Data Annex'!$K$1:$K$869,0),MATCH(Assets!AB$47,'Data Annex'!$K$1:$AN$1,0)),"") -> 0.0067708826
B82: EU | D82: =+D42 -> EU/EEA | F82: =IFERROR(INDEX('Data Annex'!$K$1:$AN$869,MATCH(Assets!F$46&"|"&Assets!$B82,'Data Annex'!$K$1:$K$869,0),MATCH(Assets!F$47,'Data Annex'!$K$1:$AN$1,0)),"") -> 25557.92682 | G82: =IFERROR(INDEX('Data Annex'!$K$1:$AN$869,MATCH(Assets!G$46&"|"&Assets!$B82,'Data Annex'!$K$1:$K$869,0),MATCH(Assets!G$47,'Data Annex'!$K$1:$AN$1,0)),"") -> 26054.06364 | H82: =IFERROR(INDEX('Data Annex'!$K$1:$AN$869,MATCH(Assets!H$46&"|"&Assets!$B82,'Data Annex'!$K$1:$K$869,0),MATCH(Assets!H$47,'Data Annex'!$K$1:$AN$1,0)),"") -> 25992.18449 | I82: =IFERROR(INDEX('Data Annex'!$K$1:$AN$869,MATCH(Assets!I$46&"|"&Assets!$B82,'Data Annex'!$K$1:$K$869,0),MATCH(Assets!I$47,'Data Annex'!$K$1:$AN$1,0)),"") -> 25639.3547 | J82: =IFERROR(INDEX('Data Annex'!$K$1:$AN$869,MATCH(Assets!J$46&"|"&Assets!$B82,'Data Annex'!$K$1:$K$869,0),MATCH(Assets!J$47,'Data Annex'!$K$1:$AN$1,0)),"") -> 24168.34253 | K82: =IFERROR(INDEX('Data Annex'!$K$1:$AN$869,MATCH(Assets!K$46&"|"&Assets!$B82,'Data Annex'!$K$1:$K$869,0),MATCH(Assets!K$47,'Data Annex'!$K$1:$AN$1,0)),"") -> 24744.40857 | L82: =IFERROR(INDEX('Data Annex'!$K$1:$AN$869,MATCH(Assets!L$46&"|"&Assets!$B82,'Data Annex'!$K$1:$K$869,0),MATCH(Assets!L$47,'Data Annex'!$K$1:$AN$1,0)),"") -> 24687.87807 | M82: =IFERROR(INDEX('Data Annex'!$K$1:$AN$869,MATCH(Assets!M$46&"|"&Assets!$B82,'Data Annex'!$K$1:$K$869,0),MATCH(Assets!M$47,'Data Annex'!$K$1:$AN$1,0)),"") -> 24053.85356 | N82: 0.9381614258 | O82: =D82 -> EU/EEA | Q82: =IFERROR(INDEX('Data Annex'!$K$1:$AN$869,MATCH(Assets!Q$46&"|"&Assets!$B82,'Data Annex'!$K$1:$K$869,0),MATCH(Assets!Q$47,'Data Annex'!$K$1:$AN$1,0)),"") -> 0.7405865492 | R82: =IFERROR(INDEX('Data Annex'!$K$1:$AN$869,MATCH(Assets!R$46&"|"&Assets!$B82,'Data Annex'!$K$1:$K$869,0),MATCH(Assets!R$47,'Data Annex'!$K$1:$AN$1,0)),"") -> 0.7553687154 | S82: =IFERROR(INDEX('Data Annex'!$K$1:$AN$869,MATCH(Assets!S$46&"|"&Assets!$B82,'Data Annex'!$K$1:$K$869,0),MATCH(Assets!S$47,'Data Annex'!$K$1:$AN$1,0)),"") -> 0.7618558863 | T82: =IFERROR(INDEX('Data Annex'!$K$1:$AN$869,MATCH(Assets!T$46&"|"&Assets!$B82,'Data Annex'!$K$1:$K$869,0),MATCH(Assets!T$47,'Data Annex'!$K$1:$AN$1,0)),"") -> 0.7682541745 | U82: =IFERROR(INDEX('Data Annex'!$K$1:$AN$869,MATCH(Assets!U$46&"|"&Assets!$B82,'Data Annex'!$K$1:$K$869,0),MATCH(Assets!U$47,'Data Annex'!$K$1:$AN$1,0)),"") -> 0.0542848785 | V82: =IFERROR(INDEX('Data Annex'!$K$1:$AN$869,MATCH(Assets!V$46&"|"&Assets!$B82,'Data Annex'!$K$1:$K$869,0),MATCH(Assets!V$47,'Data Annex'!$K$1:$AN$1,0)),"") -> 0.0558221293 | W82: =IFERROR(INDEX('Data Annex'!$K$1:$AN$869,MATCH(Assets!W$46&"|"&Assets!$B82,'Data Annex'!$K$1:$K$869,0),MATCH(Assets!W$47,'Data Annex'!$K$1:$AN$1,0)),"") -> 0.0548755432 | X82: =IFERROR(INDEX('Data Annex'!$K$1:$AN$869,MATCH(Assets!X$46&"|"&Assets!$B82,'Data Annex'!$K$1:$K$869,0),MATCH(Assets!X$47,'Data Annex'!$K$1:$AN$1,0)),"") -> 0.0544324727 | Y82: =IFERROR(INDEX('Data Annex'!$K$1:$AN$869,MATCH(Assets!Y$46&"|"&Assets!$B82,'Data Annex'!$K$1:$K$869,0),MATCH(Assets!Y$47,'Data Annex'!$K$1:$AN$1,0)),"") -> 0.2051672999 | Z82: =IFERROR(INDEX('Data Annex'!$K$1:$AN$869,MATCH(Assets!Z$46&"|"&Assets!$B82,'Data Annex'!$K$1:$K$869,0),MATCH(Assets!Z$47,'Data Annex'!$K$1:$AN$1,0)),"") -> 0.1888467357 | AA82: =IFERROR(INDEX('Data Annex'!$K$1:$AN$869,MATCH(Assets!AA$46&"|"&Assets!$B82,'Data Annex'!$K$1:$K$869,0),MATCH(Assets!AA$47,'Data Annex'!$K$1:$AN$1,0)),"") -> 0.1833059922 | AB82: =IFERROR(INDEX('Data Annex'!$K$1:$AN$869,MATCH(Assets!AB$46&"|"&Assets!$B82,'Data Annex'!$K$1:$K$869,0),MATCH(Assets!AB$47,'Data Annex'!$K$1:$AN$1,0)),"") -> 0.1773133528
